{"text_format":"1","workbook":"xlsx","n_sheets":81,"sheets":["NAVODILA","SPLOŠNO","DOSTOPNOST","UP_VSEBINE 1","UP_VSEBINE 2","UP_VSEBINE 3","UP_VSEBINE 4","UP VSEBINE 5","UP VSEBINE 6","UP_VSEBINE 7","UP_VSEBINE 8","UP_VSEBINE 9","UP_VSEBINE 10","UP_1a","UP_1b","UP_1c","UP_1d","UP_1e","UP_1f","UP_1g","UP_1h","UP_1i","UP_1j","UP_1k","UP_2.1a","UP_2.1b","UP_2.1c","UP_2.1d","UP_2.1e","UP_2.1f","UP_2.1g","UP_2.1h","UP_2.2a","UP_2.2b","UP_2.2c","UP_2.2d","UP_2.3a","UP_2.3b","UP_2.3c","UP_2.4a","UP_2.4b","UP_3a","UP_3b","UP_3c","UP_3d","UP_3e","UP_3f","UP_3g","UP_3h","UP_3i","UP_4a","UP_4b","UP_4c","UP_4d","UP_5a","UP_5b","UP_6a","UP_6b","UP_6c","UP_7a","UP_7b","UP_7c","UP_7d","UP_8a","UP_8b","UP_9a","UP_10a","UP_10b","UP_10c","UP_10d","UP_10e","UP_10f","UPORABNIKI_SUM","AKTIVNOSTI","KADRI","FINANCE","DRUGO","podatki skrij","matrika up_vseb","matrika_3","uporabniki"],"not_rendered":{"charts":0,"images":0,"macros":1,"external_links":0,"defined_names":23,"comments":4,"pivot_tables":0},"unopened":[],"bounds":{"document_bytes":16777216,"sheet_cells":100000,"rows_first":2000,"rows_last":500,"rows_between":2000,"halvings":0,"cell_chars":16384,"cell_head_chars":4096},"cells_cut":0,"cells_raw":0,"read":"whole","date_system":"1900"}

{"sheet":"NAVODILA","index":0,"n_rows":50,"n_cols":11,"rows_kept":50,"cut":false,"hidden":false,"merged":[[0,0,0,8],[2,1,2,7],[4,1,4,7],[20,1,20,7],[5,1,5,5]]}
["NAVODILA ZA IZPOLNJEVANJE"]
[]
[null,"Spoštovani, \npred vami je posodobljen obrazec za poročanje - Polletno poročilo o izvajanju socialnovarstvenega programa v obdobju od 1. 1. 2026 do 30. 6. 2026.\n\nObrazec vsebuje več listov, in sicer se odprejo odvisno od vrste programa:\n- splošno, dostopnost, uporabniki glede na vsebine, uporabniki, aktivnosti, kadri, finance, drugo.\n\nPOMEMBNO: \n- Da obrazec deluje nemoteno, ga morate najprej shraniti na disk, šele potem odpreti (ne odpirajte ga direktno iz e-maila oz. spleta).\n- Pri izpolnjevanju vas prosimo, da odgovarjate v za to namenjene celice (modre barve). Celice, označene z zeleno barvo so avtomatski seštevki oz. preverjanje, teh celic ne spreminjajte; celice, označene z rumeno barvo pa določajo izpolnitev kot izbirni seznam (kliknite na puščico v celici).\n\nNOVO - podatke o uporabnikih poročate po vsebinah, ki ste jih prijavili ob razpisu.\n\nV primeru tehničnih težav se lahko obrnete na IRSSV, in sicer na e-pošto: svp.irssv@siol.net. Če vam e-pošto zavrača, pri pošiljanju naredite stisnjeno datoteko zbirnika (npr.: .zip, .rar ipd)."]
[]
[null,"ZAČETEK: Prosimo, izberite skupino in podskupino vašega programa. \nKo boste označili vse korake, se vam bodo odprli zavihki za izpolnjevanje."]
[null,"Opomba: Če niste prepričani, v katero podskupino spada program, pustite prazno oz. preverite v končnem poročilu na",null,null,null,null,"POVEZAVI"]
[]
[]
[]
[null,null,"KORAK 1",null,"KORAK 2"]
[null,null,"Prosimo, najprej izberite vašo skupino programov:",null,"Prosimo, izberite vašo podskupino programov:"]
[]
[]
[]
[]
[]
[]
[]
[]
[]
[null,"KONEC: Ko boste z izpolnjevanjem končali, shranite datoteko. Ni več treba izpisovati v PDF obliko, pošljite le podpisan Excel oz. dodajte podpisan dopis."]
[]
[]
[]
[]
[]
[]
[]
[]
[]
[]
[]
[]
[]
[]
[]
[]
[]
[]
[]
[]
[]
[]
[null,"NASILJE","ZASVOJENI","DUŠEVNO ZDRAVJE","BREZDOMCI","OTROCI IN MLADOSTNIKI","STAREJŠI","INVALIDI","ROMI","DRUGI PROGRAMI","PROGRAMI SPECIALISTIČNE PODPORE ŽRTVAM KAZNIVIH DEJANJ"]
[null,"MATERINSKI DOMOVI","PREPOVEDANE DROGE – VISOKI PRAG","STANOVANJSKE SKUPINE","NAMESTITVENI PROGRAMI","DNEVNI CENTRI ZA OTROKE IN MLADOSTNIKE S PREVENTIVNIM DELOM IN SVETOVANJEM","PROGRAMI ZA STAREJŠE","PROGRAMI ZA SPODBUJANJE SOCIALNE VKLJUČENOSTI IN NEODVISNEGA ŽIVLJENJA INVALIDOV","PROGRAMI ZA ROME","DRUGI PROGRAMI","PROGRAMI SPECIALISTIČNE PODPORE ŽRTVAM KAZNIVIH DEJANJ"]
[null,"VARNE HIŠE, ZATOČIŠČA IN KRIZNI CENTRI","PREPOVEDANE DROGE - NIZKI PRAG","DNEVNI CENTRI","DNEVNI PROGRAMI","PREVENTIVNI PROGRAMI","PROGRAMI ZA OSEBE Z DEMENCO IN NJIHOVE SVOJCE"]
[null,"SVETOVALNICE","PREPOVEDANE DROGE – PREVENTIVNI PROGRAMI","INFORMACIJSKE PISARNE IN SVETOVALNICE",null,"PROGRAMI TELEFONSKEGA SVETOVANJA"]
[null,"PROGRAMI PREVENTIVE","ALKOHOLIZEM","PROGRAMI TELEFONSKEGA SVETOVANJA"]
[null,"PROGRAMI TELEFONSKEGA SVETOVANJA","MOTNJE HRANJENJA","ZAGOVORNIŠTVO"]
[null,null,"PREPREČEVANJE PREKOMERNE RABE IKT"]

{"sheet":"SPLOŠNO","index":1,"n_rows":21,"n_cols":3,"rows_kept":21,"cut":false,"hidden":true,"merged":[[20,1,20,2],[0,1,0,3],[1,1,2,2]]}
[null,"Polletno poročilo o izvajanju socialnovarstvenega programa \nv obdobju od 1. 1. 2026 do 30. 6. 2026"]
[null,"PROSIMO, DA POROČILO IZPOLNJUJETE KRATKO IN JEDRNATO, DRŽITE SE NAVODIL IN NE SPREMINJAJTE STRUKTURE OBRAZCA.\nIzpolnjen obrazec Excel podpišite ALI dodajte dopis in posredujte na MDDSZ po e-pošti na: gp.mddsz@gov.si \n(ni treba več pošiljati v PDF obrazcu)"]
[]
[]
[null,"Skupina, podskupina, evalvacija:",{"$f":"Skupina&\"; \"&NAVODILA!E16&\"; \"&NAVODILA!G16","v":"; ; "}]
[null,"Obdobje financiranja (izberite iz seznama):","2022-2028"]
[null,"Naziv izvajalca oz. organizacije:"]
[null,"Naziv programa: "]
[null,"Številka sklenjene pogodbe: "]
[null,"Naslov izvajalca oz. organizacije:"]
[null,"Telefon izvajalca, programa:                                                 "]
[null,"Elektronski naslov:"]
[null,"Spletna stran:"]
[null,"Tip organizacije, v kateri se izvaja program (izberite iz seznama):"]
[null,"Navedite skrbnika pogodbe na MDDSZ (naveden v pogodbi):"]
[]
[null,"Kraj in datum:"]
[]
[null,"Strokovni delavec/vodja programa + odgovorna oseba\n(navedite osebe in podpišite ALI priložite podpisan dopis):"]
[]
[null,"Rok za predložitev končnega poročila:  28. 7. 2026"]

{"sheet":"DOSTOPNOST","index":2,"n_rows":33,"n_cols":13,"rows_kept":33,"cut":false,"hidden":true,"merged":[[32,1,32,2],[0,0,0,13],[2,1,2,13],[3,1,4,1],[3,2,4,2],[3,3,4,3],[3,12,4,12],[3,4,3,9],[32,6,32,7],[3,11,4,11]]}
["DOSTOPNOST PROGRAMOV - za obdobje od 1. 1. 2026 do 30. 6. 2026"]
[]
[1,"Prosimo navedite, v katerih občinah se izvaja program in vpišite število enot oz. lokacij programa v tej občini. Programi, ki imate nastanitve, vpišite še število kapacitet oz. postelj po občinah. Vpišite samo tiste, kjer ste lastnik ali najemnik kot organizacija.\nOpomba: Programi telefonskega svetovanja/Programi za starejše, ki se izvajajo po celotni Sloveniji - označite na koncu 'DA' in pri občinah izvajanja vpišite občino sedeža organizacije oz. programa."]
[null,null,"Občina \n(izberite iz seznama):","Vpišite skupno število enot oz. lokacij v občini","Prosimo, vnesite število lokacij, ki so na voljo v spodnjih kategorijah po občinah ",null,null,null,null,null,"TEST","Število prenočitvenih kapacitet \n(formalno priznanih in rezervnih skupaj)","OPOMBA \n(če je vse na eni enoti vpišite \"vse na eni enoti\")"]
[null,null,null,null,"SEDEŽ","NASTANITVENA ENOTA","TERENSKO DELO","DNEVNI CENTER","PROGRAM SE IZVAJA NA DOMU UPORABNIKA","DRUGO \n( v opombo napišite, kaj)","SKUPAJ LOKACIJ V OBČINI"]
[null,"OBČINA IZVAJANJA 1",null,null,null,null,null,null,null,null,{"$f":"IF(D6=(E6+F6+H6+G6+I6+J6),\"SEŠTEVEK SE UJEMA\",\"SEŠTEVEK SE NE UJEMA - PREVERITE\")","v":"SEŠTEVEK SE UJEMA"}]
[null,"OBČINA IZVAJANJA 2",null,null,null,null,null,null,null,null,{"$f":"IF(D7=(E7+F7+H7+G7+I7+J7),\"SEŠTEVEK SE UJEMA\",\"SEŠTEVEK SE NE UJEMA - PREVERITE\")","v":"SEŠTEVEK SE UJEMA"}]
[null,"OBČINA IZVAJANJA 3",null,null,null,null,null,null,null,null,{"$f":"IF(D8=(E8+F8+H8+G8+I8+J8),\"SEŠTEVEK SE UJEMA\",\"SEŠTEVEK SE NE UJEMA - PREVERITE\")","v":"SEŠTEVEK SE UJEMA"}]
[null,"OBČINA IZVAJANJA 4",null,null,null,null,null,null,null,null,"SEŠTEVEK SE UJEMA"]
[null,"OBČINA IZVAJANJA 5",null,null,null,null,null,null,null,null,"SEŠTEVEK SE UJEMA"]
[null,"OBČINA IZVAJANJA 6",null,null,null,null,null,null,null,null,"SEŠTEVEK SE UJEMA"]
[null,"OBČINA IZVAJANJA 7",null,null,null,null,null,null,null,null,"SEŠTEVEK SE UJEMA"]
[null,"OBČINA IZVAJANJA 8",null,null,null,null,null,null,null,null,"SEŠTEVEK SE UJEMA"]
[null,"OBČINA IZVAJANJA 9",null,null,null,null,null,null,null,null,"SEŠTEVEK SE UJEMA"]
[null,"OBČINA IZVAJANJA 10",null,null,null,null,null,null,null,null,"SEŠTEVEK SE UJEMA"]
[null,"OBČINA IZVAJANJA 11",null,null,null,null,null,null,null,null,"SEŠTEVEK SE UJEMA"]
[null,"OBČINA IZVAJANJA 12",null,null,null,null,null,null,null,null,"SEŠTEVEK SE UJEMA"]
[null,"OBČINA IZVAJANJA 13",null,null,null,null,null,null,null,null,"SEŠTEVEK SE UJEMA"]
[null,"OBČINA IZVAJANJA 14",null,null,null,null,null,null,null,null,"SEŠTEVEK SE UJEMA"]
[null,"OBČINA IZVAJANJA 15",null,null,null,null,null,null,null,null,"SEŠTEVEK SE UJEMA"]
[null,"OBČINA IZVAJANJA 16",null,null,null,null,null,null,null,null,"SEŠTEVEK SE UJEMA"]
[null,"OBČINA IZVAJANJA 17",null,null,null,null,null,null,null,null,"SEŠTEVEK SE UJEMA"]
[null,"OBČINA IZVAJANJA 18",null,null,null,null,null,null,null,null,"SEŠTEVEK SE UJEMA"]
[null,"OBČINA IZVAJANJA 19",null,null,null,null,null,null,null,null,"SEŠTEVEK SE UJEMA"]
[null,"OBČINA IZVAJANJA 20",null,null,null,null,null,null,null,null,"SEŠTEVEK SE UJEMA"]
[null,"OBČINA IZVAJANJA 21",null,null,null,null,null,null,null,null,"SEŠTEVEK SE UJEMA"]
[null,"OBČINA IZVAJANJA 22",null,null,null,null,null,null,null,null,"SEŠTEVEK SE UJEMA"]
[null,"OBČINA IZVAJANJA 23",null,null,null,null,null,null,null,null,"SEŠTEVEK SE UJEMA"]
[null,"OBČINA IZVAJANJA 24",null,null,null,null,null,null,null,null,"SEŠTEVEK SE UJEMA"]
[null,"OBČINA IZVAJANJA 25",null,null,null,null,null,null,null,null,"SEŠTEVEK SE UJEMA"]
[null,"Skupaj",{"$f":"COUNTA(C6:C30)","v":0},{"$f":"SUM(D6:D30)","v":0},{"$f":"SUM(E6:E30)","v":0},0,0,0,0,0,null,{"$f":"SUM(L6:L30)","v":0}]
[]
[null,"Program se izvaja po celotni Sloveniji \n(izberite iz seznama):",null,null,null,"ŠTEVILO VSEH LOKACIJ \n(stolpci E do J):",{"$f":"IF(D31=(E31+F31+H31+G31+I31+J31),\"SEŠTEVEK SE UJEMA\",\"SEŠTEVEK SE NE UJEMA - PREVERITE\")","v":"SEŠTEVEK SE UJEMA"}]

{"sheet":"UP_VSEBINE 1","index":3,"n_rows":16,"n_cols":8,"rows_kept":16,"cut":false,"hidden":true,"merged":[[0,0,0,8],[1,1,1,7],[14,1,14,7]]}
["UPORABNIKI GLEDE NA VSEBINE - za obdobje od 1. 1. 2025 do 31. 12. 2025"]
[null,"Prosimo, navedite število kontinuiranih, občasnih uporabnikov, kot ste prijavili v razpisu in število dejanskih uporabnikov v letu 2025, kot izhaja iz poročanja za zahtevke MDDSZ. V primeru odstopanj pojasnite, zakaj prihaja do tega. En uporabnik je v teh tabelah lahko štet samo enkrat."]
[1,"Programi za preprečevanje nasilja, programi za pomoč žrtvam nasilja in programi za delo s povzročitelji nasilja:","PRIJAVA - Število kontinuiranih uporabnikov","PRIJAVA - Število občasnih uporabnikov","DEJANSKO - Število kontinuiranih uporabnikov","DEJANSKO - Število občasnih uporabnikov","POJASNILO - v primeru več kot 10 % odstopanja števila uporabnikov od prijave na razpis, pojasnite razloge za to","SKUPAJ DEJANSKIH UPORABNIKOV"]
["a","Programi kriznih centrov",null,null,null,null,null,{"$f":"SUM(E4:F4)","v":0}]
["b","Programi materinskih domov ali materinskih domov s prehodnimi bivalnimi enotami",null,null,null,null,null,{"$f":"SUM(E5:F5)","v":0}]
["c","Programi varnih hiš in zatočišč ",null,null,null,null,null,0]
["d","Programi, namenjeni obravnavi žrtev nasilja (informacijski in svetovalni programi)",null,null,null,null,null,0]
["e","Programi, namenjeni celostni obravnavi žrtev nasilja (informacijski in svetovalni programi ter 24/7 telefonska linija) ",null,null,null,null,null,0]
["f","Programi, namenjeni obravnavi žrtev spolnega nasilja",null,null,null,null,null,0]
["g","Programi, namenjeni povzročiteljem nasilja",null,null,null,null,null,{"$f":"SUM(E10:F10)","v":0}]
["h","Programi, namenjeni otrokom in mladostnikom, povzročiteljem nasilja, vključno z medvrstniškim nasiljem",null,null,null,null,null,0]
["i","Programi, namenjeni povzročiteljem nasilja v romski skupnosti",null,null,null,null,null,0]
["j","Preventivni programi na področju preprečevanja nasilja ",null,null,null,null,null,0]
["k","Programi, namenjeni celostni obravnavi žrtev nasilja nad invalidi (ki vsebujejo informacijski in svetovalni del programa kot tudi terensko delo in namestitvene kapacitete)",null,null,null,null,null,0]
[null,"po potrebi vstavite vrstice in vpišite vsebine, ki niso navedene zgoraj (starejši razpisi od leta 2025)"]
[null,null,{"$f":"SUM(C4:C14)","v":0},{"$f":"SUM(D4:D14)","v":0},{"$f":"SUM(E4:E14)","v":0},{"$f":"SUM(F4:F14)","v":0}]

{"sheet":"UP_VSEBINE 2","index":4,"n_rows":26,"n_cols":8,"rows_kept":26,"cut":false,"hidden":true,"merged":[[0,0,0,8],[24,1,24,7],[1,1,1,7]]}
["UPORABNIKI GLEDE NA VSEBINE - za obdobje od 1. 1. 2026 do 30. 6. 2026"]
[null,"Prosimo, navedite število kontinuiranih, občasnih uporabnikov, kot ste prijavili v razpisu in število dejanskih uporabnikov v letu 2025, kot izhaja iz poročanja za zahtevke MDDSZ. V primeru odstopanj pojasnite, zakaj prihaja do tega. En uporabnik je v teh tabelah lahko štet samo enkrat."]
[2,"Programi na področju preprečevanja zasvojenosti, ki so namenjeni uporabnikom prepovedanih drog, osebam, ki so se znašle v socialnih stiskah zaradi alkoholizma in osebam, ki imajo težave na področju motenj hranjenja ter drugih oblik zasvojenosti:","PRIJAVA - Število kontinuiranih uporabnikov","PRIJAVA - Število občasnih uporabnikov","DEJANSKO - Število kontinuiranih uporabnikov","DEJANSKO - Število občasnih uporabnikov","POJASNILO - v primeru več kot 10 % odstopanja števila uporabnikov od prijave na razpis, pojasnite razloge za to","SKUPAJ DEJANSKIH UPORABNIKOV"]
[null,"2.1 Visokopražni programi:"]
["a","Sprejemni centri visokopražnih programov in programov brez nastanitve za različne oblike zasvojenosti ",null,null,null,null,null,{"$f":"SUM(E5:F5)","v":0}]
["b","Programi, namenjeni preprečevanju razvoja različnih oblik zasvojenosti pri že ogroženih otrocih in mladostnikih z različnimi težavami v odraščanju",null,null,null,null,null,{"$f":"SUM(E6:F6)","v":0}]
["c","Visokopražni programi, namenjeni spreminjanju in utrjevanju življenja brez drog - terapevtske skupnosti",null,null,null,null,null,0]
["d","Terapevtski (visokopražni) programi brez nastanitve, namenjene spreminjanju in utrjevanju življenja brez drog ter dnevni centri",null,null,null,null,null,0]
["e","Programi za reintegracijo uporabnikov v družbo ",null,null,null,null,null,0]
["f","(Visokopražni) terapevtski programi (komune), namenjeni spreminjanju in utrjevanju življenja brez drog, ki omogočajo nastanitev uporabnikov",null,null,null,null,null,0]
["g","Stanovanjske skupine namenjene reintegraciji",null,null,null,null,null,0]
["h","Programi zmanjševanja škode na področju drog med mladimi in mlajšimi odraslimi ",null,null,null,null,null,{"$f":"SUM(E12:F12)","v":0}]
[null,"2.2 Programi zmanjševanja škode (nizkopražni programi za uživalce prepovedanih drog, kamor sodijo: dnevni centri, svetovalnice, terensko delo, sprejemališča in zavetišča za brezdomne uživalce drog ipd.):"]
["a","Nizkopražni programi, namenjeni uživalcem drog, mrežo centrov za svetovanje s terenskim delom za pomoč zasvojenim s prepovedanimi drogami, potrebnih vsakodnevne obravnave, ki lahko vključujejo psihosocialno pomoč (dnevni in drop-in centri ali terensko delo)",null,null,null,null,null,{"$f":"SUM(E14:F14)","v":0}]
["b","Nizkopražni programi, namenjeni mladim uživalcem drog, mrežo centrov za svetovanje s terenskim delom za pomoč zasvojenim s prepovedanimi drogami, potrebnih vsakodnevne obravnave, ki lahko vključujejo psihosocialno pomoč (dnevni in drop-in centri ali terensko delo)",null,null,null,null,null,0]
["c","Programi zavetišč s prenočitvenimi kapacitetami in z nočnim dežurstvom za brezdomne uživalce nedovoljenih drog",null,null,null,null,null,0]
["d","Nizkopražni programi za uživalke drog s prenočitvenimi kapacitetami in svetovanje s terenskim delom za pomoč zasvojenim s prepovedanimi drogami potrebnih vsakodnevne obravnave ",null,null,null,null,null,0]
[null,"2.3 Programi povezani z alkoholizmom:"]
["a","Programi, namenjeni osebam, ki so se znašle v socialnih stiskah zaradi alkoholizma (informacijski in svetovalni programi, terapevtski programi, dnevni centri)",null,null,null,null,null,{"$f":"SUM(E19:F19)","v":0}]
["b","Program, v katerih poteka delo v obliki rednih tedenskih srečanj skupin, v katerih je od 8 do 12 uporabnikov in pri katerih gre za spreminjanje ter utrjevanje novih vedenjskih in odnosnih vzorcev",null,null,null,null,null,0]
["c","Programi zmanjševanja škode zaradi uživanja alkohola za mlade in svetovanje s terenskim delom ter neposrednimi spletnimi stiki",null,null,null,null,null,0]
[null,"2.4 Programi na področju motenj hranjenja ali drugih oblik zasvojenosti (zasvojenost z igrami na srečo, zasvojenost z digitalnimi napravami, spletom in spletnimi storitvami ipd…):"]
["a","Programi za osebe, ki imajo težave na področju motenj hranjenja (dnevni centri, pisarne za svetovanje in informiranje)",null,null,null,null,null,{"$f":"SUM(E23:F23)","v":0}]
["b","Programi za osebe, ki imajo težave na področju drugih oblik zasvojenosti (dnevni centri, pisarne za svetovanje in informiranje ter terensko delo)",null,null,null,null,null,0]
[null,"po potrebi vstavite vrstice in vpišite vsebine, ki niso navedene zgoraj (starejši razpisi od leta 2025)"]
[null,null,{"$f":"SUM(C4:C24)","v":0},{"$f":"SUM(D4:D24)","v":0},0,0]

{"sheet":"UP_VSEBINE 3","index":5,"n_rows":14,"n_cols":8,"rows_kept":14,"cut":false,"hidden":true,"merged":[[0,0,0,8],[12,1,12,7],[1,1,1,7]]}
["UPORABNIKI GLEDE NA VSEBINE - za obdobje od 1. 1. 2025 do 31. 12. 2025"]
[null,"Prosimo, navedite število kontinuiranih, občasnih uporabnikov, kot ste prijavili v razpisu in število dejanskih uporabnikov v letu 2025, kot izhaja iz poročanja za zahtevke MDDSZ. V primeru odstopanj pojasnite, zakaj prihaja do tega. En uporabnik je v teh tabelah lahko štet samo enkrat."]
[3,"Programi na področju duševnega zdravja: ","PRIJAVA - Število kontinuiranih uporabnikov","PRIJAVA - Število občasnih uporabnikov","DEJANSKO - Število kontinuiranih uporabnikov","DEJANSKO - Število občasnih uporabnikov","POJASNILO - v primeru več kot 10 % odstopanja števila uporabnikov od prijave na razpis, pojasnite razloge za to","SKUPAJ DEJANSKIH UPORABNIKOV"]
["a","Stanovanjske skupine s celovito celodnevno podporo (12 ur)",null,null,null,null,null,{"$f":"SUM(E4:F4)","v":0}]
["b","Prehodne stanovanjske skupine ",null,null,null,null,null,{"$f":"SUM(E5:F5)","v":0}]
["c","Prehodne stanovanjske skupine za mlade (med 18 in 30 let)",null,null,null,null,null,0]
["d","Odprte stanovanjske skupine skupaj s podporo v domačem okolju, pri čemer uporabnik lahko živi v stanovanjski skupini ali v samostojni enoti",null,null,null,null,null,0]
["e","Dnevni centri ",null,null,null,null,null,0]
["f","Dnevni centri, ki vključujejo skupine za samopomoč ",null,null,null,null,null,0]
["g","Programi psihosocialnega svetovanja, informiranja in terenskega dela (PIS)",null,null,null,null,null,0]
["h","Programi zagovorništva ",null,null,null,null,null,0]
["i","Programi telefonskega svetovanja ",null,null,null,null,null,0]
[null,"po potrebi vstavite vrstice in vpišite vsebine, ki niso navedene zgoraj (starejši razpisi od leta 2025)"]
[null,null,{"$f":"SUM(C4:C12)","v":0},{"$f":"SUM(D4:D12)","v":0},0,0]

{"sheet":"UP_VSEBINE 4","index":6,"n_rows":9,"n_cols":8,"rows_kept":9,"cut":false,"hidden":true,"merged":[[0,0,0,8],[7,1,7,7],[1,1,1,7]]}
["UPORABNIKI GLEDE NA VSEBINE - za obdobje od 1. 1. 2025 do 31. 12. 2025"]
[null,"Prosimo, navedite število kontinuiranih, občasnih uporabnikov, kot ste prijavili v razpisu in število dejanskih uporabnikov v letu 2025, kot izhaja iz poročanja za zahtevke MDDSZ. V primeru odstopanj pojasnite, zakaj prihaja do tega. En uporabnik je v teh tabelah lahko štet samo enkrat."]
[4,"Programi za brezdomce: ","PRIJAVA - Število kontinuiranih uporabnikov","PRIJAVA - Število občasnih uporabnikov","DEJANSKO - Število kontinuiranih uporabnikov","DEJANSKO - Število občasnih uporabnikov","POJASNILO - v primeru več kot 10 % odstopanja števila uporabnikov od prijave na razpis, pojasnite razloge za to","SKUPAJ DEJANSKIH UPORABNIKOV"]
["a","Zavetišča s prenočitvenimi kapacitetami in z nočnim dežurstvom",null,null,null,null,null,{"$f":"SUM(E4:F4)","v":0}]
["b","Zavetišča s prenočitvenimi kapacitetami odprtega tipa ",null,null,null,null,null,{"$f":"SUM(E5:F5)","v":0}]
["c","Sprejemališča ali/in dnevni centri z dnevno obravnavo, terenskim delom in dodatnimi aktivnostmi",null,null,null,null,null,0]
["d","Programi nastanitvene stanovanjske podpore ",null,null,null,null,null,0]
[null,"po potrebi vstavite vrstice in vpišite vsebine, ki niso navedene zgoraj (starejši razpisi od leta 2025)"]
[null,null,{"$f":"SUM(C4:C7)","v":0},{"$f":"SUM(D4:D7)","v":0},0,0]

{"sheet":"UP VSEBINE 5","index":7,"n_rows":7,"n_cols":8,"rows_kept":7,"cut":false,"hidden":true,"merged":[[0,0,0,8],[5,1,5,7],[1,1,1,7]]}
["UPORABNIKI GLEDE NA VSEBINE - za obdobje od 1. 1. 2025 do 31. 12. 2025"]
[null,"Prosimo, navedite število kontinuiranih, občasnih uporabnikov, kot ste prijavili v razpisu in število dejanskih uporabnikov v letu 2025, kot izhaja iz poročanja za zahtevke MDDSZ. V primeru odstopanj pojasnite, zakaj prihaja do tega. En uporabnik je v teh tabelah lahko štet samo enkrat."]
[5,"Programi za otroke in mladostnike, prikrajšane za primerno družinsko življenje ter programi, namenjeni otrokom in mladostnikom s težavami v odraščanju:","PRIJAVA - Število kontinuiranih uporabnikov","PRIJAVA - Število občasnih uporabnikov","DEJANSKO - Število kontinuiranih uporabnikov","DEJANSKO - Število občasnih uporabnikov","POJASNILO - v primeru več kot 10 % odstopanja števila uporabnikov od prijave na razpis, pojasnite razloge za to","SKUPAJ DEJANSKIH UPORABNIKOV"]
["a","Dnevni centri za otroke in mladostnike s terenskim delom",null,null,null,null,null,{"$f":"SUM(E4:F4)","v":0}]
["b","Dnevni centri za otroke in mladostnike s terenskim delom, ki vključujejo tudi svetovanje",null,null,null,null,null,{"$f":"SUM(E5:F5)","v":0}]
[null,"po potrebi vstavite vrstice in vpišite vsebine, ki niso navedene zgoraj (starejši razpisi od leta 2025)"]
[null,null,{"$f":"SUM(C4:C5)","v":0},{"$f":"SUM(D4:D5)","v":0},0,0]

{"sheet":"UP VSEBINE 6","index":8,"n_rows":8,"n_cols":8,"rows_kept":8,"cut":false,"hidden":true,"merged":[[0,0,0,8],[1,1,1,7]]}
["UPORABNIKI GLEDE NA VSEBINE - za obdobje od 1. 1. 2025 do 31. 12. 2025"]
[null,"Prosimo, navedite število kontinuiranih, občasnih uporabnikov, kot ste prijavili v razpisu in število dejanskih uporabnikov v letu 2025, kot izhaja iz poročanja za zahtevke MDDSZ. V primeru odstopanj pojasnite, zakaj prihaja do tega. En uporabnik je v teh tabelah lahko štet samo enkrat."]
[6,"Programi za starejše, ki jim grozi socialna izključenost ali potrebujejo podporo in pomoč v vsakodnevnem življenju:","PRIJAVA - Število kontinuiranih uporabnikov","PRIJAVA - Število občasnih uporabnikov","DEJANSKO - Število kontinuiranih uporabnikov","DEJANSKO - Število občasnih uporabnikov","POJASNILO - v primeru več kot 10 % odstopanja števila uporabnikov od prijave na razpis, pojasnite razloge za to","SKUPAJ DEJANSKIH UPORABNIKOV"]
["a","Programi svetovanja s terenskim delom, namenjene osebam z demenco in njihovim svojcem",null,null,null,null,null,{"$f":"SUM(E4:F4)","v":0}]
["b","Programi pomoči, namenjene osebam z demenco in njihovim svojcem",null,null,null,null,null,{"$f":"SUM(E5:F5)","v":0}]
["c","Programi dnevnih centrov za starejše",null,null,null,null,null,0]
[null,"po potrebi vstavite vrstice in vpišite vsebine, ki niso navedene zgoraj (starejši razpisi od leta 2025)"]
[null,null,{"$f":"SUM(C4:C6)","v":0},{"$f":"SUM(D4:D6)","v":0},{"$f":"SUM(E4:E6)","v":0},{"$f":"SUM(F4:F6)","v":0}]

{"sheet":"UP_VSEBINE 7","index":9,"n_rows":9,"n_cols":8,"rows_kept":9,"cut":false,"hidden":true,"merged":[[0,0,0,8],[7,1,7,7],[1,1,1,7]]}
["UPORABNIKI GLEDE NA VSEBINE - za obdobje od 1. 1. 2025 do 31. 12. 2025"]
[null,"Prosimo, navedite število kontinuiranih, občasnih uporabnikov, kot ste prijavili v razpisu in število dejanskih uporabnikov v letu 2025, kot izhaja iz poročanja za zahtevke MDDSZ. V primeru odstopanj pojasnite, zakaj prihaja do tega. En uporabnik je v teh tabelah lahko štet samo enkrat."]
[7,"Programi za podporno bivanje invalidov in mreža drugih programov za organizacijo in spodbujanje samostojnega življenja invalidov: ","PRIJAVA - Število kontinuiranih uporabnikov","PRIJAVA - Število občasnih uporabnikov","DEJANSKO - Število kontinuiranih uporabnikov","DEJANSKO - Število občasnih uporabnikov","POJASNILO - v primeru več kot 10 % odstopanja števila uporabnikov od prijave na razpis, pojasnite razloge za to","SKUPAJ DEJANSKIH UPORABNIKOV"]
["a","Prehodne bivalne skupnosti za invalide (letne pogodbe z možnostjo podaljšanja)",null,null,null,null,null,{"$f":"SUM(E4:F4)","v":0}]
["b","Programi, namenjeni ohranjanju socialnih veščin",null,null,null,null,null,{"$f":"SUM(E5:F5)","v":0}]
["c","Informacijski in svetovalni programi, programi koordinacije, podpore in izvajanja pomoči in samopomoči za invalide",null,null,null,null,null,0]
["d","Svetovalna pisarna s terenskim delom  in namestitvijo ",null,null,null,null,null,0]
[null,"po potrebi vstavite vrstice in vpišite vsebine, ki niso navedene zgoraj (starejši razpisi od leta 2025)"]
[null,null,{"$f":"SUM(C4:C7)","v":0},{"$f":"SUM(D4:D7)","v":0},0,0]

{"sheet":"UP_VSEBINE 8","index":10,"n_rows":7,"n_cols":8,"rows_kept":7,"cut":false,"hidden":true,"merged":[[0,0,0,8],[5,1,5,7],[1,1,1,7]]}
["UPORABNIKI GLEDE NA VSEBINE - za obdobje od 1. 1. 2025 do 31. 12. 2025"]
[null,"Prosimo, navedite število kontinuiranih, občasnih uporabnikov, kot ste prijavili v razpisu in število dejanskih uporabnikov v letu 2025, kot izhaja iz poročanja za zahtevke MDDSZ. V primeru odstopanj pojasnite, zakaj prihaja do tega. En uporabnik je v teh tabelah lahko štet samo enkrat."]
[8,"Programi socialnega vključevanja Romov: ","PRIJAVA - Število kontinuiranih uporabnikov","PRIJAVA - Število občasnih uporabnikov","DEJANSKO - Število kontinuiranih uporabnikov","DEJANSKO - Število občasnih uporabnikov","POJASNILO - v primeru več kot 10 % odstopanja števila uporabnikov od prijave na razpis, pojasnite razloge za to","SKUPAJ DEJANSKIH UPORABNIKOV"]
["a","Dnevni center za otroke in mladostnike",null,null,null,null,null,{"$f":"SUM(E4:F4)","v":0}]
["b","Ostali programi (informacijski in svetovalni programi, krepitev socialnih kompetenc ter delo na terenu)",null,null,null,null,null,{"$f":"SUM(E5:F5)","v":0}]
[null,"po potrebi vstavite vrstice in vpišite vsebine, ki niso navedene zgoraj (starejši razpisi od leta 2025)"]
[null,null,{"$f":"SUM(C4:C5)","v":0},{"$f":"SUM(D4:D5)","v":0},0,0]

{"sheet":"UP_VSEBINE 9","index":11,"n_rows":5,"n_cols":8,"rows_kept":5,"cut":false,"hidden":true,"merged":[[0,0,0,8],[4,1,4,7],[1,1,1,7]]}
["UPORABNIKI GLEDE NA VSEBINE - za obdobje od 1. 1. 2025 do 31. 12. 2025"]
[null,"Prosimo, navedite število kontinuiranih, občasnih uporabnikov, kot ste prijavili v razpisu in število dejanskih uporabnikov v letu 2025, kot izhaja iz poročanja za zahtevke MDDSZ. V primeru odstopanj pojasnite, zakaj prihaja do tega. En uporabnik je v teh tabelah lahko štet samo enkrat."]
[9,"Programi specialistične podpore žrtvam kaznivih dejanj (če ni zagotovljena s preostalimi socialnovarstvenimi programi):","PRIJAVA - Število kontinuiranih uporabnikov","PRIJAVA - Število občasnih uporabnikov","DEJANSKO - Število kontinuiranih uporabnikov","DEJANSKO - Število občasnih uporabnikov","POJASNILO - v primeru več kot 10 % odstopanja števila uporabnikov od prijave na razpis, pojasnite razloge za to","SKUPAJ DEJANSKIH UPORABNIKOV"]
["a","Programi specialistične podpore žrtvam kaznivih dejanj (informacijski in svetovalni program ter zagovorništvo) v skladu z Direktivo 2012/29/EU, razen če je tovrstna specialistična podpora zagotovljena že v okviru drugih razpisanih področij tega javnega razpisa",null,null,null,null,null,{"$f":"SUM(E4:F4)","v":0}]
[null,"po potrebi vstavite vrstice in vpišite vsebine, ki niso navedene zgoraj (starejši razpisi od leta 2025)"]

{"sheet":"UP_VSEBINE 10","index":12,"n_rows":11,"n_cols":8,"rows_kept":11,"cut":false,"hidden":true,"merged":[[0,0,0,8],[9,1,9,7],[1,1,1,7]]}
["UPORABNIKI GLEDE NA VSEBINE - za obdobje od 1. 1. 2025 do 31. 12. 2025"]
[null,"Prosimo, navedite število kontinuiranih, občasnih uporabnikov, kot ste prijavili v razpisu in število dejanskih uporabnikov v letu 2025, kot izhaja iz poročanja za zahtevke MDDSZ. V primeru odstopanj pojasnite, zakaj prihaja do tega. En uporabnik je v teh tabelah lahko štet samo enkrat."]
[10,"Drugi programi, ki so namenjeni odpravljanju socialnih stisk ljudi:","PRIJAVA - Število kontinuiranih uporabnikov","PRIJAVA - Število občasnih uporabnikov","DEJANSKO - Število kontinuiranih uporabnikov","DEJANSKO - Število občasnih uporabnikov","POJASNILO - v primeru več kot 10 % odstopanja števila uporabnikov od prijave na razpis, pojasnite razloge za to","SKUPAJ DEJANSKIH UPORABNIKOV"]
["a","Svetovalno informacijski programi",null,null,null,null,null,{"$f":"SUM(E4:F4)","v":0}]
["b","Programi, namenjeni osebam v dolgovih in deložacijah",null,null,null,null,null,{"$f":"SUM(E5:F5)","v":0}]
["c","Programi svetovanja, nudenja psihosocialne pomoči, socialnega vključevanja, opolnomočenja in zagovorništva, namenjene prosilcem za mednarodno zaščito, beguncem, ekonomskim migrantom in njihovim družinskim članom ",null,null,null,null,null,0]
["d","Dnevni centri za osebe, ki so prosilci, ali jim je bila dodeljena mednarodna zaščita Republike Slovenije v krajih, kjer so te osebe nastanjene ",null,null,null,null,null,0]
["e","Programi, namenjeni žalujočim odraslim, otrokom in mladostnikom",null,null,null,null,null,0]
["f","Programi spremljanja umirajočih bolnikov in njihovih svojcev na domu",null,null,null,null,null,0]
[null,"po potrebi vstavite vrstice in vpišite vsebine, ki niso navedene zgoraj (starejši razpisi od leta 2025)"]
[null,null,{"$f":"SUM(C4:C9)","v":0},{"$f":"SUM(D4:D9)","v":0},{"$f":"SUM(E4:E9)","v":0},{"$f":"SUM(F4:F9)","v":0}]

{"sheet":"UP_1a","index":13,"n_rows":61,"n_cols":9,"rows_kept":61,"cut":false,"hidden":true,"merged":[[60,1,60,2],[60,3,60,8],[57,1,57,2],[57,3,57,8],[58,1,58,2],[58,3,58,8],[59,1,59,2],[59,3,59,8],[44,1,44,3],[45,1,45,3],[46,1,46,3],[47,1,47,3],[56,1,56,2],[56,3,56,8],[50,1,50,3],[51,1,51,3],[52,1,52,2],[52,3,52,4],[55,1,55,8],[4,1,4,3],[5,1,5,3],[6,1,6,3],[9,1,9,8],[10,1,10,2],[11,1,11,2],[12,1,12,2],[15,1,15,8],[48,1,48,3],[49,1,49,3],[25,1,25,8],[28,1,28,8],[29,1,29,2],[30,1,31,1],[32,1,35,1],[37,1,37,2],[38,1,38,2],[38,3,38,5],[39,1,39,8],[42,1,42,8],[43,1,43,3]]}
["UPORABNIKI - za obdobje od 1. 1. 2026 do 30. 6. 2026",null,null,null,null,null,null,"Vsebina:",{"$f":"RIGHT(CELL(\"filename\",I1),LEN(CELL(\"filename\",I1))-SEARCH(\"]\",CELL(\"filename\",I1)))","v":"UP_1a"}]
[]
[null,"Vpišite podatke za posamično vsebino, za katero ste vnesli podatke na listu \"UP_VSEBINE\" - za vsako posebej se vam odpre svoj list."]
[]
[1,"Prosimo, navedite število uporabnikov:",null,null,"Vpisujte v modre celice:"]
[null,"Skupaj število RAZLIČNIH uporabnikov (en uporabnik se šteje samo enkrat na leto)"]
[null,"Število uporabnikov na dan 1. 12. 2025 (izpis pridobite iz EVAPRO, če tega nimate oz. nimate točnega podatka, vpišite oceno števila uporabnikov na ta dan)"]
[]
[]
[2,"Če program obsega tudi delo v skupinah prosimo navedite (vpisujte samo skupine, ki ste jih prijavili znotraj izračuna javnega razpisa in so ovrednotene v pogodbi):"]
[null,"Število skupin"]
[null,"Povprečno število uporabnikov na skupino"]
[null,"Število srečanj na leto"]
[]
[]
[3,"Prosimo, navedite število vključenih uporabnikov po mesecih ter povprečno število ur aktivne* vključenosti uporabnikov v posamezne dejavnosti programa na mesec."]
[null,"Mesec","Število uporabnikov","Povprečno število ur aktivne* vključenosti enega uporabnika na mesec"]
[null,"januar "]
[null,"februar "]
[null,"marec "]
[null,"april "]
[null,"maj "]
[null,"junij "]
[null,"julij"]
[null,"Povprečno število na mesec",{"$f":"AVERAGE(C18:C24)","v":{"$error":"#DIV/0!"}},{"$f":"AVERAGE(D18:D24)","v":{"$error":"#DIV/0!"}}]
[null,"Opomba:\n*Aktivna vključenost pomeni, da je uporabnik aktivno vključen v dejavnosti programa. Torej pri programih, ki uporabnikom nudijo bivanje, ne vpisujete 720 ur na mesec, ampak število ur aktivne vključenosti uporabnika v program na mesec."]
[]
[]
[4,"Prosimo, navedite število RAZLIČNIH uporabnikov glede na spol in starost. Prosimo zapišite oceno, če nimate točnih podatkov."]
[null,"Starostna skupina",null,"Število moških","Število žensk","Spol ni znan oz. ni definiran"]
[null,"MLADOLETNI","do vključno 15 let"]
[null,null,"nad 15 let do 18 let"]
[null,"POLNOLETNI","nad 18 let do 35 let"]
[null,null,"nad 35 let do 50 let"]
[null,null,"nad 50 let do 65 let"]
[null,null,"nad 65 let"]
[null,"ANONIMNI","starost in/ali spol nista znana oz. definirana"]
[null,"Skupaj različnih uporabnikov ",null,{"$f":"SUM(D31:D37)","v":0},{"$f":"SUM(E31:E37)","v":0},{"$f":"SUM(F31:F37)","v":0}]
[null,"Ujemanje s prvo preglednico: ","Ujemanje: ",{"$f":"IF((E6=(D38+E38+F38)),\"SEŠTEVEK SE UJEMA\",\"SEŠTEVEK SE NE UJEMA - PREVERITE\")","v":"SEŠTEVEK SE UJEMA"}]
[null,"Opomba:\nIzvajalci, ki v bazi EVAPRO beležite drugačne starostne skupine, lahko ustvarite tabelo za izpis z navedenimi starostnimi skupinami - podrobno v »Navodilih za uporabo baze Evapro© - februar 2025«, poglavje »9.1.4 Po star. skupinah«, str. 86."]
[]
[]
[5,"Prosimo, navedite število uporabnikov glede na čas/obdobje njihove vključitve v program. Upoštevajte RAZLIČNE uporabnike. Seštevek uporabnikov mora tako biti enak podatku različnih uporabnikov iz prve preglednice. Prosimo zapišite oceno, če nimate točnih podatkov."]
[null,"Število uporabnikov, ki so program obiskovali/bili vključeni…",null,null,"Število uporabnikov"]
[null,"vsak dan ali petkrat na teden"]
[null,"enkrat ali večkrat na teden, vendar ne vsak (delovni) dan"]
[null,"večkrat/nekajkrat na mesec"]
[null,"enkrat na mesec"]
[null,"nekajkrat na leto"]
[null,"enkrat na leto"]
[null,"uporabniki, za katere ni znano, kako pogosto so obiskovali/bili vključeni v program (anonimni)"]
[null,"Skupaj število različnih uporabnikov ",null,null,{"$f":"SUM(E45:E51)","v":0}]
[null,"Ujemanje s prvo preglednico: ","Ujemanje: ",{"$f":"IF((E6=(E52)),\"SEŠTEVEK SE UJEMA\",\"SEŠTEVEK SE NE UJEMA - PREVERITE\")","v":"SEŠTEVEK SE UJEMA"}]
[]
[]
[6,"Prosimo, opredelite ciljno skupino uporabnikov - značilnosti uporabnikov, ki jim je vsebina programa namenjena:"]
[null,"po spolu"]
[null,"po starostnih skupinah"]
[null,"družinske razmere in socialno omrežje"]
[null,"glede na težavo(e), ki jo/jih imajo"]
[null,"druge pomembne značilnosti"]

{"sheet":"UP_1b","index":14,"n_rows":61,"n_cols":9,"rows_kept":61,"cut":false,"hidden":true,"merged":[[60,1,60,2],[60,3,60,8],[57,1,57,2],[57,3,57,8],[58,1,58,2],[58,3,58,8],[59,1,59,2],[59,3,59,8],[44,1,44,3],[45,1,45,3],[46,1,46,3],[47,1,47,3],[56,1,56,2],[56,3,56,8],[50,1,50,3],[51,1,51,3],[52,1,52,2],[52,3,52,4],[55,1,55,8],[4,1,4,3],[5,1,5,3],[6,1,6,3],[9,1,9,8],[10,1,10,2],[11,1,11,2],[12,1,12,2],[15,1,15,8],[48,1,48,3],[49,1,49,3],[25,1,25,8],[28,1,28,8],[29,1,29,2],[30,1,31,1],[32,1,35,1],[37,1,37,2],[38,1,38,2],[38,3,38,5],[39,1,39,8],[42,1,42,8],[43,1,43,3]]}
["UPORABNIKI - za obdobje od 1. 1. 2026 do 30. 6. 2026",null,null,null,null,null,null,"Vsebina:",{"$f":"RIGHT(CELL(\"filename\",I1),LEN(CELL(\"filename\",I1))-SEARCH(\"]\",CELL(\"filename\",I1)))","v":"UP_1b"}]
[]
[null,"Vpišite podatke za posamično vsebino, za katero ste vnesli podatke na listu \"UP_VSEBINE\" - za vsako posebej se vam odpre svoj list."]
[]
[1,"Prosimo, navedite število uporabnikov:",null,null,"Vpisujte v modre celice:"]
[null,"Skupaj število RAZLIČNIH uporabnikov (en uporabnik se šteje samo enkrat na leto)"]
[null,"Število uporabnikov na dan 1. 12. 2025 (izpis pridobite iz EVAPRO, če tega nimate oz. nimate točnega podatka, vpišite oceno števila uporabnikov na ta dan)"]
[]
[]
[2,"Če program obsega tudi delo v skupinah prosimo navedite (vpisujte samo skupine, ki ste jih prijavili znotraj izračuna javnega razpisa in so ovrednotene v pogodbi):"]
[null,"Število skupin"]
[null,"Povprečno število uporabnikov na skupino"]
[null,"Število srečanj na leto"]
[]
[]
[3,"Prosimo, navedite število vključenih uporabnikov po mesecih ter povprečno število ur aktivne* vključenosti uporabnikov v posamezne dejavnosti programa na mesec."]
[null,"Mesec","Število uporabnikov","Povprečno število ur aktivne* vključenosti enega uporabnika na mesec"]
[null,"januar "]
[null,"februar "]
[null,"marec "]
[null,"april "]
[null,"maj "]
[null,"junij "]
[null,"julij"]
[null,"Povprečno število na mesec",{"$f":"AVERAGE(C18:C24)","v":{"$error":"#DIV/0!"}},{"$f":"AVERAGE(D18:D24)","v":{"$error":"#DIV/0!"}}]
[null,"Opomba:\n*Aktivna vključenost pomeni, da je uporabnik aktivno vključen v dejavnosti programa. Torej pri programih, ki uporabnikom nudijo bivanje, ne vpisujete 720 ur na mesec, ampak število ur aktivne vključenosti uporabnika v program na mesec."]
[]
[]
[4,"Prosimo, navedite število RAZLIČNIH uporabnikov glede na spol in starost. Prosimo zapišite oceno, če nimate točnih podatkov."]
[null,"Starostna skupina",null,"Število moških","Število žensk","Spol ni znan oz. ni definiran"]
[null,"MLADOLETNI","do vključno 15 let"]
[null,null,"nad 15 let do 18 let"]
[null,"POLNOLETNI","nad 18 let do 35 let"]
[null,null,"nad 35 let do 50 let"]
[null,null,"nad 50 let do 65 let"]
[null,null,"nad 65 let"]
[null,"ANONIMNI","starost in/ali spol nista znana oz. definirana"]
[null,"Skupaj različnih uporabnikov ",null,{"$f":"SUM(D31:D37)","v":0},{"$f":"SUM(E31:E37)","v":0},{"$f":"SUM(F31:F37)","v":0}]
[null,"Ujemanje s prvo preglednico: ","Ujemanje: ",{"$f":"IF((E6=(D38+E38+F38)),\"SEŠTEVEK SE UJEMA\",\"SEŠTEVEK SE NE UJEMA - PREVERITE\")","v":"SEŠTEVEK SE UJEMA"}]
[null,"Opomba:\nIzvajalci, ki v bazi EVAPRO beležite drugačne starostne skupine, lahko ustvarite tabelo za izpis z navedenimi starostnimi skupinami - podrobno v »Navodilih za uporabo baze Evapro© - februar 2025«, poglavje »9.1.4 Po star. skupinah«, str. 86."]
[]
[]
[5,"Prosimo, navedite število uporabnikov glede na čas/obdobje njihove vključitve v program. Upoštevajte RAZLIČNE uporabnike. Seštevek uporabnikov mora tako biti enak podatku različnih uporabnikov iz prve preglednice. Prosimo zapišite oceno, če nimate točnih podatkov."]
[null,"Število uporabnikov, ki so program obiskovali/bili vključeni…",null,null,"Število uporabnikov"]
[null,"vsak dan ali petkrat na teden"]
[null,"enkrat ali večkrat na teden, vendar ne vsak (delovni) dan"]
[null,"večkrat/nekajkrat na mesec"]
[null,"enkrat na mesec"]
[null,"nekajkrat na leto"]
[null,"enkrat na leto"]
[null,"uporabniki, za katere ni znano, kako pogosto so obiskovali/bili vključeni v program (anonimni)"]
[null,"Skupaj število različnih uporabnikov ",null,null,{"$f":"SUM(E45:E51)","v":0}]
[null,"Ujemanje s prvo preglednico: ","Ujemanje: ",{"$f":"IF((E6=(E52)),\"SEŠTEVEK SE UJEMA\",\"SEŠTEVEK SE NE UJEMA - PREVERITE\")","v":"SEŠTEVEK SE UJEMA"}]
[]
[]
[6,"Prosimo, opredelite ciljno skupino uporabnikov - značilnosti uporabnikov, ki jim je vsebina programa namenjena:"]
[null,"po spolu"]
[null,"po starostnih skupinah"]
[null,"družinske razmere in socialno omrežje"]
[null,"glede na težavo(e), ki jo/jih imajo"]
[null,"druge pomembne značilnosti"]

{"sheet":"UP_1c","index":15,"n_rows":61,"n_cols":9,"rows_kept":61,"cut":false,"hidden":true,"merged":[[60,1,60,2],[60,3,60,8],[57,1,57,2],[57,3,57,8],[58,1,58,2],[58,3,58,8],[59,1,59,2],[59,3,59,8],[44,1,44,3],[45,1,45,3],[46,1,46,3],[47,1,47,3],[56,1,56,2],[56,3,56,8],[50,1,50,3],[51,1,51,3],[52,1,52,2],[52,3,52,4],[55,1,55,8],[4,1,4,3],[5,1,5,3],[6,1,6,3],[9,1,9,8],[10,1,10,2],[11,1,11,2],[12,1,12,2],[15,1,15,8],[48,1,48,3],[49,1,49,3],[25,1,25,8],[28,1,28,8],[29,1,29,2],[30,1,31,1],[32,1,35,1],[37,1,37,2],[38,1,38,2],[38,3,38,5],[39,1,39,8],[42,1,42,8],[43,1,43,3]]}
["UPORABNIKI - za obdobje od 1. 1. 2026 do 30. 6. 2026",null,null,null,null,null,null,"Vsebina:",{"$f":"RIGHT(CELL(\"filename\",I1),LEN(CELL(\"filename\",I1))-SEARCH(\"]\",CELL(\"filename\",I1)))","v":"UP_1c"}]
[]
[null,"Vpišite podatke za posamično vsebino, za katero ste vnesli podatke na listu \"UP_VSEBINE\" - za vsako posebej se vam odpre svoj list."]
[]
[1,"Prosimo, navedite število uporabnikov:",null,null,"Vpisujte v modre celice:"]
[null,"Skupaj število RAZLIČNIH uporabnikov (en uporabnik se šteje samo enkrat na leto)"]
[null,"Število uporabnikov na dan 1. 12. 2025 (izpis pridobite iz EVAPRO, če tega nimate oz. nimate točnega podatka, vpišite oceno števila uporabnikov na ta dan)"]
[]
[]
[2,"Če program obsega tudi delo v skupinah prosimo navedite (vpisujte samo skupine, ki ste jih prijavili znotraj izračuna javnega razpisa in so ovrednotene v pogodbi):"]
[null,"Število skupin"]
[null,"Povprečno število uporabnikov na skupino"]
[null,"Število srečanj na leto"]
[]
[]
[3,"Prosimo, navedite število vključenih uporabnikov po mesecih ter povprečno število ur aktivne* vključenosti uporabnikov v posamezne dejavnosti programa na mesec."]
[null,"Mesec","Število uporabnikov","Povprečno število ur aktivne* vključenosti enega uporabnika na mesec"]
[null,"januar "]
[null,"februar "]
[null,"marec "]
[null,"april "]
[null,"maj "]
[null,"junij "]
[null,"julij"]
[null,"Povprečno število na mesec",{"$f":"AVERAGE(C18:C24)","v":{"$error":"#DIV/0!"}},{"$f":"AVERAGE(D18:D24)","v":{"$error":"#DIV/0!"}}]
[null,"Opomba:\n*Aktivna vključenost pomeni, da je uporabnik aktivno vključen v dejavnosti programa. Torej pri programih, ki uporabnikom nudijo bivanje, ne vpisujete 720 ur na mesec, ampak število ur aktivne vključenosti uporabnika v program na mesec."]
[]
[]
[4,"Prosimo, navedite število RAZLIČNIH uporabnikov glede na spol in starost. Prosimo zapišite oceno, če nimate točnih podatkov."]
[null,"Starostna skupina",null,"Število moških","Število žensk","Spol ni znan oz. ni definiran"]
[null,"MLADOLETNI","do vključno 15 let"]
[null,null,"nad 15 let do 18 let"]
[null,"POLNOLETNI","nad 18 let do 35 let"]
[null,null,"nad 35 let do 50 let"]
[null,null,"nad 50 let do 65 let"]
[null,null,"nad 65 let"]
[null,"ANONIMNI","starost in/ali spol nista znana oz. definirana"]
[null,"Skupaj različnih uporabnikov ",null,{"$f":"SUM(D31:D37)","v":0},{"$f":"SUM(E31:E37)","v":0},{"$f":"SUM(F31:F37)","v":0}]
[null,"Ujemanje s prvo preglednico: ","Ujemanje: ",{"$f":"IF((E6=(D38+E38+F38)),\"SEŠTEVEK SE UJEMA\",\"SEŠTEVEK SE NE UJEMA - PREVERITE\")","v":"SEŠTEVEK SE UJEMA"}]
[null,"Opomba:\nIzvajalci, ki v bazi EVAPRO beležite drugačne starostne skupine, lahko ustvarite tabelo za izpis z navedenimi starostnimi skupinami - podrobno v »Navodilih za uporabo baze Evapro© - februar 2025«, poglavje »9.1.4 Po star. skupinah«, str. 86."]
[]
[]
[5,"Prosimo, navedite število uporabnikov glede na čas/obdobje njihove vključitve v program. Upoštevajte RAZLIČNE uporabnike. Seštevek uporabnikov mora tako biti enak podatku različnih uporabnikov iz prve preglednice. Prosimo zapišite oceno, če nimate točnih podatkov."]
[null,"Število uporabnikov, ki so program obiskovali/bili vključeni…",null,null,"Število uporabnikov"]
[null,"vsak dan ali petkrat na teden"]
[null,"enkrat ali večkrat na teden, vendar ne vsak (delovni) dan"]
[null,"večkrat/nekajkrat na mesec"]
[null,"enkrat na mesec"]
[null,"nekajkrat na leto"]
[null,"enkrat na leto"]
[null,"uporabniki, za katere ni znano, kako pogosto so obiskovali/bili vključeni v program (anonimni)"]
[null,"Skupaj število različnih uporabnikov ",null,null,{"$f":"SUM(E45:E51)","v":0}]
[null,"Ujemanje s prvo preglednico: ","Ujemanje: ",{"$f":"IF((E6=(E52)),\"SEŠTEVEK SE UJEMA\",\"SEŠTEVEK SE NE UJEMA - PREVERITE\")","v":"SEŠTEVEK SE UJEMA"}]
[]
[]
[6,"Prosimo, opredelite ciljno skupino uporabnikov - značilnosti uporabnikov, ki jim je vsebina programa namenjena:"]
[null,"po spolu"]
[null,"po starostnih skupinah"]
[null,"družinske razmere in socialno omrežje"]
[null,"glede na težavo(e), ki jo/jih imajo"]
[null,"druge pomembne značilnosti"]

{"sheet":"UP_1d","index":16,"n_rows":61,"n_cols":9,"rows_kept":61,"cut":false,"hidden":true,"merged":[[60,1,60,2],[60,3,60,8],[57,1,57,2],[57,3,57,8],[58,1,58,2],[58,3,58,8],[59,1,59,2],[59,3,59,8],[44,1,44,3],[45,1,45,3],[46,1,46,3],[47,1,47,3],[56,1,56,2],[56,3,56,8],[50,1,50,3],[51,1,51,3],[52,1,52,2],[52,3,52,4],[55,1,55,8],[4,1,4,3],[5,1,5,3],[6,1,6,3],[9,1,9,8],[10,1,10,2],[11,1,11,2],[12,1,12,2],[15,1,15,8],[48,1,48,3],[49,1,49,3],[25,1,25,8],[28,1,28,8],[29,1,29,2],[30,1,31,1],[32,1,35,1],[37,1,37,2],[38,1,38,2],[38,3,38,5],[39,1,39,8],[42,1,42,8],[43,1,43,3]]}
["UPORABNIKI - za obdobje od 1. 1. 2026 do 30. 6. 2026",null,null,null,null,null,null,"Vsebina:",{"$f":"RIGHT(CELL(\"filename\",I1),LEN(CELL(\"filename\",I1))-SEARCH(\"]\",CELL(\"filename\",I1)))","v":"UP_1d"}]
[]
[null,"Vpišite podatke za posamično vsebino, za katero ste vnesli podatke na listu \"UP_VSEBINE\" - za vsako posebej se vam odpre svoj list."]
[]
[1,"Prosimo, navedite število uporabnikov:",null,null,"Vpisujte v modre celice:"]
[null,"Skupaj število RAZLIČNIH uporabnikov (en uporabnik se šteje samo enkrat na leto)"]
[null,"Število uporabnikov na dan 1. 12. 2025 (izpis pridobite iz EVAPRO, če tega nimate oz. nimate točnega podatka, vpišite oceno števila uporabnikov na ta dan)"]
[]
[]
[2,"Če program obsega tudi delo v skupinah prosimo navedite (vpisujte samo skupine, ki ste jih prijavili znotraj izračuna javnega razpisa in so ovrednotene v pogodbi):"]
[null,"Število skupin"]
[null,"Povprečno število uporabnikov na skupino"]
[null,"Število srečanj na leto"]
[]
[]
[3,"Prosimo, navedite število vključenih uporabnikov po mesecih ter povprečno število ur aktivne* vključenosti uporabnikov v posamezne dejavnosti programa na mesec."]
[null,"Mesec","Število uporabnikov","Povprečno število ur aktivne* vključenosti enega uporabnika na mesec"]
[null,"januar "]
[null,"februar "]
[null,"marec "]
[null,"april "]
[null,"maj "]
[null,"junij "]
[null,"julij"]
[null,"Povprečno število na mesec",{"$f":"AVERAGE(C18:C24)","v":{"$error":"#DIV/0!"}},{"$f":"AVERAGE(D18:D24)","v":{"$error":"#DIV/0!"}}]
[null,"Opomba:\n*Aktivna vključenost pomeni, da je uporabnik aktivno vključen v dejavnosti programa. Torej pri programih, ki uporabnikom nudijo bivanje, ne vpisujete 720 ur na mesec, ampak število ur aktivne vključenosti uporabnika v program na mesec."]
[]
[]
[4,"Prosimo, navedite število RAZLIČNIH uporabnikov glede na spol in starost. Prosimo zapišite oceno, če nimate točnih podatkov."]
[null,"Starostna skupina",null,"Število moških","Število žensk","Spol ni znan oz. ni definiran"]
[null,"MLADOLETNI","do vključno 15 let"]
[null,null,"nad 15 let do 18 let"]
[null,"POLNOLETNI","nad 18 let do 35 let"]
[null,null,"nad 35 let do 50 let"]
[null,null,"nad 50 let do 65 let"]
[null,null,"nad 65 let"]
[null,"ANONIMNI","starost in/ali spol nista znana oz. definirana"]
[null,"Skupaj različnih uporabnikov ",null,{"$f":"SUM(D31:D37)","v":0},{"$f":"SUM(E31:E37)","v":0},{"$f":"SUM(F31:F37)","v":0}]
[null,"Ujemanje s prvo preglednico: ","Ujemanje: ",{"$f":"IF((E6=(D38+E38+F38)),\"SEŠTEVEK SE UJEMA\",\"SEŠTEVEK SE NE UJEMA - PREVERITE\")","v":"SEŠTEVEK SE UJEMA"}]
[null,"Opomba:\nIzvajalci, ki v bazi EVAPRO beležite drugačne starostne skupine, lahko ustvarite tabelo za izpis z navedenimi starostnimi skupinami - podrobno v »Navodilih za uporabo baze Evapro© - februar 2025«, poglavje »9.1.4 Po star. skupinah«, str. 86."]
[]
[]
[5,"Prosimo, navedite število uporabnikov glede na čas/obdobje njihove vključitve v program. Upoštevajte RAZLIČNE uporabnike. Seštevek uporabnikov mora tako biti enak podatku različnih uporabnikov iz prve preglednice. Prosimo zapišite oceno, če nimate točnih podatkov."]
[null,"Število uporabnikov, ki so program obiskovali/bili vključeni…",null,null,"Število uporabnikov"]
[null,"vsak dan ali petkrat na teden"]
[null,"enkrat ali večkrat na teden, vendar ne vsak (delovni) dan"]
[null,"večkrat/nekajkrat na mesec"]
[null,"enkrat na mesec"]
[null,"nekajkrat na leto"]
[null,"enkrat na leto"]
[null,"uporabniki, za katere ni znano, kako pogosto so obiskovali/bili vključeni v program (anonimni)"]
[null,"Skupaj število različnih uporabnikov ",null,null,{"$f":"SUM(E45:E51)","v":0}]
[null,"Ujemanje s prvo preglednico: ","Ujemanje: ",{"$f":"IF((E6=(E52)),\"SEŠTEVEK SE UJEMA\",\"SEŠTEVEK SE NE UJEMA - PREVERITE\")","v":"SEŠTEVEK SE UJEMA"}]
[]
[]
[6,"Prosimo, opredelite ciljno skupino uporabnikov - značilnosti uporabnikov, ki jim je vsebina programa namenjena:"]
[null,"po spolu"]
[null,"po starostnih skupinah"]
[null,"družinske razmere in socialno omrežje"]
[null,"glede na težavo(e), ki jo/jih imajo"]
[null,"druge pomembne značilnosti"]

{"sheet":"UP_1e","index":17,"n_rows":61,"n_cols":9,"rows_kept":61,"cut":false,"hidden":true,"merged":[[60,1,60,2],[60,3,60,8],[57,1,57,2],[57,3,57,8],[58,1,58,2],[58,3,58,8],[59,1,59,2],[59,3,59,8],[44,1,44,3],[45,1,45,3],[46,1,46,3],[47,1,47,3],[56,1,56,2],[56,3,56,8],[50,1,50,3],[51,1,51,3],[52,1,52,2],[52,3,52,4],[55,1,55,8],[4,1,4,3],[5,1,5,3],[6,1,6,3],[9,1,9,8],[10,1,10,2],[11,1,11,2],[12,1,12,2],[15,1,15,8],[48,1,48,3],[49,1,49,3],[25,1,25,8],[28,1,28,8],[29,1,29,2],[30,1,31,1],[32,1,35,1],[37,1,37,2],[38,1,38,2],[38,3,38,5],[39,1,39,8],[42,1,42,8],[43,1,43,3]]}
["UPORABNIKI - za obdobje od 1. 1. 2026 do 30. 6. 2026",null,null,null,null,null,null,"Vsebina:",{"$f":"RIGHT(CELL(\"filename\",I1),LEN(CELL(\"filename\",I1))-SEARCH(\"]\",CELL(\"filename\",I1)))","v":"UP_1e"}]
[]
[null,"Vpišite podatke za posamično vsebino, za katero ste vnesli podatke na listu \"UP_VSEBINE\" - za vsako posebej se vam odpre svoj list."]
[]
[1,"Prosimo, navedite število uporabnikov:",null,null,"Vpisujte v modre celice:"]
[null,"Skupaj število RAZLIČNIH uporabnikov (en uporabnik se šteje samo enkrat na leto)"]
[null,"Število uporabnikov na dan 1. 12. 2025 (izpis pridobite iz EVAPRO, če tega nimate oz. nimate točnega podatka, vpišite oceno števila uporabnikov na ta dan)"]
[]
[]
[2,"Če program obsega tudi delo v skupinah prosimo navedite (vpisujte samo skupine, ki ste jih prijavili znotraj izračuna javnega razpisa in so ovrednotene v pogodbi):"]
[null,"Število skupin"]
[null,"Povprečno število uporabnikov na skupino"]
[null,"Število srečanj na leto"]
[]
[]
[3,"Prosimo, navedite število vključenih uporabnikov po mesecih ter povprečno število ur aktivne* vključenosti uporabnikov v posamezne dejavnosti programa na mesec."]
[null,"Mesec","Število uporabnikov","Povprečno število ur aktivne* vključenosti enega uporabnika na mesec"]
[null,"januar "]
[null,"februar "]
[null,"marec "]
[null,"april "]
[null,"maj "]
[null,"junij "]
[null,"julij"]
[null,"Povprečno število na mesec",{"$f":"AVERAGE(C18:C24)","v":{"$error":"#DIV/0!"}},{"$f":"AVERAGE(D18:D24)","v":{"$error":"#DIV/0!"}}]
[null,"Opomba:\n*Aktivna vključenost pomeni, da je uporabnik aktivno vključen v dejavnosti programa. Torej pri programih, ki uporabnikom nudijo bivanje, ne vpisujete 720 ur na mesec, ampak število ur aktivne vključenosti uporabnika v program na mesec."]
[]
[]
[4,"Prosimo, navedite število RAZLIČNIH uporabnikov glede na spol in starost. Prosimo zapišite oceno, če nimate točnih podatkov."]
[null,"Starostna skupina",null,"Število moških","Število žensk","Spol ni znan oz. ni definiran"]
[null,"MLADOLETNI","do vključno 15 let"]
[null,null,"nad 15 let do 18 let"]
[null,"POLNOLETNI","nad 18 let do 35 let"]
[null,null,"nad 35 let do 50 let"]
[null,null,"nad 50 let do 65 let"]
[null,null,"nad 65 let"]
[null,"ANONIMNI","starost in/ali spol nista znana oz. definirana"]
[null,"Skupaj različnih uporabnikov ",null,{"$f":"SUM(D31:D37)","v":0},{"$f":"SUM(E31:E37)","v":0},{"$f":"SUM(F31:F37)","v":0}]
[null,"Ujemanje s prvo preglednico: ","Ujemanje: ",{"$f":"IF((E6=(D38+E38+F38)),\"SEŠTEVEK SE UJEMA\",\"SEŠTEVEK SE NE UJEMA - PREVERITE\")","v":"SEŠTEVEK SE UJEMA"}]
[null,"Opomba:\nIzvajalci, ki v bazi EVAPRO beležite drugačne starostne skupine, lahko ustvarite tabelo za izpis z navedenimi starostnimi skupinami - podrobno v »Navodilih za uporabo baze Evapro© - februar 2025«, poglavje »9.1.4 Po star. skupinah«, str. 86."]
[]
[]
[5,"Prosimo, navedite število uporabnikov glede na čas/obdobje njihove vključitve v program. Upoštevajte RAZLIČNE uporabnike. Seštevek uporabnikov mora tako biti enak podatku različnih uporabnikov iz prve preglednice. Prosimo zapišite oceno, če nimate točnih podatkov."]
[null,"Število uporabnikov, ki so program obiskovali/bili vključeni…",null,null,"Število uporabnikov"]
[null,"vsak dan ali petkrat na teden"]
[null,"enkrat ali večkrat na teden, vendar ne vsak (delovni) dan"]
[null,"večkrat/nekajkrat na mesec"]
[null,"enkrat na mesec"]
[null,"nekajkrat na leto"]
[null,"enkrat na leto"]
[null,"uporabniki, za katere ni znano, kako pogosto so obiskovali/bili vključeni v program (anonimni)"]
[null,"Skupaj število različnih uporabnikov ",null,null,{"$f":"SUM(E45:E51)","v":0}]
[null,"Ujemanje s prvo preglednico: ","Ujemanje: ",{"$f":"IF((E6=(E52)),\"SEŠTEVEK SE UJEMA\",\"SEŠTEVEK SE NE UJEMA - PREVERITE\")","v":"SEŠTEVEK SE UJEMA"}]
[]
[]
[6,"Prosimo, opredelite ciljno skupino uporabnikov - značilnosti uporabnikov, ki jim je vsebina programa namenjena:"]
[null,"po spolu"]
[null,"po starostnih skupinah"]
[null,"družinske razmere in socialno omrežje"]
[null,"glede na težavo(e), ki jo/jih imajo"]
[null,"druge pomembne značilnosti"]

{"sheet":"UP_1f","index":18,"n_rows":61,"n_cols":9,"rows_kept":61,"cut":false,"hidden":true,"merged":[[60,1,60,2],[60,3,60,8],[57,1,57,2],[57,3,57,8],[58,1,58,2],[58,3,58,8],[59,1,59,2],[59,3,59,8],[44,1,44,3],[45,1,45,3],[46,1,46,3],[47,1,47,3],[56,1,56,2],[56,3,56,8],[50,1,50,3],[51,1,51,3],[52,1,52,2],[52,3,52,4],[55,1,55,8],[4,1,4,3],[5,1,5,3],[6,1,6,3],[9,1,9,8],[10,1,10,2],[11,1,11,2],[12,1,12,2],[15,1,15,8],[48,1,48,3],[49,1,49,3],[25,1,25,8],[28,1,28,8],[29,1,29,2],[30,1,31,1],[32,1,35,1],[37,1,37,2],[38,1,38,2],[38,3,38,5],[39,1,39,8],[42,1,42,8],[43,1,43,3]]}
["UPORABNIKI - za obdobje od 1. 1. 2026 do 30. 6. 2026",null,null,null,null,null,null,"Vsebina:",{"$f":"RIGHT(CELL(\"filename\",I1),LEN(CELL(\"filename\",I1))-SEARCH(\"]\",CELL(\"filename\",I1)))","v":"UP_1f"}]
[]
[null,"Vpišite podatke za posamično vsebino, za katero ste vnesli podatke na listu \"UP_VSEBINE\" - za vsako posebej se vam odpre svoj list."]
[]
[1,"Prosimo, navedite število uporabnikov:",null,null,"Vpisujte v modre celice:"]
[null,"Skupaj število RAZLIČNIH uporabnikov (en uporabnik se šteje samo enkrat na leto)"]
[null,"Število uporabnikov na dan 1. 12. 2025 (izpis pridobite iz EVAPRO, če tega nimate oz. nimate točnega podatka, vpišite oceno števila uporabnikov na ta dan)"]
[]
[]
[2,"Če program obsega tudi delo v skupinah prosimo navedite (vpisujte samo skupine, ki ste jih prijavili znotraj izračuna javnega razpisa in so ovrednotene v pogodbi):"]
[null,"Število skupin"]
[null,"Povprečno število uporabnikov na skupino"]
[null,"Število srečanj na leto"]
[]
[]
[3,"Prosimo, navedite število vključenih uporabnikov po mesecih ter povprečno število ur aktivne* vključenosti uporabnikov v posamezne dejavnosti programa na mesec."]
[null,"Mesec","Število uporabnikov","Povprečno število ur aktivne* vključenosti enega uporabnika na mesec"]
[null,"januar "]
[null,"februar "]
[null,"marec "]
[null,"april "]
[null,"maj "]
[null,"junij "]
[null,"julij"]
[null,"Povprečno število na mesec",{"$f":"AVERAGE(C18:C24)","v":{"$error":"#DIV/0!"}},{"$f":"AVERAGE(D18:D24)","v":{"$error":"#DIV/0!"}}]
[null,"Opomba:\n*Aktivna vključenost pomeni, da je uporabnik aktivno vključen v dejavnosti programa. Torej pri programih, ki uporabnikom nudijo bivanje, ne vpisujete 720 ur na mesec, ampak število ur aktivne vključenosti uporabnika v program na mesec."]
[]
[]
[4,"Prosimo, navedite število RAZLIČNIH uporabnikov glede na spol in starost. Prosimo zapišite oceno, če nimate točnih podatkov."]
[null,"Starostna skupina",null,"Število moških","Število žensk","Spol ni znan oz. ni definiran"]
[null,"MLADOLETNI","do vključno 15 let"]
[null,null,"nad 15 let do 18 let"]
[null,"POLNOLETNI","nad 18 let do 35 let"]
[null,null,"nad 35 let do 50 let"]
[null,null,"nad 50 let do 65 let"]
[null,null,"nad 65 let"]
[null,"ANONIMNI","starost in/ali spol nista znana oz. definirana"]
[null,"Skupaj različnih uporabnikov ",null,{"$f":"SUM(D31:D37)","v":0},{"$f":"SUM(E31:E37)","v":0},{"$f":"SUM(F31:F37)","v":0}]
[null,"Ujemanje s prvo preglednico: ","Ujemanje: ",{"$f":"IF((E6=(D38+E38+F38)),\"SEŠTEVEK SE UJEMA\",\"SEŠTEVEK SE NE UJEMA - PREVERITE\")","v":"SEŠTEVEK SE UJEMA"}]
[null,"Opomba:\nIzvajalci, ki v bazi EVAPRO beležite drugačne starostne skupine, lahko ustvarite tabelo za izpis z navedenimi starostnimi skupinami - podrobno v »Navodilih za uporabo baze Evapro© - februar 2025«, poglavje »9.1.4 Po star. skupinah«, str. 86."]
[]
[]
[5,"Prosimo, navedite število uporabnikov glede na čas/obdobje njihove vključitve v program. Upoštevajte RAZLIČNE uporabnike. Seštevek uporabnikov mora tako biti enak podatku različnih uporabnikov iz prve preglednice. Prosimo zapišite oceno, če nimate točnih podatkov."]
[null,"Število uporabnikov, ki so program obiskovali/bili vključeni…",null,null,"Število uporabnikov"]
[null,"vsak dan ali petkrat na teden"]
[null,"enkrat ali večkrat na teden, vendar ne vsak (delovni) dan"]
[null,"večkrat/nekajkrat na mesec"]
[null,"enkrat na mesec"]
[null,"nekajkrat na leto"]
[null,"enkrat na leto"]
[null,"uporabniki, za katere ni znano, kako pogosto so obiskovali/bili vključeni v program (anonimni)"]
[null,"Skupaj število različnih uporabnikov ",null,null,{"$f":"SUM(E45:E51)","v":0}]
[null,"Ujemanje s prvo preglednico: ","Ujemanje: ",{"$f":"IF((E6=(E52)),\"SEŠTEVEK SE UJEMA\",\"SEŠTEVEK SE NE UJEMA - PREVERITE\")","v":"SEŠTEVEK SE UJEMA"}]
[]
[]
[6,"Prosimo, opredelite ciljno skupino uporabnikov - značilnosti uporabnikov, ki jim je vsebina programa namenjena:"]
[null,"po spolu"]
[null,"po starostnih skupinah"]
[null,"družinske razmere in socialno omrežje"]
[null,"glede na težavo(e), ki jo/jih imajo"]
[null,"druge pomembne značilnosti"]

{"sheet":"UP_1g","index":19,"n_rows":61,"n_cols":9,"rows_kept":61,"cut":false,"hidden":true,"merged":[[60,1,60,2],[60,3,60,8],[57,1,57,2],[57,3,57,8],[58,1,58,2],[58,3,58,8],[59,1,59,2],[59,3,59,8],[44,1,44,3],[45,1,45,3],[46,1,46,3],[47,1,47,3],[56,1,56,2],[56,3,56,8],[50,1,50,3],[51,1,51,3],[52,1,52,2],[52,3,52,4],[55,1,55,8],[4,1,4,3],[5,1,5,3],[6,1,6,3],[9,1,9,8],[10,1,10,2],[11,1,11,2],[12,1,12,2],[15,1,15,8],[48,1,48,3],[49,1,49,3],[25,1,25,8],[28,1,28,8],[29,1,29,2],[30,1,31,1],[32,1,35,1],[37,1,37,2],[38,1,38,2],[38,3,38,5],[39,1,39,8],[42,1,42,8],[43,1,43,3]]}
["UPORABNIKI - za obdobje od 1. 1. 2026 do 30. 6. 2026",null,null,null,null,null,null,"Vsebina:",{"$f":"RIGHT(CELL(\"filename\",I1),LEN(CELL(\"filename\",I1))-SEARCH(\"]\",CELL(\"filename\",I1)))","v":"UP_1g"}]
[]
[null,"Vpišite podatke za posamično vsebino, za katero ste vnesli podatke na listu \"UP_VSEBINE\" - za vsako posebej se vam odpre svoj list."]
[]
[1,"Prosimo, navedite število uporabnikov:",null,null,"Vpisujte v modre celice:"]
[null,"Skupaj število RAZLIČNIH uporabnikov (en uporabnik se šteje samo enkrat na leto)"]
[null,"Število uporabnikov na dan 1. 12. 2025 (izpis pridobite iz EVAPRO, če tega nimate oz. nimate točnega podatka, vpišite oceno števila uporabnikov na ta dan)"]
[]
[]
[2,"Če program obsega tudi delo v skupinah prosimo navedite (vpisujte samo skupine, ki ste jih prijavili znotraj izračuna javnega razpisa in so ovrednotene v pogodbi):"]
[null,"Število skupin"]
[null,"Povprečno število uporabnikov na skupino"]
[null,"Število srečanj na leto"]
[]
[]
[3,"Prosimo, navedite število vključenih uporabnikov po mesecih ter povprečno število ur aktivne* vključenosti uporabnikov v posamezne dejavnosti programa na mesec."]
[null,"Mesec","Število uporabnikov","Povprečno število ur aktivne* vključenosti enega uporabnika na mesec"]
[null,"januar "]
[null,"februar "]
[null,"marec "]
[null,"april "]
[null,"maj "]
[null,"junij "]
[null,"julij"]
[null,"Povprečno število na mesec",{"$f":"AVERAGE(C18:C24)","v":{"$error":"#DIV/0!"}},{"$f":"AVERAGE(D18:D24)","v":{"$error":"#DIV/0!"}}]
[null,"Opomba:\n*Aktivna vključenost pomeni, da je uporabnik aktivno vključen v dejavnosti programa. Torej pri programih, ki uporabnikom nudijo bivanje, ne vpisujete 720 ur na mesec, ampak število ur aktivne vključenosti uporabnika v program na mesec."]
[]
[]
[4,"Prosimo, navedite število RAZLIČNIH uporabnikov glede na spol in starost. Prosimo zapišite oceno, če nimate točnih podatkov."]
[null,"Starostna skupina",null,"Število moških","Število žensk","Spol ni znan oz. ni definiran"]
[null,"MLADOLETNI","do vključno 15 let"]
[null,null,"nad 15 let do 18 let"]
[null,"POLNOLETNI","nad 18 let do 35 let"]
[null,null,"nad 35 let do 50 let"]
[null,null,"nad 50 let do 65 let"]
[null,null,"nad 65 let"]
[null,"ANONIMNI","starost in/ali spol nista znana oz. definirana"]
[null,"Skupaj različnih uporabnikov ",null,{"$f":"SUM(D31:D37)","v":0},{"$f":"SUM(E31:E37)","v":0},{"$f":"SUM(F31:F37)","v":0}]
[null,"Ujemanje s prvo preglednico: ","Ujemanje: ",{"$f":"IF((E6=(D38+E38+F38)),\"SEŠTEVEK SE UJEMA\",\"SEŠTEVEK SE NE UJEMA - PREVERITE\")","v":"SEŠTEVEK SE UJEMA"}]
[null,"Opomba:\nIzvajalci, ki v bazi EVAPRO beležite drugačne starostne skupine, lahko ustvarite tabelo za izpis z navedenimi starostnimi skupinami - podrobno v »Navodilih za uporabo baze Evapro© - februar 2025«, poglavje »9.1.4 Po star. skupinah«, str. 86."]
[]
[]
[5,"Prosimo, navedite število uporabnikov glede na čas/obdobje njihove vključitve v program. Upoštevajte RAZLIČNE uporabnike. Seštevek uporabnikov mora tako biti enak podatku različnih uporabnikov iz prve preglednice. Prosimo zapišite oceno, če nimate točnih podatkov."]
[null,"Število uporabnikov, ki so program obiskovali/bili vključeni…",null,null,"Število uporabnikov"]
[null,"vsak dan ali petkrat na teden"]
[null,"enkrat ali večkrat na teden, vendar ne vsak (delovni) dan"]
[null,"večkrat/nekajkrat na mesec"]
[null,"enkrat na mesec"]
[null,"nekajkrat na leto"]
[null,"enkrat na leto"]
[null,"uporabniki, za katere ni znano, kako pogosto so obiskovali/bili vključeni v program (anonimni)"]
[null,"Skupaj število različnih uporabnikov ",null,null,{"$f":"SUM(E45:E51)","v":0}]
[null,"Ujemanje s prvo preglednico: ","Ujemanje: ",{"$f":"IF((E6=(E52)),\"SEŠTEVEK SE UJEMA\",\"SEŠTEVEK SE NE UJEMA - PREVERITE\")","v":"SEŠTEVEK SE UJEMA"}]
[]
[]
[6,"Prosimo, opredelite ciljno skupino uporabnikov - značilnosti uporabnikov, ki jim je vsebina programa namenjena:"]
[null,"po spolu"]
[null,"po starostnih skupinah"]
[null,"družinske razmere in socialno omrežje"]
[null,"glede na težavo(e), ki jo/jih imajo"]
[null,"druge pomembne značilnosti"]

{"sheet":"UP_1h","index":20,"n_rows":61,"n_cols":9,"rows_kept":61,"cut":false,"hidden":true,"merged":[[60,1,60,2],[60,3,60,8],[57,1,57,2],[57,3,57,8],[58,1,58,2],[58,3,58,8],[59,1,59,2],[59,3,59,8],[44,1,44,3],[45,1,45,3],[46,1,46,3],[47,1,47,3],[56,1,56,2],[56,3,56,8],[50,1,50,3],[51,1,51,3],[52,1,52,2],[52,3,52,4],[55,1,55,8],[4,1,4,3],[5,1,5,3],[6,1,6,3],[9,1,9,8],[10,1,10,2],[11,1,11,2],[12,1,12,2],[15,1,15,8],[48,1,48,3],[49,1,49,3],[25,1,25,8],[28,1,28,8],[29,1,29,2],[30,1,31,1],[32,1,35,1],[37,1,37,2],[38,1,38,2],[38,3,38,5],[39,1,39,8],[42,1,42,8],[43,1,43,3]]}
["UPORABNIKI - za obdobje od 1. 1. 2026 do 30. 6. 2026",null,null,null,null,null,null,"Vsebina:",{"$f":"RIGHT(CELL(\"filename\",I1),LEN(CELL(\"filename\",I1))-SEARCH(\"]\",CELL(\"filename\",I1)))","v":"UP_1h"}]
[]
[null,"Vpišite podatke za posamično vsebino, za katero ste vnesli podatke na listu \"UP_VSEBINE\" - za vsako posebej se vam odpre svoj list."]
[]
[1,"Prosimo, navedite število uporabnikov:",null,null,"Vpisujte v modre celice:"]
[null,"Skupaj število RAZLIČNIH uporabnikov (en uporabnik se šteje samo enkrat na leto)"]
[null,"Število uporabnikov na dan 1. 12. 2025 (izpis pridobite iz EVAPRO, če tega nimate oz. nimate točnega podatka, vpišite oceno števila uporabnikov na ta dan)"]
[]
[]
[2,"Če program obsega tudi delo v skupinah prosimo navedite (vpisujte samo skupine, ki ste jih prijavili znotraj izračuna javnega razpisa in so ovrednotene v pogodbi):"]
[null,"Število skupin"]
[null,"Povprečno število uporabnikov na skupino"]
[null,"Število srečanj na leto"]
[]
[]
[3,"Prosimo, navedite število vključenih uporabnikov po mesecih ter povprečno število ur aktivne* vključenosti uporabnikov v posamezne dejavnosti programa na mesec."]
[null,"Mesec","Število uporabnikov","Povprečno število ur aktivne* vključenosti enega uporabnika na mesec"]
[null,"januar "]
[null,"februar "]
[null,"marec "]
[null,"april "]
[null,"maj "]
[null,"junij "]
[null,"julij"]
[null,"Povprečno število na mesec",{"$f":"AVERAGE(C18:C24)","v":{"$error":"#DIV/0!"}},{"$f":"AVERAGE(D18:D24)","v":{"$error":"#DIV/0!"}}]
[null,"Opomba:\n*Aktivna vključenost pomeni, da je uporabnik aktivno vključen v dejavnosti programa. Torej pri programih, ki uporabnikom nudijo bivanje, ne vpisujete 720 ur na mesec, ampak število ur aktivne vključenosti uporabnika v program na mesec."]
[]
[]
[4,"Prosimo, navedite število RAZLIČNIH uporabnikov glede na spol in starost. Prosimo zapišite oceno, če nimate točnih podatkov."]
[null,"Starostna skupina",null,"Število moških","Število žensk","Spol ni znan oz. ni definiran"]
[null,"MLADOLETNI","do vključno 15 let"]
[null,null,"nad 15 let do 18 let"]
[null,"POLNOLETNI","nad 18 let do 35 let"]
[null,null,"nad 35 let do 50 let"]
[null,null,"nad 50 let do 65 let"]
[null,null,"nad 65 let"]
[null,"ANONIMNI","starost in/ali spol nista znana oz. definirana"]
[null,"Skupaj različnih uporabnikov ",null,{"$f":"SUM(D31:D37)","v":0},{"$f":"SUM(E31:E37)","v":0},{"$f":"SUM(F31:F37)","v":0}]
[null,"Ujemanje s prvo preglednico: ","Ujemanje: ",{"$f":"IF((E6=(D38+E38+F38)),\"SEŠTEVEK SE UJEMA\",\"SEŠTEVEK SE NE UJEMA - PREVERITE\")","v":"SEŠTEVEK SE UJEMA"}]
[null,"Opomba:\nIzvajalci, ki v bazi EVAPRO beležite drugačne starostne skupine, lahko ustvarite tabelo za izpis z navedenimi starostnimi skupinami - podrobno v »Navodilih za uporabo baze Evapro© - februar 2025«, poglavje »9.1.4 Po star. skupinah«, str. 86."]
[]
[]
[5,"Prosimo, navedite število uporabnikov glede na čas/obdobje njihove vključitve v program. Upoštevajte RAZLIČNE uporabnike. Seštevek uporabnikov mora tako biti enak podatku različnih uporabnikov iz prve preglednice. Prosimo zapišite oceno, če nimate točnih podatkov."]
[null,"Število uporabnikov, ki so program obiskovali/bili vključeni…",null,null,"Število uporabnikov"]
[null,"vsak dan ali petkrat na teden"]
[null,"enkrat ali večkrat na teden, vendar ne vsak (delovni) dan"]
[null,"večkrat/nekajkrat na mesec"]
[null,"enkrat na mesec"]
[null,"nekajkrat na leto"]
[null,"enkrat na leto"]
[null,"uporabniki, za katere ni znano, kako pogosto so obiskovali/bili vključeni v program (anonimni)"]
[null,"Skupaj število različnih uporabnikov ",null,null,{"$f":"SUM(E45:E51)","v":0}]
[null,"Ujemanje s prvo preglednico: ","Ujemanje: ",{"$f":"IF((E6=(E52)),\"SEŠTEVEK SE UJEMA\",\"SEŠTEVEK SE NE UJEMA - PREVERITE\")","v":"SEŠTEVEK SE UJEMA"}]
[]
[]
[6,"Prosimo, opredelite ciljno skupino uporabnikov - značilnosti uporabnikov, ki jim je vsebina programa namenjena:"]
[null,"po spolu"]
[null,"po starostnih skupinah"]
[null,"družinske razmere in socialno omrežje"]
[null,"glede na težavo(e), ki jo/jih imajo"]
[null,"druge pomembne značilnosti"]

{"sheet":"UP_1i","index":21,"n_rows":61,"n_cols":9,"rows_kept":61,"cut":false,"hidden":true,"merged":[[60,1,60,2],[60,3,60,8],[57,1,57,2],[57,3,57,8],[58,1,58,2],[58,3,58,8],[59,1,59,2],[59,3,59,8],[44,1,44,3],[45,1,45,3],[46,1,46,3],[47,1,47,3],[56,1,56,2],[56,3,56,8],[50,1,50,3],[51,1,51,3],[52,1,52,2],[52,3,52,4],[55,1,55,8],[4,1,4,3],[5,1,5,3],[6,1,6,3],[9,1,9,8],[10,1,10,2],[11,1,11,2],[12,1,12,2],[15,1,15,8],[48,1,48,3],[49,1,49,3],[25,1,25,8],[28,1,28,8],[29,1,29,2],[30,1,31,1],[32,1,35,1],[37,1,37,2],[38,1,38,2],[38,3,38,5],[39,1,39,8],[42,1,42,8],[43,1,43,3]]}
["UPORABNIKI - za obdobje od 1. 1. 2026 do 30. 6. 2026",null,null,null,null,null,null,"Vsebina:",{"$f":"RIGHT(CELL(\"filename\",I1),LEN(CELL(\"filename\",I1))-SEARCH(\"]\",CELL(\"filename\",I1)))","v":"UP_1i"}]
[]
[null,"Vpišite podatke za posamično vsebino, za katero ste vnesli podatke na listu \"UP_VSEBINE\" - za vsako posebej se vam odpre svoj list."]
[]
[1,"Prosimo, navedite število uporabnikov:",null,null,"Vpisujte v modre celice:"]
[null,"Skupaj število RAZLIČNIH uporabnikov (en uporabnik se šteje samo enkrat na leto)"]
[null,"Število uporabnikov na dan 1. 12. 2025 (izpis pridobite iz EVAPRO, če tega nimate oz. nimate točnega podatka, vpišite oceno števila uporabnikov na ta dan)"]
[]
[]
[2,"Če program obsega tudi delo v skupinah prosimo navedite (vpisujte samo skupine, ki ste jih prijavili znotraj izračuna javnega razpisa in so ovrednotene v pogodbi):"]
[null,"Število skupin"]
[null,"Povprečno število uporabnikov na skupino"]
[null,"Število srečanj na leto"]
[]
[]
[3,"Prosimo, navedite število vključenih uporabnikov po mesecih ter povprečno število ur aktivne* vključenosti uporabnikov v posamezne dejavnosti programa na mesec."]
[null,"Mesec","Število uporabnikov","Povprečno število ur aktivne* vključenosti enega uporabnika na mesec"]
[null,"januar "]
[null,"februar "]
[null,"marec "]
[null,"april "]
[null,"maj "]
[null,"junij "]
[null,"julij"]
[null,"Povprečno število na mesec",{"$f":"AVERAGE(C18:C24)","v":{"$error":"#DIV/0!"}},{"$f":"AVERAGE(D18:D24)","v":{"$error":"#DIV/0!"}}]
[null,"Opomba:\n*Aktivna vključenost pomeni, da je uporabnik aktivno vključen v dejavnosti programa. Torej pri programih, ki uporabnikom nudijo bivanje, ne vpisujete 720 ur na mesec, ampak število ur aktivne vključenosti uporabnika v program na mesec."]
[]
[]
[4,"Prosimo, navedite število RAZLIČNIH uporabnikov glede na spol in starost. Prosimo zapišite oceno, če nimate točnih podatkov."]
[null,"Starostna skupina",null,"Število moških","Število žensk","Spol ni znan oz. ni definiran"]
[null,"MLADOLETNI","do vključno 15 let"]
[null,null,"nad 15 let do 18 let"]
[null,"POLNOLETNI","nad 18 let do 35 let"]
[null,null,"nad 35 let do 50 let"]
[null,null,"nad 50 let do 65 let"]
[null,null,"nad 65 let"]
[null,"ANONIMNI","starost in/ali spol nista znana oz. definirana"]
[null,"Skupaj različnih uporabnikov ",null,{"$f":"SUM(D31:D37)","v":0},{"$f":"SUM(E31:E37)","v":0},{"$f":"SUM(F31:F37)","v":0}]
[null,"Ujemanje s prvo preglednico: ","Ujemanje: ",{"$f":"IF((E6=(D38+E38+F38)),\"SEŠTEVEK SE UJEMA\",\"SEŠTEVEK SE NE UJEMA - PREVERITE\")","v":"SEŠTEVEK SE UJEMA"}]
[null,"Opomba:\nIzvajalci, ki v bazi EVAPRO beležite drugačne starostne skupine, lahko ustvarite tabelo za izpis z navedenimi starostnimi skupinami - podrobno v »Navodilih za uporabo baze Evapro© - februar 2025«, poglavje »9.1.4 Po star. skupinah«, str. 86."]
[]
[]
[5,"Prosimo, navedite število uporabnikov glede na čas/obdobje njihove vključitve v program. Upoštevajte RAZLIČNE uporabnike. Seštevek uporabnikov mora tako biti enak podatku različnih uporabnikov iz prve preglednice. Prosimo zapišite oceno, če nimate točnih podatkov."]
[null,"Število uporabnikov, ki so program obiskovali/bili vključeni…",null,null,"Število uporabnikov"]
[null,"vsak dan ali petkrat na teden"]
[null,"enkrat ali večkrat na teden, vendar ne vsak (delovni) dan"]
[null,"večkrat/nekajkrat na mesec"]
[null,"enkrat na mesec"]
[null,"nekajkrat na leto"]
[null,"enkrat na leto"]
[null,"uporabniki, za katere ni znano, kako pogosto so obiskovali/bili vključeni v program (anonimni)"]
[null,"Skupaj število različnih uporabnikov ",null,null,{"$f":"SUM(E45:E51)","v":0}]
[null,"Ujemanje s prvo preglednico: ","Ujemanje: ",{"$f":"IF((E6=(E52)),\"SEŠTEVEK SE UJEMA\",\"SEŠTEVEK SE NE UJEMA - PREVERITE\")","v":"SEŠTEVEK SE UJEMA"}]
[]
[]
[6,"Prosimo, opredelite ciljno skupino uporabnikov - značilnosti uporabnikov, ki jim je vsebina programa namenjena:"]
[null,"po spolu"]
[null,"po starostnih skupinah"]
[null,"družinske razmere in socialno omrežje"]
[null,"glede na težavo(e), ki jo/jih imajo"]
[null,"druge pomembne značilnosti"]

{"sheet":"UP_1j","index":22,"n_rows":61,"n_cols":9,"rows_kept":61,"cut":false,"hidden":true,"merged":[[60,1,60,2],[60,3,60,8],[57,1,57,2],[57,3,57,8],[58,1,58,2],[58,3,58,8],[59,1,59,2],[59,3,59,8],[44,1,44,3],[45,1,45,3],[46,1,46,3],[47,1,47,3],[56,1,56,2],[56,3,56,8],[50,1,50,3],[51,1,51,3],[52,1,52,2],[52,3,52,4],[55,1,55,8],[4,1,4,3],[5,1,5,3],[6,1,6,3],[9,1,9,8],[10,1,10,2],[11,1,11,2],[12,1,12,2],[15,1,15,8],[48,1,48,3],[49,1,49,3],[25,1,25,8],[28,1,28,8],[29,1,29,2],[30,1,31,1],[32,1,35,1],[37,1,37,2],[38,1,38,2],[38,3,38,5],[39,1,39,8],[42,1,42,8],[43,1,43,3]]}
["UPORABNIKI - za obdobje od 1. 1. 2026 do 30. 6. 2026",null,null,null,null,null,null,"Vsebina:",{"$f":"RIGHT(CELL(\"filename\",I1),LEN(CELL(\"filename\",I1))-SEARCH(\"]\",CELL(\"filename\",I1)))","v":"UP_1j"}]
[]
[null,"Vpišite podatke za posamično vsebino, za katero ste vnesli podatke na listu \"UP_VSEBINE\" - za vsako posebej se vam odpre svoj list."]
[]
[1,"Prosimo, navedite število uporabnikov:",null,null,"Vpisujte v modre celice:"]
[null,"Skupaj število RAZLIČNIH uporabnikov (en uporabnik se šteje samo enkrat na leto)"]
[null,"Število uporabnikov na dan 1. 12. 2025 (izpis pridobite iz EVAPRO, če tega nimate oz. nimate točnega podatka, vpišite oceno števila uporabnikov na ta dan)"]
[]
[]
[2,"Če program obsega tudi delo v skupinah prosimo navedite (vpisujte samo skupine, ki ste jih prijavili znotraj izračuna javnega razpisa in so ovrednotene v pogodbi):"]
[null,"Število skupin"]
[null,"Povprečno število uporabnikov na skupino"]
[null,"Število srečanj na leto"]
[]
[]
[3,"Prosimo, navedite število vključenih uporabnikov po mesecih ter povprečno število ur aktivne* vključenosti uporabnikov v posamezne dejavnosti programa na mesec."]
[null,"Mesec","Število uporabnikov","Povprečno število ur aktivne* vključenosti enega uporabnika na mesec"]
[null,"januar "]
[null,"februar "]
[null,"marec "]
[null,"april "]
[null,"maj "]
[null,"junij "]
[null,"julij"]
[null,"Povprečno število na mesec",{"$f":"AVERAGE(C18:C24)","v":{"$error":"#DIV/0!"}},{"$f":"AVERAGE(D18:D24)","v":{"$error":"#DIV/0!"}}]
[null,"Opomba:\n*Aktivna vključenost pomeni, da je uporabnik aktivno vključen v dejavnosti programa. Torej pri programih, ki uporabnikom nudijo bivanje, ne vpisujete 720 ur na mesec, ampak število ur aktivne vključenosti uporabnika v program na mesec."]
[]
[]
[4,"Prosimo, navedite število RAZLIČNIH uporabnikov glede na spol in starost. Prosimo zapišite oceno, če nimate točnih podatkov."]
[null,"Starostna skupina",null,"Število moških","Število žensk","Spol ni znan oz. ni definiran"]
[null,"MLADOLETNI","do vključno 15 let"]
[null,null,"nad 15 let do 18 let"]
[null,"POLNOLETNI","nad 18 let do 35 let"]
[null,null,"nad 35 let do 50 let"]
[null,null,"nad 50 let do 65 let"]
[null,null,"nad 65 let"]
[null,"ANONIMNI","starost in/ali spol nista znana oz. definirana"]
[null,"Skupaj različnih uporabnikov ",null,{"$f":"SUM(D31:D37)","v":0},{"$f":"SUM(E31:E37)","v":0},{"$f":"SUM(F31:F37)","v":0}]
[null,"Ujemanje s prvo preglednico: ","Ujemanje: ",{"$f":"IF((E6=(D38+E38+F38)),\"SEŠTEVEK SE UJEMA\",\"SEŠTEVEK SE NE UJEMA - PREVERITE\")","v":"SEŠTEVEK SE UJEMA"}]
[null,"Opomba:\nIzvajalci, ki v bazi EVAPRO beležite drugačne starostne skupine, lahko ustvarite tabelo za izpis z navedenimi starostnimi skupinami - podrobno v »Navodilih za uporabo baze Evapro© - februar 2025«, poglavje »9.1.4 Po star. skupinah«, str. 86."]
[]
[]
[5,"Prosimo, navedite število uporabnikov glede na čas/obdobje njihove vključitve v program. Upoštevajte RAZLIČNE uporabnike. Seštevek uporabnikov mora tako biti enak podatku različnih uporabnikov iz prve preglednice. Prosimo zapišite oceno, če nimate točnih podatkov."]
[null,"Število uporabnikov, ki so program obiskovali/bili vključeni…",null,null,"Število uporabnikov"]
[null,"vsak dan ali petkrat na teden"]
[null,"enkrat ali večkrat na teden, vendar ne vsak (delovni) dan"]
[null,"večkrat/nekajkrat na mesec"]
[null,"enkrat na mesec"]
[null,"nekajkrat na leto"]
[null,"enkrat na leto"]
[null,"uporabniki, za katere ni znano, kako pogosto so obiskovali/bili vključeni v program (anonimni)"]
[null,"Skupaj število različnih uporabnikov ",null,null,{"$f":"SUM(E45:E51)","v":0}]
[null,"Ujemanje s prvo preglednico: ","Ujemanje: ",{"$f":"IF((E6=(E52)),\"SEŠTEVEK SE UJEMA\",\"SEŠTEVEK SE NE UJEMA - PREVERITE\")","v":"SEŠTEVEK SE UJEMA"}]
[]
[]
[6,"Prosimo, opredelite ciljno skupino uporabnikov - značilnosti uporabnikov, ki jim je vsebina programa namenjena:"]
[null,"po spolu"]
[null,"po starostnih skupinah"]
[null,"družinske razmere in socialno omrežje"]
[null,"glede na težavo(e), ki jo/jih imajo"]
[null,"druge pomembne značilnosti"]

{"sheet":"UP_1k","index":23,"n_rows":61,"n_cols":9,"rows_kept":61,"cut":false,"hidden":true,"merged":[[60,1,60,2],[60,3,60,8],[57,1,57,2],[57,3,57,8],[58,1,58,2],[58,3,58,8],[59,1,59,2],[59,3,59,8],[44,1,44,3],[45,1,45,3],[46,1,46,3],[47,1,47,3],[56,1,56,2],[56,3,56,8],[50,1,50,3],[51,1,51,3],[52,1,52,2],[52,3,52,4],[55,1,55,8],[4,1,4,3],[5,1,5,3],[6,1,6,3],[9,1,9,8],[10,1,10,2],[11,1,11,2],[12,1,12,2],[15,1,15,8],[48,1,48,3],[49,1,49,3],[25,1,25,8],[28,1,28,8],[29,1,29,2],[30,1,31,1],[32,1,35,1],[37,1,37,2],[38,1,38,2],[38,3,38,5],[39,1,39,8],[42,1,42,8],[43,1,43,3]]}
["UPORABNIKI - za obdobje od 1. 1. 2026 do 30. 6. 2026",null,null,null,null,null,null,"Vsebina:",{"$f":"RIGHT(CELL(\"filename\",I1),LEN(CELL(\"filename\",I1))-SEARCH(\"]\",CELL(\"filename\",I1)))","v":"UP_1k"}]
[]
[null,"Vpišite podatke za posamično vsebino, za katero ste vnesli podatke na listu \"UP_VSEBINE\" - za vsako posebej se vam odpre svoj list."]
[]
[1,"Prosimo, navedite število uporabnikov:",null,null,"Vpisujte v modre celice:"]
[null,"Skupaj število RAZLIČNIH uporabnikov (en uporabnik se šteje samo enkrat na leto)"]
[null,"Število uporabnikov na dan 1. 12. 2025 (izpis pridobite iz EVAPRO, če tega nimate oz. nimate točnega podatka, vpišite oceno števila uporabnikov na ta dan)"]
[]
[]
[2,"Če program obsega tudi delo v skupinah prosimo navedite (vpisujte samo skupine, ki ste jih prijavili znotraj izračuna javnega razpisa in so ovrednotene v pogodbi):"]
[null,"Število skupin"]
[null,"Povprečno število uporabnikov na skupino"]
[null,"Število srečanj na leto"]
[]
[]
[3,"Prosimo, navedite število vključenih uporabnikov po mesecih ter povprečno število ur aktivne* vključenosti uporabnikov v posamezne dejavnosti programa na mesec."]
[null,"Mesec","Število uporabnikov","Povprečno število ur aktivne* vključenosti enega uporabnika na mesec"]
[null,"januar "]
[null,"februar "]
[null,"marec "]
[null,"april "]
[null,"maj "]
[null,"junij "]
[null,"julij"]
[null,"Povprečno število na mesec",{"$f":"AVERAGE(C18:C24)","v":{"$error":"#DIV/0!"}},{"$f":"AVERAGE(D18:D24)","v":{"$error":"#DIV/0!"}}]
[null,"Opomba:\n*Aktivna vključenost pomeni, da je uporabnik aktivno vključen v dejavnosti programa. Torej pri programih, ki uporabnikom nudijo bivanje, ne vpisujete 720 ur na mesec, ampak število ur aktivne vključenosti uporabnika v program na mesec."]
[]
[]
[4,"Prosimo, navedite število RAZLIČNIH uporabnikov glede na spol in starost. Prosimo zapišite oceno, če nimate točnih podatkov."]
[null,"Starostna skupina",null,"Število moških","Število žensk","Spol ni znan oz. ni definiran"]
[null,"MLADOLETNI","do vključno 15 let"]
[null,null,"nad 15 let do 18 let"]
[null,"POLNOLETNI","nad 18 let do 35 let"]
[null,null,"nad 35 let do 50 let"]
[null,null,"nad 50 let do 65 let"]
[null,null,"nad 65 let"]
[null,"ANONIMNI","starost in/ali spol nista znana oz. definirana"]
[null,"Skupaj različnih uporabnikov ",null,{"$f":"SUM(D31:D37)","v":0},{"$f":"SUM(E31:E37)","v":0},{"$f":"SUM(F31:F37)","v":0}]
[null,"Ujemanje s prvo preglednico: ","Ujemanje: ",{"$f":"IF((E6=(D38+E38+F38)),\"SEŠTEVEK SE UJEMA\",\"SEŠTEVEK SE NE UJEMA - PREVERITE\")","v":"SEŠTEVEK SE UJEMA"}]
[null,"Opomba:\nIzvajalci, ki v bazi EVAPRO beležite drugačne starostne skupine, lahko ustvarite tabelo za izpis z navedenimi starostnimi skupinami - podrobno v »Navodilih za uporabo baze Evapro© - februar 2025«, poglavje »9.1.4 Po star. skupinah«, str. 86."]
[]
[]
[5,"Prosimo, navedite število uporabnikov glede na čas/obdobje njihove vključitve v program. Upoštevajte RAZLIČNE uporabnike. Seštevek uporabnikov mora tako biti enak podatku različnih uporabnikov iz prve preglednice. Prosimo zapišite oceno, če nimate točnih podatkov."]
[null,"Število uporabnikov, ki so program obiskovali/bili vključeni…",null,null,"Število uporabnikov"]
[null,"vsak dan ali petkrat na teden"]
[null,"enkrat ali večkrat na teden, vendar ne vsak (delovni) dan"]
[null,"večkrat/nekajkrat na mesec"]
[null,"enkrat na mesec"]
[null,"nekajkrat na leto"]
[null,"enkrat na leto"]
[null,"uporabniki, za katere ni znano, kako pogosto so obiskovali/bili vključeni v program (anonimni)"]
[null,"Skupaj število različnih uporabnikov ",null,null,{"$f":"SUM(E45:E51)","v":0}]
[null,"Ujemanje s prvo preglednico: ","Ujemanje: ",{"$f":"IF((E6=(E52)),\"SEŠTEVEK SE UJEMA\",\"SEŠTEVEK SE NE UJEMA - PREVERITE\")","v":"SEŠTEVEK SE UJEMA"}]
[]
[]
[6,"Prosimo, opredelite ciljno skupino uporabnikov - značilnosti uporabnikov, ki jim je vsebina programa namenjena:"]
[null,"po spolu"]
[null,"po starostnih skupinah"]
[null,"družinske razmere in socialno omrežje"]
[null,"glede na težavo(e), ki jo/jih imajo"]
[null,"druge pomembne značilnosti"]

{"sheet":"UP_2.1a","index":24,"n_rows":61,"n_cols":9,"rows_kept":61,"cut":false,"hidden":true,"merged":[[59,1,59,2],[59,3,59,8],[60,1,60,2],[60,3,60,8],[56,1,56,2],[56,3,56,8],[57,1,57,2],[57,3,57,8],[58,1,58,2],[58,3,58,8],[4,1,4,3],[5,1,5,3],[6,1,6,3],[38,1,38,2],[38,3,38,5],[9,1,9,8],[10,1,10,2],[11,1,11,2],[12,1,12,2],[15,1,15,8],[25,1,25,8],[28,1,28,8],[29,1,29,2],[30,1,31,1],[32,1,35,1],[37,1,37,2],[55,1,55,8],[52,1,52,2],[52,3,52,4],[39,1,39,8],[42,1,42,8],[43,1,43,3],[44,1,44,3],[45,1,45,3],[46,1,46,3],[47,1,47,3],[48,1,48,3],[49,1,49,3],[50,1,50,3],[51,1,51,3]]}
["UPORABNIKI - za obdobje od 1. 1. 2026 do 30. 6. 2026",null,null,null,null,null,null,"Vsebina:",{"$f":"RIGHT(CELL(\"filename\",I1),LEN(CELL(\"filename\",I1))-SEARCH(\"]\",CELL(\"filename\",I1)))","v":"UP_2.1a"}]
[]
[null,"Vpišite podatke za posamično vsebino, za katero ste vnesli podatke na listu \"UP_VSEBINE\" - za vsako posebej se vam odpre svoj list."]
[]
[1,"Prosimo, navedite število uporabnikov:",null,null,"Vpisujte v modre celice:"]
[null,"Skupaj število RAZLIČNIH uporabnikov (en uporabnik se šteje samo enkrat na leto)"]
[null,"Število uporabnikov na dan 1. 12. 2025 (izpis pridobite iz EVAPRO, če tega nimate oz. nimate točnega podatka, vpišite oceno števila uporabnikov na ta dan)"]
[]
[]
[2,"Če program obsega tudi delo v skupinah prosimo navedite (vpisujte samo skupine, ki ste jih prijavili znotraj izračuna javnega razpisa in so ovrednotene v pogodbi):"]
[null,"Število skupin"]
[null,"Povprečno število uporabnikov na skupino"]
[null,"Število srečanj na leto"]
[]
[]
[3,"Prosimo, navedite število vključenih uporabnikov po mesecih ter povprečno število ur aktivne* vključenosti uporabnikov v posamezne dejavnosti programa na mesec."]
[null,"Mesec","Število uporabnikov","Povprečno število ur aktivne* vključenosti enega uporabnika na mesec"]
[null,"januar "]
[null,"februar "]
[null,"marec "]
[null,"april "]
[null,"maj "]
[null,"junij "]
[null,"julij"]
[null,"Povprečno število na mesec",{"$f":"AVERAGE(C18:C24)","v":{"$error":"#DIV/0!"}},{"$f":"AVERAGE(D18:D24)","v":{"$error":"#DIV/0!"}}]
[null,"Opomba:\n*Aktivna vključenost pomeni, da je uporabnik aktivno vključen v dejavnosti programa. Torej pri programih, ki uporabnikom nudijo bivanje, ne vpisujete 720 ur na mesec, ampak število ur aktivne vključenosti uporabnika v program na mesec."]
[]
[]
[4,"Prosimo, navedite število RAZLIČNIH uporabnikov glede na spol in starost. Prosimo zapišite oceno, če nimate točnih podatkov."]
[null,"Starostna skupina",null,"Število moških","Število žensk","Spol ni znan oz. ni definiran"]
[null,"MLADOLETNI","do vključno 15 let"]
[null,null,"nad 15 let do 18 let"]
[null,"POLNOLETNI","nad 18 let do 35 let"]
[null,null,"nad 35 let do 50 let"]
[null,null,"nad 50 let do 65 let"]
[null,null,"nad 65 let"]
[null,"ANONIMNI","starost in/ali spol nista znana oz. definirana"]
[null,"Skupaj različnih uporabnikov ",null,{"$f":"SUM(D31:D37)","v":0},{"$f":"SUM(E31:E37)","v":0},{"$f":"SUM(F31:F37)","v":0}]
[null,"Ujemanje s prvo preglednico: ","Ujemanje: ",{"$f":"IF((E6=(D38+E38+F38)),\"SEŠTEVEK SE UJEMA\",\"SEŠTEVEK SE NE UJEMA - PREVERITE\")","v":"SEŠTEVEK SE UJEMA"}]
[null,"Opomba:\nIzvajalci, ki v bazi EVAPRO beležite drugačne starostne skupine, lahko ustvarite tabelo za izpis z navedenimi starostnimi skupinami - podrobno v »Navodilih za uporabo baze Evapro© - februar 2025«, poglavje »9.1.4 Po star. skupinah«, str. 86."]
[]
[]
[5,"Prosimo, navedite število uporabnikov glede na čas/obdobje njihove vključitve v program. Upoštevajte RAZLIČNE uporabnike. Seštevek uporabnikov mora tako biti enak podatku različnih uporabnikov iz prve preglednice. Prosimo zapišite oceno, če nimate točnih podatkov."]
[null,"Število uporabnikov, ki so program obiskovali/bili vključeni…",null,null,"Število uporabnikov"]
[null,"vsak dan ali petkrat na teden"]
[null,"enkrat ali večkrat na teden, vendar ne vsak (delovni) dan"]
[null,"večkrat/nekajkrat na mesec"]
[null,"enkrat na mesec"]
[null,"nekajkrat na leto"]
[null,"enkrat na leto"]
[null,"uporabniki, za katere ni znano, kako pogosto so obiskovali/bili vključeni v program (anonimni)"]
[null,"Skupaj število različnih uporabnikov ",null,null,{"$f":"SUM(E45:E51)","v":0}]
[null,"Ujemanje s prvo preglednico: ","Ujemanje: ",{"$f":"IF((E6=(E52)),\"SEŠTEVEK SE UJEMA\",\"SEŠTEVEK SE NE UJEMA - PREVERITE\")","v":"SEŠTEVEK SE UJEMA"}]
[]
[]
[6,"Prosimo, opredelite ciljno skupino uporabnikov - značilnosti uporabnikov, ki jim je vsebina programa namenjena:"]
[null,"po spolu"]
[null,"po starostnih skupinah"]
[null,"družinske razmere in socialno omrežje"]
[null,"glede na težavo(e), ki jo/jih imajo"]
[null,"druge pomembne značilnosti"]

{"sheet":"UP_2.1b","index":25,"n_rows":61,"n_cols":9,"rows_kept":61,"cut":false,"hidden":true,"merged":[[60,1,60,2],[60,3,60,8],[57,1,57,2],[57,3,57,8],[58,1,58,2],[58,3,58,8],[59,1,59,2],[59,3,59,8],[44,1,44,3],[45,1,45,3],[46,1,46,3],[47,1,47,3],[56,1,56,2],[56,3,56,8],[50,1,50,3],[51,1,51,3],[52,1,52,2],[52,3,52,4],[55,1,55,8],[4,1,4,3],[5,1,5,3],[6,1,6,3],[9,1,9,8],[10,1,10,2],[11,1,11,2],[12,1,12,2],[15,1,15,8],[48,1,48,3],[49,1,49,3],[25,1,25,8],[28,1,28,8],[29,1,29,2],[30,1,31,1],[32,1,35,1],[37,1,37,2],[38,1,38,2],[38,3,38,5],[39,1,39,8],[42,1,42,8],[43,1,43,3]]}
["UPORABNIKI - za obdobje od 1. 1. 2026 do 30. 6. 2026",null,null,null,null,null,null,"Vsebina:",{"$f":"RIGHT(CELL(\"filename\",I1),LEN(CELL(\"filename\",I1))-SEARCH(\"]\",CELL(\"filename\",I1)))","v":"UP_2.1b"}]
[]
[null,"Vpišite podatke za posamično vsebino, za katero ste vnesli podatke na listu \"UP_VSEBINE\" - za vsako posebej se vam odpre svoj list."]
[]
[1,"Prosimo, navedite število uporabnikov:",null,null,"Vpisujte v modre celice:"]
[null,"Skupaj število RAZLIČNIH uporabnikov (en uporabnik se šteje samo enkrat na leto)"]
[null,"Število uporabnikov na dan 1. 12. 2025 (izpis pridobite iz EVAPRO, če tega nimate oz. nimate točnega podatka, vpišite oceno števila uporabnikov na ta dan)"]
[]
[]
[2,"Če program obsega tudi delo v skupinah prosimo navedite (vpisujte samo skupine, ki ste jih prijavili znotraj izračuna javnega razpisa in so ovrednotene v pogodbi):"]
[null,"Število skupin"]
[null,"Povprečno število uporabnikov na skupino"]
[null,"Število srečanj na leto"]
[]
[]
[3,"Prosimo, navedite število vključenih uporabnikov po mesecih ter povprečno število ur aktivne* vključenosti uporabnikov v posamezne dejavnosti programa na mesec."]
[null,"Mesec","Število uporabnikov","Povprečno število ur aktivne* vključenosti enega uporabnika na mesec"]
[null,"januar "]
[null,"februar "]
[null,"marec "]
[null,"april "]
[null,"maj "]
[null,"junij "]
[null,"julij"]
[null,"Povprečno število na mesec",{"$f":"AVERAGE(C18:C24)","v":{"$error":"#DIV/0!"}},{"$f":"AVERAGE(D18:D24)","v":{"$error":"#DIV/0!"}}]
[null,"Opomba:\n*Aktivna vključenost pomeni, da je uporabnik aktivno vključen v dejavnosti programa. Torej pri programih, ki uporabnikom nudijo bivanje, ne vpisujete 720 ur na mesec, ampak število ur aktivne vključenosti uporabnika v program na mesec."]
[]
[]
[4,"Prosimo, navedite število RAZLIČNIH uporabnikov glede na spol in starost. Prosimo zapišite oceno, če nimate točnih podatkov."]
[null,"Starostna skupina",null,"Število moških","Število žensk","Spol ni znan oz. ni definiran"]
[null,"MLADOLETNI","do vključno 15 let"]
[null,null,"nad 15 let do 18 let"]
[null,"POLNOLETNI","nad 18 let do 35 let"]
[null,null,"nad 35 let do 50 let"]
[null,null,"nad 50 let do 65 let"]
[null,null,"nad 65 let"]
[null,"ANONIMNI","starost in/ali spol nista znana oz. definirana"]
[null,"Skupaj različnih uporabnikov ",null,{"$f":"SUM(D31:D37)","v":0},{"$f":"SUM(E31:E37)","v":0},{"$f":"SUM(F31:F37)","v":0}]
[null,"Ujemanje s prvo preglednico: ","Ujemanje: ",{"$f":"IF((E6=(D38+E38+F38)),\"SEŠTEVEK SE UJEMA\",\"SEŠTEVEK SE NE UJEMA - PREVERITE\")","v":"SEŠTEVEK SE UJEMA"}]
[null,"Opomba:\nIzvajalci, ki v bazi EVAPRO beležite drugačne starostne skupine, lahko ustvarite tabelo za izpis z navedenimi starostnimi skupinami - podrobno v »Navodilih za uporabo baze Evapro© - februar 2025«, poglavje »9.1.4 Po star. skupinah«, str. 86."]
[]
[]
[5,"Prosimo, navedite število uporabnikov glede na čas/obdobje njihove vključitve v program. Upoštevajte RAZLIČNE uporabnike. Seštevek uporabnikov mora tako biti enak podatku različnih uporabnikov iz prve preglednice. Prosimo zapišite oceno, če nimate točnih podatkov."]
[null,"Število uporabnikov, ki so program obiskovali/bili vključeni…",null,null,"Število uporabnikov"]
[null,"vsak dan ali petkrat na teden"]
[null,"enkrat ali večkrat na teden, vendar ne vsak (delovni) dan"]
[null,"večkrat/nekajkrat na mesec"]
[null,"enkrat na mesec"]
[null,"nekajkrat na leto"]
[null,"enkrat na leto"]
[null,"uporabniki, za katere ni znano, kako pogosto so obiskovali/bili vključeni v program (anonimni)"]
[null,"Skupaj število različnih uporabnikov ",null,null,{"$f":"SUM(E45:E51)","v":0}]
[null,"Ujemanje s prvo preglednico: ","Ujemanje: ",{"$f":"IF((E6=(E52)),\"SEŠTEVEK SE UJEMA\",\"SEŠTEVEK SE NE UJEMA - PREVERITE\")","v":"SEŠTEVEK SE UJEMA"}]
[]
[]
[6,"Prosimo, opredelite ciljno skupino uporabnikov - značilnosti uporabnikov, ki jim je vsebina programa namenjena:"]
[null,"po spolu"]
[null,"po starostnih skupinah"]
[null,"družinske razmere in socialno omrežje"]
[null,"glede na težavo(e), ki jo/jih imajo"]
[null,"druge pomembne značilnosti"]

{"sheet":"UP_2.1c","index":26,"n_rows":61,"n_cols":9,"rows_kept":61,"cut":false,"hidden":true,"merged":[[60,1,60,2],[60,3,60,8],[57,1,57,2],[57,3,57,8],[58,1,58,2],[58,3,58,8],[59,1,59,2],[59,3,59,8],[44,1,44,3],[45,1,45,3],[46,1,46,3],[47,1,47,3],[56,1,56,2],[56,3,56,8],[50,1,50,3],[51,1,51,3],[52,1,52,2],[52,3,52,4],[55,1,55,8],[4,1,4,3],[5,1,5,3],[6,1,6,3],[9,1,9,8],[10,1,10,2],[11,1,11,2],[12,1,12,2],[15,1,15,8],[48,1,48,3],[49,1,49,3],[25,1,25,8],[28,1,28,8],[29,1,29,2],[30,1,31,1],[32,1,35,1],[37,1,37,2],[38,1,38,2],[38,3,38,5],[39,1,39,8],[42,1,42,8],[43,1,43,3]]}
["UPORABNIKI - za obdobje od 1. 1. 2026 do 30. 6. 2026",null,null,null,null,null,null,"Vsebina:",{"$f":"RIGHT(CELL(\"filename\",I1),LEN(CELL(\"filename\",I1))-SEARCH(\"]\",CELL(\"filename\",I1)))","v":"UP_2.1c"}]
[]
[null,"Vpišite podatke za posamično vsebino, za katero ste vnesli podatke na listu \"UP_VSEBINE\" - za vsako posebej se vam odpre svoj list."]
[]
[1,"Prosimo, navedite število uporabnikov:",null,null,"Vpisujte v modre celice:"]
[null,"Skupaj število RAZLIČNIH uporabnikov (en uporabnik se šteje samo enkrat na leto)"]
[null,"Število uporabnikov na dan 1. 12. 2025 (izpis pridobite iz EVAPRO, če tega nimate oz. nimate točnega podatka, vpišite oceno števila uporabnikov na ta dan)"]
[]
[]
[2,"Če program obsega tudi delo v skupinah prosimo navedite (vpisujte samo skupine, ki ste jih prijavili znotraj izračuna javnega razpisa in so ovrednotene v pogodbi):"]
[null,"Število skupin"]
[null,"Povprečno število uporabnikov na skupino"]
[null,"Število srečanj na leto"]
[]
[]
[3,"Prosimo, navedite število vključenih uporabnikov po mesecih ter povprečno število ur aktivne* vključenosti uporabnikov v posamezne dejavnosti programa na mesec."]
[null,"Mesec","Število uporabnikov","Povprečno število ur aktivne* vključenosti enega uporabnika na mesec"]
[null,"januar "]
[null,"februar "]
[null,"marec "]
[null,"april "]
[null,"maj "]
[null,"junij "]
[null,"julij"]
[null,"Povprečno število na mesec",{"$f":"AVERAGE(C18:C24)","v":{"$error":"#DIV/0!"}},{"$f":"AVERAGE(D18:D24)","v":{"$error":"#DIV/0!"}}]
[null,"Opomba:\n*Aktivna vključenost pomeni, da je uporabnik aktivno vključen v dejavnosti programa. Torej pri programih, ki uporabnikom nudijo bivanje, ne vpisujete 720 ur na mesec, ampak število ur aktivne vključenosti uporabnika v program na mesec."]
[]
[]
[4,"Prosimo, navedite število RAZLIČNIH uporabnikov glede na spol in starost. Prosimo zapišite oceno, če nimate točnih podatkov."]
[null,"Starostna skupina",null,"Število moških","Število žensk","Spol ni znan oz. ni definiran"]
[null,"MLADOLETNI","do vključno 15 let"]
[null,null,"nad 15 let do 18 let"]
[null,"POLNOLETNI","nad 18 let do 35 let"]
[null,null,"nad 35 let do 50 let"]
[null,null,"nad 50 let do 65 let"]
[null,null,"nad 65 let"]
[null,"ANONIMNI","starost in/ali spol nista znana oz. definirana"]
[null,"Skupaj različnih uporabnikov ",null,{"$f":"SUM(D31:D37)","v":0},{"$f":"SUM(E31:E37)","v":0},{"$f":"SUM(F31:F37)","v":0}]
[null,"Ujemanje s prvo preglednico: ","Ujemanje: ",{"$f":"IF((E6=(D38+E38+F38)),\"SEŠTEVEK SE UJEMA\",\"SEŠTEVEK SE NE UJEMA - PREVERITE\")","v":"SEŠTEVEK SE UJEMA"}]
[null,"Opomba:\nIzvajalci, ki v bazi EVAPRO beležite drugačne starostne skupine, lahko ustvarite tabelo za izpis z navedenimi starostnimi skupinami - podrobno v »Navodilih za uporabo baze Evapro© - februar 2025«, poglavje »9.1.4 Po star. skupinah«, str. 86."]
[]
[]
[5,"Prosimo, navedite število uporabnikov glede na čas/obdobje njihove vključitve v program. Upoštevajte RAZLIČNE uporabnike. Seštevek uporabnikov mora tako biti enak podatku različnih uporabnikov iz prve preglednice. Prosimo zapišite oceno, če nimate točnih podatkov."]
[null,"Število uporabnikov, ki so program obiskovali/bili vključeni…",null,null,"Število uporabnikov"]
[null,"vsak dan ali petkrat na teden"]
[null,"enkrat ali večkrat na teden, vendar ne vsak (delovni) dan"]
[null,"večkrat/nekajkrat na mesec"]
[null,"enkrat na mesec"]
[null,"nekajkrat na leto"]
[null,"enkrat na leto"]
[null,"uporabniki, za katere ni znano, kako pogosto so obiskovali/bili vključeni v program (anonimni)"]
[null,"Skupaj število različnih uporabnikov ",null,null,{"$f":"SUM(E45:E51)","v":0}]
[null,"Ujemanje s prvo preglednico: ","Ujemanje: ",{"$f":"IF((E6=(E52)),\"SEŠTEVEK SE UJEMA\",\"SEŠTEVEK SE NE UJEMA - PREVERITE\")","v":"SEŠTEVEK SE UJEMA"}]
[]
[]
[6,"Prosimo, opredelite ciljno skupino uporabnikov - značilnosti uporabnikov, ki jim je vsebina programa namenjena:"]
[null,"po spolu"]
[null,"po starostnih skupinah"]
[null,"družinske razmere in socialno omrežje"]
[null,"glede na težavo(e), ki jo/jih imajo"]
[null,"druge pomembne značilnosti"]

{"sheet":"UP_2.1d","index":27,"n_rows":61,"n_cols":9,"rows_kept":61,"cut":false,"hidden":true,"merged":[[60,1,60,2],[60,3,60,8],[57,1,57,2],[57,3,57,8],[58,1,58,2],[58,3,58,8],[59,1,59,2],[59,3,59,8],[44,1,44,3],[45,1,45,3],[46,1,46,3],[47,1,47,3],[56,1,56,2],[56,3,56,8],[50,1,50,3],[51,1,51,3],[52,1,52,2],[52,3,52,4],[55,1,55,8],[4,1,4,3],[5,1,5,3],[6,1,6,3],[9,1,9,8],[10,1,10,2],[11,1,11,2],[12,1,12,2],[15,1,15,8],[48,1,48,3],[49,1,49,3],[25,1,25,8],[28,1,28,8],[29,1,29,2],[30,1,31,1],[32,1,35,1],[37,1,37,2],[38,1,38,2],[38,3,38,5],[39,1,39,8],[42,1,42,8],[43,1,43,3]]}
["UPORABNIKI - za obdobje od 1. 1. 2026 do 30. 6. 2026",null,null,null,null,null,null,"Vsebina:",{"$f":"RIGHT(CELL(\"filename\",I1),LEN(CELL(\"filename\",I1))-SEARCH(\"]\",CELL(\"filename\",I1)))","v":"UP_2.1d"}]
[]
[null,"Vpišite podatke za posamično vsebino, za katero ste vnesli podatke na listu \"UP_VSEBINE\" - za vsako posebej se vam odpre svoj list."]
[]
[1,"Prosimo, navedite število uporabnikov:",null,null,"Vpisujte v modre celice:"]
[null,"Skupaj število RAZLIČNIH uporabnikov (en uporabnik se šteje samo enkrat na leto)"]
[null,"Število uporabnikov na dan 1. 12. 2025 (izpis pridobite iz EVAPRO, če tega nimate oz. nimate točnega podatka, vpišite oceno števila uporabnikov na ta dan)"]
[]
[]
[2,"Če program obsega tudi delo v skupinah prosimo navedite (vpisujte samo skupine, ki ste jih prijavili znotraj izračuna javnega razpisa in so ovrednotene v pogodbi):"]
[null,"Število skupin"]
[null,"Povprečno število uporabnikov na skupino"]
[null,"Število srečanj na leto"]
[]
[]
[3,"Prosimo, navedite število vključenih uporabnikov po mesecih ter povprečno število ur aktivne* vključenosti uporabnikov v posamezne dejavnosti programa na mesec."]
[null,"Mesec","Število uporabnikov","Povprečno število ur aktivne* vključenosti enega uporabnika na mesec"]
[null,"januar "]
[null,"februar "]
[null,"marec "]
[null,"april "]
[null,"maj "]
[null,"junij "]
[null,"julij"]
[null,"Povprečno število na mesec",{"$f":"AVERAGE(C18:C24)","v":{"$error":"#DIV/0!"}},{"$f":"AVERAGE(D18:D24)","v":{"$error":"#DIV/0!"}}]
[null,"Opomba:\n*Aktivna vključenost pomeni, da je uporabnik aktivno vključen v dejavnosti programa. Torej pri programih, ki uporabnikom nudijo bivanje, ne vpisujete 720 ur na mesec, ampak število ur aktivne vključenosti uporabnika v program na mesec."]
[]
[]
[4,"Prosimo, navedite število RAZLIČNIH uporabnikov glede na spol in starost. Prosimo zapišite oceno, če nimate točnih podatkov."]
[null,"Starostna skupina",null,"Število moških","Število žensk","Spol ni znan oz. ni definiran"]
[null,"MLADOLETNI","do vključno 15 let"]
[null,null,"nad 15 let do 18 let"]
[null,"POLNOLETNI","nad 18 let do 35 let"]
[null,null,"nad 35 let do 50 let"]
[null,null,"nad 50 let do 65 let"]
[null,null,"nad 65 let"]
[null,"ANONIMNI","starost in/ali spol nista znana oz. definirana"]
[null,"Skupaj različnih uporabnikov ",null,{"$f":"SUM(D31:D37)","v":0},{"$f":"SUM(E31:E37)","v":0},{"$f":"SUM(F31:F37)","v":0}]
[null,"Ujemanje s prvo preglednico: ","Ujemanje: ",{"$f":"IF((E6=(D38+E38+F38)),\"SEŠTEVEK SE UJEMA\",\"SEŠTEVEK SE NE UJEMA - PREVERITE\")","v":"SEŠTEVEK SE UJEMA"}]
[null,"Opomba:\nIzvajalci, ki v bazi EVAPRO beležite drugačne starostne skupine, lahko ustvarite tabelo za izpis z navedenimi starostnimi skupinami - podrobno v »Navodilih za uporabo baze Evapro© - februar 2025«, poglavje »9.1.4 Po star. skupinah«, str. 86."]
[]
[]
[5,"Prosimo, navedite število uporabnikov glede na čas/obdobje njihove vključitve v program. Upoštevajte RAZLIČNE uporabnike. Seštevek uporabnikov mora tako biti enak podatku različnih uporabnikov iz prve preglednice. Prosimo zapišite oceno, če nimate točnih podatkov."]
[null,"Število uporabnikov, ki so program obiskovali/bili vključeni…",null,null,"Število uporabnikov"]
[null,"vsak dan ali petkrat na teden"]
[null,"enkrat ali večkrat na teden, vendar ne vsak (delovni) dan"]
[null,"večkrat/nekajkrat na mesec"]
[null,"enkrat na mesec"]
[null,"nekajkrat na leto"]
[null,"enkrat na leto"]
[null,"uporabniki, za katere ni znano, kako pogosto so obiskovali/bili vključeni v program (anonimni)"]
[null,"Skupaj število različnih uporabnikov ",null,null,{"$f":"SUM(E45:E51)","v":0}]
[null,"Ujemanje s prvo preglednico: ","Ujemanje: ",{"$f":"IF((E6=(E52)),\"SEŠTEVEK SE UJEMA\",\"SEŠTEVEK SE NE UJEMA - PREVERITE\")","v":"SEŠTEVEK SE UJEMA"}]
[]
[]
[6,"Prosimo, opredelite ciljno skupino uporabnikov - značilnosti uporabnikov, ki jim je vsebina programa namenjena:"]
[null,"po spolu"]
[null,"po starostnih skupinah"]
[null,"družinske razmere in socialno omrežje"]
[null,"glede na težavo(e), ki jo/jih imajo"]
[null,"druge pomembne značilnosti"]

{"sheet":"UP_2.1e","index":28,"n_rows":61,"n_cols":9,"rows_kept":61,"cut":false,"hidden":true,"merged":[[60,1,60,2],[60,3,60,8],[57,1,57,2],[57,3,57,8],[58,1,58,2],[58,3,58,8],[59,1,59,2],[59,3,59,8],[44,1,44,3],[45,1,45,3],[46,1,46,3],[47,1,47,3],[56,1,56,2],[56,3,56,8],[50,1,50,3],[51,1,51,3],[52,1,52,2],[52,3,52,4],[55,1,55,8],[4,1,4,3],[5,1,5,3],[6,1,6,3],[9,1,9,8],[10,1,10,2],[11,1,11,2],[12,1,12,2],[15,1,15,8],[48,1,48,3],[49,1,49,3],[25,1,25,8],[28,1,28,8],[29,1,29,2],[30,1,31,1],[32,1,35,1],[37,1,37,2],[38,1,38,2],[38,3,38,5],[39,1,39,8],[42,1,42,8],[43,1,43,3]]}
["UPORABNIKI - za obdobje od 1. 1. 2026 do 30. 6. 2026",null,null,null,null,null,null,"Vsebina:",{"$f":"RIGHT(CELL(\"filename\",I1),LEN(CELL(\"filename\",I1))-SEARCH(\"]\",CELL(\"filename\",I1)))","v":"UP_2.1e"}]
[]
[null,"Vpišite podatke za posamično vsebino, za katero ste vnesli podatke na listu \"UP_VSEBINE\" - za vsako posebej se vam odpre svoj list."]
[]
[1,"Prosimo, navedite število uporabnikov:",null,null,"Vpisujte v modre celice:"]
[null,"Skupaj število RAZLIČNIH uporabnikov (en uporabnik se šteje samo enkrat na leto)"]
[null,"Število uporabnikov na dan 1. 12. 2025 (izpis pridobite iz EVAPRO, če tega nimate oz. nimate točnega podatka, vpišite oceno števila uporabnikov na ta dan)"]
[]
[]
[2,"Če program obsega tudi delo v skupinah prosimo navedite (vpisujte samo skupine, ki ste jih prijavili znotraj izračuna javnega razpisa in so ovrednotene v pogodbi):"]
[null,"Število skupin"]
[null,"Povprečno število uporabnikov na skupino"]
[null,"Število srečanj na leto"]
[]
[]
[3,"Prosimo, navedite število vključenih uporabnikov po mesecih ter povprečno število ur aktivne* vključenosti uporabnikov v posamezne dejavnosti programa na mesec."]
[null,"Mesec","Število uporabnikov","Povprečno število ur aktivne* vključenosti enega uporabnika na mesec"]
[null,"januar "]
[null,"februar "]
[null,"marec "]
[null,"april "]
[null,"maj "]
[null,"junij "]
[null,"julij"]
[null,"Povprečno število na mesec",{"$f":"AVERAGE(C18:C24)","v":{"$error":"#DIV/0!"}},{"$f":"AVERAGE(D18:D24)","v":{"$error":"#DIV/0!"}}]
[null,"Opomba:\n*Aktivna vključenost pomeni, da je uporabnik aktivno vključen v dejavnosti programa. Torej pri programih, ki uporabnikom nudijo bivanje, ne vpisujete 720 ur na mesec, ampak število ur aktivne vključenosti uporabnika v program na mesec."]
[]
[]
[4,"Prosimo, navedite število RAZLIČNIH uporabnikov glede na spol in starost. Prosimo zapišite oceno, če nimate točnih podatkov."]
[null,"Starostna skupina",null,"Število moških","Število žensk","Spol ni znan oz. ni definiran"]
[null,"MLADOLETNI","do vključno 15 let"]
[null,null,"nad 15 let do 18 let"]
[null,"POLNOLETNI","nad 18 let do 35 let"]
[null,null,"nad 35 let do 50 let"]
[null,null,"nad 50 let do 65 let"]
[null,null,"nad 65 let"]
[null,"ANONIMNI","starost in/ali spol nista znana oz. definirana"]
[null,"Skupaj različnih uporabnikov ",null,{"$f":"SUM(D31:D37)","v":0},{"$f":"SUM(E31:E37)","v":0},{"$f":"SUM(F31:F37)","v":0}]
[null,"Ujemanje s prvo preglednico: ","Ujemanje: ",{"$f":"IF((E6=(D38+E38+F38)),\"SEŠTEVEK SE UJEMA\",\"SEŠTEVEK SE NE UJEMA - PREVERITE\")","v":"SEŠTEVEK SE UJEMA"}]
[null,"Opomba:\nIzvajalci, ki v bazi EVAPRO beležite drugačne starostne skupine, lahko ustvarite tabelo za izpis z navedenimi starostnimi skupinami - podrobno v »Navodilih za uporabo baze Evapro© - februar 2025«, poglavje »9.1.4 Po star. skupinah«, str. 86."]
[]
[]
[5,"Prosimo, navedite število uporabnikov glede na čas/obdobje njihove vključitve v program. Upoštevajte RAZLIČNE uporabnike. Seštevek uporabnikov mora tako biti enak podatku različnih uporabnikov iz prve preglednice. Prosimo zapišite oceno, če nimate točnih podatkov."]
[null,"Število uporabnikov, ki so program obiskovali/bili vključeni…",null,null,"Število uporabnikov"]
[null,"vsak dan ali petkrat na teden"]
[null,"enkrat ali večkrat na teden, vendar ne vsak (delovni) dan"]
[null,"večkrat/nekajkrat na mesec"]
[null,"enkrat na mesec"]
[null,"nekajkrat na leto"]
[null,"enkrat na leto"]
[null,"uporabniki, za katere ni znano, kako pogosto so obiskovali/bili vključeni v program (anonimni)"]
[null,"Skupaj število različnih uporabnikov ",null,null,{"$f":"SUM(E45:E51)","v":0}]
[null,"Ujemanje s prvo preglednico: ","Ujemanje: ",{"$f":"IF((E6=(E52)),\"SEŠTEVEK SE UJEMA\",\"SEŠTEVEK SE NE UJEMA - PREVERITE\")","v":"SEŠTEVEK SE UJEMA"}]
[]
[]
[6,"Prosimo, opredelite ciljno skupino uporabnikov - značilnosti uporabnikov, ki jim je vsebina programa namenjena:"]
[null,"po spolu"]
[null,"po starostnih skupinah"]
[null,"družinske razmere in socialno omrežje"]
[null,"glede na težavo(e), ki jo/jih imajo"]
[null,"druge pomembne značilnosti"]

{"sheet":"UP_2.1f","index":29,"n_rows":61,"n_cols":9,"rows_kept":61,"cut":false,"hidden":true,"merged":[[60,1,60,2],[60,3,60,8],[57,1,57,2],[57,3,57,8],[58,1,58,2],[58,3,58,8],[59,1,59,2],[59,3,59,8],[44,1,44,3],[45,1,45,3],[46,1,46,3],[47,1,47,3],[56,1,56,2],[56,3,56,8],[50,1,50,3],[51,1,51,3],[52,1,52,2],[52,3,52,4],[55,1,55,8],[4,1,4,3],[5,1,5,3],[6,1,6,3],[9,1,9,8],[10,1,10,2],[11,1,11,2],[12,1,12,2],[15,1,15,8],[48,1,48,3],[49,1,49,3],[25,1,25,8],[28,1,28,8],[29,1,29,2],[30,1,31,1],[32,1,35,1],[37,1,37,2],[38,1,38,2],[38,3,38,5],[39,1,39,8],[42,1,42,8],[43,1,43,3]]}
["UPORABNIKI - za obdobje od 1. 1. 2026 do 30. 6. 2026",null,null,null,null,null,null,"Vsebina:",{"$f":"RIGHT(CELL(\"filename\",I1),LEN(CELL(\"filename\",I1))-SEARCH(\"]\",CELL(\"filename\",I1)))","v":"UP_2.1f"}]
[]
[null,"Vpišite podatke za posamično vsebino, za katero ste vnesli podatke na listu \"UP_VSEBINE\" - za vsako posebej se vam odpre svoj list."]
[]
[1,"Prosimo, navedite število uporabnikov:",null,null,"Vpisujte v modre celice:"]
[null,"Skupaj število RAZLIČNIH uporabnikov (en uporabnik se šteje samo enkrat na leto)"]
[null,"Število uporabnikov na dan 1. 12. 2025 (izpis pridobite iz EVAPRO, če tega nimate oz. nimate točnega podatka, vpišite oceno števila uporabnikov na ta dan)"]
[]
[]
[2,"Če program obsega tudi delo v skupinah prosimo navedite (vpisujte samo skupine, ki ste jih prijavili znotraj izračuna javnega razpisa in so ovrednotene v pogodbi):"]
[null,"Število skupin"]
[null,"Povprečno število uporabnikov na skupino"]
[null,"Število srečanj na leto"]
[]
[]
[3,"Prosimo, navedite število vključenih uporabnikov po mesecih ter povprečno število ur aktivne* vključenosti uporabnikov v posamezne dejavnosti programa na mesec."]
[null,"Mesec","Število uporabnikov","Povprečno število ur aktivne* vključenosti enega uporabnika na mesec"]
[null,"januar "]
[null,"februar "]
[null,"marec "]
[null,"april "]
[null,"maj "]
[null,"junij "]
[null,"julij"]
[null,"Povprečno število na mesec",{"$f":"AVERAGE(C18:C24)","v":{"$error":"#DIV/0!"}},{"$f":"AVERAGE(D18:D24)","v":{"$error":"#DIV/0!"}}]
[null,"Opomba:\n*Aktivna vključenost pomeni, da je uporabnik aktivno vključen v dejavnosti programa. Torej pri programih, ki uporabnikom nudijo bivanje, ne vpisujete 720 ur na mesec, ampak število ur aktivne vključenosti uporabnika v program na mesec."]
[]
[]
[4,"Prosimo, navedite število RAZLIČNIH uporabnikov glede na spol in starost. Prosimo zapišite oceno, če nimate točnih podatkov."]
[null,"Starostna skupina",null,"Število moških","Število žensk","Spol ni znan oz. ni definiran"]
[null,"MLADOLETNI","do vključno 15 let"]
[null,null,"nad 15 let do 18 let"]
[null,"POLNOLETNI","nad 18 let do 35 let"]
[null,null,"nad 35 let do 50 let"]
[null,null,"nad 50 let do 65 let"]
[null,null,"nad 65 let"]
[null,"ANONIMNI","starost in/ali spol nista znana oz. definirana"]
[null,"Skupaj različnih uporabnikov ",null,{"$f":"SUM(D31:D37)","v":0},{"$f":"SUM(E31:E37)","v":0},{"$f":"SUM(F31:F37)","v":0}]
[null,"Ujemanje s prvo preglednico: ","Ujemanje: ",{"$f":"IF((E6=(D38+E38+F38)),\"SEŠTEVEK SE UJEMA\",\"SEŠTEVEK SE NE UJEMA - PREVERITE\")","v":"SEŠTEVEK SE UJEMA"}]
[null,"Opomba:\nIzvajalci, ki v bazi EVAPRO beležite drugačne starostne skupine, lahko ustvarite tabelo za izpis z navedenimi starostnimi skupinami - podrobno v »Navodilih za uporabo baze Evapro© - februar 2025«, poglavje »9.1.4 Po star. skupinah«, str. 86."]
[]
[]
[5,"Prosimo, navedite število uporabnikov glede na čas/obdobje njihove vključitve v program. Upoštevajte RAZLIČNE uporabnike. Seštevek uporabnikov mora tako biti enak podatku različnih uporabnikov iz prve preglednice. Prosimo zapišite oceno, če nimate točnih podatkov."]
[null,"Število uporabnikov, ki so program obiskovali/bili vključeni…",null,null,"Število uporabnikov"]
[null,"vsak dan ali petkrat na teden"]
[null,"enkrat ali večkrat na teden, vendar ne vsak (delovni) dan"]
[null,"večkrat/nekajkrat na mesec"]
[null,"enkrat na mesec"]
[null,"nekajkrat na leto"]
[null,"enkrat na leto"]
[null,"uporabniki, za katere ni znano, kako pogosto so obiskovali/bili vključeni v program (anonimni)"]
[null,"Skupaj število različnih uporabnikov ",null,null,{"$f":"SUM(E45:E51)","v":0}]
[null,"Ujemanje s prvo preglednico: ","Ujemanje: ",{"$f":"IF((E6=(E52)),\"SEŠTEVEK SE UJEMA\",\"SEŠTEVEK SE NE UJEMA - PREVERITE\")","v":"SEŠTEVEK SE UJEMA"}]
[]
[]
[6,"Prosimo, opredelite ciljno skupino uporabnikov - značilnosti uporabnikov, ki jim je vsebina programa namenjena:"]
[null,"po spolu"]
[null,"po starostnih skupinah"]
[null,"družinske razmere in socialno omrežje"]
[null,"glede na težavo(e), ki jo/jih imajo"]
[null,"druge pomembne značilnosti"]

{"sheet":"UP_2.1g","index":30,"n_rows":61,"n_cols":9,"rows_kept":61,"cut":false,"hidden":true,"merged":[[60,1,60,2],[60,3,60,8],[57,1,57,2],[57,3,57,8],[58,1,58,2],[58,3,58,8],[59,1,59,2],[59,3,59,8],[44,1,44,3],[45,1,45,3],[46,1,46,3],[47,1,47,3],[56,1,56,2],[56,3,56,8],[50,1,50,3],[51,1,51,3],[52,1,52,2],[52,3,52,4],[55,1,55,8],[4,1,4,3],[5,1,5,3],[6,1,6,3],[9,1,9,8],[10,1,10,2],[11,1,11,2],[12,1,12,2],[15,1,15,8],[48,1,48,3],[49,1,49,3],[25,1,25,8],[28,1,28,8],[29,1,29,2],[30,1,31,1],[32,1,35,1],[37,1,37,2],[38,1,38,2],[38,3,38,5],[39,1,39,8],[42,1,42,8],[43,1,43,3]]}
["UPORABNIKI - za obdobje od 1. 1. 2026 do 30. 6. 2026",null,null,null,null,null,null,"Vsebina:",{"$f":"RIGHT(CELL(\"filename\",I1),LEN(CELL(\"filename\",I1))-SEARCH(\"]\",CELL(\"filename\",I1)))","v":"UP_2.1g"}]
[]
[null,"Vpišite podatke za posamično vsebino, za katero ste vnesli podatke na listu \"UP_VSEBINE\" - za vsako posebej se vam odpre svoj list."]
[]
[1,"Prosimo, navedite število uporabnikov:",null,null,"Vpisujte v modre celice:"]
[null,"Skupaj število RAZLIČNIH uporabnikov (en uporabnik se šteje samo enkrat na leto)"]
[null,"Število uporabnikov na dan 1. 12. 2025 (izpis pridobite iz EVAPRO, če tega nimate oz. nimate točnega podatka, vpišite oceno števila uporabnikov na ta dan)"]
[]
[]
[2,"Če program obsega tudi delo v skupinah prosimo navedite (vpisujte samo skupine, ki ste jih prijavili znotraj izračuna javnega razpisa in so ovrednotene v pogodbi):"]
[null,"Število skupin"]
[null,"Povprečno število uporabnikov na skupino"]
[null,"Število srečanj na leto"]
[]
[]
[3,"Prosimo, navedite število vključenih uporabnikov po mesecih ter povprečno število ur aktivne* vključenosti uporabnikov v posamezne dejavnosti programa na mesec."]
[null,"Mesec","Število uporabnikov","Povprečno število ur aktivne* vključenosti enega uporabnika na mesec"]
[null,"januar "]
[null,"februar "]
[null,"marec "]
[null,"april "]
[null,"maj "]
[null,"junij "]
[null,"julij"]
[null,"Povprečno število na mesec",{"$f":"AVERAGE(C18:C24)","v":{"$error":"#DIV/0!"}},{"$f":"AVERAGE(D18:D24)","v":{"$error":"#DIV/0!"}}]
[null,"Opomba:\n*Aktivna vključenost pomeni, da je uporabnik aktivno vključen v dejavnosti programa. Torej pri programih, ki uporabnikom nudijo bivanje, ne vpisujete 720 ur na mesec, ampak število ur aktivne vključenosti uporabnika v program na mesec."]
[]
[]
[4,"Prosimo, navedite število RAZLIČNIH uporabnikov glede na spol in starost. Prosimo zapišite oceno, če nimate točnih podatkov."]
[null,"Starostna skupina",null,"Število moških","Število žensk","Spol ni znan oz. ni definiran"]
[null,"MLADOLETNI","do vključno 15 let"]
[null,null,"nad 15 let do 18 let"]
[null,"POLNOLETNI","nad 18 let do 35 let"]
[null,null,"nad 35 let do 50 let"]
[null,null,"nad 50 let do 65 let"]
[null,null,"nad 65 let"]
[null,"ANONIMNI","starost in/ali spol nista znana oz. definirana"]
[null,"Skupaj različnih uporabnikov ",null,{"$f":"SUM(D31:D37)","v":0},{"$f":"SUM(E31:E37)","v":0},{"$f":"SUM(F31:F37)","v":0}]
[null,"Ujemanje s prvo preglednico: ","Ujemanje: ",{"$f":"IF((E6=(D38+E38+F38)),\"SEŠTEVEK SE UJEMA\",\"SEŠTEVEK SE NE UJEMA - PREVERITE\")","v":"SEŠTEVEK SE UJEMA"}]
[null,"Opomba:\nIzvajalci, ki v bazi EVAPRO beležite drugačne starostne skupine, lahko ustvarite tabelo za izpis z navedenimi starostnimi skupinami - podrobno v »Navodilih za uporabo baze Evapro© - februar 2025«, poglavje »9.1.4 Po star. skupinah«, str. 86."]
[]
[]
[5,"Prosimo, navedite število uporabnikov glede na čas/obdobje njihove vključitve v program. Upoštevajte RAZLIČNE uporabnike. Seštevek uporabnikov mora tako biti enak podatku različnih uporabnikov iz prve preglednice. Prosimo zapišite oceno, če nimate točnih podatkov."]
[null,"Število uporabnikov, ki so program obiskovali/bili vključeni…",null,null,"Število uporabnikov"]
[null,"vsak dan ali petkrat na teden"]
[null,"enkrat ali večkrat na teden, vendar ne vsak (delovni) dan"]
[null,"večkrat/nekajkrat na mesec"]
[null,"enkrat na mesec"]
[null,"nekajkrat na leto"]
[null,"enkrat na leto"]
[null,"uporabniki, za katere ni znano, kako pogosto so obiskovali/bili vključeni v program (anonimni)"]
[null,"Skupaj število različnih uporabnikov ",null,null,{"$f":"SUM(E45:E51)","v":0}]
[null,"Ujemanje s prvo preglednico: ","Ujemanje: ",{"$f":"IF((E6=(E52)),\"SEŠTEVEK SE UJEMA\",\"SEŠTEVEK SE NE UJEMA - PREVERITE\")","v":"SEŠTEVEK SE UJEMA"}]
[]
[]
[6,"Prosimo, opredelite ciljno skupino uporabnikov - značilnosti uporabnikov, ki jim je vsebina programa namenjena:"]
[null,"po spolu"]
[null,"po starostnih skupinah"]
[null,"družinske razmere in socialno omrežje"]
[null,"glede na težavo(e), ki jo/jih imajo"]
[null,"druge pomembne značilnosti"]

{"sheet":"UP_2.1h","index":31,"n_rows":61,"n_cols":9,"rows_kept":61,"cut":false,"hidden":true,"merged":[[60,1,60,2],[60,3,60,8],[57,1,57,2],[57,3,57,8],[58,1,58,2],[58,3,58,8],[59,1,59,2],[59,3,59,8],[44,1,44,3],[45,1,45,3],[46,1,46,3],[47,1,47,3],[56,1,56,2],[56,3,56,8],[50,1,50,3],[51,1,51,3],[52,1,52,2],[52,3,52,4],[55,1,55,8],[4,1,4,3],[5,1,5,3],[6,1,6,3],[9,1,9,8],[10,1,10,2],[11,1,11,2],[12,1,12,2],[15,1,15,8],[48,1,48,3],[49,1,49,3],[25,1,25,8],[28,1,28,8],[29,1,29,2],[30,1,31,1],[32,1,35,1],[37,1,37,2],[38,1,38,2],[38,3,38,5],[39,1,39,8],[42,1,42,8],[43,1,43,3]]}
["UPORABNIKI - za obdobje od 1. 1. 2026 do 30. 6. 2026",null,null,null,null,null,null,"Vsebina:",{"$f":"RIGHT(CELL(\"filename\",I1),LEN(CELL(\"filename\",I1))-SEARCH(\"]\",CELL(\"filename\",I1)))","v":"UP_2.1h"}]
[]
[null,"Vpišite podatke za posamično vsebino, za katero ste vnesli podatke na listu \"UP_VSEBINE\" - za vsako posebej se vam odpre svoj list."]
[]
[1,"Prosimo, navedite število uporabnikov:",null,null,"Vpisujte v modre celice:"]
[null,"Skupaj število RAZLIČNIH uporabnikov (en uporabnik se šteje samo enkrat na leto)"]
[null,"Število uporabnikov na dan 1. 12. 2025 (izpis pridobite iz EVAPRO, če tega nimate oz. nimate točnega podatka, vpišite oceno števila uporabnikov na ta dan)"]
[]
[]
[2,"Če program obsega tudi delo v skupinah prosimo navedite (vpisujte samo skupine, ki ste jih prijavili znotraj izračuna javnega razpisa in so ovrednotene v pogodbi):"]
[null,"Število skupin"]
[null,"Povprečno število uporabnikov na skupino"]
[null,"Število srečanj na leto"]
[]
[]
[3,"Prosimo, navedite število vključenih uporabnikov po mesecih ter povprečno število ur aktivne* vključenosti uporabnikov v posamezne dejavnosti programa na mesec."]
[null,"Mesec","Število uporabnikov","Povprečno število ur aktivne* vključenosti enega uporabnika na mesec"]
[null,"januar "]
[null,"februar "]
[null,"marec "]
[null,"april "]
[null,"maj "]
[null,"junij "]
[null,"julij"]
[null,"Povprečno število na mesec",{"$f":"AVERAGE(C18:C24)","v":{"$error":"#DIV/0!"}},{"$f":"AVERAGE(D18:D24)","v":{"$error":"#DIV/0!"}}]
[null,"Opomba:\n*Aktivna vključenost pomeni, da je uporabnik aktivno vključen v dejavnosti programa. Torej pri programih, ki uporabnikom nudijo bivanje, ne vpisujete 720 ur na mesec, ampak število ur aktivne vključenosti uporabnika v program na mesec."]
[]
[]
[4,"Prosimo, navedite število RAZLIČNIH uporabnikov glede na spol in starost. Prosimo zapišite oceno, če nimate točnih podatkov."]
[null,"Starostna skupina",null,"Število moških","Število žensk","Spol ni znan oz. ni definiran"]
[null,"MLADOLETNI","do vključno 15 let"]
[null,null,"nad 15 let do 18 let"]
[null,"POLNOLETNI","nad 18 let do 35 let"]
[null,null,"nad 35 let do 50 let"]
[null,null,"nad 50 let do 65 let"]
[null,null,"nad 65 let"]
[null,"ANONIMNI","starost in/ali spol nista znana oz. definirana"]
[null,"Skupaj različnih uporabnikov ",null,{"$f":"SUM(D31:D37)","v":0},{"$f":"SUM(E31:E37)","v":0},{"$f":"SUM(F31:F37)","v":0}]
[null,"Ujemanje s prvo preglednico: ","Ujemanje: ",{"$f":"IF((E6=(D38+E38+F38)),\"SEŠTEVEK SE UJEMA\",\"SEŠTEVEK SE NE UJEMA - PREVERITE\")","v":"SEŠTEVEK SE UJEMA"}]
[null,"Opomba:\nIzvajalci, ki v bazi EVAPRO beležite drugačne starostne skupine, lahko ustvarite tabelo za izpis z navedenimi starostnimi skupinami - podrobno v »Navodilih za uporabo baze Evapro© - februar 2025«, poglavje »9.1.4 Po star. skupinah«, str. 86."]
[]
[]
[5,"Prosimo, navedite število uporabnikov glede na čas/obdobje njihove vključitve v program. Upoštevajte RAZLIČNE uporabnike. Seštevek uporabnikov mora tako biti enak podatku različnih uporabnikov iz prve preglednice. Prosimo zapišite oceno, če nimate točnih podatkov."]
[null,"Število uporabnikov, ki so program obiskovali/bili vključeni…",null,null,"Število uporabnikov"]
[null,"vsak dan ali petkrat na teden"]
[null,"enkrat ali večkrat na teden, vendar ne vsak (delovni) dan"]
[null,"večkrat/nekajkrat na mesec"]
[null,"enkrat na mesec"]
[null,"nekajkrat na leto"]
[null,"enkrat na leto"]
[null,"uporabniki, za katere ni znano, kako pogosto so obiskovali/bili vključeni v program (anonimni)"]
[null,"Skupaj število različnih uporabnikov ",null,null,{"$f":"SUM(E45:E51)","v":0}]
[null,"Ujemanje s prvo preglednico: ","Ujemanje: ",{"$f":"IF((E6=(E52)),\"SEŠTEVEK SE UJEMA\",\"SEŠTEVEK SE NE UJEMA - PREVERITE\")","v":"SEŠTEVEK SE UJEMA"}]
[]
[]
[6,"Prosimo, opredelite ciljno skupino uporabnikov - značilnosti uporabnikov, ki jim je vsebina programa namenjena:"]
[null,"po spolu"]
[null,"po starostnih skupinah"]
[null,"družinske razmere in socialno omrežje"]
[null,"glede na težavo(e), ki jo/jih imajo"]
[null,"druge pomembne značilnosti"]

{"sheet":"UP_2.2a","index":32,"n_rows":61,"n_cols":9,"rows_kept":61,"cut":false,"hidden":true,"merged":[[60,1,60,2],[60,3,60,8],[57,1,57,2],[57,3,57,8],[58,1,58,2],[58,3,58,8],[59,1,59,2],[59,3,59,8],[44,1,44,3],[45,1,45,3],[46,1,46,3],[47,1,47,3],[56,1,56,2],[56,3,56,8],[50,1,50,3],[51,1,51,3],[52,1,52,2],[52,3,52,4],[55,1,55,8],[4,1,4,3],[5,1,5,3],[6,1,6,3],[9,1,9,8],[10,1,10,2],[11,1,11,2],[12,1,12,2],[15,1,15,8],[48,1,48,3],[49,1,49,3],[25,1,25,8],[28,1,28,8],[29,1,29,2],[30,1,31,1],[32,1,35,1],[37,1,37,2],[38,1,38,2],[38,3,38,5],[39,1,39,8],[42,1,42,8],[43,1,43,3]]}
["UPORABNIKI - za obdobje od 1. 1. 2026 do 30. 6. 2026",null,null,null,null,null,null,"Vsebina:",{"$f":"RIGHT(CELL(\"filename\",I1),LEN(CELL(\"filename\",I1))-SEARCH(\"]\",CELL(\"filename\",I1)))","v":"UP_2.2a"}]
[]
[null,"Vpišite podatke za posamično vsebino, za katero ste vnesli podatke na listu \"UP_VSEBINE\" - za vsako posebej se vam odpre svoj list."]
[]
[1,"Prosimo, navedite število uporabnikov:",null,null,"Vpisujte v modre celice:"]
[null,"Skupaj število RAZLIČNIH uporabnikov (en uporabnik se šteje samo enkrat na leto)"]
[null,"Število uporabnikov na dan 1. 12. 2025 (izpis pridobite iz EVAPRO, če tega nimate oz. nimate točnega podatka, vpišite oceno števila uporabnikov na ta dan)"]
[]
[]
[2,"Če program obsega tudi delo v skupinah prosimo navedite (vpisujte samo skupine, ki ste jih prijavili znotraj izračuna javnega razpisa in so ovrednotene v pogodbi):"]
[null,"Število skupin"]
[null,"Povprečno število uporabnikov na skupino"]
[null,"Število srečanj na leto"]
[]
[]
[3,"Prosimo, navedite število vključenih uporabnikov po mesecih ter povprečno število ur aktivne* vključenosti uporabnikov v posamezne dejavnosti programa na mesec."]
[null,"Mesec","Število uporabnikov","Povprečno število ur aktivne* vključenosti enega uporabnika na mesec"]
[null,"januar "]
[null,"februar "]
[null,"marec "]
[null,"april "]
[null,"maj "]
[null,"junij "]
[null,"julij"]
[null,"Povprečno število na mesec",{"$f":"AVERAGE(C18:C24)","v":{"$error":"#DIV/0!"}},{"$f":"AVERAGE(D18:D24)","v":{"$error":"#DIV/0!"}}]
[null,"Opomba:\n*Aktivna vključenost pomeni, da je uporabnik aktivno vključen v dejavnosti programa. Torej pri programih, ki uporabnikom nudijo bivanje, ne vpisujete 720 ur na mesec, ampak število ur aktivne vključenosti uporabnika v program na mesec."]
[]
[]
[4,"Prosimo, navedite število RAZLIČNIH uporabnikov glede na spol in starost. Prosimo zapišite oceno, če nimate točnih podatkov."]
[null,"Starostna skupina",null,"Število moških","Število žensk","Spol ni znan oz. ni definiran"]
[null,"MLADOLETNI","do vključno 15 let"]
[null,null,"nad 15 let do 18 let"]
[null,"POLNOLETNI","nad 18 let do 35 let"]
[null,null,"nad 35 let do 50 let"]
[null,null,"nad 50 let do 65 let"]
[null,null,"nad 65 let"]
[null,"ANONIMNI","starost in/ali spol nista znana oz. definirana"]
[null,"Skupaj različnih uporabnikov ",null,{"$f":"SUM(D31:D37)","v":0},{"$f":"SUM(E31:E37)","v":0},{"$f":"SUM(F31:F37)","v":0}]
[null,"Ujemanje s prvo preglednico: ","Ujemanje: ",{"$f":"IF((E6=(D38+E38+F38)),\"SEŠTEVEK SE UJEMA\",\"SEŠTEVEK SE NE UJEMA - PREVERITE\")","v":"SEŠTEVEK SE UJEMA"}]
[null,"Opomba:\nIzvajalci, ki v bazi EVAPRO beležite drugačne starostne skupine, lahko ustvarite tabelo za izpis z navedenimi starostnimi skupinami - podrobno v »Navodilih za uporabo baze Evapro© - februar 2025«, poglavje »9.1.4 Po star. skupinah«, str. 86."]
[]
[]
[5,"Prosimo, navedite število uporabnikov glede na čas/obdobje njihove vključitve v program. Upoštevajte RAZLIČNE uporabnike. Seštevek uporabnikov mora tako biti enak podatku različnih uporabnikov iz prve preglednice. Prosimo zapišite oceno, če nimate točnih podatkov."]
[null,"Število uporabnikov, ki so program obiskovali/bili vključeni…",null,null,"Število uporabnikov"]
[null,"vsak dan ali petkrat na teden"]
[null,"enkrat ali večkrat na teden, vendar ne vsak (delovni) dan"]
[null,"večkrat/nekajkrat na mesec"]
[null,"enkrat na mesec"]
[null,"nekajkrat na leto"]
[null,"enkrat na leto"]
[null,"uporabniki, za katere ni znano, kako pogosto so obiskovali/bili vključeni v program (anonimni)"]
[null,"Skupaj število različnih uporabnikov ",null,null,{"$f":"SUM(E45:E51)","v":0}]
[null,"Ujemanje s prvo preglednico: ","Ujemanje: ",{"$f":"IF((E6=(E52)),\"SEŠTEVEK SE UJEMA\",\"SEŠTEVEK SE NE UJEMA - PREVERITE\")","v":"SEŠTEVEK SE UJEMA"}]
[]
[]
[6,"Prosimo, opredelite ciljno skupino uporabnikov - značilnosti uporabnikov, ki jim je vsebina programa namenjena:"]
[null,"po spolu"]
[null,"po starostnih skupinah"]
[null,"družinske razmere in socialno omrežje"]
[null,"glede na težavo(e), ki jo/jih imajo"]
[null,"druge pomembne značilnosti"]

{"sheet":"UP_2.2b","index":33,"n_rows":61,"n_cols":9,"rows_kept":61,"cut":false,"hidden":true,"merged":[[60,1,60,2],[60,3,60,8],[57,1,57,2],[57,3,57,8],[58,1,58,2],[58,3,58,8],[59,1,59,2],[59,3,59,8],[44,1,44,3],[45,1,45,3],[46,1,46,3],[47,1,47,3],[56,1,56,2],[56,3,56,8],[50,1,50,3],[51,1,51,3],[52,1,52,2],[52,3,52,4],[55,1,55,8],[4,1,4,3],[5,1,5,3],[6,1,6,3],[9,1,9,8],[10,1,10,2],[11,1,11,2],[12,1,12,2],[15,1,15,8],[48,1,48,3],[49,1,49,3],[25,1,25,8],[28,1,28,8],[29,1,29,2],[30,1,31,1],[32,1,35,1],[37,1,37,2],[38,1,38,2],[38,3,38,5],[39,1,39,8],[42,1,42,8],[43,1,43,3]]}
["UPORABNIKI - za obdobje od 1. 1. 2026 do 30. 6. 2026",null,null,null,null,null,null,"Vsebina:",{"$f":"RIGHT(CELL(\"filename\",I1),LEN(CELL(\"filename\",I1))-SEARCH(\"]\",CELL(\"filename\",I1)))","v":"UP_2.2b"}]
[]
[null,"Vpišite podatke za posamično vsebino, za katero ste vnesli podatke na listu \"UP_VSEBINE\" - za vsako posebej se vam odpre svoj list."]
[]
[1,"Prosimo, navedite število uporabnikov:",null,null,"Vpisujte v modre celice:"]
[null,"Skupaj število RAZLIČNIH uporabnikov (en uporabnik se šteje samo enkrat na leto)"]
[null,"Število uporabnikov na dan 1. 12. 2025 (izpis pridobite iz EVAPRO, če tega nimate oz. nimate točnega podatka, vpišite oceno števila uporabnikov na ta dan)"]
[]
[]
[2,"Če program obsega tudi delo v skupinah prosimo navedite (vpisujte samo skupine, ki ste jih prijavili znotraj izračuna javnega razpisa in so ovrednotene v pogodbi):"]
[null,"Število skupin"]
[null,"Povprečno število uporabnikov na skupino"]
[null,"Število srečanj na leto"]
[]
[]
[3,"Prosimo, navedite število vključenih uporabnikov po mesecih ter povprečno število ur aktivne* vključenosti uporabnikov v posamezne dejavnosti programa na mesec."]
[null,"Mesec","Število uporabnikov","Povprečno število ur aktivne* vključenosti enega uporabnika na mesec"]
[null,"januar "]
[null,"februar "]
[null,"marec "]
[null,"april "]
[null,"maj "]
[null,"junij "]
[null,"julij"]
[null,"Povprečno število na mesec",{"$f":"AVERAGE(C18:C24)","v":{"$error":"#DIV/0!"}},{"$f":"AVERAGE(D18:D24)","v":{"$error":"#DIV/0!"}}]
[null,"Opomba:\n*Aktivna vključenost pomeni, da je uporabnik aktivno vključen v dejavnosti programa. Torej pri programih, ki uporabnikom nudijo bivanje, ne vpisujete 720 ur na mesec, ampak število ur aktivne vključenosti uporabnika v program na mesec."]
[]
[]
[4,"Prosimo, navedite število RAZLIČNIH uporabnikov glede na spol in starost. Prosimo zapišite oceno, če nimate točnih podatkov."]
[null,"Starostna skupina",null,"Število moških","Število žensk","Spol ni znan oz. ni definiran"]
[null,"MLADOLETNI","do vključno 15 let"]
[null,null,"nad 15 let do 18 let"]
[null,"POLNOLETNI","nad 18 let do 35 let"]
[null,null,"nad 35 let do 50 let"]
[null,null,"nad 50 let do 65 let"]
[null,null,"nad 65 let"]
[null,"ANONIMNI","starost in/ali spol nista znana oz. definirana"]
[null,"Skupaj različnih uporabnikov ",null,{"$f":"SUM(D31:D37)","v":0},{"$f":"SUM(E31:E37)","v":0},{"$f":"SUM(F31:F37)","v":0}]
[null,"Ujemanje s prvo preglednico: ","Ujemanje: ",{"$f":"IF((E6=(D38+E38+F38)),\"SEŠTEVEK SE UJEMA\",\"SEŠTEVEK SE NE UJEMA - PREVERITE\")","v":"SEŠTEVEK SE UJEMA"}]
[null,"Opomba:\nIzvajalci, ki v bazi EVAPRO beležite drugačne starostne skupine, lahko ustvarite tabelo za izpis z navedenimi starostnimi skupinami - podrobno v »Navodilih za uporabo baze Evapro© - februar 2025«, poglavje »9.1.4 Po star. skupinah«, str. 86."]
[]
[]
[5,"Prosimo, navedite število uporabnikov glede na čas/obdobje njihove vključitve v program. Upoštevajte RAZLIČNE uporabnike. Seštevek uporabnikov mora tako biti enak podatku različnih uporabnikov iz prve preglednice. Prosimo zapišite oceno, če nimate točnih podatkov."]
[null,"Število uporabnikov, ki so program obiskovali/bili vključeni…",null,null,"Število uporabnikov"]
[null,"vsak dan ali petkrat na teden"]
[null,"enkrat ali večkrat na teden, vendar ne vsak (delovni) dan"]
[null,"večkrat/nekajkrat na mesec"]
[null,"enkrat na mesec"]
[null,"nekajkrat na leto"]
[null,"enkrat na leto"]
[null,"uporabniki, za katere ni znano, kako pogosto so obiskovali/bili vključeni v program (anonimni)"]
[null,"Skupaj število različnih uporabnikov ",null,null,{"$f":"SUM(E45:E51)","v":0}]
[null,"Ujemanje s prvo preglednico: ","Ujemanje: ",{"$f":"IF((E6=(E52)),\"SEŠTEVEK SE UJEMA\",\"SEŠTEVEK SE NE UJEMA - PREVERITE\")","v":"SEŠTEVEK SE UJEMA"}]
[]
[]
[6,"Prosimo, opredelite ciljno skupino uporabnikov - značilnosti uporabnikov, ki jim je vsebina programa namenjena:"]
[null,"po spolu"]
[null,"po starostnih skupinah"]
[null,"družinske razmere in socialno omrežje"]
[null,"glede na težavo(e), ki jo/jih imajo"]
[null,"druge pomembne značilnosti"]

{"sheet":"UP_2.2c","index":34,"n_rows":61,"n_cols":9,"rows_kept":61,"cut":false,"hidden":true,"merged":[[60,1,60,2],[60,3,60,8],[57,1,57,2],[57,3,57,8],[58,1,58,2],[58,3,58,8],[59,1,59,2],[59,3,59,8],[44,1,44,3],[45,1,45,3],[46,1,46,3],[47,1,47,3],[56,1,56,2],[56,3,56,8],[50,1,50,3],[51,1,51,3],[52,1,52,2],[52,3,52,4],[55,1,55,8],[4,1,4,3],[5,1,5,3],[6,1,6,3],[9,1,9,8],[10,1,10,2],[11,1,11,2],[12,1,12,2],[15,1,15,8],[48,1,48,3],[49,1,49,3],[25,1,25,8],[28,1,28,8],[29,1,29,2],[30,1,31,1],[32,1,35,1],[37,1,37,2],[38,1,38,2],[38,3,38,5],[39,1,39,8],[42,1,42,8],[43,1,43,3]]}
["UPORABNIKI - za obdobje od 1. 1. 2026 do 30. 6. 2026",null,null,null,null,null,null,"Vsebina:",{"$f":"RIGHT(CELL(\"filename\",I1),LEN(CELL(\"filename\",I1))-SEARCH(\"]\",CELL(\"filename\",I1)))","v":"UP_2.2c"}]
[]
[null,"Vpišite podatke za posamično vsebino, za katero ste vnesli podatke na listu \"UP_VSEBINE\" - za vsako posebej se vam odpre svoj list."]
[]
[1,"Prosimo, navedite število uporabnikov:",null,null,"Vpisujte v modre celice:"]
[null,"Skupaj število RAZLIČNIH uporabnikov (en uporabnik se šteje samo enkrat na leto)"]
[null,"Število uporabnikov na dan 1. 12. 2025 (izpis pridobite iz EVAPRO, če tega nimate oz. nimate točnega podatka, vpišite oceno števila uporabnikov na ta dan)"]
[]
[]
[2,"Če program obsega tudi delo v skupinah prosimo navedite (vpisujte samo skupine, ki ste jih prijavili znotraj izračuna javnega razpisa in so ovrednotene v pogodbi):"]
[null,"Število skupin"]
[null,"Povprečno število uporabnikov na skupino"]
[null,"Število srečanj na leto"]
[]
[]
[3,"Prosimo, navedite število vključenih uporabnikov po mesecih ter povprečno število ur aktivne* vključenosti uporabnikov v posamezne dejavnosti programa na mesec."]
[null,"Mesec","Število uporabnikov","Povprečno število ur aktivne* vključenosti enega uporabnika na mesec"]
[null,"januar "]
[null,"februar "]
[null,"marec "]
[null,"april "]
[null,"maj "]
[null,"junij "]
[null,"julij"]
[null,"Povprečno število na mesec",{"$f":"AVERAGE(C18:C24)","v":{"$error":"#DIV/0!"}},{"$f":"AVERAGE(D18:D24)","v":{"$error":"#DIV/0!"}}]
[null,"Opomba:\n*Aktivna vključenost pomeni, da je uporabnik aktivno vključen v dejavnosti programa. Torej pri programih, ki uporabnikom nudijo bivanje, ne vpisujete 720 ur na mesec, ampak število ur aktivne vključenosti uporabnika v program na mesec."]
[]
[]
[4,"Prosimo, navedite število RAZLIČNIH uporabnikov glede na spol in starost. Prosimo zapišite oceno, če nimate točnih podatkov."]
[null,"Starostna skupina",null,"Število moških","Število žensk","Spol ni znan oz. ni definiran"]
[null,"MLADOLETNI","do vključno 15 let"]
[null,null,"nad 15 let do 18 let"]
[null,"POLNOLETNI","nad 18 let do 35 let"]
[null,null,"nad 35 let do 50 let"]
[null,null,"nad 50 let do 65 let"]
[null,null,"nad 65 let"]
[null,"ANONIMNI","starost in/ali spol nista znana oz. definirana"]
[null,"Skupaj različnih uporabnikov ",null,{"$f":"SUM(D31:D37)","v":0},{"$f":"SUM(E31:E37)","v":0},{"$f":"SUM(F31:F37)","v":0}]
[null,"Ujemanje s prvo preglednico: ","Ujemanje: ",{"$f":"IF((E6=(D38+E38+F38)),\"SEŠTEVEK SE UJEMA\",\"SEŠTEVEK SE NE UJEMA - PREVERITE\")","v":"SEŠTEVEK SE UJEMA"}]
[null,"Opomba:\nIzvajalci, ki v bazi EVAPRO beležite drugačne starostne skupine, lahko ustvarite tabelo za izpis z navedenimi starostnimi skupinami - podrobno v »Navodilih za uporabo baze Evapro© - februar 2025«, poglavje »9.1.4 Po star. skupinah«, str. 86."]
[]
[]
[5,"Prosimo, navedite število uporabnikov glede na čas/obdobje njihove vključitve v program. Upoštevajte RAZLIČNE uporabnike. Seštevek uporabnikov mora tako biti enak podatku različnih uporabnikov iz prve preglednice. Prosimo zapišite oceno, če nimate točnih podatkov."]
[null,"Število uporabnikov, ki so program obiskovali/bili vključeni…",null,null,"Število uporabnikov"]
[null,"vsak dan ali petkrat na teden"]
[null,"enkrat ali večkrat na teden, vendar ne vsak (delovni) dan"]
[null,"večkrat/nekajkrat na mesec"]
[null,"enkrat na mesec"]
[null,"nekajkrat na leto"]
[null,"enkrat na leto"]
[null,"uporabniki, za katere ni znano, kako pogosto so obiskovali/bili vključeni v program (anonimni)"]
[null,"Skupaj število različnih uporabnikov ",null,null,{"$f":"SUM(E45:E51)","v":0}]
[null,"Ujemanje s prvo preglednico: ","Ujemanje: ",{"$f":"IF((E6=(E52)),\"SEŠTEVEK SE UJEMA\",\"SEŠTEVEK SE NE UJEMA - PREVERITE\")","v":"SEŠTEVEK SE UJEMA"}]
[]
[]
[6,"Prosimo, opredelite ciljno skupino uporabnikov - značilnosti uporabnikov, ki jim je vsebina programa namenjena:"]
[null,"po spolu"]
[null,"po starostnih skupinah"]
[null,"družinske razmere in socialno omrežje"]
[null,"glede na težavo(e), ki jo/jih imajo"]
[null,"druge pomembne značilnosti"]

{"sheet":"UP_2.2d","index":35,"n_rows":61,"n_cols":9,"rows_kept":61,"cut":false,"hidden":true,"merged":[[60,1,60,2],[60,3,60,8],[57,1,57,2],[57,3,57,8],[58,1,58,2],[58,3,58,8],[59,1,59,2],[59,3,59,8],[44,1,44,3],[45,1,45,3],[46,1,46,3],[47,1,47,3],[56,1,56,2],[56,3,56,8],[50,1,50,3],[51,1,51,3],[52,1,52,2],[52,3,52,4],[55,1,55,8],[4,1,4,3],[5,1,5,3],[6,1,6,3],[9,1,9,8],[10,1,10,2],[11,1,11,2],[12,1,12,2],[15,1,15,8],[48,1,48,3],[49,1,49,3],[25,1,25,8],[28,1,28,8],[29,1,29,2],[30,1,31,1],[32,1,35,1],[37,1,37,2],[38,1,38,2],[38,3,38,5],[39,1,39,8],[42,1,42,8],[43,1,43,3]]}
["UPORABNIKI - za obdobje od 1. 1. 2026 do 30. 6. 2026",null,null,null,null,null,null,"Vsebina:",{"$f":"RIGHT(CELL(\"filename\",I1),LEN(CELL(\"filename\",I1))-SEARCH(\"]\",CELL(\"filename\",I1)))","v":"UP_2.2d"}]
[]
[null,"Vpišite podatke za posamično vsebino, za katero ste vnesli podatke na listu \"UP_VSEBINE\" - za vsako posebej se vam odpre svoj list."]
[]
[1,"Prosimo, navedite število uporabnikov:",null,null,"Vpisujte v modre celice:"]
[null,"Skupaj število RAZLIČNIH uporabnikov (en uporabnik se šteje samo enkrat na leto)"]
[null,"Število uporabnikov na dan 1. 12. 2025 (izpis pridobite iz EVAPRO, če tega nimate oz. nimate točnega podatka, vpišite oceno števila uporabnikov na ta dan)"]
[]
[]
[2,"Če program obsega tudi delo v skupinah prosimo navedite (vpisujte samo skupine, ki ste jih prijavili znotraj izračuna javnega razpisa in so ovrednotene v pogodbi):"]
[null,"Število skupin"]
[null,"Povprečno število uporabnikov na skupino"]
[null,"Število srečanj na leto"]
[]
[]
[3,"Prosimo, navedite število vključenih uporabnikov po mesecih ter povprečno število ur aktivne* vključenosti uporabnikov v posamezne dejavnosti programa na mesec."]
[null,"Mesec","Število uporabnikov","Povprečno število ur aktivne* vključenosti enega uporabnika na mesec"]
[null,"januar "]
[null,"februar "]
[null,"marec "]
[null,"april "]
[null,"maj "]
[null,"junij "]
[null,"julij"]
[null,"Povprečno število na mesec",{"$f":"AVERAGE(C18:C24)","v":{"$error":"#DIV/0!"}},{"$f":"AVERAGE(D18:D24)","v":{"$error":"#DIV/0!"}}]
[null,"Opomba:\n*Aktivna vključenost pomeni, da je uporabnik aktivno vključen v dejavnosti programa. Torej pri programih, ki uporabnikom nudijo bivanje, ne vpisujete 720 ur na mesec, ampak število ur aktivne vključenosti uporabnika v program na mesec."]
[]
[]
[4,"Prosimo, navedite število RAZLIČNIH uporabnikov glede na spol in starost. Prosimo zapišite oceno, če nimate točnih podatkov."]
[null,"Starostna skupina",null,"Število moških","Število žensk","Spol ni znan oz. ni definiran"]
[null,"MLADOLETNI","do vključno 15 let"]
[null,null,"nad 15 let do 18 let"]
[null,"POLNOLETNI","nad 18 let do 35 let"]
[null,null,"nad 35 let do 50 let"]
[null,null,"nad 50 let do 65 let"]
[null,null,"nad 65 let"]
[null,"ANONIMNI","starost in/ali spol nista znana oz. definirana"]
[null,"Skupaj različnih uporabnikov ",null,{"$f":"SUM(D31:D37)","v":0},{"$f":"SUM(E31:E37)","v":0},{"$f":"SUM(F31:F37)","v":0}]
[null,"Ujemanje s prvo preglednico: ","Ujemanje: ",{"$f":"IF((E6=(D38+E38+F38)),\"SEŠTEVEK SE UJEMA\",\"SEŠTEVEK SE NE UJEMA - PREVERITE\")","v":"SEŠTEVEK SE UJEMA"}]
[null,"Opomba:\nIzvajalci, ki v bazi EVAPRO beležite drugačne starostne skupine, lahko ustvarite tabelo za izpis z navedenimi starostnimi skupinami - podrobno v »Navodilih za uporabo baze Evapro© - februar 2025«, poglavje »9.1.4 Po star. skupinah«, str. 86."]
[]
[]
[5,"Prosimo, navedite število uporabnikov glede na čas/obdobje njihove vključitve v program. Upoštevajte RAZLIČNE uporabnike. Seštevek uporabnikov mora tako biti enak podatku različnih uporabnikov iz prve preglednice. Prosimo zapišite oceno, če nimate točnih podatkov."]
[null,"Število uporabnikov, ki so program obiskovali/bili vključeni…",null,null,"Število uporabnikov"]
[null,"vsak dan ali petkrat na teden"]
[null,"enkrat ali večkrat na teden, vendar ne vsak (delovni) dan"]
[null,"večkrat/nekajkrat na mesec"]
[null,"enkrat na mesec"]
[null,"nekajkrat na leto"]
[null,"enkrat na leto"]
[null,"uporabniki, za katere ni znano, kako pogosto so obiskovali/bili vključeni v program (anonimni)"]
[null,"Skupaj število različnih uporabnikov ",null,null,{"$f":"SUM(E45:E51)","v":0}]
[null,"Ujemanje s prvo preglednico: ","Ujemanje: ",{"$f":"IF((E6=(E52)),\"SEŠTEVEK SE UJEMA\",\"SEŠTEVEK SE NE UJEMA - PREVERITE\")","v":"SEŠTEVEK SE UJEMA"}]
[]
[]
[6,"Prosimo, opredelite ciljno skupino uporabnikov - značilnosti uporabnikov, ki jim je vsebina programa namenjena:"]
[null,"po spolu"]
[null,"po starostnih skupinah"]
[null,"družinske razmere in socialno omrežje"]
[null,"glede na težavo(e), ki jo/jih imajo"]
[null,"druge pomembne značilnosti"]

{"sheet":"UP_2.3a","index":36,"n_rows":61,"n_cols":9,"rows_kept":61,"cut":false,"hidden":true,"merged":[[60,1,60,2],[60,3,60,8],[57,1,57,2],[57,3,57,8],[58,1,58,2],[58,3,58,8],[59,1,59,2],[59,3,59,8],[44,1,44,3],[45,1,45,3],[46,1,46,3],[47,1,47,3],[56,1,56,2],[56,3,56,8],[50,1,50,3],[51,1,51,3],[52,1,52,2],[52,3,52,4],[55,1,55,8],[4,1,4,3],[5,1,5,3],[6,1,6,3],[9,1,9,8],[10,1,10,2],[11,1,11,2],[12,1,12,2],[15,1,15,8],[48,1,48,3],[49,1,49,3],[25,1,25,8],[28,1,28,8],[29,1,29,2],[30,1,31,1],[32,1,35,1],[37,1,37,2],[38,1,38,2],[38,3,38,5],[39,1,39,8],[42,1,42,8],[43,1,43,3]]}
["UPORABNIKI - za obdobje od 1. 1. 2026 do 30. 6. 2026",null,null,null,null,null,null,"Vsebina:",{"$f":"RIGHT(CELL(\"filename\",I1),LEN(CELL(\"filename\",I1))-SEARCH(\"]\",CELL(\"filename\",I1)))","v":"UP_2.3a"}]
[]
[null,"Vpišite podatke za posamično vsebino, za katero ste vnesli podatke na listu \"UP_VSEBINE\" - za vsako posebej se vam odpre svoj list."]
[]
[1,"Prosimo, navedite število uporabnikov:",null,null,"Vpisujte v modre celice:"]
[null,"Skupaj število RAZLIČNIH uporabnikov (en uporabnik se šteje samo enkrat na leto)"]
[null,"Število uporabnikov na dan 1. 12. 2025 (izpis pridobite iz EVAPRO, če tega nimate oz. nimate točnega podatka, vpišite oceno števila uporabnikov na ta dan)"]
[]
[]
[2,"Če program obsega tudi delo v skupinah prosimo navedite (vpisujte samo skupine, ki ste jih prijavili znotraj izračuna javnega razpisa in so ovrednotene v pogodbi):"]
[null,"Število skupin"]
[null,"Povprečno število uporabnikov na skupino"]
[null,"Število srečanj na leto"]
[]
[]
[3,"Prosimo, navedite število vključenih uporabnikov po mesecih ter povprečno število ur aktivne* vključenosti uporabnikov v posamezne dejavnosti programa na mesec."]
[null,"Mesec","Število uporabnikov","Povprečno število ur aktivne* vključenosti enega uporabnika na mesec"]
[null,"januar "]
[null,"februar "]
[null,"marec "]
[null,"april "]
[null,"maj "]
[null,"junij "]
[null,"julij"]
[null,"Povprečno število na mesec",{"$f":"AVERAGE(C18:C24)","v":{"$error":"#DIV/0!"}},{"$f":"AVERAGE(D18:D24)","v":{"$error":"#DIV/0!"}}]
[null,"Opomba:\n*Aktivna vključenost pomeni, da je uporabnik aktivno vključen v dejavnosti programa. Torej pri programih, ki uporabnikom nudijo bivanje, ne vpisujete 720 ur na mesec, ampak število ur aktivne vključenosti uporabnika v program na mesec."]
[]
[]
[4,"Prosimo, navedite število RAZLIČNIH uporabnikov glede na spol in starost. Prosimo zapišite oceno, če nimate točnih podatkov."]
[null,"Starostna skupina",null,"Število moških","Število žensk","Spol ni znan oz. ni definiran"]
[null,"MLADOLETNI","do vključno 15 let"]
[null,null,"nad 15 let do 18 let"]
[null,"POLNOLETNI","nad 18 let do 35 let"]
[null,null,"nad 35 let do 50 let"]
[null,null,"nad 50 let do 65 let"]
[null,null,"nad 65 let"]
[null,"ANONIMNI","starost in/ali spol nista znana oz. definirana"]
[null,"Skupaj različnih uporabnikov ",null,{"$f":"SUM(D31:D37)","v":0},{"$f":"SUM(E31:E37)","v":0},{"$f":"SUM(F31:F37)","v":0}]
[null,"Ujemanje s prvo preglednico: ","Ujemanje: ",{"$f":"IF((E6=(D38+E38+F38)),\"SEŠTEVEK SE UJEMA\",\"SEŠTEVEK SE NE UJEMA - PREVERITE\")","v":"SEŠTEVEK SE UJEMA"}]
[null,"Opomba:\nIzvajalci, ki v bazi EVAPRO beležite drugačne starostne skupine, lahko ustvarite tabelo za izpis z navedenimi starostnimi skupinami - podrobno v »Navodilih za uporabo baze Evapro© - februar 2025«, poglavje »9.1.4 Po star. skupinah«, str. 86."]
[]
[]
[5,"Prosimo, navedite število uporabnikov glede na čas/obdobje njihove vključitve v program. Upoštevajte RAZLIČNE uporabnike. Seštevek uporabnikov mora tako biti enak podatku različnih uporabnikov iz prve preglednice. Prosimo zapišite oceno, če nimate točnih podatkov."]
[null,"Število uporabnikov, ki so program obiskovali/bili vključeni…",null,null,"Število uporabnikov"]
[null,"vsak dan ali petkrat na teden"]
[null,"enkrat ali večkrat na teden, vendar ne vsak (delovni) dan"]
[null,"večkrat/nekajkrat na mesec"]
[null,"enkrat na mesec"]
[null,"nekajkrat na leto"]
[null,"enkrat na leto"]
[null,"uporabniki, za katere ni znano, kako pogosto so obiskovali/bili vključeni v program (anonimni)"]
[null,"Skupaj število različnih uporabnikov ",null,null,{"$f":"SUM(E45:E51)","v":0}]
[null,"Ujemanje s prvo preglednico: ","Ujemanje: ",{"$f":"IF((E6=(E52)),\"SEŠTEVEK SE UJEMA\",\"SEŠTEVEK SE NE UJEMA - PREVERITE\")","v":"SEŠTEVEK SE UJEMA"}]
[]
[]
[6,"Prosimo, opredelite ciljno skupino uporabnikov - značilnosti uporabnikov, ki jim je vsebina programa namenjena:"]
[null,"po spolu"]
[null,"po starostnih skupinah"]
[null,"družinske razmere in socialno omrežje"]
[null,"glede na težavo(e), ki jo/jih imajo"]
[null,"druge pomembne značilnosti"]

{"sheet":"UP_2.3b","index":37,"n_rows":61,"n_cols":9,"rows_kept":61,"cut":false,"hidden":true,"merged":[[60,1,60,2],[60,3,60,8],[57,1,57,2],[57,3,57,8],[58,1,58,2],[58,3,58,8],[59,1,59,2],[59,3,59,8],[44,1,44,3],[45,1,45,3],[46,1,46,3],[47,1,47,3],[56,1,56,2],[56,3,56,8],[50,1,50,3],[51,1,51,3],[52,1,52,2],[52,3,52,4],[55,1,55,8],[4,1,4,3],[5,1,5,3],[6,1,6,3],[9,1,9,8],[10,1,10,2],[11,1,11,2],[12,1,12,2],[15,1,15,8],[48,1,48,3],[49,1,49,3],[25,1,25,8],[28,1,28,8],[29,1,29,2],[30,1,31,1],[32,1,35,1],[37,1,37,2],[38,1,38,2],[38,3,38,5],[39,1,39,8],[42,1,42,8],[43,1,43,3]]}
["UPORABNIKI - za obdobje od 1. 1. 2026 do 30. 6. 2026",null,null,null,null,null,null,"Vsebina:",{"$f":"RIGHT(CELL(\"filename\",I1),LEN(CELL(\"filename\",I1))-SEARCH(\"]\",CELL(\"filename\",I1)))","v":"UP_2.3b"}]
[]
[null,"Vpišite podatke za posamično vsebino, za katero ste vnesli podatke na listu \"UP_VSEBINE\" - za vsako posebej se vam odpre svoj list."]
[]
[1,"Prosimo, navedite število uporabnikov:",null,null,"Vpisujte v modre celice:"]
[null,"Skupaj število RAZLIČNIH uporabnikov (en uporabnik se šteje samo enkrat na leto)"]
[null,"Število uporabnikov na dan 1. 12. 2025 (izpis pridobite iz EVAPRO, če tega nimate oz. nimate točnega podatka, vpišite oceno števila uporabnikov na ta dan)"]
[]
[]
[2,"Če program obsega tudi delo v skupinah prosimo navedite (vpisujte samo skupine, ki ste jih prijavili znotraj izračuna javnega razpisa in so ovrednotene v pogodbi):"]
[null,"Število skupin"]
[null,"Povprečno število uporabnikov na skupino"]
[null,"Število srečanj na leto"]
[]
[]
[3,"Prosimo, navedite število vključenih uporabnikov po mesecih ter povprečno število ur aktivne* vključenosti uporabnikov v posamezne dejavnosti programa na mesec."]
[null,"Mesec","Število uporabnikov","Povprečno število ur aktivne* vključenosti enega uporabnika na mesec"]
[null,"januar "]
[null,"februar "]
[null,"marec "]
[null,"april "]
[null,"maj "]
[null,"junij "]
[null,"julij"]
[null,"Povprečno število na mesec",{"$f":"AVERAGE(C18:C24)","v":{"$error":"#DIV/0!"}},{"$f":"AVERAGE(D18:D24)","v":{"$error":"#DIV/0!"}}]
[null,"Opomba:\n*Aktivna vključenost pomeni, da je uporabnik aktivno vključen v dejavnosti programa. Torej pri programih, ki uporabnikom nudijo bivanje, ne vpisujete 720 ur na mesec, ampak število ur aktivne vključenosti uporabnika v program na mesec."]
[]
[]
[4,"Prosimo, navedite število RAZLIČNIH uporabnikov glede na spol in starost. Prosimo zapišite oceno, če nimate točnih podatkov."]
[null,"Starostna skupina",null,"Število moških","Število žensk","Spol ni znan oz. ni definiran"]
[null,"MLADOLETNI","do vključno 15 let"]
[null,null,"nad 15 let do 18 let"]
[null,"POLNOLETNI","nad 18 let do 35 let"]
[null,null,"nad 35 let do 50 let"]
[null,null,"nad 50 let do 65 let"]
[null,null,"nad 65 let"]
[null,"ANONIMNI","starost in/ali spol nista znana oz. definirana"]
[null,"Skupaj različnih uporabnikov ",null,{"$f":"SUM(D31:D37)","v":0},{"$f":"SUM(E31:E37)","v":0},{"$f":"SUM(F31:F37)","v":0}]
[null,"Ujemanje s prvo preglednico: ","Ujemanje: ",{"$f":"IF((E6=(D38+E38+F38)),\"SEŠTEVEK SE UJEMA\",\"SEŠTEVEK SE NE UJEMA - PREVERITE\")","v":"SEŠTEVEK SE UJEMA"}]
[null,"Opomba:\nIzvajalci, ki v bazi EVAPRO beležite drugačne starostne skupine, lahko ustvarite tabelo za izpis z navedenimi starostnimi skupinami - podrobno v »Navodilih za uporabo baze Evapro© - februar 2025«, poglavje »9.1.4 Po star. skupinah«, str. 86."]
[]
[]
[5,"Prosimo, navedite število uporabnikov glede na čas/obdobje njihove vključitve v program. Upoštevajte RAZLIČNE uporabnike. Seštevek uporabnikov mora tako biti enak podatku različnih uporabnikov iz prve preglednice. Prosimo zapišite oceno, če nimate točnih podatkov."]
[null,"Število uporabnikov, ki so program obiskovali/bili vključeni…",null,null,"Število uporabnikov"]
[null,"vsak dan ali petkrat na teden"]
[null,"enkrat ali večkrat na teden, vendar ne vsak (delovni) dan"]
[null,"večkrat/nekajkrat na mesec"]
[null,"enkrat na mesec"]
[null,"nekajkrat na leto"]
[null,"enkrat na leto"]
[null,"uporabniki, za katere ni znano, kako pogosto so obiskovali/bili vključeni v program (anonimni)"]
[null,"Skupaj število različnih uporabnikov ",null,null,{"$f":"SUM(E45:E51)","v":0}]
[null,"Ujemanje s prvo preglednico: ","Ujemanje: ",{"$f":"IF((E6=(E52)),\"SEŠTEVEK SE UJEMA\",\"SEŠTEVEK SE NE UJEMA - PREVERITE\")","v":"SEŠTEVEK SE UJEMA"}]
[]
[]
[6,"Prosimo, opredelite ciljno skupino uporabnikov - značilnosti uporabnikov, ki jim je vsebina programa namenjena:"]
[null,"po spolu"]
[null,"po starostnih skupinah"]
[null,"družinske razmere in socialno omrežje"]
[null,"glede na težavo(e), ki jo/jih imajo"]
[null,"druge pomembne značilnosti"]

{"sheet":"UP_2.3c","index":38,"n_rows":61,"n_cols":9,"rows_kept":61,"cut":false,"hidden":true,"merged":[[60,1,60,2],[60,3,60,8],[57,1,57,2],[57,3,57,8],[58,1,58,2],[58,3,58,8],[59,1,59,2],[59,3,59,8],[44,1,44,3],[45,1,45,3],[46,1,46,3],[47,1,47,3],[56,1,56,2],[56,3,56,8],[50,1,50,3],[51,1,51,3],[52,1,52,2],[52,3,52,4],[55,1,55,8],[4,1,4,3],[5,1,5,3],[6,1,6,3],[9,1,9,8],[10,1,10,2],[11,1,11,2],[12,1,12,2],[15,1,15,8],[48,1,48,3],[49,1,49,3],[25,1,25,8],[28,1,28,8],[29,1,29,2],[30,1,31,1],[32,1,35,1],[37,1,37,2],[38,1,38,2],[38,3,38,5],[39,1,39,8],[42,1,42,8],[43,1,43,3]]}
["UPORABNIKI - za obdobje od 1. 1. 2026 do 30. 6. 2026",null,null,null,null,null,null,"Vsebina:",{"$f":"RIGHT(CELL(\"filename\",I1),LEN(CELL(\"filename\",I1))-SEARCH(\"]\",CELL(\"filename\",I1)))","v":"UP_2.3c"}]
[]
[null,"Vpišite podatke za posamično vsebino, za katero ste vnesli podatke na listu \"UP_VSEBINE\" - za vsako posebej se vam odpre svoj list."]
[]
[1,"Prosimo, navedite število uporabnikov:",null,null,"Vpisujte v modre celice:"]
[null,"Skupaj število RAZLIČNIH uporabnikov (en uporabnik se šteje samo enkrat na leto)"]
[null,"Število uporabnikov na dan 1. 12. 2025 (izpis pridobite iz EVAPRO, če tega nimate oz. nimate točnega podatka, vpišite oceno števila uporabnikov na ta dan)"]
[]
[]
[2,"Če program obsega tudi delo v skupinah prosimo navedite (vpisujte samo skupine, ki ste jih prijavili znotraj izračuna javnega razpisa in so ovrednotene v pogodbi):"]
[null,"Število skupin"]
[null,"Povprečno število uporabnikov na skupino"]
[null,"Število srečanj na leto"]
[]
[]
[3,"Prosimo, navedite število vključenih uporabnikov po mesecih ter povprečno število ur aktivne* vključenosti uporabnikov v posamezne dejavnosti programa na mesec."]
[null,"Mesec","Število uporabnikov","Povprečno število ur aktivne* vključenosti enega uporabnika na mesec"]
[null,"januar "]
[null,"februar "]
[null,"marec "]
[null,"april "]
[null,"maj "]
[null,"junij "]
[null,"julij"]
[null,"Povprečno število na mesec",{"$f":"AVERAGE(C18:C24)","v":{"$error":"#DIV/0!"}},{"$f":"AVERAGE(D18:D24)","v":{"$error":"#DIV/0!"}}]
[null,"Opomba:\n*Aktivna vključenost pomeni, da je uporabnik aktivno vključen v dejavnosti programa. Torej pri programih, ki uporabnikom nudijo bivanje, ne vpisujete 720 ur na mesec, ampak število ur aktivne vključenosti uporabnika v program na mesec."]
[]
[]
[4,"Prosimo, navedite število RAZLIČNIH uporabnikov glede na spol in starost. Prosimo zapišite oceno, če nimate točnih podatkov."]
[null,"Starostna skupina",null,"Število moških","Število žensk","Spol ni znan oz. ni definiran"]
[null,"MLADOLETNI","do vključno 15 let"]
[null,null,"nad 15 let do 18 let"]
[null,"POLNOLETNI","nad 18 let do 35 let"]
[null,null,"nad 35 let do 50 let"]
[null,null,"nad 50 let do 65 let"]
[null,null,"nad 65 let"]
[null,"ANONIMNI","starost in/ali spol nista znana oz. definirana"]
[null,"Skupaj različnih uporabnikov ",null,{"$f":"SUM(D31:D37)","v":0},{"$f":"SUM(E31:E37)","v":0},{"$f":"SUM(F31:F37)","v":0}]
[null,"Ujemanje s prvo preglednico: ","Ujemanje: ",{"$f":"IF((E6=(D38+E38+F38)),\"SEŠTEVEK SE UJEMA\",\"SEŠTEVEK SE NE UJEMA - PREVERITE\")","v":"SEŠTEVEK SE UJEMA"}]
[null,"Opomba:\nIzvajalci, ki v bazi EVAPRO beležite drugačne starostne skupine, lahko ustvarite tabelo za izpis z navedenimi starostnimi skupinami - podrobno v »Navodilih za uporabo baze Evapro© - februar 2025«, poglavje »9.1.4 Po star. skupinah«, str. 86."]
[]
[]
[5,"Prosimo, navedite število uporabnikov glede na čas/obdobje njihove vključitve v program. Upoštevajte RAZLIČNE uporabnike. Seštevek uporabnikov mora tako biti enak podatku različnih uporabnikov iz prve preglednice. Prosimo zapišite oceno, če nimate točnih podatkov."]
[null,"Število uporabnikov, ki so program obiskovali/bili vključeni…",null,null,"Število uporabnikov"]
[null,"vsak dan ali petkrat na teden"]
[null,"enkrat ali večkrat na teden, vendar ne vsak (delovni) dan"]
[null,"večkrat/nekajkrat na mesec"]
[null,"enkrat na mesec"]
[null,"nekajkrat na leto"]
[null,"enkrat na leto"]
[null,"uporabniki, za katere ni znano, kako pogosto so obiskovali/bili vključeni v program (anonimni)"]
[null,"Skupaj število različnih uporabnikov ",null,null,{"$f":"SUM(E45:E51)","v":0}]
[null,"Ujemanje s prvo preglednico: ","Ujemanje: ",{"$f":"IF((E6=(E52)),\"SEŠTEVEK SE UJEMA\",\"SEŠTEVEK SE NE UJEMA - PREVERITE\")","v":"SEŠTEVEK SE UJEMA"}]
[]
[]
[6,"Prosimo, opredelite ciljno skupino uporabnikov - značilnosti uporabnikov, ki jim je vsebina programa namenjena:"]
[null,"po spolu"]
[null,"po starostnih skupinah"]
[null,"družinske razmere in socialno omrežje"]
[null,"glede na težavo(e), ki jo/jih imajo"]
[null,"druge pomembne značilnosti"]

{"sheet":"UP_2.4a","index":39,"n_rows":61,"n_cols":9,"rows_kept":61,"cut":false,"hidden":true,"merged":[[60,1,60,2],[60,3,60,8],[57,1,57,2],[57,3,57,8],[58,1,58,2],[58,3,58,8],[59,1,59,2],[59,3,59,8],[44,1,44,3],[45,1,45,3],[46,1,46,3],[47,1,47,3],[56,1,56,2],[56,3,56,8],[50,1,50,3],[51,1,51,3],[52,1,52,2],[52,3,52,4],[55,1,55,8],[4,1,4,3],[5,1,5,3],[6,1,6,3],[9,1,9,8],[10,1,10,2],[11,1,11,2],[12,1,12,2],[15,1,15,8],[48,1,48,3],[49,1,49,3],[25,1,25,8],[28,1,28,8],[29,1,29,2],[30,1,31,1],[32,1,35,1],[37,1,37,2],[38,1,38,2],[38,3,38,5],[39,1,39,8],[42,1,42,8],[43,1,43,3]]}
["UPORABNIKI - za obdobje od 1. 1. 2026 do 30. 6. 2026",null,null,null,null,null,null,"Vsebina:",{"$f":"RIGHT(CELL(\"filename\",I1),LEN(CELL(\"filename\",I1))-SEARCH(\"]\",CELL(\"filename\",I1)))","v":"UP_2.4a"}]
[]
[null,"Vpišite podatke za posamično vsebino, za katero ste vnesli podatke na listu \"UP_VSEBINE\" - za vsako posebej se vam odpre svoj list."]
[]
[1,"Prosimo, navedite število uporabnikov:",null,null,"Vpisujte v modre celice:"]
[null,"Skupaj število RAZLIČNIH uporabnikov (en uporabnik se šteje samo enkrat na leto)"]
[null,"Število uporabnikov na dan 1. 12. 2025 (izpis pridobite iz EVAPRO, če tega nimate oz. nimate točnega podatka, vpišite oceno števila uporabnikov na ta dan)"]
[]
[]
[2,"Če program obsega tudi delo v skupinah prosimo navedite (vpisujte samo skupine, ki ste jih prijavili znotraj izračuna javnega razpisa in so ovrednotene v pogodbi):"]
[null,"Število skupin"]
[null,"Povprečno število uporabnikov na skupino"]
[null,"Število srečanj na leto"]
[]
[]
[3,"Prosimo, navedite število vključenih uporabnikov po mesecih ter povprečno število ur aktivne* vključenosti uporabnikov v posamezne dejavnosti programa na mesec."]
[null,"Mesec","Število uporabnikov","Povprečno število ur aktivne* vključenosti enega uporabnika na mesec"]
[null,"januar "]
[null,"februar "]
[null,"marec "]
[null,"april "]
[null,"maj "]
[null,"junij "]
[null,"julij"]
[null,"Povprečno število na mesec",{"$f":"AVERAGE(C18:C24)","v":{"$error":"#DIV/0!"}},{"$f":"AVERAGE(D18:D24)","v":{"$error":"#DIV/0!"}}]
[null,"Opomba:\n*Aktivna vključenost pomeni, da je uporabnik aktivno vključen v dejavnosti programa. Torej pri programih, ki uporabnikom nudijo bivanje, ne vpisujete 720 ur na mesec, ampak število ur aktivne vključenosti uporabnika v program na mesec."]
[]
[]
[4,"Prosimo, navedite število RAZLIČNIH uporabnikov glede na spol in starost. Prosimo zapišite oceno, če nimate točnih podatkov."]
[null,"Starostna skupina",null,"Število moških","Število žensk","Spol ni znan oz. ni definiran"]
[null,"MLADOLETNI","do vključno 15 let"]
[null,null,"nad 15 let do 18 let"]
[null,"POLNOLETNI","nad 18 let do 35 let"]
[null,null,"nad 35 let do 50 let"]
[null,null,"nad 50 let do 65 let"]
[null,null,"nad 65 let"]
[null,"ANONIMNI","starost in/ali spol nista znana oz. definirana"]
[null,"Skupaj različnih uporabnikov ",null,{"$f":"SUM(D31:D37)","v":0},{"$f":"SUM(E31:E37)","v":0},{"$f":"SUM(F31:F37)","v":0}]
[null,"Ujemanje s prvo preglednico: ","Ujemanje: ",{"$f":"IF((E6=(D38+E38+F38)),\"SEŠTEVEK SE UJEMA\",\"SEŠTEVEK SE NE UJEMA - PREVERITE\")","v":"SEŠTEVEK SE UJEMA"}]
[null,"Opomba:\nIzvajalci, ki v bazi EVAPRO beležite drugačne starostne skupine, lahko ustvarite tabelo za izpis z navedenimi starostnimi skupinami - podrobno v »Navodilih za uporabo baze Evapro© - februar 2025«, poglavje »9.1.4 Po star. skupinah«, str. 86."]
[]
[]
[5,"Prosimo, navedite število uporabnikov glede na čas/obdobje njihove vključitve v program. Upoštevajte RAZLIČNE uporabnike. Seštevek uporabnikov mora tako biti enak podatku različnih uporabnikov iz prve preglednice. Prosimo zapišite oceno, če nimate točnih podatkov."]
[null,"Število uporabnikov, ki so program obiskovali/bili vključeni…",null,null,"Število uporabnikov"]
[null,"vsak dan ali petkrat na teden"]
[null,"enkrat ali večkrat na teden, vendar ne vsak (delovni) dan"]
[null,"večkrat/nekajkrat na mesec"]
[null,"enkrat na mesec"]
[null,"nekajkrat na leto"]
[null,"enkrat na leto"]
[null,"uporabniki, za katere ni znano, kako pogosto so obiskovali/bili vključeni v program (anonimni)"]
[null,"Skupaj število različnih uporabnikov ",null,null,{"$f":"SUM(E45:E51)","v":0}]
[null,"Ujemanje s prvo preglednico: ","Ujemanje: ",{"$f":"IF((E6=(E52)),\"SEŠTEVEK SE UJEMA\",\"SEŠTEVEK SE NE UJEMA - PREVERITE\")","v":"SEŠTEVEK SE UJEMA"}]
[]
[]
[6,"Prosimo, opredelite ciljno skupino uporabnikov - značilnosti uporabnikov, ki jim je vsebina programa namenjena:"]
[null,"po spolu"]
[null,"po starostnih skupinah"]
[null,"družinske razmere in socialno omrežje"]
[null,"glede na težavo(e), ki jo/jih imajo"]
[null,"druge pomembne značilnosti"]

{"sheet":"UP_2.4b","index":40,"n_rows":61,"n_cols":9,"rows_kept":61,"cut":false,"hidden":true,"merged":[[60,1,60,2],[60,3,60,8],[57,1,57,2],[57,3,57,8],[58,1,58,2],[58,3,58,8],[59,1,59,2],[59,3,59,8],[44,1,44,3],[45,1,45,3],[46,1,46,3],[47,1,47,3],[56,1,56,2],[56,3,56,8],[50,1,50,3],[51,1,51,3],[52,1,52,2],[52,3,52,4],[55,1,55,8],[4,1,4,3],[5,1,5,3],[6,1,6,3],[9,1,9,8],[10,1,10,2],[11,1,11,2],[12,1,12,2],[15,1,15,8],[48,1,48,3],[49,1,49,3],[25,1,25,8],[28,1,28,8],[29,1,29,2],[30,1,31,1],[32,1,35,1],[37,1,37,2],[38,1,38,2],[38,3,38,5],[39,1,39,8],[42,1,42,8],[43,1,43,3]]}
["UPORABNIKI - za obdobje od 1. 1. 2026 do 30. 6. 2026",null,null,null,null,null,null,"Vsebina:",{"$f":"RIGHT(CELL(\"filename\",I1),LEN(CELL(\"filename\",I1))-SEARCH(\"]\",CELL(\"filename\",I1)))","v":"UP_2.4b"}]
[]
[null,"Vpišite podatke za posamično vsebino, za katero ste vnesli podatke na listu \"UP_VSEBINE\" - za vsako posebej se vam odpre svoj list."]
[]
[1,"Prosimo, navedite število uporabnikov:",null,null,"Vpisujte v modre celice:"]
[null,"Skupaj število RAZLIČNIH uporabnikov (en uporabnik se šteje samo enkrat na leto)"]
[null,"Število uporabnikov na dan 1. 12. 2025 (izpis pridobite iz EVAPRO, če tega nimate oz. nimate točnega podatka, vpišite oceno števila uporabnikov na ta dan)"]
[]
[]
[2,"Če program obsega tudi delo v skupinah prosimo navedite (vpisujte samo skupine, ki ste jih prijavili znotraj izračuna javnega razpisa in so ovrednotene v pogodbi):"]
[null,"Število skupin"]
[null,"Povprečno število uporabnikov na skupino"]
[null,"Število srečanj na leto"]
[]
[]
[3,"Prosimo, navedite število vključenih uporabnikov po mesecih ter povprečno število ur aktivne* vključenosti uporabnikov v posamezne dejavnosti programa na mesec."]
[null,"Mesec","Število uporabnikov","Povprečno število ur aktivne* vključenosti enega uporabnika na mesec"]
[null,"januar "]
[null,"februar "]
[null,"marec "]
[null,"april "]
[null,"maj "]
[null,"junij "]
[null,"julij"]
[null,"Povprečno število na mesec",{"$f":"AVERAGE(C18:C24)","v":{"$error":"#DIV/0!"}},{"$f":"AVERAGE(D18:D24)","v":{"$error":"#DIV/0!"}}]
[null,"Opomba:\n*Aktivna vključenost pomeni, da je uporabnik aktivno vključen v dejavnosti programa. Torej pri programih, ki uporabnikom nudijo bivanje, ne vpisujete 720 ur na mesec, ampak število ur aktivne vključenosti uporabnika v program na mesec."]
[]
[]
[4,"Prosimo, navedite število RAZLIČNIH uporabnikov glede na spol in starost. Prosimo zapišite oceno, če nimate točnih podatkov."]
[null,"Starostna skupina",null,"Število moških","Število žensk","Spol ni znan oz. ni definiran"]
[null,"MLADOLETNI","do vključno 15 let"]
[null,null,"nad 15 let do 18 let"]
[null,"POLNOLETNI","nad 18 let do 35 let"]
[null,null,"nad 35 let do 50 let"]
[null,null,"nad 50 let do 65 let"]
[null,null,"nad 65 let"]
[null,"ANONIMNI","starost in/ali spol nista znana oz. definirana"]
[null,"Skupaj različnih uporabnikov ",null,{"$f":"SUM(D31:D37)","v":0},{"$f":"SUM(E31:E37)","v":0},{"$f":"SUM(F31:F37)","v":0}]
[null,"Ujemanje s prvo preglednico: ","Ujemanje: ",{"$f":"IF((E6=(D38+E38+F38)),\"SEŠTEVEK SE UJEMA\",\"SEŠTEVEK SE NE UJEMA - PREVERITE\")","v":"SEŠTEVEK SE UJEMA"}]
[null,"Opomba:\nIzvajalci, ki v bazi EVAPRO beležite drugačne starostne skupine, lahko ustvarite tabelo za izpis z navedenimi starostnimi skupinami - podrobno v »Navodilih za uporabo baze Evapro© - februar 2025«, poglavje »9.1.4 Po star. skupinah«, str. 86."]
[]
[]
[5,"Prosimo, navedite število uporabnikov glede na čas/obdobje njihove vključitve v program. Upoštevajte RAZLIČNE uporabnike. Seštevek uporabnikov mora tako biti enak podatku različnih uporabnikov iz prve preglednice. Prosimo zapišite oceno, če nimate točnih podatkov."]
[null,"Število uporabnikov, ki so program obiskovali/bili vključeni…",null,null,"Število uporabnikov"]
[null,"vsak dan ali petkrat na teden"]
[null,"enkrat ali večkrat na teden, vendar ne vsak (delovni) dan"]
[null,"večkrat/nekajkrat na mesec"]
[null,"enkrat na mesec"]
[null,"nekajkrat na leto"]
[null,"enkrat na leto"]
[null,"uporabniki, za katere ni znano, kako pogosto so obiskovali/bili vključeni v program (anonimni)"]
[null,"Skupaj število različnih uporabnikov ",null,null,{"$f":"SUM(E45:E51)","v":0}]
[null,"Ujemanje s prvo preglednico: ","Ujemanje: ",{"$f":"IF((E6=(E52)),\"SEŠTEVEK SE UJEMA\",\"SEŠTEVEK SE NE UJEMA - PREVERITE\")","v":"SEŠTEVEK SE UJEMA"}]
[]
[]
[6,"Prosimo, opredelite ciljno skupino uporabnikov - značilnosti uporabnikov, ki jim je vsebina programa namenjena:"]
[null,"po spolu"]
[null,"po starostnih skupinah"]
[null,"družinske razmere in socialno omrežje"]
[null,"glede na težavo(e), ki jo/jih imajo"]
[null,"druge pomembne značilnosti"]

{"sheet":"UP_3a","index":41,"n_rows":61,"n_cols":9,"rows_kept":61,"cut":false,"hidden":true,"merged":[[60,1,60,2],[60,3,60,8],[57,1,57,2],[57,3,57,8],[58,1,58,2],[58,3,58,8],[59,1,59,2],[59,3,59,8],[44,1,44,3],[45,1,45,3],[46,1,46,3],[47,1,47,3],[56,1,56,2],[56,3,56,8],[50,1,50,3],[51,1,51,3],[52,1,52,2],[52,3,52,4],[55,1,55,8],[4,1,4,3],[5,1,5,3],[6,1,6,3],[9,1,9,8],[10,1,10,2],[11,1,11,2],[12,1,12,2],[15,1,15,8],[48,1,48,3],[49,1,49,3],[25,1,25,8],[28,1,28,8],[29,1,29,2],[30,1,31,1],[32,1,35,1],[37,1,37,2],[38,1,38,2],[38,3,38,5],[39,1,39,8],[42,1,42,8],[43,1,43,3]]}
["UPORABNIKI - za obdobje od 1. 1. 2026 do 30. 6. 2026",null,null,null,null,null,null,"Vsebina:",{"$f":"RIGHT(CELL(\"filename\",I1),LEN(CELL(\"filename\",I1))-SEARCH(\"]\",CELL(\"filename\",I1)))","v":"UP_3a"}]
[]
[null,"Vpišite podatke za posamično vsebino, za katero ste vnesli podatke na listu \"UP_VSEBINE\" - za vsako posebej se vam odpre svoj list."]
[]
[1,"Prosimo, navedite število uporabnikov:",null,null,"Vpisujte v modre celice:"]
[null,"Skupaj število RAZLIČNIH uporabnikov (en uporabnik se šteje samo enkrat na leto)"]
[null,"Število uporabnikov na dan 1. 12. 2025 (izpis pridobite iz EVAPRO, če tega nimate oz. nimate točnega podatka, vpišite oceno števila uporabnikov na ta dan)"]
[]
[]
[2,"Če program obsega tudi delo v skupinah prosimo navedite (vpisujte samo skupine, ki ste jih prijavili znotraj izračuna javnega razpisa in so ovrednotene v pogodbi):"]
[null,"Število skupin"]
[null,"Povprečno število uporabnikov na skupino"]
[null,"Število srečanj na leto"]
[]
[]
[3,"Prosimo, navedite število vključenih uporabnikov po mesecih ter povprečno število ur aktivne* vključenosti uporabnikov v posamezne dejavnosti programa na mesec."]
[null,"Mesec","Število uporabnikov","Povprečno število ur aktivne* vključenosti enega uporabnika na mesec"]
[null,"januar "]
[null,"februar "]
[null,"marec "]
[null,"april "]
[null,"maj "]
[null,"junij "]
[null,"julij"]
[null,"Povprečno število na mesec",{"$f":"AVERAGE(C18:C24)","v":{"$error":"#DIV/0!"}},{"$f":"AVERAGE(D18:D24)","v":{"$error":"#DIV/0!"}}]
[null,"Opomba:\n*Aktivna vključenost pomeni, da je uporabnik aktivno vključen v dejavnosti programa. Torej pri programih, ki uporabnikom nudijo bivanje, ne vpisujete 720 ur na mesec, ampak število ur aktivne vključenosti uporabnika v program na mesec."]
[]
[]
[4,"Prosimo, navedite število RAZLIČNIH uporabnikov glede na spol in starost. Prosimo zapišite oceno, če nimate točnih podatkov."]
[null,"Starostna skupina",null,"Število moških","Število žensk","Spol ni znan oz. ni definiran"]
[null,"MLADOLETNI","do vključno 15 let"]
[null,null,"nad 15 let do 18 let"]
[null,"POLNOLETNI","nad 18 let do 35 let"]
[null,null,"nad 35 let do 50 let"]
[null,null,"nad 50 let do 65 let"]
[null,null,"nad 65 let"]
[null,"ANONIMNI","starost in/ali spol nista znana oz. definirana"]
[null,"Skupaj različnih uporabnikov ",null,{"$f":"SUM(D31:D37)","v":0},{"$f":"SUM(E31:E37)","v":0},{"$f":"SUM(F31:F37)","v":0}]
[null,"Ujemanje s prvo preglednico: ","Ujemanje: ",{"$f":"IF((E6=(D38+E38+F38)),\"SEŠTEVEK SE UJEMA\",\"SEŠTEVEK SE NE UJEMA - PREVERITE\")","v":"SEŠTEVEK SE UJEMA"}]
[null,"Opomba:\nIzvajalci, ki v bazi EVAPRO beležite drugačne starostne skupine, lahko ustvarite tabelo za izpis z navedenimi starostnimi skupinami - podrobno v »Navodilih za uporabo baze Evapro© - februar 2025«, poglavje »9.1.4 Po star. skupinah«, str. 86."]
[]
[]
[5,"Prosimo, navedite število uporabnikov glede na čas/obdobje njihove vključitve v program. Upoštevajte RAZLIČNE uporabnike. Seštevek uporabnikov mora tako biti enak podatku različnih uporabnikov iz prve preglednice. Prosimo zapišite oceno, če nimate točnih podatkov."]
[null,"Število uporabnikov, ki so program obiskovali/bili vključeni…",null,null,"Število uporabnikov"]
[null,"vsak dan ali petkrat na teden"]
[null,"enkrat ali večkrat na teden, vendar ne vsak (delovni) dan"]
[null,"večkrat/nekajkrat na mesec"]
[null,"enkrat na mesec"]
[null,"nekajkrat na leto"]
[null,"enkrat na leto"]
[null,"uporabniki, za katere ni znano, kako pogosto so obiskovali/bili vključeni v program (anonimni)"]
[null,"Skupaj število različnih uporabnikov ",null,null,{"$f":"SUM(E45:E51)","v":0}]
[null,"Ujemanje s prvo preglednico: ","Ujemanje: ",{"$f":"IF((E6=(E52)),\"SEŠTEVEK SE UJEMA\",\"SEŠTEVEK SE NE UJEMA - PREVERITE\")","v":"SEŠTEVEK SE UJEMA"}]
[]
[]
[6,"Prosimo, opredelite ciljno skupino uporabnikov - značilnosti uporabnikov, ki jim je vsebina programa namenjena:"]
[null,"po spolu"]
[null,"po starostnih skupinah"]
[null,"družinske razmere in socialno omrežje"]
[null,"glede na težavo(e), ki jo/jih imajo"]
[null,"druge pomembne značilnosti"]

{"sheet":"UP_3b","index":42,"n_rows":61,"n_cols":9,"rows_kept":61,"cut":false,"hidden":true,"merged":[[60,1,60,2],[60,3,60,8],[57,1,57,2],[57,3,57,8],[58,1,58,2],[58,3,58,8],[59,1,59,2],[59,3,59,8],[44,1,44,3],[45,1,45,3],[46,1,46,3],[47,1,47,3],[56,1,56,2],[56,3,56,8],[50,1,50,3],[51,1,51,3],[52,1,52,2],[52,3,52,4],[55,1,55,8],[4,1,4,3],[5,1,5,3],[6,1,6,3],[9,1,9,8],[10,1,10,2],[11,1,11,2],[12,1,12,2],[15,1,15,8],[48,1,48,3],[49,1,49,3],[25,1,25,8],[28,1,28,8],[29,1,29,2],[30,1,31,1],[32,1,35,1],[37,1,37,2],[38,1,38,2],[38,3,38,5],[39,1,39,8],[42,1,42,8],[43,1,43,3]]}
["UPORABNIKI - za obdobje od 1. 1. 2026 do 30. 6. 2026",null,null,null,null,null,null,"Vsebina:",{"$f":"RIGHT(CELL(\"filename\",I1),LEN(CELL(\"filename\",I1))-SEARCH(\"]\",CELL(\"filename\",I1)))","v":"UP_3b"}]
[]
[null,"Vpišite podatke za posamično vsebino, za katero ste vnesli podatke na listu \"UP_VSEBINE\" - za vsako posebej se vam odpre svoj list."]
[]
[1,"Prosimo, navedite število uporabnikov:",null,null,"Vpisujte v modre celice:"]
[null,"Skupaj število RAZLIČNIH uporabnikov (en uporabnik se šteje samo enkrat na leto)"]
[null,"Število uporabnikov na dan 1. 12. 2025 (izpis pridobite iz EVAPRO, če tega nimate oz. nimate točnega podatka, vpišite oceno števila uporabnikov na ta dan)"]
[]
[]
[2,"Če program obsega tudi delo v skupinah prosimo navedite (vpisujte samo skupine, ki ste jih prijavili znotraj izračuna javnega razpisa in so ovrednotene v pogodbi):"]
[null,"Število skupin"]
[null,"Povprečno število uporabnikov na skupino"]
[null,"Število srečanj na leto"]
[]
[]
[3,"Prosimo, navedite število vključenih uporabnikov po mesecih ter povprečno število ur aktivne* vključenosti uporabnikov v posamezne dejavnosti programa na mesec."]
[null,"Mesec","Število uporabnikov","Povprečno število ur aktivne* vključenosti enega uporabnika na mesec"]
[null,"januar "]
[null,"februar "]
[null,"marec "]
[null,"april "]
[null,"maj "]
[null,"junij "]
[null,"julij"]
[null,"Povprečno število na mesec",{"$f":"AVERAGE(C18:C24)","v":{"$error":"#DIV/0!"}},{"$f":"AVERAGE(D18:D24)","v":{"$error":"#DIV/0!"}}]
[null,"Opomba:\n*Aktivna vključenost pomeni, da je uporabnik aktivno vključen v dejavnosti programa. Torej pri programih, ki uporabnikom nudijo bivanje, ne vpisujete 720 ur na mesec, ampak število ur aktivne vključenosti uporabnika v program na mesec."]
[]
[]
[4,"Prosimo, navedite število RAZLIČNIH uporabnikov glede na spol in starost. Prosimo zapišite oceno, če nimate točnih podatkov."]
[null,"Starostna skupina",null,"Število moških","Število žensk","Spol ni znan oz. ni definiran"]
[null,"MLADOLETNI","do vključno 15 let"]
[null,null,"nad 15 let do 18 let"]
[null,"POLNOLETNI","nad 18 let do 35 let"]
[null,null,"nad 35 let do 50 let"]
[null,null,"nad 50 let do 65 let"]
[null,null,"nad 65 let"]
[null,"ANONIMNI","starost in/ali spol nista znana oz. definirana"]
[null,"Skupaj različnih uporabnikov ",null,{"$f":"SUM(D31:D37)","v":0},{"$f":"SUM(E31:E37)","v":0},{"$f":"SUM(F31:F37)","v":0}]
[null,"Ujemanje s prvo preglednico: ","Ujemanje: ",{"$f":"IF((E6=(D38+E38+F38)),\"SEŠTEVEK SE UJEMA\",\"SEŠTEVEK SE NE UJEMA - PREVERITE\")","v":"SEŠTEVEK SE UJEMA"}]
[null,"Opomba:\nIzvajalci, ki v bazi EVAPRO beležite drugačne starostne skupine, lahko ustvarite tabelo za izpis z navedenimi starostnimi skupinami - podrobno v »Navodilih za uporabo baze Evapro© - februar 2025«, poglavje »9.1.4 Po star. skupinah«, str. 86."]
[]
[]
[5,"Prosimo, navedite število uporabnikov glede na čas/obdobje njihove vključitve v program. Upoštevajte RAZLIČNE uporabnike. Seštevek uporabnikov mora tako biti enak podatku različnih uporabnikov iz prve preglednice. Prosimo zapišite oceno, če nimate točnih podatkov."]
[null,"Število uporabnikov, ki so program obiskovali/bili vključeni…",null,null,"Število uporabnikov"]
[null,"vsak dan ali petkrat na teden"]
[null,"enkrat ali večkrat na teden, vendar ne vsak (delovni) dan"]
[null,"večkrat/nekajkrat na mesec"]
[null,"enkrat na mesec"]
[null,"nekajkrat na leto"]
[null,"enkrat na leto"]
[null,"uporabniki, za katere ni znano, kako pogosto so obiskovali/bili vključeni v program (anonimni)"]
[null,"Skupaj število različnih uporabnikov ",null,null,{"$f":"SUM(E45:E51)","v":0}]
[null,"Ujemanje s prvo preglednico: ","Ujemanje: ",{"$f":"IF((E6=(E52)),\"SEŠTEVEK SE UJEMA\",\"SEŠTEVEK SE NE UJEMA - PREVERITE\")","v":"SEŠTEVEK SE UJEMA"}]
[]
[]
[6,"Prosimo, opredelite ciljno skupino uporabnikov - značilnosti uporabnikov, ki jim je vsebina programa namenjena:"]
[null,"po spolu"]
[null,"po starostnih skupinah"]
[null,"družinske razmere in socialno omrežje"]
[null,"glede na težavo(e), ki jo/jih imajo"]
[null,"druge pomembne značilnosti"]

{"sheet":"UP_3c","index":43,"n_rows":61,"n_cols":9,"rows_kept":61,"cut":false,"hidden":true,"merged":[[60,1,60,2],[60,3,60,8],[57,1,57,2],[57,3,57,8],[58,1,58,2],[58,3,58,8],[59,1,59,2],[59,3,59,8],[44,1,44,3],[45,1,45,3],[46,1,46,3],[47,1,47,3],[56,1,56,2],[56,3,56,8],[50,1,50,3],[51,1,51,3],[52,1,52,2],[52,3,52,4],[55,1,55,8],[4,1,4,3],[5,1,5,3],[6,1,6,3],[9,1,9,8],[10,1,10,2],[11,1,11,2],[12,1,12,2],[15,1,15,8],[48,1,48,3],[49,1,49,3],[25,1,25,8],[28,1,28,8],[29,1,29,2],[30,1,31,1],[32,1,35,1],[37,1,37,2],[38,1,38,2],[38,3,38,5],[39,1,39,8],[42,1,42,8],[43,1,43,3]]}
["UPORABNIKI - za obdobje od 1. 1. 2026 do 30. 6. 2026",null,null,null,null,null,null,"Vsebina:",{"$f":"RIGHT(CELL(\"filename\",I1),LEN(CELL(\"filename\",I1))-SEARCH(\"]\",CELL(\"filename\",I1)))","v":"UP_3c"}]
[]
[null,"Vpišite podatke za posamično vsebino, za katero ste vnesli podatke na listu \"UP_VSEBINE\" - za vsako posebej se vam odpre svoj list."]
[]
[1,"Prosimo, navedite število uporabnikov:",null,null,"Vpisujte v modre celice:"]
[null,"Skupaj število RAZLIČNIH uporabnikov (en uporabnik se šteje samo enkrat na leto)"]
[null,"Število uporabnikov na dan 1. 12. 2025 (izpis pridobite iz EVAPRO, če tega nimate oz. nimate točnega podatka, vpišite oceno števila uporabnikov na ta dan)"]
[]
[]
[2,"Če program obsega tudi delo v skupinah prosimo navedite (vpisujte samo skupine, ki ste jih prijavili znotraj izračuna javnega razpisa in so ovrednotene v pogodbi):"]
[null,"Število skupin"]
[null,"Povprečno število uporabnikov na skupino"]
[null,"Število srečanj na leto"]
[]
[]
[3,"Prosimo, navedite število vključenih uporabnikov po mesecih ter povprečno število ur aktivne* vključenosti uporabnikov v posamezne dejavnosti programa na mesec."]
[null,"Mesec","Število uporabnikov","Povprečno število ur aktivne* vključenosti enega uporabnika na mesec"]
[null,"januar "]
[null,"februar "]
[null,"marec "]
[null,"april "]
[null,"maj "]
[null,"junij "]
[null,"julij"]
[null,"Povprečno število na mesec",{"$f":"AVERAGE(C18:C24)","v":{"$error":"#DIV/0!"}},{"$f":"AVERAGE(D18:D24)","v":{"$error":"#DIV/0!"}}]
[null,"Opomba:\n*Aktivna vključenost pomeni, da je uporabnik aktivno vključen v dejavnosti programa. Torej pri programih, ki uporabnikom nudijo bivanje, ne vpisujete 720 ur na mesec, ampak število ur aktivne vključenosti uporabnika v program na mesec."]
[]
[]
[4,"Prosimo, navedite število RAZLIČNIH uporabnikov glede na spol in starost. Prosimo zapišite oceno, če nimate točnih podatkov."]
[null,"Starostna skupina",null,"Število moških","Število žensk","Spol ni znan oz. ni definiran"]
[null,"MLADOLETNI","do vključno 15 let"]
[null,null,"nad 15 let do 18 let"]
[null,"POLNOLETNI","nad 18 let do 35 let"]
[null,null,"nad 35 let do 50 let"]
[null,null,"nad 50 let do 65 let"]
[null,null,"nad 65 let"]
[null,"ANONIMNI","starost in/ali spol nista znana oz. definirana"]
[null,"Skupaj različnih uporabnikov ",null,{"$f":"SUM(D31:D37)","v":0},{"$f":"SUM(E31:E37)","v":0},{"$f":"SUM(F31:F37)","v":0}]
[null,"Ujemanje s prvo preglednico: ","Ujemanje: ",{"$f":"IF((E6=(D38+E38+F38)),\"SEŠTEVEK SE UJEMA\",\"SEŠTEVEK SE NE UJEMA - PREVERITE\")","v":"SEŠTEVEK SE UJEMA"}]
[null,"Opomba:\nIzvajalci, ki v bazi EVAPRO beležite drugačne starostne skupine, lahko ustvarite tabelo za izpis z navedenimi starostnimi skupinami - podrobno v »Navodilih za uporabo baze Evapro© - februar 2025«, poglavje »9.1.4 Po star. skupinah«, str. 86."]
[]
[]
[5,"Prosimo, navedite število uporabnikov glede na čas/obdobje njihove vključitve v program. Upoštevajte RAZLIČNE uporabnike. Seštevek uporabnikov mora tako biti enak podatku različnih uporabnikov iz prve preglednice. Prosimo zapišite oceno, če nimate točnih podatkov."]
[null,"Število uporabnikov, ki so program obiskovali/bili vključeni…",null,null,"Število uporabnikov"]
[null,"vsak dan ali petkrat na teden"]
[null,"enkrat ali večkrat na teden, vendar ne vsak (delovni) dan"]
[null,"večkrat/nekajkrat na mesec"]
[null,"enkrat na mesec"]
[null,"nekajkrat na leto"]
[null,"enkrat na leto"]
[null,"uporabniki, za katere ni znano, kako pogosto so obiskovali/bili vključeni v program (anonimni)"]
[null,"Skupaj število različnih uporabnikov ",null,null,{"$f":"SUM(E45:E51)","v":0}]
[null,"Ujemanje s prvo preglednico: ","Ujemanje: ",{"$f":"IF((E6=(E52)),\"SEŠTEVEK SE UJEMA\",\"SEŠTEVEK SE NE UJEMA - PREVERITE\")","v":"SEŠTEVEK SE UJEMA"}]
[]
[]
[6,"Prosimo, opredelite ciljno skupino uporabnikov - značilnosti uporabnikov, ki jim je vsebina programa namenjena:"]
[null,"po spolu"]
[null,"po starostnih skupinah"]
[null,"družinske razmere in socialno omrežje"]
[null,"glede na težavo(e), ki jo/jih imajo"]
[null,"druge pomembne značilnosti"]

{"sheet":"UP_3d","index":44,"n_rows":61,"n_cols":9,"rows_kept":61,"cut":false,"hidden":true,"merged":[[60,1,60,2],[60,3,60,8],[57,1,57,2],[57,3,57,8],[58,1,58,2],[58,3,58,8],[59,1,59,2],[59,3,59,8],[44,1,44,3],[45,1,45,3],[46,1,46,3],[47,1,47,3],[56,1,56,2],[56,3,56,8],[50,1,50,3],[51,1,51,3],[52,1,52,2],[52,3,52,4],[55,1,55,8],[4,1,4,3],[5,1,5,3],[6,1,6,3],[9,1,9,8],[10,1,10,2],[11,1,11,2],[12,1,12,2],[15,1,15,8],[48,1,48,3],[49,1,49,3],[25,1,25,8],[28,1,28,8],[29,1,29,2],[30,1,31,1],[32,1,35,1],[37,1,37,2],[38,1,38,2],[38,3,38,5],[39,1,39,8],[42,1,42,8],[43,1,43,3]]}
["UPORABNIKI - za obdobje od 1. 1. 2026 do 30. 6. 2026",null,null,null,null,null,null,"Vsebina:",{"$f":"RIGHT(CELL(\"filename\",I1),LEN(CELL(\"filename\",I1))-SEARCH(\"]\",CELL(\"filename\",I1)))","v":"UP_3d"}]
[]
[null,"Vpišite podatke za posamično vsebino, za katero ste vnesli podatke na listu \"UP_VSEBINE\" - za vsako posebej se vam odpre svoj list."]
[]
[1,"Prosimo, navedite število uporabnikov:",null,null,"Vpisujte v modre celice:"]
[null,"Skupaj število RAZLIČNIH uporabnikov (en uporabnik se šteje samo enkrat na leto)"]
[null,"Število uporabnikov na dan 1. 12. 2025 (izpis pridobite iz EVAPRO, če tega nimate oz. nimate točnega podatka, vpišite oceno števila uporabnikov na ta dan)"]
[]
[]
[2,"Če program obsega tudi delo v skupinah prosimo navedite (vpisujte samo skupine, ki ste jih prijavili znotraj izračuna javnega razpisa in so ovrednotene v pogodbi):"]
[null,"Število skupin"]
[null,"Povprečno število uporabnikov na skupino"]
[null,"Število srečanj na leto"]
[]
[]
[3,"Prosimo, navedite število vključenih uporabnikov po mesecih ter povprečno število ur aktivne* vključenosti uporabnikov v posamezne dejavnosti programa na mesec."]
[null,"Mesec","Število uporabnikov","Povprečno število ur aktivne* vključenosti enega uporabnika na mesec"]
[null,"januar "]
[null,"februar "]
[null,"marec "]
[null,"april "]
[null,"maj "]
[null,"junij "]
[null,"julij"]
[null,"Povprečno število na mesec",{"$f":"AVERAGE(C18:C24)","v":{"$error":"#DIV/0!"}},{"$f":"AVERAGE(D18:D24)","v":{"$error":"#DIV/0!"}}]
[null,"Opomba:\n*Aktivna vključenost pomeni, da je uporabnik aktivno vključen v dejavnosti programa. Torej pri programih, ki uporabnikom nudijo bivanje, ne vpisujete 720 ur na mesec, ampak število ur aktivne vključenosti uporabnika v program na mesec."]
[]
[]
[4,"Prosimo, navedite število RAZLIČNIH uporabnikov glede na spol in starost. Prosimo zapišite oceno, če nimate točnih podatkov."]
[null,"Starostna skupina",null,"Število moških","Število žensk","Spol ni znan oz. ni definiran"]
[null,"MLADOLETNI","do vključno 15 let"]
[null,null,"nad 15 let do 18 let"]
[null,"POLNOLETNI","nad 18 let do 35 let"]
[null,null,"nad 35 let do 50 let"]
[null,null,"nad 50 let do 65 let"]
[null,null,"nad 65 let"]
[null,"ANONIMNI","starost in/ali spol nista znana oz. definirana"]
[null,"Skupaj različnih uporabnikov ",null,{"$f":"SUM(D31:D37)","v":0},{"$f":"SUM(E31:E37)","v":0},{"$f":"SUM(F31:F37)","v":0}]
[null,"Ujemanje s prvo preglednico: ","Ujemanje: ",{"$f":"IF((E6=(D38+E38+F38)),\"SEŠTEVEK SE UJEMA\",\"SEŠTEVEK SE NE UJEMA - PREVERITE\")","v":"SEŠTEVEK SE UJEMA"}]
[null,"Opomba:\nIzvajalci, ki v bazi EVAPRO beležite drugačne starostne skupine, lahko ustvarite tabelo za izpis z navedenimi starostnimi skupinami - podrobno v »Navodilih za uporabo baze Evapro© - februar 2025«, poglavje »9.1.4 Po star. skupinah«, str. 86."]
[]
[]
[5,"Prosimo, navedite število uporabnikov glede na čas/obdobje njihove vključitve v program. Upoštevajte RAZLIČNE uporabnike. Seštevek uporabnikov mora tako biti enak podatku različnih uporabnikov iz prve preglednice. Prosimo zapišite oceno, če nimate točnih podatkov."]
[null,"Število uporabnikov, ki so program obiskovali/bili vključeni…",null,null,"Število uporabnikov"]
[null,"vsak dan ali petkrat na teden"]
[null,"enkrat ali večkrat na teden, vendar ne vsak (delovni) dan"]
[null,"večkrat/nekajkrat na mesec"]
[null,"enkrat na mesec"]
[null,"nekajkrat na leto"]
[null,"enkrat na leto"]
[null,"uporabniki, za katere ni znano, kako pogosto so obiskovali/bili vključeni v program (anonimni)"]
[null,"Skupaj število različnih uporabnikov ",null,null,{"$f":"SUM(E45:E51)","v":0}]
[null,"Ujemanje s prvo preglednico: ","Ujemanje: ",{"$f":"IF((E6=(E52)),\"SEŠTEVEK SE UJEMA\",\"SEŠTEVEK SE NE UJEMA - PREVERITE\")","v":"SEŠTEVEK SE UJEMA"}]
[]
[]
[6,"Prosimo, opredelite ciljno skupino uporabnikov - značilnosti uporabnikov, ki jim je vsebina programa namenjena:"]
[null,"po spolu"]
[null,"po starostnih skupinah"]
[null,"družinske razmere in socialno omrežje"]
[null,"glede na težavo(e), ki jo/jih imajo"]
[null,"druge pomembne značilnosti"]

{"sheet":"UP_3e","index":45,"n_rows":61,"n_cols":9,"rows_kept":61,"cut":false,"hidden":true,"merged":[[60,1,60,2],[60,3,60,8],[57,1,57,2],[57,3,57,8],[58,1,58,2],[58,3,58,8],[59,1,59,2],[59,3,59,8],[44,1,44,3],[45,1,45,3],[46,1,46,3],[47,1,47,3],[56,1,56,2],[56,3,56,8],[50,1,50,3],[51,1,51,3],[52,1,52,2],[52,3,52,4],[55,1,55,8],[4,1,4,3],[5,1,5,3],[6,1,6,3],[9,1,9,8],[10,1,10,2],[11,1,11,2],[12,1,12,2],[15,1,15,8],[48,1,48,3],[49,1,49,3],[25,1,25,8],[28,1,28,8],[29,1,29,2],[30,1,31,1],[32,1,35,1],[37,1,37,2],[38,1,38,2],[38,3,38,5],[39,1,39,8],[42,1,42,8],[43,1,43,3]]}
["UPORABNIKI - za obdobje od 1. 1. 2026 do 30. 6. 2026",null,null,null,null,null,null,"Vsebina:",{"$f":"RIGHT(CELL(\"filename\",I1),LEN(CELL(\"filename\",I1))-SEARCH(\"]\",CELL(\"filename\",I1)))","v":"UP_3e"}]
[]
[null,"Vpišite podatke za posamično vsebino, za katero ste vnesli podatke na listu \"UP_VSEBINE\" - za vsako posebej se vam odpre svoj list."]
[]
[1,"Prosimo, navedite število uporabnikov:",null,null,"Vpisujte v modre celice:"]
[null,"Skupaj število RAZLIČNIH uporabnikov (en uporabnik se šteje samo enkrat na leto)"]
[null,"Število uporabnikov na dan 1. 12. 2025 (izpis pridobite iz EVAPRO, če tega nimate oz. nimate točnega podatka, vpišite oceno števila uporabnikov na ta dan)"]
[]
[]
[2,"Če program obsega tudi delo v skupinah prosimo navedite (vpisujte samo skupine, ki ste jih prijavili znotraj izračuna javnega razpisa in so ovrednotene v pogodbi):"]
[null,"Število skupin"]
[null,"Povprečno število uporabnikov na skupino"]
[null,"Število srečanj na leto"]
[]
[]
[3,"Prosimo, navedite število vključenih uporabnikov po mesecih ter povprečno število ur aktivne* vključenosti uporabnikov v posamezne dejavnosti programa na mesec."]
[null,"Mesec","Število uporabnikov","Povprečno število ur aktivne* vključenosti enega uporabnika na mesec"]
[null,"januar "]
[null,"februar "]
[null,"marec "]
[null,"april "]
[null,"maj "]
[null,"junij "]
[null,"julij"]
[null,"Povprečno število na mesec",{"$f":"AVERAGE(C18:C24)","v":{"$error":"#DIV/0!"}},{"$f":"AVERAGE(D18:D24)","v":{"$error":"#DIV/0!"}}]
[null,"Opomba:\n*Aktivna vključenost pomeni, da je uporabnik aktivno vključen v dejavnosti programa. Torej pri programih, ki uporabnikom nudijo bivanje, ne vpisujete 720 ur na mesec, ampak število ur aktivne vključenosti uporabnika v program na mesec."]
[]
[]
[4,"Prosimo, navedite število RAZLIČNIH uporabnikov glede na spol in starost. Prosimo zapišite oceno, če nimate točnih podatkov."]
[null,"Starostna skupina",null,"Število moških","Število žensk","Spol ni znan oz. ni definiran"]
[null,"MLADOLETNI","do vključno 15 let"]
[null,null,"nad 15 let do 18 let"]
[null,"POLNOLETNI","nad 18 let do 35 let"]
[null,null,"nad 35 let do 50 let"]
[null,null,"nad 50 let do 65 let"]
[null,null,"nad 65 let"]
[null,"ANONIMNI","starost in/ali spol nista znana oz. definirana"]
[null,"Skupaj različnih uporabnikov ",null,{"$f":"SUM(D31:D37)","v":0},{"$f":"SUM(E31:E37)","v":0},{"$f":"SUM(F31:F37)","v":0}]
[null,"Ujemanje s prvo preglednico: ","Ujemanje: ",{"$f":"IF((E6=(D38+E38+F38)),\"SEŠTEVEK SE UJEMA\",\"SEŠTEVEK SE NE UJEMA - PREVERITE\")","v":"SEŠTEVEK SE UJEMA"}]
[null,"Opomba:\nIzvajalci, ki v bazi EVAPRO beležite drugačne starostne skupine, lahko ustvarite tabelo za izpis z navedenimi starostnimi skupinami - podrobno v »Navodilih za uporabo baze Evapro© - februar 2025«, poglavje »9.1.4 Po star. skupinah«, str. 86."]
[]
[]
[5,"Prosimo, navedite število uporabnikov glede na čas/obdobje njihove vključitve v program. Upoštevajte RAZLIČNE uporabnike. Seštevek uporabnikov mora tako biti enak podatku različnih uporabnikov iz prve preglednice. Prosimo zapišite oceno, če nimate točnih podatkov."]
[null,"Število uporabnikov, ki so program obiskovali/bili vključeni…",null,null,"Število uporabnikov"]
[null,"vsak dan ali petkrat na teden"]
[null,"enkrat ali večkrat na teden, vendar ne vsak (delovni) dan"]
[null,"večkrat/nekajkrat na mesec"]
[null,"enkrat na mesec"]
[null,"nekajkrat na leto"]
[null,"enkrat na leto"]
[null,"uporabniki, za katere ni znano, kako pogosto so obiskovali/bili vključeni v program (anonimni)"]
[null,"Skupaj število različnih uporabnikov ",null,null,{"$f":"SUM(E45:E51)","v":0}]
[null,"Ujemanje s prvo preglednico: ","Ujemanje: ",{"$f":"IF((E6=(E52)),\"SEŠTEVEK SE UJEMA\",\"SEŠTEVEK SE NE UJEMA - PREVERITE\")","v":"SEŠTEVEK SE UJEMA"}]
[]
[]
[6,"Prosimo, opredelite ciljno skupino uporabnikov - značilnosti uporabnikov, ki jim je vsebina programa namenjena:"]
[null,"po spolu"]
[null,"po starostnih skupinah"]
[null,"družinske razmere in socialno omrežje"]
[null,"glede na težavo(e), ki jo/jih imajo"]
[null,"druge pomembne značilnosti"]

{"sheet":"UP_3f","index":46,"n_rows":61,"n_cols":9,"rows_kept":61,"cut":false,"hidden":true,"merged":[[60,1,60,2],[60,3,60,8],[57,1,57,2],[57,3,57,8],[58,1,58,2],[58,3,58,8],[59,1,59,2],[59,3,59,8],[44,1,44,3],[45,1,45,3],[46,1,46,3],[47,1,47,3],[56,1,56,2],[56,3,56,8],[50,1,50,3],[51,1,51,3],[52,1,52,2],[52,3,52,4],[55,1,55,8],[4,1,4,3],[5,1,5,3],[6,1,6,3],[9,1,9,8],[10,1,10,2],[11,1,11,2],[12,1,12,2],[15,1,15,8],[48,1,48,3],[49,1,49,3],[25,1,25,8],[28,1,28,8],[29,1,29,2],[30,1,31,1],[32,1,35,1],[37,1,37,2],[38,1,38,2],[38,3,38,5],[39,1,39,8],[42,1,42,8],[43,1,43,3]]}
["UPORABNIKI - za obdobje od 1. 1. 2026 do 30. 6. 2026",null,null,null,null,null,null,"Vsebina:",{"$f":"RIGHT(CELL(\"filename\",I1),LEN(CELL(\"filename\",I1))-SEARCH(\"]\",CELL(\"filename\",I1)))","v":"UP_3f"}]
[]
[null,"Vpišite podatke za posamično vsebino, za katero ste vnesli podatke na listu \"UP_VSEBINE\" - za vsako posebej se vam odpre svoj list."]
[]
[1,"Prosimo, navedite število uporabnikov:",null,null,"Vpisujte v modre celice:"]
[null,"Skupaj število RAZLIČNIH uporabnikov (en uporabnik se šteje samo enkrat na leto)"]
[null,"Število uporabnikov na dan 1. 12. 2025 (izpis pridobite iz EVAPRO, če tega nimate oz. nimate točnega podatka, vpišite oceno števila uporabnikov na ta dan)"]
[]
[]
[2,"Če program obsega tudi delo v skupinah prosimo navedite (vpisujte samo skupine, ki ste jih prijavili znotraj izračuna javnega razpisa in so ovrednotene v pogodbi):"]
[null,"Število skupin"]
[null,"Povprečno število uporabnikov na skupino"]
[null,"Število srečanj na leto"]
[]
[]
[3,"Prosimo, navedite število vključenih uporabnikov po mesecih ter povprečno število ur aktivne* vključenosti uporabnikov v posamezne dejavnosti programa na mesec."]
[null,"Mesec","Število uporabnikov","Povprečno število ur aktivne* vključenosti enega uporabnika na mesec"]
[null,"januar "]
[null,"februar "]
[null,"marec "]
[null,"april "]
[null,"maj "]
[null,"junij "]
[null,"julij"]
[null,"Povprečno število na mesec",{"$f":"AVERAGE(C18:C24)","v":{"$error":"#DIV/0!"}},{"$f":"AVERAGE(D18:D24)","v":{"$error":"#DIV/0!"}}]
[null,"Opomba:\n*Aktivna vključenost pomeni, da je uporabnik aktivno vključen v dejavnosti programa. Torej pri programih, ki uporabnikom nudijo bivanje, ne vpisujete 720 ur na mesec, ampak število ur aktivne vključenosti uporabnika v program na mesec."]
[]
[]
[4,"Prosimo, navedite število RAZLIČNIH uporabnikov glede na spol in starost. Prosimo zapišite oceno, če nimate točnih podatkov."]
[null,"Starostna skupina",null,"Število moških","Število žensk","Spol ni znan oz. ni definiran"]
[null,"MLADOLETNI","do vključno 15 let"]
[null,null,"nad 15 let do 18 let"]
[null,"POLNOLETNI","nad 18 let do 35 let"]
[null,null,"nad 35 let do 50 let"]
[null,null,"nad 50 let do 65 let"]
[null,null,"nad 65 let"]
[null,"ANONIMNI","starost in/ali spol nista znana oz. definirana"]
[null,"Skupaj različnih uporabnikov ",null,{"$f":"SUM(D31:D37)","v":0},{"$f":"SUM(E31:E37)","v":0},{"$f":"SUM(F31:F37)","v":0}]
[null,"Ujemanje s prvo preglednico: ","Ujemanje: ",{"$f":"IF((E6=(D38+E38+F38)),\"SEŠTEVEK SE UJEMA\",\"SEŠTEVEK SE NE UJEMA - PREVERITE\")","v":"SEŠTEVEK SE UJEMA"}]
[null,"Opomba:\nIzvajalci, ki v bazi EVAPRO beležite drugačne starostne skupine, lahko ustvarite tabelo za izpis z navedenimi starostnimi skupinami - podrobno v »Navodilih za uporabo baze Evapro© - februar 2025«, poglavje »9.1.4 Po star. skupinah«, str. 86."]
[]
[]
[5,"Prosimo, navedite število uporabnikov glede na čas/obdobje njihove vključitve v program. Upoštevajte RAZLIČNE uporabnike. Seštevek uporabnikov mora tako biti enak podatku različnih uporabnikov iz prve preglednice. Prosimo zapišite oceno, če nimate točnih podatkov."]
[null,"Število uporabnikov, ki so program obiskovali/bili vključeni…",null,null,"Število uporabnikov"]
[null,"vsak dan ali petkrat na teden"]
[null,"enkrat ali večkrat na teden, vendar ne vsak (delovni) dan"]
[null,"večkrat/nekajkrat na mesec"]
[null,"enkrat na mesec"]
[null,"nekajkrat na leto"]
[null,"enkrat na leto"]
[null,"uporabniki, za katere ni znano, kako pogosto so obiskovali/bili vključeni v program (anonimni)"]
[null,"Skupaj število različnih uporabnikov ",null,null,{"$f":"SUM(E45:E51)","v":0}]
[null,"Ujemanje s prvo preglednico: ","Ujemanje: ",{"$f":"IF((E6=(E52)),\"SEŠTEVEK SE UJEMA\",\"SEŠTEVEK SE NE UJEMA - PREVERITE\")","v":"SEŠTEVEK SE UJEMA"}]
[]
[]
[6,"Prosimo, opredelite ciljno skupino uporabnikov - značilnosti uporabnikov, ki jim je vsebina programa namenjena:"]
[null,"po spolu"]
[null,"po starostnih skupinah"]
[null,"družinske razmere in socialno omrežje"]
[null,"glede na težavo(e), ki jo/jih imajo"]
[null,"druge pomembne značilnosti"]

{"sheet":"UP_3g","index":47,"n_rows":61,"n_cols":9,"rows_kept":61,"cut":false,"hidden":true,"merged":[[60,1,60,2],[60,3,60,8],[57,1,57,2],[57,3,57,8],[58,1,58,2],[58,3,58,8],[59,1,59,2],[59,3,59,8],[44,1,44,3],[45,1,45,3],[46,1,46,3],[47,1,47,3],[56,1,56,2],[56,3,56,8],[50,1,50,3],[51,1,51,3],[52,1,52,2],[52,3,52,4],[55,1,55,8],[4,1,4,3],[5,1,5,3],[6,1,6,3],[9,1,9,8],[10,1,10,2],[11,1,11,2],[12,1,12,2],[15,1,15,8],[48,1,48,3],[49,1,49,3],[25,1,25,8],[28,1,28,8],[29,1,29,2],[30,1,31,1],[32,1,35,1],[37,1,37,2],[38,1,38,2],[38,3,38,5],[39,1,39,8],[42,1,42,8],[43,1,43,3]]}
["UPORABNIKI - za obdobje od 1. 1. 2026 do 30. 6. 2026",null,null,null,null,null,null,"Vsebina:",{"$f":"RIGHT(CELL(\"filename\",I1),LEN(CELL(\"filename\",I1))-SEARCH(\"]\",CELL(\"filename\",I1)))","v":"UP_3g"}]
[]
[null,"Vpišite podatke za posamično vsebino, za katero ste vnesli podatke na listu \"UP_VSEBINE\" - za vsako posebej se vam odpre svoj list."]
[]
[1,"Prosimo, navedite število uporabnikov:",null,null,"Vpisujte v modre celice:"]
[null,"Skupaj število RAZLIČNIH uporabnikov (en uporabnik se šteje samo enkrat na leto)"]
[null,"Število uporabnikov na dan 1. 12. 2025 (izpis pridobite iz EVAPRO, če tega nimate oz. nimate točnega podatka, vpišite oceno števila uporabnikov na ta dan)"]
[]
[]
[2,"Če program obsega tudi delo v skupinah prosimo navedite (vpisujte samo skupine, ki ste jih prijavili znotraj izračuna javnega razpisa in so ovrednotene v pogodbi):"]
[null,"Število skupin"]
[null,"Povprečno število uporabnikov na skupino"]
[null,"Število srečanj na leto"]
[]
[]
[3,"Prosimo, navedite število vključenih uporabnikov po mesecih ter povprečno število ur aktivne* vključenosti uporabnikov v posamezne dejavnosti programa na mesec."]
[null,"Mesec","Število uporabnikov","Povprečno število ur aktivne* vključenosti enega uporabnika na mesec"]
[null,"januar "]
[null,"februar "]
[null,"marec "]
[null,"april "]
[null,"maj "]
[null,"junij "]
[null,"julij"]
[null,"Povprečno število na mesec",{"$f":"AVERAGE(C18:C24)","v":{"$error":"#DIV/0!"}},{"$f":"AVERAGE(D18:D24)","v":{"$error":"#DIV/0!"}}]
[null,"Opomba:\n*Aktivna vključenost pomeni, da je uporabnik aktivno vključen v dejavnosti programa. Torej pri programih, ki uporabnikom nudijo bivanje, ne vpisujete 720 ur na mesec, ampak število ur aktivne vključenosti uporabnika v program na mesec."]
[]
[]
[4,"Prosimo, navedite število RAZLIČNIH uporabnikov glede na spol in starost. Prosimo zapišite oceno, če nimate točnih podatkov."]
[null,"Starostna skupina",null,"Število moških","Število žensk","Spol ni znan oz. ni definiran"]
[null,"MLADOLETNI","do vključno 15 let"]
[null,null,"nad 15 let do 18 let"]
[null,"POLNOLETNI","nad 18 let do 35 let"]
[null,null,"nad 35 let do 50 let"]
[null,null,"nad 50 let do 65 let"]
[null,null,"nad 65 let"]
[null,"ANONIMNI","starost in/ali spol nista znana oz. definirana"]
[null,"Skupaj različnih uporabnikov ",null,{"$f":"SUM(D31:D37)","v":0},{"$f":"SUM(E31:E37)","v":0},{"$f":"SUM(F31:F37)","v":0}]
[null,"Ujemanje s prvo preglednico: ","Ujemanje: ",{"$f":"IF((E6=(D38+E38+F38)),\"SEŠTEVEK SE UJEMA\",\"SEŠTEVEK SE NE UJEMA - PREVERITE\")","v":"SEŠTEVEK SE UJEMA"}]
[null,"Opomba:\nIzvajalci, ki v bazi EVAPRO beležite drugačne starostne skupine, lahko ustvarite tabelo za izpis z navedenimi starostnimi skupinami - podrobno v »Navodilih za uporabo baze Evapro© - februar 2025«, poglavje »9.1.4 Po star. skupinah«, str. 86."]
[]
[]
[5,"Prosimo, navedite število uporabnikov glede na čas/obdobje njihove vključitve v program. Upoštevajte RAZLIČNE uporabnike. Seštevek uporabnikov mora tako biti enak podatku različnih uporabnikov iz prve preglednice. Prosimo zapišite oceno, če nimate točnih podatkov."]
[null,"Število uporabnikov, ki so program obiskovali/bili vključeni…",null,null,"Število uporabnikov"]
[null,"vsak dan ali petkrat na teden"]
[null,"enkrat ali večkrat na teden, vendar ne vsak (delovni) dan"]
[null,"večkrat/nekajkrat na mesec"]
[null,"enkrat na mesec"]
[null,"nekajkrat na leto"]
[null,"enkrat na leto"]
[null,"uporabniki, za katere ni znano, kako pogosto so obiskovali/bili vključeni v program (anonimni)"]
[null,"Skupaj število različnih uporabnikov ",null,null,{"$f":"SUM(E45:E51)","v":0}]
[null,"Ujemanje s prvo preglednico: ","Ujemanje: ",{"$f":"IF((E6=(E52)),\"SEŠTEVEK SE UJEMA\",\"SEŠTEVEK SE NE UJEMA - PREVERITE\")","v":"SEŠTEVEK SE UJEMA"}]
[]
[]
[6,"Prosimo, opredelite ciljno skupino uporabnikov - značilnosti uporabnikov, ki jim je vsebina programa namenjena:"]
[null,"po spolu"]
[null,"po starostnih skupinah"]
[null,"družinske razmere in socialno omrežje"]
[null,"glede na težavo(e), ki jo/jih imajo"]
[null,"druge pomembne značilnosti"]

{"sheet":"UP_3h","index":48,"n_rows":61,"n_cols":9,"rows_kept":61,"cut":false,"hidden":true,"merged":[[60,1,60,2],[60,3,60,8],[57,1,57,2],[57,3,57,8],[58,1,58,2],[58,3,58,8],[59,1,59,2],[59,3,59,8],[44,1,44,3],[45,1,45,3],[46,1,46,3],[47,1,47,3],[56,1,56,2],[56,3,56,8],[50,1,50,3],[51,1,51,3],[52,1,52,2],[52,3,52,4],[55,1,55,8],[4,1,4,3],[5,1,5,3],[6,1,6,3],[9,1,9,8],[10,1,10,2],[11,1,11,2],[12,1,12,2],[15,1,15,8],[48,1,48,3],[49,1,49,3],[25,1,25,8],[28,1,28,8],[29,1,29,2],[30,1,31,1],[32,1,35,1],[37,1,37,2],[38,1,38,2],[38,3,38,5],[39,1,39,8],[42,1,42,8],[43,1,43,3]]}
["UPORABNIKI - za obdobje od 1. 1. 2026 do 30. 6. 2026",null,null,null,null,null,null,"Vsebina:",{"$f":"RIGHT(CELL(\"filename\",I1),LEN(CELL(\"filename\",I1))-SEARCH(\"]\",CELL(\"filename\",I1)))","v":"UP_3h"}]
[]
[null,"Vpišite podatke za posamično vsebino, za katero ste vnesli podatke na listu \"UP_VSEBINE\" - za vsako posebej se vam odpre svoj list."]
[]
[1,"Prosimo, navedite število uporabnikov:",null,null,"Vpisujte v modre celice:"]
[null,"Skupaj število RAZLIČNIH uporabnikov (en uporabnik se šteje samo enkrat na leto)"]
[null,"Število uporabnikov na dan 1. 12. 2025 (izpis pridobite iz EVAPRO, če tega nimate oz. nimate točnega podatka, vpišite oceno števila uporabnikov na ta dan)"]
[]
[]
[2,"Če program obsega tudi delo v skupinah prosimo navedite (vpisujte samo skupine, ki ste jih prijavili znotraj izračuna javnega razpisa in so ovrednotene v pogodbi):"]
[null,"Število skupin"]
[null,"Povprečno število uporabnikov na skupino"]
[null,"Število srečanj na leto"]
[]
[]
[3,"Prosimo, navedite število vključenih uporabnikov po mesecih ter povprečno število ur aktivne* vključenosti uporabnikov v posamezne dejavnosti programa na mesec."]
[null,"Mesec","Število uporabnikov","Povprečno število ur aktivne* vključenosti enega uporabnika na mesec"]
[null,"januar "]
[null,"februar "]
[null,"marec "]
[null,"april "]
[null,"maj "]
[null,"junij "]
[null,"julij"]
[null,"Povprečno število na mesec",{"$f":"AVERAGE(C18:C24)","v":{"$error":"#DIV/0!"}},{"$f":"AVERAGE(D18:D24)","v":{"$error":"#DIV/0!"}}]
[null,"Opomba:\n*Aktivna vključenost pomeni, da je uporabnik aktivno vključen v dejavnosti programa. Torej pri programih, ki uporabnikom nudijo bivanje, ne vpisujete 720 ur na mesec, ampak število ur aktivne vključenosti uporabnika v program na mesec."]
[]
[]
[4,"Prosimo, navedite število RAZLIČNIH uporabnikov glede na spol in starost. Prosimo zapišite oceno, če nimate točnih podatkov."]
[null,"Starostna skupina",null,"Število moških","Število žensk","Spol ni znan oz. ni definiran"]
[null,"MLADOLETNI","do vključno 15 let"]
[null,null,"nad 15 let do 18 let"]
[null,"POLNOLETNI","nad 18 let do 35 let"]
[null,null,"nad 35 let do 50 let"]
[null,null,"nad 50 let do 65 let"]
[null,null,"nad 65 let"]
[null,"ANONIMNI","starost in/ali spol nista znana oz. definirana"]
[null,"Skupaj različnih uporabnikov ",null,{"$f":"SUM(D31:D37)","v":0},{"$f":"SUM(E31:E37)","v":0},{"$f":"SUM(F31:F37)","v":0}]
[null,"Ujemanje s prvo preglednico: ","Ujemanje: ",{"$f":"IF((E6=(D38+E38+F38)),\"SEŠTEVEK SE UJEMA\",\"SEŠTEVEK SE NE UJEMA - PREVERITE\")","v":"SEŠTEVEK SE UJEMA"}]
[null,"Opomba:\nIzvajalci, ki v bazi EVAPRO beležite drugačne starostne skupine, lahko ustvarite tabelo za izpis z navedenimi starostnimi skupinami - podrobno v »Navodilih za uporabo baze Evapro© - februar 2025«, poglavje »9.1.4 Po star. skupinah«, str. 86."]
[]
[]
[5,"Prosimo, navedite število uporabnikov glede na čas/obdobje njihove vključitve v program. Upoštevajte RAZLIČNE uporabnike. Seštevek uporabnikov mora tako biti enak podatku različnih uporabnikov iz prve preglednice. Prosimo zapišite oceno, če nimate točnih podatkov."]
[null,"Število uporabnikov, ki so program obiskovali/bili vključeni…",null,null,"Število uporabnikov"]
[null,"vsak dan ali petkrat na teden"]
[null,"enkrat ali večkrat na teden, vendar ne vsak (delovni) dan"]
[null,"večkrat/nekajkrat na mesec"]
[null,"enkrat na mesec"]
[null,"nekajkrat na leto"]
[null,"enkrat na leto"]
[null,"uporabniki, za katere ni znano, kako pogosto so obiskovali/bili vključeni v program (anonimni)"]
[null,"Skupaj število različnih uporabnikov ",null,null,{"$f":"SUM(E45:E51)","v":0}]
[null,"Ujemanje s prvo preglednico: ","Ujemanje: ",{"$f":"IF((E6=(E52)),\"SEŠTEVEK SE UJEMA\",\"SEŠTEVEK SE NE UJEMA - PREVERITE\")","v":"SEŠTEVEK SE UJEMA"}]
[]
[]
[6,"Prosimo, opredelite ciljno skupino uporabnikov - značilnosti uporabnikov, ki jim je vsebina programa namenjena:"]
[null,"po spolu"]
[null,"po starostnih skupinah"]
[null,"družinske razmere in socialno omrežje"]
[null,"glede na težavo(e), ki jo/jih imajo"]
[null,"druge pomembne značilnosti"]

{"sheet":"UP_3i","index":49,"n_rows":61,"n_cols":9,"rows_kept":61,"cut":false,"hidden":true,"merged":[[60,1,60,2],[60,3,60,8],[57,1,57,2],[57,3,57,8],[58,1,58,2],[58,3,58,8],[59,1,59,2],[59,3,59,8],[44,1,44,3],[45,1,45,3],[46,1,46,3],[47,1,47,3],[56,1,56,2],[56,3,56,8],[50,1,50,3],[51,1,51,3],[52,1,52,2],[52,3,52,4],[55,1,55,8],[4,1,4,3],[5,1,5,3],[6,1,6,3],[9,1,9,8],[10,1,10,2],[11,1,11,2],[12,1,12,2],[15,1,15,8],[48,1,48,3],[49,1,49,3],[25,1,25,8],[28,1,28,8],[29,1,29,2],[30,1,31,1],[32,1,35,1],[37,1,37,2],[38,1,38,2],[38,3,38,5],[39,1,39,8],[42,1,42,8],[43,1,43,3]]}
["UPORABNIKI - za obdobje od 1. 1. 2026 do 30. 6. 2026",null,null,null,null,null,null,"Vsebina:",{"$f":"RIGHT(CELL(\"filename\",I1),LEN(CELL(\"filename\",I1))-SEARCH(\"]\",CELL(\"filename\",I1)))","v":"UP_3i"}]
[]
[null,"Vpišite podatke za posamično vsebino, za katero ste vnesli podatke na listu \"UP_VSEBINE\" - za vsako posebej se vam odpre svoj list."]
[]
[1,"Prosimo, navedite število uporabnikov:",null,null,"Vpisujte v modre celice:"]
[null,"Skupaj število RAZLIČNIH uporabnikov (en uporabnik se šteje samo enkrat na leto)"]
[null,"Število uporabnikov na dan 1. 12. 2025 (izpis pridobite iz EVAPRO, če tega nimate oz. nimate točnega podatka, vpišite oceno števila uporabnikov na ta dan)"]
[]
[]
[2,"Če program obsega tudi delo v skupinah prosimo navedite (vpisujte samo skupine, ki ste jih prijavili znotraj izračuna javnega razpisa in so ovrednotene v pogodbi):"]
[null,"Število skupin"]
[null,"Povprečno število uporabnikov na skupino"]
[null,"Število srečanj na leto"]
[]
[]
[3,"Prosimo, navedite število vključenih uporabnikov po mesecih ter povprečno število ur aktivne* vključenosti uporabnikov v posamezne dejavnosti programa na mesec."]
[null,"Mesec","Število uporabnikov","Povprečno število ur aktivne* vključenosti enega uporabnika na mesec"]
[null,"januar "]
[null,"februar "]
[null,"marec "]
[null,"april "]
[null,"maj "]
[null,"junij "]
[null,"julij"]
[null,"Povprečno število na mesec",{"$f":"AVERAGE(C18:C24)","v":{"$error":"#DIV/0!"}},{"$f":"AVERAGE(D18:D24)","v":{"$error":"#DIV/0!"}}]
[null,"Opomba:\n*Aktivna vključenost pomeni, da je uporabnik aktivno vključen v dejavnosti programa. Torej pri programih, ki uporabnikom nudijo bivanje, ne vpisujete 720 ur na mesec, ampak število ur aktivne vključenosti uporabnika v program na mesec."]
[]
[]
[4,"Prosimo, navedite število RAZLIČNIH uporabnikov glede na spol in starost. Prosimo zapišite oceno, če nimate točnih podatkov."]
[null,"Starostna skupina",null,"Število moških","Število žensk","Spol ni znan oz. ni definiran"]
[null,"MLADOLETNI","do vključno 15 let"]
[null,null,"nad 15 let do 18 let"]
[null,"POLNOLETNI","nad 18 let do 35 let"]
[null,null,"nad 35 let do 50 let"]
[null,null,"nad 50 let do 65 let"]
[null,null,"nad 65 let"]
[null,"ANONIMNI","starost in/ali spol nista znana oz. definirana"]
[null,"Skupaj različnih uporabnikov ",null,{"$f":"SUM(D31:D37)","v":0},{"$f":"SUM(E31:E37)","v":0},{"$f":"SUM(F31:F37)","v":0}]
[null,"Ujemanje s prvo preglednico: ","Ujemanje: ",{"$f":"IF((E6=(D38+E38+F38)),\"SEŠTEVEK SE UJEMA\",\"SEŠTEVEK SE NE UJEMA - PREVERITE\")","v":"SEŠTEVEK SE UJEMA"}]
[null,"Opomba:\nIzvajalci, ki v bazi EVAPRO beležite drugačne starostne skupine, lahko ustvarite tabelo za izpis z navedenimi starostnimi skupinami - podrobno v »Navodilih za uporabo baze Evapro© - februar 2025«, poglavje »9.1.4 Po star. skupinah«, str. 86."]
[]
[]
[5,"Prosimo, navedite število uporabnikov glede na čas/obdobje njihove vključitve v program. Upoštevajte RAZLIČNE uporabnike. Seštevek uporabnikov mora tako biti enak podatku različnih uporabnikov iz prve preglednice. Prosimo zapišite oceno, če nimate točnih podatkov."]
[null,"Število uporabnikov, ki so program obiskovali/bili vključeni…",null,null,"Število uporabnikov"]
[null,"vsak dan ali petkrat na teden"]
[null,"enkrat ali večkrat na teden, vendar ne vsak (delovni) dan"]
[null,"večkrat/nekajkrat na mesec"]
[null,"enkrat na mesec"]
[null,"nekajkrat na leto"]
[null,"enkrat na leto"]
[null,"uporabniki, za katere ni znano, kako pogosto so obiskovali/bili vključeni v program (anonimni)"]
[null,"Skupaj število različnih uporabnikov ",null,null,{"$f":"SUM(E45:E51)","v":0}]
[null,"Ujemanje s prvo preglednico: ","Ujemanje: ",{"$f":"IF((E6=(E52)),\"SEŠTEVEK SE UJEMA\",\"SEŠTEVEK SE NE UJEMA - PREVERITE\")","v":"SEŠTEVEK SE UJEMA"}]
[]
[]
[6,"Prosimo, opredelite ciljno skupino uporabnikov - značilnosti uporabnikov, ki jim je vsebina programa namenjena:"]
[null,"po spolu"]
[null,"po starostnih skupinah"]
[null,"družinske razmere in socialno omrežje"]
[null,"glede na težavo(e), ki jo/jih imajo"]
[null,"druge pomembne značilnosti"]

{"sheet":"UP_4a","index":50,"n_rows":61,"n_cols":9,"rows_kept":61,"cut":false,"hidden":true,"merged":[[60,1,60,2],[60,3,60,8],[57,1,57,2],[57,3,57,8],[58,1,58,2],[58,3,58,8],[59,1,59,2],[59,3,59,8],[44,1,44,3],[45,1,45,3],[46,1,46,3],[47,1,47,3],[56,1,56,2],[56,3,56,8],[50,1,50,3],[51,1,51,3],[52,1,52,2],[52,3,52,4],[55,1,55,8],[4,1,4,3],[5,1,5,3],[6,1,6,3],[9,1,9,8],[10,1,10,2],[11,1,11,2],[12,1,12,2],[15,1,15,8],[48,1,48,3],[49,1,49,3],[25,1,25,8],[28,1,28,8],[29,1,29,2],[30,1,31,1],[32,1,35,1],[37,1,37,2],[38,1,38,2],[38,3,38,5],[39,1,39,8],[42,1,42,8],[43,1,43,3]]}
["UPORABNIKI - za obdobje od 1. 1. 2026 do 30. 6. 2026",null,null,null,null,null,null,"Vsebina:",{"$f":"RIGHT(CELL(\"filename\",I1),LEN(CELL(\"filename\",I1))-SEARCH(\"]\",CELL(\"filename\",I1)))","v":"UP_4a"}]
[]
[null,"Vpišite podatke za posamično vsebino, za katero ste vnesli podatke na listu \"UP_VSEBINE\" - za vsako posebej se vam odpre svoj list."]
[]
[1,"Prosimo, navedite število uporabnikov:",null,null,"Vpisujte v modre celice:"]
[null,"Skupaj število RAZLIČNIH uporabnikov (en uporabnik se šteje samo enkrat na leto)"]
[null,"Število uporabnikov na dan 1. 12. 2025 (izpis pridobite iz EVAPRO, če tega nimate oz. nimate točnega podatka, vpišite oceno števila uporabnikov na ta dan)"]
[]
[]
[2,"Če program obsega tudi delo v skupinah prosimo navedite (vpisujte samo skupine, ki ste jih prijavili znotraj izračuna javnega razpisa in so ovrednotene v pogodbi):"]
[null,"Število skupin"]
[null,"Povprečno število uporabnikov na skupino"]
[null,"Število srečanj na leto"]
[]
[]
[3,"Prosimo, navedite število vključenih uporabnikov po mesecih ter povprečno število ur aktivne* vključenosti uporabnikov v posamezne dejavnosti programa na mesec."]
[null,"Mesec","Število uporabnikov","Povprečno število ur aktivne* vključenosti enega uporabnika na mesec"]
[null,"januar "]
[null,"februar "]
[null,"marec "]
[null,"april "]
[null,"maj "]
[null,"junij "]
[null,"julij"]
[null,"Povprečno število na mesec",{"$f":"AVERAGE(C18:C24)","v":{"$error":"#DIV/0!"}},{"$f":"AVERAGE(D18:D24)","v":{"$error":"#DIV/0!"}}]
[null,"Opomba:\n*Aktivna vključenost pomeni, da je uporabnik aktivno vključen v dejavnosti programa. Torej pri programih, ki uporabnikom nudijo bivanje, ne vpisujete 720 ur na mesec, ampak število ur aktivne vključenosti uporabnika v program na mesec."]
[]
[]
[4,"Prosimo, navedite število RAZLIČNIH uporabnikov glede na spol in starost. Prosimo zapišite oceno, če nimate točnih podatkov."]
[null,"Starostna skupina",null,"Število moških","Število žensk","Spol ni znan oz. ni definiran"]
[null,"MLADOLETNI","do vključno 15 let"]
[null,null,"nad 15 let do 18 let"]
[null,"POLNOLETNI","nad 18 let do 35 let"]
[null,null,"nad 35 let do 50 let"]
[null,null,"nad 50 let do 65 let"]
[null,null,"nad 65 let"]
[null,"ANONIMNI","starost in/ali spol nista znana oz. definirana"]
[null,"Skupaj različnih uporabnikov ",null,{"$f":"SUM(D31:D37)","v":0},{"$f":"SUM(E31:E37)","v":0},{"$f":"SUM(F31:F37)","v":0}]
[null,"Ujemanje s prvo preglednico: ","Ujemanje: ",{"$f":"IF((E6=(D38+E38+F38)),\"SEŠTEVEK SE UJEMA\",\"SEŠTEVEK SE NE UJEMA - PREVERITE\")","v":"SEŠTEVEK SE UJEMA"}]
[null,"Opomba:\nIzvajalci, ki v bazi EVAPRO beležite drugačne starostne skupine, lahko ustvarite tabelo za izpis z navedenimi starostnimi skupinami - podrobno v »Navodilih za uporabo baze Evapro© - februar 2025«, poglavje »9.1.4 Po star. skupinah«, str. 86."]
[]
[]
[5,"Prosimo, navedite število uporabnikov glede na čas/obdobje njihove vključitve v program. Upoštevajte RAZLIČNE uporabnike. Seštevek uporabnikov mora tako biti enak podatku različnih uporabnikov iz prve preglednice. Prosimo zapišite oceno, če nimate točnih podatkov."]
[null,"Število uporabnikov, ki so program obiskovali/bili vključeni…",null,null,"Število uporabnikov"]
[null,"vsak dan ali petkrat na teden"]
[null,"enkrat ali večkrat na teden, vendar ne vsak (delovni) dan"]
[null,"večkrat/nekajkrat na mesec"]
[null,"enkrat na mesec"]
[null,"nekajkrat na leto"]
[null,"enkrat na leto"]
[null,"uporabniki, za katere ni znano, kako pogosto so obiskovali/bili vključeni v program (anonimni)"]
[null,"Skupaj število različnih uporabnikov ",null,null,{"$f":"SUM(E45:E51)","v":0}]
[null,"Ujemanje s prvo preglednico: ","Ujemanje: ",{"$f":"IF((E6=(E52)),\"SEŠTEVEK SE UJEMA\",\"SEŠTEVEK SE NE UJEMA - PREVERITE\")","v":"SEŠTEVEK SE UJEMA"}]
[]
[]
[6,"Prosimo, opredelite ciljno skupino uporabnikov - značilnosti uporabnikov, ki jim je vsebina programa namenjena:"]
[null,"po spolu"]
[null,"po starostnih skupinah"]
[null,"družinske razmere in socialno omrežje"]
[null,"glede na težavo(e), ki jo/jih imajo"]
[null,"druge pomembne značilnosti"]

{"sheet":"UP_4b","index":51,"n_rows":61,"n_cols":9,"rows_kept":61,"cut":false,"hidden":true,"merged":[[60,1,60,2],[60,3,60,8],[57,1,57,2],[57,3,57,8],[58,1,58,2],[58,3,58,8],[59,1,59,2],[59,3,59,8],[44,1,44,3],[45,1,45,3],[46,1,46,3],[47,1,47,3],[56,1,56,2],[56,3,56,8],[50,1,50,3],[51,1,51,3],[52,1,52,2],[52,3,52,4],[55,1,55,8],[4,1,4,3],[5,1,5,3],[6,1,6,3],[9,1,9,8],[10,1,10,2],[11,1,11,2],[12,1,12,2],[15,1,15,8],[48,1,48,3],[49,1,49,3],[25,1,25,8],[28,1,28,8],[29,1,29,2],[30,1,31,1],[32,1,35,1],[37,1,37,2],[38,1,38,2],[38,3,38,5],[39,1,39,8],[42,1,42,8],[43,1,43,3]]}
["UPORABNIKI - za obdobje od 1. 1. 2026 do 30. 6. 2026",null,null,null,null,null,null,"Vsebina:",{"$f":"RIGHT(CELL(\"filename\",I1),LEN(CELL(\"filename\",I1))-SEARCH(\"]\",CELL(\"filename\",I1)))","v":"UP_4b"}]
[]
[null,"Vpišite podatke za posamično vsebino, za katero ste vnesli podatke na listu \"UP_VSEBINE\" - za vsako posebej se vam odpre svoj list."]
[]
[1,"Prosimo, navedite število uporabnikov:",null,null,"Vpisujte v modre celice:"]
[null,"Skupaj število RAZLIČNIH uporabnikov (en uporabnik se šteje samo enkrat na leto)"]
[null,"Število uporabnikov na dan 1. 12. 2025 (izpis pridobite iz EVAPRO, če tega nimate oz. nimate točnega podatka, vpišite oceno števila uporabnikov na ta dan)"]
[]
[]
[2,"Če program obsega tudi delo v skupinah prosimo navedite (vpisujte samo skupine, ki ste jih prijavili znotraj izračuna javnega razpisa in so ovrednotene v pogodbi):"]
[null,"Število skupin"]
[null,"Povprečno število uporabnikov na skupino"]
[null,"Število srečanj na leto"]
[]
[]
[3,"Prosimo, navedite število vključenih uporabnikov po mesecih ter povprečno število ur aktivne* vključenosti uporabnikov v posamezne dejavnosti programa na mesec."]
[null,"Mesec","Število uporabnikov","Povprečno število ur aktivne* vključenosti enega uporabnika na mesec"]
[null,"januar "]
[null,"februar "]
[null,"marec "]
[null,"april "]
[null,"maj "]
[null,"junij "]
[null,"julij"]
[null,"Povprečno število na mesec",{"$f":"AVERAGE(C18:C24)","v":{"$error":"#DIV/0!"}},{"$f":"AVERAGE(D18:D24)","v":{"$error":"#DIV/0!"}}]
[null,"Opomba:\n*Aktivna vključenost pomeni, da je uporabnik aktivno vključen v dejavnosti programa. Torej pri programih, ki uporabnikom nudijo bivanje, ne vpisujete 720 ur na mesec, ampak število ur aktivne vključenosti uporabnika v program na mesec."]
[]
[]
[4,"Prosimo, navedite število RAZLIČNIH uporabnikov glede na spol in starost. Prosimo zapišite oceno, če nimate točnih podatkov."]
[null,"Starostna skupina",null,"Število moških","Število žensk","Spol ni znan oz. ni definiran"]
[null,"MLADOLETNI","do vključno 15 let"]
[null,null,"nad 15 let do 18 let"]
[null,"POLNOLETNI","nad 18 let do 35 let"]
[null,null,"nad 35 let do 50 let"]
[null,null,"nad 50 let do 65 let"]
[null,null,"nad 65 let"]
[null,"ANONIMNI","starost in/ali spol nista znana oz. definirana"]
[null,"Skupaj različnih uporabnikov ",null,{"$f":"SUM(D31:D37)","v":0},{"$f":"SUM(E31:E37)","v":0},{"$f":"SUM(F31:F37)","v":0}]
[null,"Ujemanje s prvo preglednico: ","Ujemanje: ",{"$f":"IF((E6=(D38+E38+F38)),\"SEŠTEVEK SE UJEMA\",\"SEŠTEVEK SE NE UJEMA - PREVERITE\")","v":"SEŠTEVEK SE UJEMA"}]
[null,"Opomba:\nIzvajalci, ki v bazi EVAPRO beležite drugačne starostne skupine, lahko ustvarite tabelo za izpis z navedenimi starostnimi skupinami - podrobno v »Navodilih za uporabo baze Evapro© - februar 2025«, poglavje »9.1.4 Po star. skupinah«, str. 86."]
[]
[]
[5,"Prosimo, navedite število uporabnikov glede na čas/obdobje njihove vključitve v program. Upoštevajte RAZLIČNE uporabnike. Seštevek uporabnikov mora tako biti enak podatku različnih uporabnikov iz prve preglednice. Prosimo zapišite oceno, če nimate točnih podatkov."]
[null,"Število uporabnikov, ki so program obiskovali/bili vključeni…",null,null,"Število uporabnikov"]
[null,"vsak dan ali petkrat na teden"]
[null,"enkrat ali večkrat na teden, vendar ne vsak (delovni) dan"]
[null,"večkrat/nekajkrat na mesec"]
[null,"enkrat na mesec"]
[null,"nekajkrat na leto"]
[null,"enkrat na leto"]
[null,"uporabniki, za katere ni znano, kako pogosto so obiskovali/bili vključeni v program (anonimni)"]
[null,"Skupaj število različnih uporabnikov ",null,null,{"$f":"SUM(E45:E51)","v":0}]
[null,"Ujemanje s prvo preglednico: ","Ujemanje: ",{"$f":"IF((E6=(E52)),\"SEŠTEVEK SE UJEMA\",\"SEŠTEVEK SE NE UJEMA - PREVERITE\")","v":"SEŠTEVEK SE UJEMA"}]
[]
[]
[6,"Prosimo, opredelite ciljno skupino uporabnikov - značilnosti uporabnikov, ki jim je vsebina programa namenjena:"]
[null,"po spolu"]
[null,"po starostnih skupinah"]
[null,"družinske razmere in socialno omrežje"]
[null,"glede na težavo(e), ki jo/jih imajo"]
[null,"druge pomembne značilnosti"]

{"sheet":"UP_4c","index":52,"n_rows":61,"n_cols":9,"rows_kept":61,"cut":false,"hidden":true,"merged":[[60,1,60,2],[60,3,60,8],[57,1,57,2],[57,3,57,8],[58,1,58,2],[58,3,58,8],[59,1,59,2],[59,3,59,8],[44,1,44,3],[45,1,45,3],[46,1,46,3],[47,1,47,3],[56,1,56,2],[56,3,56,8],[50,1,50,3],[51,1,51,3],[52,1,52,2],[52,3,52,4],[55,1,55,8],[4,1,4,3],[5,1,5,3],[6,1,6,3],[9,1,9,8],[10,1,10,2],[11,1,11,2],[12,1,12,2],[15,1,15,8],[48,1,48,3],[49,1,49,3],[25,1,25,8],[28,1,28,8],[29,1,29,2],[30,1,31,1],[32,1,35,1],[37,1,37,2],[38,1,38,2],[38,3,38,5],[39,1,39,8],[42,1,42,8],[43,1,43,3]]}
["UPORABNIKI - za obdobje od 1. 1. 2026 do 30. 6. 2026",null,null,null,null,null,null,"Vsebina:",{"$f":"RIGHT(CELL(\"filename\",I1),LEN(CELL(\"filename\",I1))-SEARCH(\"]\",CELL(\"filename\",I1)))","v":"UP_4c"}]
[]
[null,"Vpišite podatke za posamično vsebino, za katero ste vnesli podatke na listu \"UP_VSEBINE\" - za vsako posebej se vam odpre svoj list."]
[]
[1,"Prosimo, navedite število uporabnikov:",null,null,"Vpisujte v modre celice:"]
[null,"Skupaj število RAZLIČNIH uporabnikov (en uporabnik se šteje samo enkrat na leto)"]
[null,"Število uporabnikov na dan 1. 12. 2025 (izpis pridobite iz EVAPRO, če tega nimate oz. nimate točnega podatka, vpišite oceno števila uporabnikov na ta dan)"]
[]
[]
[2,"Če program obsega tudi delo v skupinah prosimo navedite (vpisujte samo skupine, ki ste jih prijavili znotraj izračuna javnega razpisa in so ovrednotene v pogodbi):"]
[null,"Število skupin"]
[null,"Povprečno število uporabnikov na skupino"]
[null,"Število srečanj na leto"]
[]
[]
[3,"Prosimo, navedite število vključenih uporabnikov po mesecih ter povprečno število ur aktivne* vključenosti uporabnikov v posamezne dejavnosti programa na mesec."]
[null,"Mesec","Število uporabnikov","Povprečno število ur aktivne* vključenosti enega uporabnika na mesec"]
[null,"januar "]
[null,"februar "]
[null,"marec "]
[null,"april "]
[null,"maj "]
[null,"junij "]
[null,"julij"]
[null,"Povprečno število na mesec",{"$f":"AVERAGE(C18:C24)","v":{"$error":"#DIV/0!"}},{"$f":"AVERAGE(D18:D24)","v":{"$error":"#DIV/0!"}}]
[null,"Opomba:\n*Aktivna vključenost pomeni, da je uporabnik aktivno vključen v dejavnosti programa. Torej pri programih, ki uporabnikom nudijo bivanje, ne vpisujete 720 ur na mesec, ampak število ur aktivne vključenosti uporabnika v program na mesec."]
[]
[]
[4,"Prosimo, navedite število RAZLIČNIH uporabnikov glede na spol in starost. Prosimo zapišite oceno, če nimate točnih podatkov."]
[null,"Starostna skupina",null,"Število moških","Število žensk","Spol ni znan oz. ni definiran"]
[null,"MLADOLETNI","do vključno 15 let"]
[null,null,"nad 15 let do 18 let"]
[null,"POLNOLETNI","nad 18 let do 35 let"]
[null,null,"nad 35 let do 50 let"]
[null,null,"nad 50 let do 65 let"]
[null,null,"nad 65 let"]
[null,"ANONIMNI","starost in/ali spol nista znana oz. definirana"]
[null,"Skupaj različnih uporabnikov ",null,{"$f":"SUM(D31:D37)","v":0},{"$f":"SUM(E31:E37)","v":0},{"$f":"SUM(F31:F37)","v":0}]
[null,"Ujemanje s prvo preglednico: ","Ujemanje: ",{"$f":"IF((E6=(D38+E38+F38)),\"SEŠTEVEK SE UJEMA\",\"SEŠTEVEK SE NE UJEMA - PREVERITE\")","v":"SEŠTEVEK SE UJEMA"}]
[null,"Opomba:\nIzvajalci, ki v bazi EVAPRO beležite drugačne starostne skupine, lahko ustvarite tabelo za izpis z navedenimi starostnimi skupinami - podrobno v »Navodilih za uporabo baze Evapro© - februar 2025«, poglavje »9.1.4 Po star. skupinah«, str. 86."]
[]
[]
[5,"Prosimo, navedite število uporabnikov glede na čas/obdobje njihove vključitve v program. Upoštevajte RAZLIČNE uporabnike. Seštevek uporabnikov mora tako biti enak podatku različnih uporabnikov iz prve preglednice. Prosimo zapišite oceno, če nimate točnih podatkov."]
[null,"Število uporabnikov, ki so program obiskovali/bili vključeni…",null,null,"Število uporabnikov"]
[null,"vsak dan ali petkrat na teden"]
[null,"enkrat ali večkrat na teden, vendar ne vsak (delovni) dan"]
[null,"večkrat/nekajkrat na mesec"]
[null,"enkrat na mesec"]
[null,"nekajkrat na leto"]
[null,"enkrat na leto"]
[null,"uporabniki, za katere ni znano, kako pogosto so obiskovali/bili vključeni v program (anonimni)"]
[null,"Skupaj število različnih uporabnikov ",null,null,{"$f":"SUM(E45:E51)","v":0}]
[null,"Ujemanje s prvo preglednico: ","Ujemanje: ",{"$f":"IF((E6=(E52)),\"SEŠTEVEK SE UJEMA\",\"SEŠTEVEK SE NE UJEMA - PREVERITE\")","v":"SEŠTEVEK SE UJEMA"}]
[]
[]
[6,"Prosimo, opredelite ciljno skupino uporabnikov - značilnosti uporabnikov, ki jim je vsebina programa namenjena:"]
[null,"po spolu"]
[null,"po starostnih skupinah"]
[null,"družinske razmere in socialno omrežje"]
[null,"glede na težavo(e), ki jo/jih imajo"]
[null,"druge pomembne značilnosti"]

{"sheet":"UP_4d","index":53,"n_rows":61,"n_cols":9,"rows_kept":61,"cut":false,"hidden":true,"merged":[[60,1,60,2],[60,3,60,8],[57,1,57,2],[57,3,57,8],[58,1,58,2],[58,3,58,8],[59,1,59,2],[59,3,59,8],[44,1,44,3],[45,1,45,3],[46,1,46,3],[47,1,47,3],[56,1,56,2],[56,3,56,8],[50,1,50,3],[51,1,51,3],[52,1,52,2],[52,3,52,4],[55,1,55,8],[4,1,4,3],[5,1,5,3],[6,1,6,3],[9,1,9,8],[10,1,10,2],[11,1,11,2],[12,1,12,2],[15,1,15,8],[48,1,48,3],[49,1,49,3],[25,1,25,8],[28,1,28,8],[29,1,29,2],[30,1,31,1],[32,1,35,1],[37,1,37,2],[38,1,38,2],[38,3,38,5],[39,1,39,8],[42,1,42,8],[43,1,43,3]]}
["UPORABNIKI - za obdobje od 1. 1. 2026 do 30. 6. 2026",null,null,null,null,null,null,"Vsebina:",{"$f":"RIGHT(CELL(\"filename\",I1),LEN(CELL(\"filename\",I1))-SEARCH(\"]\",CELL(\"filename\",I1)))","v":"UP_4d"}]
[]
[null,"Vpišite podatke za posamično vsebino, za katero ste vnesli podatke na listu \"UP_VSEBINE\" - za vsako posebej se vam odpre svoj list."]
[]
[1,"Prosimo, navedite število uporabnikov:",null,null,"Vpisujte v modre celice:"]
[null,"Skupaj število RAZLIČNIH uporabnikov (en uporabnik se šteje samo enkrat na leto)"]
[null,"Število uporabnikov na dan 1. 12. 2025 (izpis pridobite iz EVAPRO, če tega nimate oz. nimate točnega podatka, vpišite oceno števila uporabnikov na ta dan)"]
[]
[]
[2,"Če program obsega tudi delo v skupinah prosimo navedite (vpisujte samo skupine, ki ste jih prijavili znotraj izračuna javnega razpisa in so ovrednotene v pogodbi):"]
[null,"Število skupin"]
[null,"Povprečno število uporabnikov na skupino"]
[null,"Število srečanj na leto"]
[]
[]
[3,"Prosimo, navedite število vključenih uporabnikov po mesecih ter povprečno število ur aktivne* vključenosti uporabnikov v posamezne dejavnosti programa na mesec."]
[null,"Mesec","Število uporabnikov","Povprečno število ur aktivne* vključenosti enega uporabnika na mesec"]
[null,"januar "]
[null,"februar "]
[null,"marec "]
[null,"april "]
[null,"maj "]
[null,"junij "]
[null,"julij"]
[null,"Povprečno število na mesec",{"$f":"AVERAGE(C18:C24)","v":{"$error":"#DIV/0!"}},{"$f":"AVERAGE(D18:D24)","v":{"$error":"#DIV/0!"}}]
[null,"Opomba:\n*Aktivna vključenost pomeni, da je uporabnik aktivno vključen v dejavnosti programa. Torej pri programih, ki uporabnikom nudijo bivanje, ne vpisujete 720 ur na mesec, ampak število ur aktivne vključenosti uporabnika v program na mesec."]
[]
[]
[4,"Prosimo, navedite število RAZLIČNIH uporabnikov glede na spol in starost. Prosimo zapišite oceno, če nimate točnih podatkov."]
[null,"Starostna skupina",null,"Število moških","Število žensk","Spol ni znan oz. ni definiran"]
[null,"MLADOLETNI","do vključno 15 let"]
[null,null,"nad 15 let do 18 let"]
[null,"POLNOLETNI","nad 18 let do 35 let"]
[null,null,"nad 35 let do 50 let"]
[null,null,"nad 50 let do 65 let"]
[null,null,"nad 65 let"]
[null,"ANONIMNI","starost in/ali spol nista znana oz. definirana"]
[null,"Skupaj različnih uporabnikov ",null,{"$f":"SUM(D31:D37)","v":0},{"$f":"SUM(E31:E37)","v":0},{"$f":"SUM(F31:F37)","v":0}]
[null,"Ujemanje s prvo preglednico: ","Ujemanje: ",{"$f":"IF((E6=(D38+E38+F38)),\"SEŠTEVEK SE UJEMA\",\"SEŠTEVEK SE NE UJEMA - PREVERITE\")","v":"SEŠTEVEK SE UJEMA"}]
[null,"Opomba:\nIzvajalci, ki v bazi EVAPRO beležite drugačne starostne skupine, lahko ustvarite tabelo za izpis z navedenimi starostnimi skupinami - podrobno v »Navodilih za uporabo baze Evapro© - februar 2025«, poglavje »9.1.4 Po star. skupinah«, str. 86."]
[]
[]
[5,"Prosimo, navedite število uporabnikov glede na čas/obdobje njihove vključitve v program. Upoštevajte RAZLIČNE uporabnike. Seštevek uporabnikov mora tako biti enak podatku različnih uporabnikov iz prve preglednice. Prosimo zapišite oceno, če nimate točnih podatkov."]
[null,"Število uporabnikov, ki so program obiskovali/bili vključeni…",null,null,"Število uporabnikov"]
[null,"vsak dan ali petkrat na teden"]
[null,"enkrat ali večkrat na teden, vendar ne vsak (delovni) dan"]
[null,"večkrat/nekajkrat na mesec"]
[null,"enkrat na mesec"]
[null,"nekajkrat na leto"]
[null,"enkrat na leto"]
[null,"uporabniki, za katere ni znano, kako pogosto so obiskovali/bili vključeni v program (anonimni)"]
[null,"Skupaj število različnih uporabnikov ",null,null,{"$f":"SUM(E45:E51)","v":0}]
[null,"Ujemanje s prvo preglednico: ","Ujemanje: ",{"$f":"IF((E6=(E52)),\"SEŠTEVEK SE UJEMA\",\"SEŠTEVEK SE NE UJEMA - PREVERITE\")","v":"SEŠTEVEK SE UJEMA"}]
[]
[]
[6,"Prosimo, opredelite ciljno skupino uporabnikov - značilnosti uporabnikov, ki jim je vsebina programa namenjena:"]
[null,"po spolu"]
[null,"po starostnih skupinah"]
[null,"družinske razmere in socialno omrežje"]
[null,"glede na težavo(e), ki jo/jih imajo"]
[null,"druge pomembne značilnosti"]

{"sheet":"UP_5a","index":54,"n_rows":61,"n_cols":9,"rows_kept":61,"cut":false,"hidden":true,"merged":[[60,1,60,2],[60,3,60,8],[57,1,57,2],[57,3,57,8],[58,1,58,2],[58,3,58,8],[59,1,59,2],[59,3,59,8],[44,1,44,3],[45,1,45,3],[46,1,46,3],[47,1,47,3],[56,1,56,2],[56,3,56,8],[50,1,50,3],[51,1,51,3],[52,1,52,2],[52,3,52,4],[55,1,55,8],[4,1,4,3],[5,1,5,3],[6,1,6,3],[9,1,9,8],[10,1,10,2],[11,1,11,2],[12,1,12,2],[15,1,15,8],[48,1,48,3],[49,1,49,3],[25,1,25,8],[28,1,28,8],[29,1,29,2],[30,1,31,1],[32,1,35,1],[37,1,37,2],[38,1,38,2],[38,3,38,5],[39,1,39,8],[42,1,42,8],[43,1,43,3]]}
["UPORABNIKI - za obdobje od 1. 1. 2026 do 30. 6. 2026",null,null,null,null,null,null,"Vsebina:",{"$f":"RIGHT(CELL(\"filename\",I1),LEN(CELL(\"filename\",I1))-SEARCH(\"]\",CELL(\"filename\",I1)))","v":"UP_5a"}]
[]
[null,"Vpišite podatke za posamično vsebino, za katero ste vnesli podatke na listu \"UP_VSEBINE\" - za vsako posebej se vam odpre svoj list."]
[]
[1,"Prosimo, navedite število uporabnikov:",null,null,"Vpisujte v modre celice:"]
[null,"Skupaj število RAZLIČNIH uporabnikov (en uporabnik se šteje samo enkrat na leto)"]
[null,"Število uporabnikov na dan 1. 12. 2025 (izpis pridobite iz EVAPRO, če tega nimate oz. nimate točnega podatka, vpišite oceno števila uporabnikov na ta dan)"]
[]
[]
[2,"Če program obsega tudi delo v skupinah prosimo navedite (vpisujte samo skupine, ki ste jih prijavili znotraj izračuna javnega razpisa in so ovrednotene v pogodbi):"]
[null,"Število skupin"]
[null,"Povprečno število uporabnikov na skupino"]
[null,"Število srečanj na leto"]
[]
[]
[3,"Prosimo, navedite število vključenih uporabnikov po mesecih ter povprečno število ur aktivne* vključenosti uporabnikov v posamezne dejavnosti programa na mesec."]
[null,"Mesec","Število uporabnikov","Povprečno število ur aktivne* vključenosti enega uporabnika na mesec"]
[null,"januar "]
[null,"februar "]
[null,"marec "]
[null,"april "]
[null,"maj "]
[null,"junij "]
[null,"julij"]
[null,"Povprečno število na mesec",{"$f":"AVERAGE(C18:C24)","v":{"$error":"#DIV/0!"}},{"$f":"AVERAGE(D18:D24)","v":{"$error":"#DIV/0!"}}]
[null,"Opomba:\n*Aktivna vključenost pomeni, da je uporabnik aktivno vključen v dejavnosti programa. Torej pri programih, ki uporabnikom nudijo bivanje, ne vpisujete 720 ur na mesec, ampak število ur aktivne vključenosti uporabnika v program na mesec."]
[]
[]
[4,"Prosimo, navedite število RAZLIČNIH uporabnikov glede na spol in starost. Prosimo zapišite oceno, če nimate točnih podatkov."]
[null,"Starostna skupina",null,"Število moških","Število žensk","Spol ni znan oz. ni definiran"]
[null,"MLADOLETNI","do vključno 15 let"]
[null,null,"nad 15 let do 18 let"]
[null,"POLNOLETNI","nad 18 let do 35 let"]
[null,null,"nad 35 let do 50 let"]
[null,null,"nad 50 let do 65 let"]
[null,null,"nad 65 let"]
[null,"ANONIMNI","starost in/ali spol nista znana oz. definirana"]
[null,"Skupaj različnih uporabnikov ",null,{"$f":"SUM(D31:D37)","v":0},{"$f":"SUM(E31:E37)","v":0},{"$f":"SUM(F31:F37)","v":0}]
[null,"Ujemanje s prvo preglednico: ","Ujemanje: ",{"$f":"IF((E6=(D38+E38+F38)),\"SEŠTEVEK SE UJEMA\",\"SEŠTEVEK SE NE UJEMA - PREVERITE\")","v":"SEŠTEVEK SE UJEMA"}]
[null,"Opomba:\nIzvajalci, ki v bazi EVAPRO beležite drugačne starostne skupine, lahko ustvarite tabelo za izpis z navedenimi starostnimi skupinami - podrobno v »Navodilih za uporabo baze Evapro© - februar 2025«, poglavje »9.1.4 Po star. skupinah«, str. 86."]
[]
[]
[5,"Prosimo, navedite število uporabnikov glede na čas/obdobje njihove vključitve v program. Upoštevajte RAZLIČNE uporabnike. Seštevek uporabnikov mora tako biti enak podatku različnih uporabnikov iz prve preglednice. Prosimo zapišite oceno, če nimate točnih podatkov."]
[null,"Število uporabnikov, ki so program obiskovali/bili vključeni…",null,null,"Število uporabnikov"]
[null,"vsak dan ali petkrat na teden"]
[null,"enkrat ali večkrat na teden, vendar ne vsak (delovni) dan"]
[null,"večkrat/nekajkrat na mesec"]
[null,"enkrat na mesec"]
[null,"nekajkrat na leto"]
[null,"enkrat na leto"]
[null,"uporabniki, za katere ni znano, kako pogosto so obiskovali/bili vključeni v program (anonimni)"]
[null,"Skupaj število različnih uporabnikov ",null,null,{"$f":"SUM(E45:E51)","v":0}]
[null,"Ujemanje s prvo preglednico: ","Ujemanje: ",{"$f":"IF((E6=(E52)),\"SEŠTEVEK SE UJEMA\",\"SEŠTEVEK SE NE UJEMA - PREVERITE\")","v":"SEŠTEVEK SE UJEMA"}]
[]
[]
[6,"Prosimo, opredelite ciljno skupino uporabnikov - značilnosti uporabnikov, ki jim je vsebina programa namenjena:"]
[null,"po spolu"]
[null,"po starostnih skupinah"]
[null,"družinske razmere in socialno omrežje"]
[null,"glede na težavo(e), ki jo/jih imajo"]
[null,"druge pomembne značilnosti"]

{"sheet":"UP_5b","index":55,"n_rows":61,"n_cols":9,"rows_kept":61,"cut":false,"hidden":true,"merged":[[60,1,60,2],[60,3,60,8],[57,1,57,2],[57,3,57,8],[58,1,58,2],[58,3,58,8],[59,1,59,2],[59,3,59,8],[44,1,44,3],[45,1,45,3],[46,1,46,3],[47,1,47,3],[56,1,56,2],[56,3,56,8],[50,1,50,3],[51,1,51,3],[52,1,52,2],[52,3,52,4],[55,1,55,8],[4,1,4,3],[5,1,5,3],[6,1,6,3],[9,1,9,8],[10,1,10,2],[11,1,11,2],[12,1,12,2],[15,1,15,8],[48,1,48,3],[49,1,49,3],[25,1,25,8],[28,1,28,8],[29,1,29,2],[30,1,31,1],[32,1,35,1],[37,1,37,2],[38,1,38,2],[38,3,38,5],[39,1,39,8],[42,1,42,8],[43,1,43,3]]}
["UPORABNIKI - za obdobje od 1. 1. 2026 do 30. 6. 2026",null,null,null,null,null,null,"Vsebina:",{"$f":"RIGHT(CELL(\"filename\",I1),LEN(CELL(\"filename\",I1))-SEARCH(\"]\",CELL(\"filename\",I1)))","v":"UP_5b"}]
[]
[null,"Vpišite podatke za posamično vsebino, za katero ste vnesli podatke na listu \"UP_VSEBINE\" - za vsako posebej se vam odpre svoj list."]
[]
[1,"Prosimo, navedite število uporabnikov:",null,null,"Vpisujte v modre celice:"]
[null,"Skupaj število RAZLIČNIH uporabnikov (en uporabnik se šteje samo enkrat na leto)"]
[null,"Število uporabnikov na dan 1. 12. 2025 (izpis pridobite iz EVAPRO, če tega nimate oz. nimate točnega podatka, vpišite oceno števila uporabnikov na ta dan)"]
[]
[]
[2,"Če program obsega tudi delo v skupinah prosimo navedite (vpisujte samo skupine, ki ste jih prijavili znotraj izračuna javnega razpisa in so ovrednotene v pogodbi):"]
[null,"Število skupin"]
[null,"Povprečno število uporabnikov na skupino"]
[null,"Število srečanj na leto"]
[]
[]
[3,"Prosimo, navedite število vključenih uporabnikov po mesecih ter povprečno število ur aktivne* vključenosti uporabnikov v posamezne dejavnosti programa na mesec."]
[null,"Mesec","Število uporabnikov","Povprečno število ur aktivne* vključenosti enega uporabnika na mesec"]
[null,"januar "]
[null,"februar "]
[null,"marec "]
[null,"april "]
[null,"maj "]
[null,"junij "]
[null,"julij"]
[null,"Povprečno število na mesec",{"$f":"AVERAGE(C18:C24)","v":{"$error":"#DIV/0!"}},{"$f":"AVERAGE(D18:D24)","v":{"$error":"#DIV/0!"}}]
[null,"Opomba:\n*Aktivna vključenost pomeni, da je uporabnik aktivno vključen v dejavnosti programa. Torej pri programih, ki uporabnikom nudijo bivanje, ne vpisujete 720 ur na mesec, ampak število ur aktivne vključenosti uporabnika v program na mesec."]
[]
[]
[4,"Prosimo, navedite število RAZLIČNIH uporabnikov glede na spol in starost. Prosimo zapišite oceno, če nimate točnih podatkov."]
[null,"Starostna skupina",null,"Število moških","Število žensk","Spol ni znan oz. ni definiran"]
[null,"MLADOLETNI","do vključno 15 let"]
[null,null,"nad 15 let do 18 let"]
[null,"POLNOLETNI","nad 18 let do 35 let"]
[null,null,"nad 35 let do 50 let"]
[null,null,"nad 50 let do 65 let"]
[null,null,"nad 65 let"]
[null,"ANONIMNI","starost in/ali spol nista znana oz. definirana"]
[null,"Skupaj različnih uporabnikov ",null,{"$f":"SUM(D31:D37)","v":0},{"$f":"SUM(E31:E37)","v":0},{"$f":"SUM(F31:F37)","v":0}]
[null,"Ujemanje s prvo preglednico: ","Ujemanje: ",{"$f":"IF((E6=(D38+E38+F38)),\"SEŠTEVEK SE UJEMA\",\"SEŠTEVEK SE NE UJEMA - PREVERITE\")","v":"SEŠTEVEK SE UJEMA"}]
[null,"Opomba:\nIzvajalci, ki v bazi EVAPRO beležite drugačne starostne skupine, lahko ustvarite tabelo za izpis z navedenimi starostnimi skupinami - podrobno v »Navodilih za uporabo baze Evapro© - februar 2025«, poglavje »9.1.4 Po star. skupinah«, str. 86."]
[]
[]
[5,"Prosimo, navedite število uporabnikov glede na čas/obdobje njihove vključitve v program. Upoštevajte RAZLIČNE uporabnike. Seštevek uporabnikov mora tako biti enak podatku različnih uporabnikov iz prve preglednice. Prosimo zapišite oceno, če nimate točnih podatkov."]
[null,"Število uporabnikov, ki so program obiskovali/bili vključeni…",null,null,"Število uporabnikov"]
[null,"vsak dan ali petkrat na teden"]
[null,"enkrat ali večkrat na teden, vendar ne vsak (delovni) dan"]
[null,"večkrat/nekajkrat na mesec"]
[null,"enkrat na mesec"]
[null,"nekajkrat na leto"]
[null,"enkrat na leto"]
[null,"uporabniki, za katere ni znano, kako pogosto so obiskovali/bili vključeni v program (anonimni)"]
[null,"Skupaj število različnih uporabnikov ",null,null,{"$f":"SUM(E45:E51)","v":0}]
[null,"Ujemanje s prvo preglednico: ","Ujemanje: ",{"$f":"IF((E6=(E52)),\"SEŠTEVEK SE UJEMA\",\"SEŠTEVEK SE NE UJEMA - PREVERITE\")","v":"SEŠTEVEK SE UJEMA"}]
[]
[]
[6,"Prosimo, opredelite ciljno skupino uporabnikov - značilnosti uporabnikov, ki jim je vsebina programa namenjena:"]
[null,"po spolu"]
[null,"po starostnih skupinah"]
[null,"družinske razmere in socialno omrežje"]
[null,"glede na težavo(e), ki jo/jih imajo"]
[null,"druge pomembne značilnosti"]

{"sheet":"UP_6a","index":56,"n_rows":61,"n_cols":9,"rows_kept":61,"cut":false,"hidden":true,"merged":[[60,1,60,2],[60,3,60,8],[57,1,57,2],[57,3,57,8],[58,1,58,2],[58,3,58,8],[59,1,59,2],[59,3,59,8],[44,1,44,3],[45,1,45,3],[46,1,46,3],[47,1,47,3],[56,1,56,2],[56,3,56,8],[50,1,50,3],[51,1,51,3],[52,1,52,2],[52,3,52,4],[55,1,55,8],[4,1,4,3],[5,1,5,3],[6,1,6,3],[9,1,9,8],[10,1,10,2],[11,1,11,2],[12,1,12,2],[15,1,15,8],[48,1,48,3],[49,1,49,3],[25,1,25,8],[28,1,28,8],[29,1,29,2],[30,1,31,1],[32,1,35,1],[37,1,37,2],[38,1,38,2],[38,3,38,5],[39,1,39,8],[42,1,42,8],[43,1,43,3]]}
["UPORABNIKI - za obdobje od 1. 1. 2026 do 30. 6. 2026",null,null,null,null,null,null,"Vsebina:",{"$f":"RIGHT(CELL(\"filename\",I1),LEN(CELL(\"filename\",I1))-SEARCH(\"]\",CELL(\"filename\",I1)))","v":"UP_6a"}]
[]
[null,"Vpišite podatke za posamično vsebino, za katero ste vnesli podatke na listu \"UP_VSEBINE\" - za vsako posebej se vam odpre svoj list."]
[]
[1,"Prosimo, navedite število uporabnikov:",null,null,"Vpisujte v modre celice:"]
[null,"Skupaj število RAZLIČNIH uporabnikov (en uporabnik se šteje samo enkrat na leto)"]
[null,"Število uporabnikov na dan 1. 12. 2025 (izpis pridobite iz EVAPRO, če tega nimate oz. nimate točnega podatka, vpišite oceno števila uporabnikov na ta dan)"]
[]
[]
[2,"Če program obsega tudi delo v skupinah prosimo navedite (vpisujte samo skupine, ki ste jih prijavili znotraj izračuna javnega razpisa in so ovrednotene v pogodbi):"]
[null,"Število skupin"]
[null,"Povprečno število uporabnikov na skupino"]
[null,"Število srečanj na leto"]
[]
[]
[3,"Prosimo, navedite število vključenih uporabnikov po mesecih ter povprečno število ur aktivne* vključenosti uporabnikov v posamezne dejavnosti programa na mesec."]
[null,"Mesec","Število uporabnikov","Povprečno število ur aktivne* vključenosti enega uporabnika na mesec"]
[null,"januar "]
[null,"februar "]
[null,"marec "]
[null,"april "]
[null,"maj "]
[null,"junij "]
[null,"julij"]
[null,"Povprečno število na mesec",{"$f":"AVERAGE(C18:C24)","v":{"$error":"#DIV/0!"}},{"$f":"AVERAGE(D18:D24)","v":{"$error":"#DIV/0!"}}]
[null,"Opomba:\n*Aktivna vključenost pomeni, da je uporabnik aktivno vključen v dejavnosti programa. Torej pri programih, ki uporabnikom nudijo bivanje, ne vpisujete 720 ur na mesec, ampak število ur aktivne vključenosti uporabnika v program na mesec."]
[]
[]
[4,"Prosimo, navedite število RAZLIČNIH uporabnikov glede na spol in starost. Prosimo zapišite oceno, če nimate točnih podatkov."]
[null,"Starostna skupina",null,"Število moških","Število žensk","Spol ni znan oz. ni definiran"]
[null,"MLADOLETNI","do vključno 15 let"]
[null,null,"nad 15 let do 18 let"]
[null,"POLNOLETNI","nad 18 let do 35 let"]
[null,null,"nad 35 let do 50 let"]
[null,null,"nad 50 let do 65 let"]
[null,null,"nad 65 let"]
[null,"ANONIMNI","starost in/ali spol nista znana oz. definirana"]
[null,"Skupaj različnih uporabnikov ",null,{"$f":"SUM(D31:D37)","v":0},{"$f":"SUM(E31:E37)","v":0},{"$f":"SUM(F31:F37)","v":0}]
[null,"Ujemanje s prvo preglednico: ","Ujemanje: ",{"$f":"IF((E6=(D38+E38+F38)),\"SEŠTEVEK SE UJEMA\",\"SEŠTEVEK SE NE UJEMA - PREVERITE\")","v":"SEŠTEVEK SE UJEMA"}]
[null,"Opomba:\nIzvajalci, ki v bazi EVAPRO beležite drugačne starostne skupine, lahko ustvarite tabelo za izpis z navedenimi starostnimi skupinami - podrobno v »Navodilih za uporabo baze Evapro© - februar 2025«, poglavje »9.1.4 Po star. skupinah«, str. 86."]
[]
[]
[5,"Prosimo, navedite število uporabnikov glede na čas/obdobje njihove vključitve v program. Upoštevajte RAZLIČNE uporabnike. Seštevek uporabnikov mora tako biti enak podatku različnih uporabnikov iz prve preglednice. Prosimo zapišite oceno, če nimate točnih podatkov."]
[null,"Število uporabnikov, ki so program obiskovali/bili vključeni…",null,null,"Število uporabnikov"]
[null,"vsak dan ali petkrat na teden"]
[null,"enkrat ali večkrat na teden, vendar ne vsak (delovni) dan"]
[null,"večkrat/nekajkrat na mesec"]
[null,"enkrat na mesec"]
[null,"nekajkrat na leto"]
[null,"enkrat na leto"]
[null,"uporabniki, za katere ni znano, kako pogosto so obiskovali/bili vključeni v program (anonimni)"]
[null,"Skupaj število različnih uporabnikov ",null,null,{"$f":"SUM(E45:E51)","v":0}]
[null,"Ujemanje s prvo preglednico: ","Ujemanje: ",{"$f":"IF((E6=(E52)),\"SEŠTEVEK SE UJEMA\",\"SEŠTEVEK SE NE UJEMA - PREVERITE\")","v":"SEŠTEVEK SE UJEMA"}]
[]
[]
[6,"Prosimo, opredelite ciljno skupino uporabnikov - značilnosti uporabnikov, ki jim je vsebina programa namenjena:"]
[null,"po spolu"]
[null,"po starostnih skupinah"]
[null,"družinske razmere in socialno omrežje"]
[null,"glede na težavo(e), ki jo/jih imajo"]
[null,"druge pomembne značilnosti"]

{"sheet":"UP_6b","index":57,"n_rows":61,"n_cols":9,"rows_kept":61,"cut":false,"hidden":true,"merged":[[60,1,60,2],[60,3,60,8],[57,1,57,2],[57,3,57,8],[58,1,58,2],[58,3,58,8],[59,1,59,2],[59,3,59,8],[44,1,44,3],[45,1,45,3],[46,1,46,3],[47,1,47,3],[56,1,56,2],[56,3,56,8],[50,1,50,3],[51,1,51,3],[52,1,52,2],[52,3,52,4],[55,1,55,8],[4,1,4,3],[5,1,5,3],[6,1,6,3],[9,1,9,8],[10,1,10,2],[11,1,11,2],[12,1,12,2],[15,1,15,8],[48,1,48,3],[49,1,49,3],[25,1,25,8],[28,1,28,8],[29,1,29,2],[30,1,31,1],[32,1,35,1],[37,1,37,2],[38,1,38,2],[38,3,38,5],[39,1,39,8],[42,1,42,8],[43,1,43,3]]}
["UPORABNIKI - za obdobje od 1. 1. 2026 do 30. 6. 2026",null,null,null,null,null,null,"Vsebina:",{"$f":"RIGHT(CELL(\"filename\",I1),LEN(CELL(\"filename\",I1))-SEARCH(\"]\",CELL(\"filename\",I1)))","v":"UP_6b"}]
[]
[null,"Vpišite podatke za posamično vsebino, za katero ste vnesli podatke na listu \"UP_VSEBINE\" - za vsako posebej se vam odpre svoj list."]
[]
[1,"Prosimo, navedite število uporabnikov:",null,null,"Vpisujte v modre celice:"]
[null,"Skupaj število RAZLIČNIH uporabnikov (en uporabnik se šteje samo enkrat na leto)"]
[null,"Število uporabnikov na dan 1. 12. 2025 (izpis pridobite iz EVAPRO, če tega nimate oz. nimate točnega podatka, vpišite oceno števila uporabnikov na ta dan)"]
[]
[]
[2,"Če program obsega tudi delo v skupinah prosimo navedite (vpisujte samo skupine, ki ste jih prijavili znotraj izračuna javnega razpisa in so ovrednotene v pogodbi):"]
[null,"Število skupin"]
[null,"Povprečno število uporabnikov na skupino"]
[null,"Število srečanj na leto"]
[]
[]
[3,"Prosimo, navedite število vključenih uporabnikov po mesecih ter povprečno število ur aktivne* vključenosti uporabnikov v posamezne dejavnosti programa na mesec."]
[null,"Mesec","Število uporabnikov","Povprečno število ur aktivne* vključenosti enega uporabnika na mesec"]
[null,"januar "]
[null,"februar "]
[null,"marec "]
[null,"april "]
[null,"maj "]
[null,"junij "]
[null,"julij"]
[null,"Povprečno število na mesec",{"$f":"AVERAGE(C18:C24)","v":{"$error":"#DIV/0!"}},{"$f":"AVERAGE(D18:D24)","v":{"$error":"#DIV/0!"}}]
[null,"Opomba:\n*Aktivna vključenost pomeni, da je uporabnik aktivno vključen v dejavnosti programa. Torej pri programih, ki uporabnikom nudijo bivanje, ne vpisujete 720 ur na mesec, ampak število ur aktivne vključenosti uporabnika v program na mesec."]
[]
[]
[4,"Prosimo, navedite število RAZLIČNIH uporabnikov glede na spol in starost. Prosimo zapišite oceno, če nimate točnih podatkov."]
[null,"Starostna skupina",null,"Število moških","Število žensk","Spol ni znan oz. ni definiran"]
[null,"MLADOLETNI","do vključno 15 let"]
[null,null,"nad 15 let do 18 let"]
[null,"POLNOLETNI","nad 18 let do 35 let"]
[null,null,"nad 35 let do 50 let"]
[null,null,"nad 50 let do 65 let"]
[null,null,"nad 65 let"]
[null,"ANONIMNI","starost in/ali spol nista znana oz. definirana"]
[null,"Skupaj različnih uporabnikov ",null,{"$f":"SUM(D31:D37)","v":0},{"$f":"SUM(E31:E37)","v":0},{"$f":"SUM(F31:F37)","v":0}]
[null,"Ujemanje s prvo preglednico: ","Ujemanje: ",{"$f":"IF((E6=(D38+E38+F38)),\"SEŠTEVEK SE UJEMA\",\"SEŠTEVEK SE NE UJEMA - PREVERITE\")","v":"SEŠTEVEK SE UJEMA"}]
[null,"Opomba:\nIzvajalci, ki v bazi EVAPRO beležite drugačne starostne skupine, lahko ustvarite tabelo za izpis z navedenimi starostnimi skupinami - podrobno v »Navodilih za uporabo baze Evapro© - februar 2025«, poglavje »9.1.4 Po star. skupinah«, str. 86."]
[]
[]
[5,"Prosimo, navedite število uporabnikov glede na čas/obdobje njihove vključitve v program. Upoštevajte RAZLIČNE uporabnike. Seštevek uporabnikov mora tako biti enak podatku različnih uporabnikov iz prve preglednice. Prosimo zapišite oceno, če nimate točnih podatkov."]
[null,"Število uporabnikov, ki so program obiskovali/bili vključeni…",null,null,"Število uporabnikov"]
[null,"vsak dan ali petkrat na teden"]
[null,"enkrat ali večkrat na teden, vendar ne vsak (delovni) dan"]
[null,"večkrat/nekajkrat na mesec"]
[null,"enkrat na mesec"]
[null,"nekajkrat na leto"]
[null,"enkrat na leto"]
[null,"uporabniki, za katere ni znano, kako pogosto so obiskovali/bili vključeni v program (anonimni)"]
[null,"Skupaj število različnih uporabnikov ",null,null,{"$f":"SUM(E45:E51)","v":0}]
[null,"Ujemanje s prvo preglednico: ","Ujemanje: ",{"$f":"IF((E6=(E52)),\"SEŠTEVEK SE UJEMA\",\"SEŠTEVEK SE NE UJEMA - PREVERITE\")","v":"SEŠTEVEK SE UJEMA"}]
[]
[]
[6,"Prosimo, opredelite ciljno skupino uporabnikov - značilnosti uporabnikov, ki jim je vsebina programa namenjena:"]
[null,"po spolu"]
[null,"po starostnih skupinah"]
[null,"družinske razmere in socialno omrežje"]
[null,"glede na težavo(e), ki jo/jih imajo"]
[null,"druge pomembne značilnosti"]

{"sheet":"UP_6c","index":58,"n_rows":61,"n_cols":9,"rows_kept":61,"cut":false,"hidden":true,"merged":[[60,1,60,2],[60,3,60,8],[57,1,57,2],[57,3,57,8],[58,1,58,2],[58,3,58,8],[59,1,59,2],[59,3,59,8],[44,1,44,3],[45,1,45,3],[46,1,46,3],[47,1,47,3],[56,1,56,2],[56,3,56,8],[50,1,50,3],[51,1,51,3],[52,1,52,2],[52,3,52,4],[55,1,55,8],[4,1,4,3],[5,1,5,3],[6,1,6,3],[9,1,9,8],[10,1,10,2],[11,1,11,2],[12,1,12,2],[15,1,15,8],[48,1,48,3],[49,1,49,3],[25,1,25,8],[28,1,28,8],[29,1,29,2],[30,1,31,1],[32,1,35,1],[37,1,37,2],[38,1,38,2],[38,3,38,5],[39,1,39,8],[42,1,42,8],[43,1,43,3]]}
["UPORABNIKI - za obdobje od 1. 1. 2026 do 30. 6. 2026",null,null,null,null,null,null,"Vsebina:",{"$f":"RIGHT(CELL(\"filename\",I1),LEN(CELL(\"filename\",I1))-SEARCH(\"]\",CELL(\"filename\",I1)))","v":"UP_6c"}]
[]
[null,"Vpišite podatke za posamično vsebino, za katero ste vnesli podatke na listu \"UP_VSEBINE\" - za vsako posebej se vam odpre svoj list."]
[]
[1,"Prosimo, navedite število uporabnikov:",null,null,"Vpisujte v modre celice:"]
[null,"Skupaj število RAZLIČNIH uporabnikov (en uporabnik se šteje samo enkrat na leto)"]
[null,"Število uporabnikov na dan 1. 12. 2025 (izpis pridobite iz EVAPRO, če tega nimate oz. nimate točnega podatka, vpišite oceno števila uporabnikov na ta dan)"]
[]
[]
[2,"Če program obsega tudi delo v skupinah prosimo navedite (vpisujte samo skupine, ki ste jih prijavili znotraj izračuna javnega razpisa in so ovrednotene v pogodbi):"]
[null,"Število skupin"]
[null,"Povprečno število uporabnikov na skupino"]
[null,"Število srečanj na leto"]
[]
[]
[3,"Prosimo, navedite število vključenih uporabnikov po mesecih ter povprečno število ur aktivne* vključenosti uporabnikov v posamezne dejavnosti programa na mesec."]
[null,"Mesec","Število uporabnikov","Povprečno število ur aktivne* vključenosti enega uporabnika na mesec"]
[null,"januar "]
[null,"februar "]
[null,"marec "]
[null,"april "]
[null,"maj "]
[null,"junij "]
[null,"julij"]
[null,"Povprečno število na mesec",{"$f":"AVERAGE(C18:C24)","v":{"$error":"#DIV/0!"}},{"$f":"AVERAGE(D18:D24)","v":{"$error":"#DIV/0!"}}]
[null,"Opomba:\n*Aktivna vključenost pomeni, da je uporabnik aktivno vključen v dejavnosti programa. Torej pri programih, ki uporabnikom nudijo bivanje, ne vpisujete 720 ur na mesec, ampak število ur aktivne vključenosti uporabnika v program na mesec."]
[]
[]
[4,"Prosimo, navedite število RAZLIČNIH uporabnikov glede na spol in starost. Prosimo zapišite oceno, če nimate točnih podatkov."]
[null,"Starostna skupina",null,"Število moških","Število žensk","Spol ni znan oz. ni definiran"]
[null,"MLADOLETNI","do vključno 15 let"]
[null,null,"nad 15 let do 18 let"]
[null,"POLNOLETNI","nad 18 let do 35 let"]
[null,null,"nad 35 let do 50 let"]
[null,null,"nad 50 let do 65 let"]
[null,null,"nad 65 let"]
[null,"ANONIMNI","starost in/ali spol nista znana oz. definirana"]
[null,"Skupaj različnih uporabnikov ",null,{"$f":"SUM(D31:D37)","v":0},{"$f":"SUM(E31:E37)","v":0},{"$f":"SUM(F31:F37)","v":0}]
[null,"Ujemanje s prvo preglednico: ","Ujemanje: ",{"$f":"IF((E6=(D38+E38+F38)),\"SEŠTEVEK SE UJEMA\",\"SEŠTEVEK SE NE UJEMA - PREVERITE\")","v":"SEŠTEVEK SE UJEMA"}]
[null,"Opomba:\nIzvajalci, ki v bazi EVAPRO beležite drugačne starostne skupine, lahko ustvarite tabelo za izpis z navedenimi starostnimi skupinami - podrobno v »Navodilih za uporabo baze Evapro© - februar 2025«, poglavje »9.1.4 Po star. skupinah«, str. 86."]
[]
[]
[5,"Prosimo, navedite število uporabnikov glede na čas/obdobje njihove vključitve v program. Upoštevajte RAZLIČNE uporabnike. Seštevek uporabnikov mora tako biti enak podatku različnih uporabnikov iz prve preglednice. Prosimo zapišite oceno, če nimate točnih podatkov."]
[null,"Število uporabnikov, ki so program obiskovali/bili vključeni…",null,null,"Število uporabnikov"]
[null,"vsak dan ali petkrat na teden"]
[null,"enkrat ali večkrat na teden, vendar ne vsak (delovni) dan"]
[null,"večkrat/nekajkrat na mesec"]
[null,"enkrat na mesec"]
[null,"nekajkrat na leto"]
[null,"enkrat na leto"]
[null,"uporabniki, za katere ni znano, kako pogosto so obiskovali/bili vključeni v program (anonimni)"]
[null,"Skupaj število različnih uporabnikov ",null,null,{"$f":"SUM(E45:E51)","v":0}]
[null,"Ujemanje s prvo preglednico: ","Ujemanje: ",{"$f":"IF((E6=(E52)),\"SEŠTEVEK SE UJEMA\",\"SEŠTEVEK SE NE UJEMA - PREVERITE\")","v":"SEŠTEVEK SE UJEMA"}]
[]
[]
[6,"Prosimo, opredelite ciljno skupino uporabnikov - značilnosti uporabnikov, ki jim je vsebina programa namenjena:"]
[null,"po spolu"]
[null,"po starostnih skupinah"]
[null,"družinske razmere in socialno omrežje"]
[null,"glede na težavo(e), ki jo/jih imajo"]
[null,"druge pomembne značilnosti"]

{"sheet":"UP_7a","index":59,"n_rows":61,"n_cols":9,"rows_kept":61,"cut":false,"hidden":true,"merged":[[60,1,60,2],[60,3,60,8],[57,1,57,2],[57,3,57,8],[58,1,58,2],[58,3,58,8],[59,1,59,2],[59,3,59,8],[44,1,44,3],[45,1,45,3],[46,1,46,3],[47,1,47,3],[56,1,56,2],[56,3,56,8],[50,1,50,3],[51,1,51,3],[52,1,52,2],[52,3,52,4],[55,1,55,8],[4,1,4,3],[5,1,5,3],[6,1,6,3],[9,1,9,8],[10,1,10,2],[11,1,11,2],[12,1,12,2],[15,1,15,8],[48,1,48,3],[49,1,49,3],[25,1,25,8],[28,1,28,8],[29,1,29,2],[30,1,31,1],[32,1,35,1],[37,1,37,2],[38,1,38,2],[38,3,38,5],[39,1,39,8],[42,1,42,8],[43,1,43,3]]}
["UPORABNIKI - za obdobje od 1. 1. 2026 do 30. 6. 2026",null,null,null,null,null,null,"Vsebina:",{"$f":"RIGHT(CELL(\"filename\",I1),LEN(CELL(\"filename\",I1))-SEARCH(\"]\",CELL(\"filename\",I1)))","v":"UP_7a"}]
[]
[null,"Vpišite podatke za posamično vsebino, za katero ste vnesli podatke na listu \"UP_VSEBINE\" - za vsako posebej se vam odpre svoj list."]
[]
[1,"Prosimo, navedite število uporabnikov:",null,null,"Vpisujte v modre celice:"]
[null,"Skupaj število RAZLIČNIH uporabnikov (en uporabnik se šteje samo enkrat na leto)"]
[null,"Število uporabnikov na dan 1. 12. 2025 (izpis pridobite iz EVAPRO, če tega nimate oz. nimate točnega podatka, vpišite oceno števila uporabnikov na ta dan)"]
[]
[]
[2,"Če program obsega tudi delo v skupinah prosimo navedite (vpisujte samo skupine, ki ste jih prijavili znotraj izračuna javnega razpisa in so ovrednotene v pogodbi):"]
[null,"Število skupin"]
[null,"Povprečno število uporabnikov na skupino"]
[null,"Število srečanj na leto"]
[]
[]
[3,"Prosimo, navedite število vključenih uporabnikov po mesecih ter povprečno število ur aktivne* vključenosti uporabnikov v posamezne dejavnosti programa na mesec."]
[null,"Mesec","Število uporabnikov","Povprečno število ur aktivne* vključenosti enega uporabnika na mesec"]
[null,"januar "]
[null,"februar "]
[null,"marec "]
[null,"april "]
[null,"maj "]
[null,"junij "]
[null,"julij"]
[null,"Povprečno število na mesec",{"$f":"AVERAGE(C18:C24)","v":{"$error":"#DIV/0!"}},{"$f":"AVERAGE(D18:D24)","v":{"$error":"#DIV/0!"}}]
[null,"Opomba:\n*Aktivna vključenost pomeni, da je uporabnik aktivno vključen v dejavnosti programa. Torej pri programih, ki uporabnikom nudijo bivanje, ne vpisujete 720 ur na mesec, ampak število ur aktivne vključenosti uporabnika v program na mesec."]
[]
[]
[4,"Prosimo, navedite število RAZLIČNIH uporabnikov glede na spol in starost. Prosimo zapišite oceno, če nimate točnih podatkov."]
[null,"Starostna skupina",null,"Število moških","Število žensk","Spol ni znan oz. ni definiran"]
[null,"MLADOLETNI","do vključno 15 let"]
[null,null,"nad 15 let do 18 let"]
[null,"POLNOLETNI","nad 18 let do 35 let"]
[null,null,"nad 35 let do 50 let"]
[null,null,"nad 50 let do 65 let"]
[null,null,"nad 65 let"]
[null,"ANONIMNI","starost in/ali spol nista znana oz. definirana"]
[null,"Skupaj različnih uporabnikov ",null,{"$f":"SUM(D31:D37)","v":0},{"$f":"SUM(E31:E37)","v":0},{"$f":"SUM(F31:F37)","v":0}]
[null,"Ujemanje s prvo preglednico: ","Ujemanje: ",{"$f":"IF((E6=(D38+E38+F38)),\"SEŠTEVEK SE UJEMA\",\"SEŠTEVEK SE NE UJEMA - PREVERITE\")","v":"SEŠTEVEK SE UJEMA"}]
[null,"Opomba:\nIzvajalci, ki v bazi EVAPRO beležite drugačne starostne skupine, lahko ustvarite tabelo za izpis z navedenimi starostnimi skupinami - podrobno v »Navodilih za uporabo baze Evapro© - februar 2025«, poglavje »9.1.4 Po star. skupinah«, str. 86."]
[]
[]
[5,"Prosimo, navedite število uporabnikov glede na čas/obdobje njihove vključitve v program. Upoštevajte RAZLIČNE uporabnike. Seštevek uporabnikov mora tako biti enak podatku različnih uporabnikov iz prve preglednice. Prosimo zapišite oceno, če nimate točnih podatkov."]
[null,"Število uporabnikov, ki so program obiskovali/bili vključeni…",null,null,"Število uporabnikov"]
[null,"vsak dan ali petkrat na teden"]
[null,"enkrat ali večkrat na teden, vendar ne vsak (delovni) dan"]
[null,"večkrat/nekajkrat na mesec"]
[null,"enkrat na mesec"]
[null,"nekajkrat na leto"]
[null,"enkrat na leto"]
[null,"uporabniki, za katere ni znano, kako pogosto so obiskovali/bili vključeni v program (anonimni)"]
[null,"Skupaj število različnih uporabnikov ",null,null,{"$f":"SUM(E45:E51)","v":0}]
[null,"Ujemanje s prvo preglednico: ","Ujemanje: ",{"$f":"IF((E6=(E52)),\"SEŠTEVEK SE UJEMA\",\"SEŠTEVEK SE NE UJEMA - PREVERITE\")","v":"SEŠTEVEK SE UJEMA"}]
[]
[]
[6,"Prosimo, opredelite ciljno skupino uporabnikov - značilnosti uporabnikov, ki jim je vsebina programa namenjena:"]
[null,"po spolu"]
[null,"po starostnih skupinah"]
[null,"družinske razmere in socialno omrežje"]
[null,"glede na težavo(e), ki jo/jih imajo"]
[null,"druge pomembne značilnosti"]

{"sheet":"UP_7b","index":60,"n_rows":61,"n_cols":9,"rows_kept":61,"cut":false,"hidden":true,"merged":[[60,1,60,2],[60,3,60,8],[57,1,57,2],[57,3,57,8],[58,1,58,2],[58,3,58,8],[59,1,59,2],[59,3,59,8],[44,1,44,3],[45,1,45,3],[46,1,46,3],[47,1,47,3],[56,1,56,2],[56,3,56,8],[50,1,50,3],[51,1,51,3],[52,1,52,2],[52,3,52,4],[55,1,55,8],[4,1,4,3],[5,1,5,3],[6,1,6,3],[9,1,9,8],[10,1,10,2],[11,1,11,2],[12,1,12,2],[15,1,15,8],[48,1,48,3],[49,1,49,3],[25,1,25,8],[28,1,28,8],[29,1,29,2],[30,1,31,1],[32,1,35,1],[37,1,37,2],[38,1,38,2],[38,3,38,5],[39,1,39,8],[42,1,42,8],[43,1,43,3]]}
["UPORABNIKI - za obdobje od 1. 1. 2026 do 30. 6. 2026",null,null,null,null,null,null,"Vsebina:",{"$f":"RIGHT(CELL(\"filename\",I1),LEN(CELL(\"filename\",I1))-SEARCH(\"]\",CELL(\"filename\",I1)))","v":"UP_7b"}]
[]
[null,"Vpišite podatke za posamično vsebino, za katero ste vnesli podatke na listu \"UP_VSEBINE\" - za vsako posebej se vam odpre svoj list."]
[]
[1,"Prosimo, navedite število uporabnikov:",null,null,"Vpisujte v modre celice:"]
[null,"Skupaj število RAZLIČNIH uporabnikov (en uporabnik se šteje samo enkrat na leto)"]
[null,"Število uporabnikov na dan 1. 12. 2025 (izpis pridobite iz EVAPRO, če tega nimate oz. nimate točnega podatka, vpišite oceno števila uporabnikov na ta dan)"]
[]
[]
[2,"Če program obsega tudi delo v skupinah prosimo navedite (vpisujte samo skupine, ki ste jih prijavili znotraj izračuna javnega razpisa in so ovrednotene v pogodbi):"]
[null,"Število skupin"]
[null,"Povprečno število uporabnikov na skupino"]
[null,"Število srečanj na leto"]
[]
[]
[3,"Prosimo, navedite število vključenih uporabnikov po mesecih ter povprečno število ur aktivne* vključenosti uporabnikov v posamezne dejavnosti programa na mesec."]
[null,"Mesec","Število uporabnikov","Povprečno število ur aktivne* vključenosti enega uporabnika na mesec"]
[null,"januar "]
[null,"februar "]
[null,"marec "]
[null,"april "]
[null,"maj "]
[null,"junij "]
[null,"julij"]
[null,"Povprečno število na mesec",{"$f":"AVERAGE(C18:C24)","v":{"$error":"#DIV/0!"}},{"$f":"AVERAGE(D18:D24)","v":{"$error":"#DIV/0!"}}]
[null,"Opomba:\n*Aktivna vključenost pomeni, da je uporabnik aktivno vključen v dejavnosti programa. Torej pri programih, ki uporabnikom nudijo bivanje, ne vpisujete 720 ur na mesec, ampak število ur aktivne vključenosti uporabnika v program na mesec."]
[]
[]
[4,"Prosimo, navedite število RAZLIČNIH uporabnikov glede na spol in starost. Prosimo zapišite oceno, če nimate točnih podatkov."]
[null,"Starostna skupina",null,"Število moških","Število žensk","Spol ni znan oz. ni definiran"]
[null,"MLADOLETNI","do vključno 15 let"]
[null,null,"nad 15 let do 18 let"]
[null,"POLNOLETNI","nad 18 let do 35 let"]
[null,null,"nad 35 let do 50 let"]
[null,null,"nad 50 let do 65 let"]
[null,null,"nad 65 let"]
[null,"ANONIMNI","starost in/ali spol nista znana oz. definirana"]
[null,"Skupaj različnih uporabnikov ",null,{"$f":"SUM(D31:D37)","v":0},{"$f":"SUM(E31:E37)","v":0},{"$f":"SUM(F31:F37)","v":0}]
[null,"Ujemanje s prvo preglednico: ","Ujemanje: ",{"$f":"IF((E6=(D38+E38+F38)),\"SEŠTEVEK SE UJEMA\",\"SEŠTEVEK SE NE UJEMA - PREVERITE\")","v":"SEŠTEVEK SE UJEMA"}]
[null,"Opomba:\nIzvajalci, ki v bazi EVAPRO beležite drugačne starostne skupine, lahko ustvarite tabelo za izpis z navedenimi starostnimi skupinami - podrobno v »Navodilih za uporabo baze Evapro© - februar 2025«, poglavje »9.1.4 Po star. skupinah«, str. 86."]
[]
[]
[5,"Prosimo, navedite število uporabnikov glede na čas/obdobje njihove vključitve v program. Upoštevajte RAZLIČNE uporabnike. Seštevek uporabnikov mora tako biti enak podatku različnih uporabnikov iz prve preglednice. Prosimo zapišite oceno, če nimate točnih podatkov."]
[null,"Število uporabnikov, ki so program obiskovali/bili vključeni…",null,null,"Število uporabnikov"]
[null,"vsak dan ali petkrat na teden"]
[null,"enkrat ali večkrat na teden, vendar ne vsak (delovni) dan"]
[null,"večkrat/nekajkrat na mesec"]
[null,"enkrat na mesec"]
[null,"nekajkrat na leto"]
[null,"enkrat na leto"]
[null,"uporabniki, za katere ni znano, kako pogosto so obiskovali/bili vključeni v program (anonimni)"]
[null,"Skupaj število različnih uporabnikov ",null,null,{"$f":"SUM(E45:E51)","v":0}]
[null,"Ujemanje s prvo preglednico: ","Ujemanje: ",{"$f":"IF((E6=(E52)),\"SEŠTEVEK SE UJEMA\",\"SEŠTEVEK SE NE UJEMA - PREVERITE\")","v":"SEŠTEVEK SE UJEMA"}]
[]
[]
[6,"Prosimo, opredelite ciljno skupino uporabnikov - značilnosti uporabnikov, ki jim je vsebina programa namenjena:"]
[null,"po spolu"]
[null,"po starostnih skupinah"]
[null,"družinske razmere in socialno omrežje"]
[null,"glede na težavo(e), ki jo/jih imajo"]
[null,"druge pomembne značilnosti"]

{"sheet":"UP_7c","index":61,"n_rows":61,"n_cols":9,"rows_kept":61,"cut":false,"hidden":true,"merged":[[60,1,60,2],[60,3,60,8],[57,1,57,2],[57,3,57,8],[58,1,58,2],[58,3,58,8],[59,1,59,2],[59,3,59,8],[44,1,44,3],[45,1,45,3],[46,1,46,3],[47,1,47,3],[56,1,56,2],[56,3,56,8],[50,1,50,3],[51,1,51,3],[52,1,52,2],[52,3,52,4],[55,1,55,8],[4,1,4,3],[5,1,5,3],[6,1,6,3],[9,1,9,8],[10,1,10,2],[11,1,11,2],[12,1,12,2],[15,1,15,8],[48,1,48,3],[49,1,49,3],[25,1,25,8],[28,1,28,8],[29,1,29,2],[30,1,31,1],[32,1,35,1],[37,1,37,2],[38,1,38,2],[38,3,38,5],[39,1,39,8],[42,1,42,8],[43,1,43,3]]}
["UPORABNIKI - za obdobje od 1. 1. 2026 do 30. 6. 2026",null,null,null,null,null,null,"Vsebina:",{"$f":"RIGHT(CELL(\"filename\",I1),LEN(CELL(\"filename\",I1))-SEARCH(\"]\",CELL(\"filename\",I1)))","v":"UP_7c"}]
[]
[null,"Vpišite podatke za posamično vsebino, za katero ste vnesli podatke na listu \"UP_VSEBINE\" - za vsako posebej se vam odpre svoj list."]
[]
[1,"Prosimo, navedite število uporabnikov:",null,null,"Vpisujte v modre celice:"]
[null,"Skupaj število RAZLIČNIH uporabnikov (en uporabnik se šteje samo enkrat na leto)"]
[null,"Število uporabnikov na dan 1. 12. 2025 (izpis pridobite iz EVAPRO, če tega nimate oz. nimate točnega podatka, vpišite oceno števila uporabnikov na ta dan)"]
[]
[]
[2,"Če program obsega tudi delo v skupinah prosimo navedite (vpisujte samo skupine, ki ste jih prijavili znotraj izračuna javnega razpisa in so ovrednotene v pogodbi):"]
[null,"Število skupin"]
[null,"Povprečno število uporabnikov na skupino"]
[null,"Število srečanj na leto"]
[]
[]
[3,"Prosimo, navedite število vključenih uporabnikov po mesecih ter povprečno število ur aktivne* vključenosti uporabnikov v posamezne dejavnosti programa na mesec."]
[null,"Mesec","Število uporabnikov","Povprečno število ur aktivne* vključenosti enega uporabnika na mesec"]
[null,"januar "]
[null,"februar "]
[null,"marec "]
[null,"april "]
[null,"maj "]
[null,"junij "]
[null,"julij"]
[null,"Povprečno število na mesec",{"$f":"AVERAGE(C18:C24)","v":{"$error":"#DIV/0!"}},{"$f":"AVERAGE(D18:D24)","v":{"$error":"#DIV/0!"}}]
[null,"Opomba:\n*Aktivna vključenost pomeni, da je uporabnik aktivno vključen v dejavnosti programa. Torej pri programih, ki uporabnikom nudijo bivanje, ne vpisujete 720 ur na mesec, ampak število ur aktivne vključenosti uporabnika v program na mesec."]
[]
[]
[4,"Prosimo, navedite število RAZLIČNIH uporabnikov glede na spol in starost. Prosimo zapišite oceno, če nimate točnih podatkov."]
[null,"Starostna skupina",null,"Število moških","Število žensk","Spol ni znan oz. ni definiran"]
[null,"MLADOLETNI","do vključno 15 let"]
[null,null,"nad 15 let do 18 let"]
[null,"POLNOLETNI","nad 18 let do 35 let"]
[null,null,"nad 35 let do 50 let"]
[null,null,"nad 50 let do 65 let"]
[null,null,"nad 65 let"]
[null,"ANONIMNI","starost in/ali spol nista znana oz. definirana"]
[null,"Skupaj različnih uporabnikov ",null,{"$f":"SUM(D31:D37)","v":0},{"$f":"SUM(E31:E37)","v":0},{"$f":"SUM(F31:F37)","v":0}]
[null,"Ujemanje s prvo preglednico: ","Ujemanje: ",{"$f":"IF((E6=(D38+E38+F38)),\"SEŠTEVEK SE UJEMA\",\"SEŠTEVEK SE NE UJEMA - PREVERITE\")","v":"SEŠTEVEK SE UJEMA"}]
[null,"Opomba:\nIzvajalci, ki v bazi EVAPRO beležite drugačne starostne skupine, lahko ustvarite tabelo za izpis z navedenimi starostnimi skupinami - podrobno v »Navodilih za uporabo baze Evapro© - februar 2025«, poglavje »9.1.4 Po star. skupinah«, str. 86."]
[]
[]
[5,"Prosimo, navedite število uporabnikov glede na čas/obdobje njihove vključitve v program. Upoštevajte RAZLIČNE uporabnike. Seštevek uporabnikov mora tako biti enak podatku različnih uporabnikov iz prve preglednice. Prosimo zapišite oceno, če nimate točnih podatkov."]
[null,"Število uporabnikov, ki so program obiskovali/bili vključeni…",null,null,"Število uporabnikov"]
[null,"vsak dan ali petkrat na teden"]
[null,"enkrat ali večkrat na teden, vendar ne vsak (delovni) dan"]
[null,"večkrat/nekajkrat na mesec"]
[null,"enkrat na mesec"]
[null,"nekajkrat na leto"]
[null,"enkrat na leto"]
[null,"uporabniki, za katere ni znano, kako pogosto so obiskovali/bili vključeni v program (anonimni)"]
[null,"Skupaj število različnih uporabnikov ",null,null,{"$f":"SUM(E45:E51)","v":0}]
[null,"Ujemanje s prvo preglednico: ","Ujemanje: ",{"$f":"IF((E6=(E52)),\"SEŠTEVEK SE UJEMA\",\"SEŠTEVEK SE NE UJEMA - PREVERITE\")","v":"SEŠTEVEK SE UJEMA"}]
[]
[]
[6,"Prosimo, opredelite ciljno skupino uporabnikov - značilnosti uporabnikov, ki jim je vsebina programa namenjena:"]
[null,"po spolu"]
[null,"po starostnih skupinah"]
[null,"družinske razmere in socialno omrežje"]
[null,"glede na težavo(e), ki jo/jih imajo"]
[null,"druge pomembne značilnosti"]

{"sheet":"UP_7d","index":62,"n_rows":61,"n_cols":9,"rows_kept":61,"cut":false,"hidden":true,"merged":[[60,1,60,2],[60,3,60,8],[57,1,57,2],[57,3,57,8],[58,1,58,2],[58,3,58,8],[59,1,59,2],[59,3,59,8],[44,1,44,3],[45,1,45,3],[46,1,46,3],[47,1,47,3],[56,1,56,2],[56,3,56,8],[50,1,50,3],[51,1,51,3],[52,1,52,2],[52,3,52,4],[55,1,55,8],[4,1,4,3],[5,1,5,3],[6,1,6,3],[9,1,9,8],[10,1,10,2],[11,1,11,2],[12,1,12,2],[15,1,15,8],[48,1,48,3],[49,1,49,3],[25,1,25,8],[28,1,28,8],[29,1,29,2],[30,1,31,1],[32,1,35,1],[37,1,37,2],[38,1,38,2],[38,3,38,5],[39,1,39,8],[42,1,42,8],[43,1,43,3]]}
["UPORABNIKI - za obdobje od 1. 1. 2026 do 30. 6. 2026",null,null,null,null,null,null,"Vsebina:",{"$f":"RIGHT(CELL(\"filename\",I1),LEN(CELL(\"filename\",I1))-SEARCH(\"]\",CELL(\"filename\",I1)))","v":"UP_7d"}]
[]
[null,"Vpišite podatke za posamično vsebino, za katero ste vnesli podatke na listu \"UP_VSEBINE\" - za vsako posebej se vam odpre svoj list."]
[]
[1,"Prosimo, navedite število uporabnikov:",null,null,"Vpisujte v modre celice:"]
[null,"Skupaj število RAZLIČNIH uporabnikov (en uporabnik se šteje samo enkrat na leto)"]
[null,"Število uporabnikov na dan 1. 12. 2025 (izpis pridobite iz EVAPRO, če tega nimate oz. nimate točnega podatka, vpišite oceno števila uporabnikov na ta dan)"]
[]
[]
[2,"Če program obsega tudi delo v skupinah prosimo navedite (vpisujte samo skupine, ki ste jih prijavili znotraj izračuna javnega razpisa in so ovrednotene v pogodbi):"]
[null,"Število skupin"]
[null,"Povprečno število uporabnikov na skupino"]
[null,"Število srečanj na leto"]
[]
[]
[3,"Prosimo, navedite število vključenih uporabnikov po mesecih ter povprečno število ur aktivne* vključenosti uporabnikov v posamezne dejavnosti programa na mesec."]
[null,"Mesec","Število uporabnikov","Povprečno število ur aktivne* vključenosti enega uporabnika na mesec"]
[null,"januar "]
[null,"februar "]
[null,"marec "]
[null,"april "]
[null,"maj "]
[null,"junij "]
[null,"julij"]
[null,"Povprečno število na mesec",{"$f":"AVERAGE(C18:C24)","v":{"$error":"#DIV/0!"}},{"$f":"AVERAGE(D18:D24)","v":{"$error":"#DIV/0!"}}]
[null,"Opomba:\n*Aktivna vključenost pomeni, da je uporabnik aktivno vključen v dejavnosti programa. Torej pri programih, ki uporabnikom nudijo bivanje, ne vpisujete 720 ur na mesec, ampak število ur aktivne vključenosti uporabnika v program na mesec."]
[]
[]
[4,"Prosimo, navedite število RAZLIČNIH uporabnikov glede na spol in starost. Prosimo zapišite oceno, če nimate točnih podatkov."]
[null,"Starostna skupina",null,"Število moških","Število žensk","Spol ni znan oz. ni definiran"]
[null,"MLADOLETNI","do vključno 15 let"]
[null,null,"nad 15 let do 18 let"]
[null,"POLNOLETNI","nad 18 let do 35 let"]
[null,null,"nad 35 let do 50 let"]
[null,null,"nad 50 let do 65 let"]
[null,null,"nad 65 let"]
[null,"ANONIMNI","starost in/ali spol nista znana oz. definirana"]
[null,"Skupaj različnih uporabnikov ",null,{"$f":"SUM(D31:D37)","v":0},{"$f":"SUM(E31:E37)","v":0},{"$f":"SUM(F31:F37)","v":0}]
[null,"Ujemanje s prvo preglednico: ","Ujemanje: ",{"$f":"IF((E6=(D38+E38+F38)),\"SEŠTEVEK SE UJEMA\",\"SEŠTEVEK SE NE UJEMA - PREVERITE\")","v":"SEŠTEVEK SE UJEMA"}]
[null,"Opomba:\nIzvajalci, ki v bazi EVAPRO beležite drugačne starostne skupine, lahko ustvarite tabelo za izpis z navedenimi starostnimi skupinami - podrobno v »Navodilih za uporabo baze Evapro© - februar 2025«, poglavje »9.1.4 Po star. skupinah«, str. 86."]
[]
[]
[5,"Prosimo, navedite število uporabnikov glede na čas/obdobje njihove vključitve v program. Upoštevajte RAZLIČNE uporabnike. Seštevek uporabnikov mora tako biti enak podatku različnih uporabnikov iz prve preglednice. Prosimo zapišite oceno, če nimate točnih podatkov."]
[null,"Število uporabnikov, ki so program obiskovali/bili vključeni…",null,null,"Število uporabnikov"]
[null,"vsak dan ali petkrat na teden"]
[null,"enkrat ali večkrat na teden, vendar ne vsak (delovni) dan"]
[null,"večkrat/nekajkrat na mesec"]
[null,"enkrat na mesec"]
[null,"nekajkrat na leto"]
[null,"enkrat na leto"]
[null,"uporabniki, za katere ni znano, kako pogosto so obiskovali/bili vključeni v program (anonimni)"]
[null,"Skupaj število različnih uporabnikov ",null,null,{"$f":"SUM(E45:E51)","v":0}]
[null,"Ujemanje s prvo preglednico: ","Ujemanje: ",{"$f":"IF((E6=(E52)),\"SEŠTEVEK SE UJEMA\",\"SEŠTEVEK SE NE UJEMA - PREVERITE\")","v":"SEŠTEVEK SE UJEMA"}]
[]
[]
[6,"Prosimo, opredelite ciljno skupino uporabnikov - značilnosti uporabnikov, ki jim je vsebina programa namenjena:"]
[null,"po spolu"]
[null,"po starostnih skupinah"]
[null,"družinske razmere in socialno omrežje"]
[null,"glede na težavo(e), ki jo/jih imajo"]
[null,"druge pomembne značilnosti"]

{"sheet":"UP_8a","index":63,"n_rows":61,"n_cols":9,"rows_kept":61,"cut":false,"hidden":true,"merged":[[60,1,60,2],[60,3,60,8],[57,1,57,2],[57,3,57,8],[58,1,58,2],[58,3,58,8],[59,1,59,2],[59,3,59,8],[44,1,44,3],[45,1,45,3],[46,1,46,3],[47,1,47,3],[56,1,56,2],[56,3,56,8],[50,1,50,3],[51,1,51,3],[52,1,52,2],[52,3,52,4],[55,1,55,8],[4,1,4,3],[5,1,5,3],[6,1,6,3],[9,1,9,8],[10,1,10,2],[11,1,11,2],[12,1,12,2],[15,1,15,8],[48,1,48,3],[49,1,49,3],[25,1,25,8],[28,1,28,8],[29,1,29,2],[30,1,31,1],[32,1,35,1],[37,1,37,2],[38,1,38,2],[38,3,38,5],[39,1,39,8],[42,1,42,8],[43,1,43,3]]}
["UPORABNIKI - za obdobje od 1. 1. 2026 do 30. 6. 2026",null,null,null,null,null,null,"Vsebina:",{"$f":"RIGHT(CELL(\"filename\",I1),LEN(CELL(\"filename\",I1))-SEARCH(\"]\",CELL(\"filename\",I1)))","v":"UP_8a"}]
[]
[null,"Vpišite podatke za posamično vsebino, za katero ste vnesli podatke na listu \"UP_VSEBINE\" - za vsako posebej se vam odpre svoj list."]
[]
[1,"Prosimo, navedite število uporabnikov:",null,null,"Vpisujte v modre celice:"]
[null,"Skupaj število RAZLIČNIH uporabnikov (en uporabnik se šteje samo enkrat na leto)"]
[null,"Število uporabnikov na dan 1. 12. 2025 (izpis pridobite iz EVAPRO, če tega nimate oz. nimate točnega podatka, vpišite oceno števila uporabnikov na ta dan)"]
[]
[]
[2,"Če program obsega tudi delo v skupinah prosimo navedite (vpisujte samo skupine, ki ste jih prijavili znotraj izračuna javnega razpisa in so ovrednotene v pogodbi):"]
[null,"Število skupin"]
[null,"Povprečno število uporabnikov na skupino"]
[null,"Število srečanj na leto"]
[]
[]
[3,"Prosimo, navedite število vključenih uporabnikov po mesecih ter povprečno število ur aktivne* vključenosti uporabnikov v posamezne dejavnosti programa na mesec."]
[null,"Mesec","Število uporabnikov","Povprečno število ur aktivne* vključenosti enega uporabnika na mesec"]
[null,"januar "]
[null,"februar "]
[null,"marec "]
[null,"april "]
[null,"maj "]
[null,"junij "]
[null,"julij"]
[null,"Povprečno število na mesec",{"$f":"AVERAGE(C18:C24)","v":{"$error":"#DIV/0!"}},{"$f":"AVERAGE(D18:D24)","v":{"$error":"#DIV/0!"}}]
[null,"Opomba:\n*Aktivna vključenost pomeni, da je uporabnik aktivno vključen v dejavnosti programa. Torej pri programih, ki uporabnikom nudijo bivanje, ne vpisujete 720 ur na mesec, ampak število ur aktivne vključenosti uporabnika v program na mesec."]
[]
[]
[4,"Prosimo, navedite število RAZLIČNIH uporabnikov glede na spol in starost. Prosimo zapišite oceno, če nimate točnih podatkov."]
[null,"Starostna skupina",null,"Število moških","Število žensk","Spol ni znan oz. ni definiran"]
[null,"MLADOLETNI","do vključno 15 let"]
[null,null,"nad 15 let do 18 let"]
[null,"POLNOLETNI","nad 18 let do 35 let"]
[null,null,"nad 35 let do 50 let"]
[null,null,"nad 50 let do 65 let"]
[null,null,"nad 65 let"]
[null,"ANONIMNI","starost in/ali spol nista znana oz. definirana"]
[null,"Skupaj različnih uporabnikov ",null,{"$f":"SUM(D31:D37)","v":0},{"$f":"SUM(E31:E37)","v":0},{"$f":"SUM(F31:F37)","v":0}]
[null,"Ujemanje s prvo preglednico: ","Ujemanje: ",{"$f":"IF((E6=(D38+E38+F38)),\"SEŠTEVEK SE UJEMA\",\"SEŠTEVEK SE NE UJEMA - PREVERITE\")","v":"SEŠTEVEK SE UJEMA"}]
[null,"Opomba:\nIzvajalci, ki v bazi EVAPRO beležite drugačne starostne skupine, lahko ustvarite tabelo za izpis z navedenimi starostnimi skupinami - podrobno v »Navodilih za uporabo baze Evapro© - februar 2025«, poglavje »9.1.4 Po star. skupinah«, str. 86."]
[]
[]
[5,"Prosimo, navedite število uporabnikov glede na čas/obdobje njihove vključitve v program. Upoštevajte RAZLIČNE uporabnike. Seštevek uporabnikov mora tako biti enak podatku različnih uporabnikov iz prve preglednice. Prosimo zapišite oceno, če nimate točnih podatkov."]
[null,"Število uporabnikov, ki so program obiskovali/bili vključeni…",null,null,"Število uporabnikov"]
[null,"vsak dan ali petkrat na teden"]
[null,"enkrat ali večkrat na teden, vendar ne vsak (delovni) dan"]
[null,"večkrat/nekajkrat na mesec"]
[null,"enkrat na mesec"]
[null,"nekajkrat na leto"]
[null,"enkrat na leto"]
[null,"uporabniki, za katere ni znano, kako pogosto so obiskovali/bili vključeni v program (anonimni)"]
[null,"Skupaj število različnih uporabnikov ",null,null,{"$f":"SUM(E45:E51)","v":0}]
[null,"Ujemanje s prvo preglednico: ","Ujemanje: ",{"$f":"IF((E6=(E52)),\"SEŠTEVEK SE UJEMA\",\"SEŠTEVEK SE NE UJEMA - PREVERITE\")","v":"SEŠTEVEK SE UJEMA"}]
[]
[]
[6,"Prosimo, opredelite ciljno skupino uporabnikov - značilnosti uporabnikov, ki jim je vsebina programa namenjena:"]
[null,"po spolu"]
[null,"po starostnih skupinah"]
[null,"družinske razmere in socialno omrežje"]
[null,"glede na težavo(e), ki jo/jih imajo"]
[null,"druge pomembne značilnosti"]

{"sheet":"UP_8b","index":64,"n_rows":61,"n_cols":9,"rows_kept":61,"cut":false,"hidden":true,"merged":[[60,1,60,2],[60,3,60,8],[57,1,57,2],[57,3,57,8],[58,1,58,2],[58,3,58,8],[59,1,59,2],[59,3,59,8],[44,1,44,3],[45,1,45,3],[46,1,46,3],[47,1,47,3],[56,1,56,2],[56,3,56,8],[50,1,50,3],[51,1,51,3],[52,1,52,2],[52,3,52,4],[55,1,55,8],[4,1,4,3],[5,1,5,3],[6,1,6,3],[9,1,9,8],[10,1,10,2],[11,1,11,2],[12,1,12,2],[15,1,15,8],[48,1,48,3],[49,1,49,3],[25,1,25,8],[28,1,28,8],[29,1,29,2],[30,1,31,1],[32,1,35,1],[37,1,37,2],[38,1,38,2],[38,3,38,5],[39,1,39,8],[42,1,42,8],[43,1,43,3]]}
["UPORABNIKI - za obdobje od 1. 1. 2026 do 30. 6. 2026",null,null,null,null,null,null,"Vsebina:",{"$f":"RIGHT(CELL(\"filename\",I1),LEN(CELL(\"filename\",I1))-SEARCH(\"]\",CELL(\"filename\",I1)))","v":"UP_8b"}]
[]
[null,"Vpišite podatke za posamično vsebino, za katero ste vnesli podatke na listu \"UP_VSEBINE\" - za vsako posebej se vam odpre svoj list."]
[]
[1,"Prosimo, navedite število uporabnikov:",null,null,"Vpisujte v modre celice:"]
[null,"Skupaj število RAZLIČNIH uporabnikov (en uporabnik se šteje samo enkrat na leto)"]
[null,"Število uporabnikov na dan 1. 12. 2025 (izpis pridobite iz EVAPRO, če tega nimate oz. nimate točnega podatka, vpišite oceno števila uporabnikov na ta dan)"]
[]
[]
[2,"Če program obsega tudi delo v skupinah prosimo navedite (vpisujte samo skupine, ki ste jih prijavili znotraj izračuna javnega razpisa in so ovrednotene v pogodbi):"]
[null,"Število skupin"]
[null,"Povprečno število uporabnikov na skupino"]
[null,"Število srečanj na leto"]
[]
[]
[3,"Prosimo, navedite število vključenih uporabnikov po mesecih ter povprečno število ur aktivne* vključenosti uporabnikov v posamezne dejavnosti programa na mesec."]
[null,"Mesec","Število uporabnikov","Povprečno število ur aktivne* vključenosti enega uporabnika na mesec"]
[null,"januar "]
[null,"februar "]
[null,"marec "]
[null,"april "]
[null,"maj "]
[null,"junij "]
[null,"julij"]
[null,"Povprečno število na mesec",{"$f":"AVERAGE(C18:C24)","v":{"$error":"#DIV/0!"}},{"$f":"AVERAGE(D18:D24)","v":{"$error":"#DIV/0!"}}]
[null,"Opomba:\n*Aktivna vključenost pomeni, da je uporabnik aktivno vključen v dejavnosti programa. Torej pri programih, ki uporabnikom nudijo bivanje, ne vpisujete 720 ur na mesec, ampak število ur aktivne vključenosti uporabnika v program na mesec."]
[]
[]
[4,"Prosimo, navedite število RAZLIČNIH uporabnikov glede na spol in starost. Prosimo zapišite oceno, če nimate točnih podatkov."]
[null,"Starostna skupina",null,"Število moških","Število žensk","Spol ni znan oz. ni definiran"]
[null,"MLADOLETNI","do vključno 15 let"]
[null,null,"nad 15 let do 18 let"]
[null,"POLNOLETNI","nad 18 let do 35 let"]
[null,null,"nad 35 let do 50 let"]
[null,null,"nad 50 let do 65 let"]
[null,null,"nad 65 let"]
[null,"ANONIMNI","starost in/ali spol nista znana oz. definirana"]
[null,"Skupaj različnih uporabnikov ",null,{"$f":"SUM(D31:D37)","v":0},{"$f":"SUM(E31:E37)","v":0},{"$f":"SUM(F31:F37)","v":0}]
[null,"Ujemanje s prvo preglednico: ","Ujemanje: ",{"$f":"IF((E6=(D38+E38+F38)),\"SEŠTEVEK SE UJEMA\",\"SEŠTEVEK SE NE UJEMA - PREVERITE\")","v":"SEŠTEVEK SE UJEMA"}]
[null,"Opomba:\nIzvajalci, ki v bazi EVAPRO beležite drugačne starostne skupine, lahko ustvarite tabelo za izpis z navedenimi starostnimi skupinami - podrobno v »Navodilih za uporabo baze Evapro© - februar 2025«, poglavje »9.1.4 Po star. skupinah«, str. 86."]
[]
[]
[5,"Prosimo, navedite število uporabnikov glede na čas/obdobje njihove vključitve v program. Upoštevajte RAZLIČNE uporabnike. Seštevek uporabnikov mora tako biti enak podatku različnih uporabnikov iz prve preglednice. Prosimo zapišite oceno, če nimate točnih podatkov."]
[null,"Število uporabnikov, ki so program obiskovali/bili vključeni…",null,null,"Število uporabnikov"]
[null,"vsak dan ali petkrat na teden"]
[null,"enkrat ali večkrat na teden, vendar ne vsak (delovni) dan"]
[null,"večkrat/nekajkrat na mesec"]
[null,"enkrat na mesec"]
[null,"nekajkrat na leto"]
[null,"enkrat na leto"]
[null,"uporabniki, za katere ni znano, kako pogosto so obiskovali/bili vključeni v program (anonimni)"]
[null,"Skupaj število različnih uporabnikov ",null,null,{"$f":"SUM(E45:E51)","v":0}]
[null,"Ujemanje s prvo preglednico: ","Ujemanje: ",{"$f":"IF((E6=(E52)),\"SEŠTEVEK SE UJEMA\",\"SEŠTEVEK SE NE UJEMA - PREVERITE\")","v":"SEŠTEVEK SE UJEMA"}]
[]
[]
[6,"Prosimo, opredelite ciljno skupino uporabnikov - značilnosti uporabnikov, ki jim je vsebina programa namenjena:"]
[null,"po spolu"]
[null,"po starostnih skupinah"]
[null,"družinske razmere in socialno omrežje"]
[null,"glede na težavo(e), ki jo/jih imajo"]
[null,"druge pomembne značilnosti"]

{"sheet":"UP_9a","index":65,"n_rows":61,"n_cols":9,"rows_kept":61,"cut":false,"hidden":true,"merged":[[60,1,60,2],[60,3,60,8],[57,1,57,2],[57,3,57,8],[58,1,58,2],[58,3,58,8],[59,1,59,2],[59,3,59,8],[44,1,44,3],[45,1,45,3],[46,1,46,3],[47,1,47,3],[56,1,56,2],[56,3,56,8],[50,1,50,3],[51,1,51,3],[52,1,52,2],[52,3,52,4],[55,1,55,8],[4,1,4,3],[5,1,5,3],[6,1,6,3],[9,1,9,8],[10,1,10,2],[11,1,11,2],[12,1,12,2],[15,1,15,8],[48,1,48,3],[49,1,49,3],[25,1,25,8],[28,1,28,8],[29,1,29,2],[30,1,31,1],[32,1,35,1],[37,1,37,2],[38,1,38,2],[38,3,38,5],[39,1,39,8],[42,1,42,8],[43,1,43,3]]}
["UPORABNIKI - za obdobje od 1. 1. 2026 do 30. 6. 2026",null,null,null,null,null,null,"Vsebina:",{"$f":"RIGHT(CELL(\"filename\",I1),LEN(CELL(\"filename\",I1))-SEARCH(\"]\",CELL(\"filename\",I1)))","v":"UP_9a"}]
[]
[null,"Vpišite podatke za posamično vsebino, za katero ste vnesli podatke na listu \"UP_VSEBINE\" - za vsako posebej se vam odpre svoj list."]
[]
[1,"Prosimo, navedite število uporabnikov:",null,null,"Vpisujte v modre celice:"]
[null,"Skupaj število RAZLIČNIH uporabnikov (en uporabnik se šteje samo enkrat na leto)"]
[null,"Število uporabnikov na dan 1. 12. 2025 (izpis pridobite iz EVAPRO, če tega nimate oz. nimate točnega podatka, vpišite oceno števila uporabnikov na ta dan)"]
[]
[]
[2,"Če program obsega tudi delo v skupinah prosimo navedite (vpisujte samo skupine, ki ste jih prijavili znotraj izračuna javnega razpisa in so ovrednotene v pogodbi):"]
[null,"Število skupin"]
[null,"Povprečno število uporabnikov na skupino"]
[null,"Število srečanj na leto"]
[]
[]
[3,"Prosimo, navedite število vključenih uporabnikov po mesecih ter povprečno število ur aktivne* vključenosti uporabnikov v posamezne dejavnosti programa na mesec."]
[null,"Mesec","Število uporabnikov","Povprečno število ur aktivne* vključenosti enega uporabnika na mesec"]
[null,"januar "]
[null,"februar "]
[null,"marec "]
[null,"april "]
[null,"maj "]
[null,"junij "]
[null,"julij"]
[null,"Povprečno število na mesec",{"$f":"AVERAGE(C18:C24)","v":{"$error":"#DIV/0!"}},{"$f":"AVERAGE(D18:D24)","v":{"$error":"#DIV/0!"}}]
[null,"Opomba:\n*Aktivna vključenost pomeni, da je uporabnik aktivno vključen v dejavnosti programa. Torej pri programih, ki uporabnikom nudijo bivanje, ne vpisujete 720 ur na mesec, ampak število ur aktivne vključenosti uporabnika v program na mesec."]
[]
[]
[4,"Prosimo, navedite število RAZLIČNIH uporabnikov glede na spol in starost. Prosimo zapišite oceno, če nimate točnih podatkov."]
[null,"Starostna skupina",null,"Število moških","Število žensk","Spol ni znan oz. ni definiran"]
[null,"MLADOLETNI","do vključno 15 let"]
[null,null,"nad 15 let do 18 let"]
[null,"POLNOLETNI","nad 18 let do 35 let"]
[null,null,"nad 35 let do 50 let"]
[null,null,"nad 50 let do 65 let"]
[null,null,"nad 65 let"]
[null,"ANONIMNI","starost in/ali spol nista znana oz. definirana"]
[null,"Skupaj različnih uporabnikov ",null,{"$f":"SUM(D31:D37)","v":0},{"$f":"SUM(E31:E37)","v":0},{"$f":"SUM(F31:F37)","v":0}]
[null,"Ujemanje s prvo preglednico: ","Ujemanje: ",{"$f":"IF((E6=(D38+E38+F38)),\"SEŠTEVEK SE UJEMA\",\"SEŠTEVEK SE NE UJEMA - PREVERITE\")","v":"SEŠTEVEK SE UJEMA"}]
[null,"Opomba:\nIzvajalci, ki v bazi EVAPRO beležite drugačne starostne skupine, lahko ustvarite tabelo za izpis z navedenimi starostnimi skupinami - podrobno v »Navodilih za uporabo baze Evapro© - februar 2025«, poglavje »9.1.4 Po star. skupinah«, str. 86."]
[]
[]
[5,"Prosimo, navedite število uporabnikov glede na čas/obdobje njihove vključitve v program. Upoštevajte RAZLIČNE uporabnike. Seštevek uporabnikov mora tako biti enak podatku različnih uporabnikov iz prve preglednice. Prosimo zapišite oceno, če nimate točnih podatkov."]
[null,"Število uporabnikov, ki so program obiskovali/bili vključeni…",null,null,"Število uporabnikov"]
[null,"vsak dan ali petkrat na teden"]
[null,"enkrat ali večkrat na teden, vendar ne vsak (delovni) dan"]
[null,"večkrat/nekajkrat na mesec"]
[null,"enkrat na mesec"]
[null,"nekajkrat na leto"]
[null,"enkrat na leto"]
[null,"uporabniki, za katere ni znano, kako pogosto so obiskovali/bili vključeni v program (anonimni)"]
[null,"Skupaj število različnih uporabnikov ",null,null,{"$f":"SUM(E45:E51)","v":0}]
[null,"Ujemanje s prvo preglednico: ","Ujemanje: ",{"$f":"IF((E6=(E52)),\"SEŠTEVEK SE UJEMA\",\"SEŠTEVEK SE NE UJEMA - PREVERITE\")","v":"SEŠTEVEK SE UJEMA"}]
[]
[]
[6,"Prosimo, opredelite ciljno skupino uporabnikov - značilnosti uporabnikov, ki jim je vsebina programa namenjena:"]
[null,"po spolu"]
[null,"po starostnih skupinah"]
[null,"družinske razmere in socialno omrežje"]
[null,"glede na težavo(e), ki jo/jih imajo"]
[null,"druge pomembne značilnosti"]

{"sheet":"UP_10a","index":66,"n_rows":61,"n_cols":9,"rows_kept":61,"cut":false,"hidden":true,"merged":[[60,1,60,2],[60,3,60,8],[57,1,57,2],[57,3,57,8],[58,1,58,2],[58,3,58,8],[59,1,59,2],[59,3,59,8],[44,1,44,3],[45,1,45,3],[46,1,46,3],[47,1,47,3],[56,1,56,2],[56,3,56,8],[50,1,50,3],[51,1,51,3],[52,1,52,2],[52,3,52,4],[55,1,55,8],[4,1,4,3],[5,1,5,3],[6,1,6,3],[9,1,9,8],[10,1,10,2],[11,1,11,2],[12,1,12,2],[15,1,15,8],[48,1,48,3],[49,1,49,3],[25,1,25,8],[28,1,28,8],[29,1,29,2],[30,1,31,1],[32,1,35,1],[37,1,37,2],[38,1,38,2],[38,3,38,5],[39,1,39,8],[42,1,42,8],[43,1,43,3]]}
["UPORABNIKI - za obdobje od 1. 1. 2026 do 30. 6. 2026",null,null,null,null,null,null,"Vsebina:",{"$f":"RIGHT(CELL(\"filename\",I1),LEN(CELL(\"filename\",I1))-SEARCH(\"]\",CELL(\"filename\",I1)))","v":"UP_10a"}]
[]
[null,"Vpišite podatke za posamično vsebino, za katero ste vnesli podatke na listu \"UP_VSEBINE\" - za vsako posebej se vam odpre svoj list."]
[]
[1,"Prosimo, navedite število uporabnikov:",null,null,"Vpisujte v modre celice:"]
[null,"Skupaj število RAZLIČNIH uporabnikov (en uporabnik se šteje samo enkrat na leto)"]
[null,"Število uporabnikov na dan 1. 12. 2025 (izpis pridobite iz EVAPRO, če tega nimate oz. nimate točnega podatka, vpišite oceno števila uporabnikov na ta dan)"]
[]
[]
[2,"Če program obsega tudi delo v skupinah prosimo navedite (vpisujte samo skupine, ki ste jih prijavili znotraj izračuna javnega razpisa in so ovrednotene v pogodbi):"]
[null,"Število skupin"]
[null,"Povprečno število uporabnikov na skupino"]
[null,"Število srečanj na leto"]
[]
[]
[3,"Prosimo, navedite število vključenih uporabnikov po mesecih ter povprečno število ur aktivne* vključenosti uporabnikov v posamezne dejavnosti programa na mesec."]
[null,"Mesec","Število uporabnikov","Povprečno število ur aktivne* vključenosti enega uporabnika na mesec"]
[null,"januar "]
[null,"februar "]
[null,"marec "]
[null,"april "]
[null,"maj "]
[null,"junij "]
[null,"julij"]
[null,"Povprečno število na mesec",{"$f":"AVERAGE(C18:C24)","v":{"$error":"#DIV/0!"}},{"$f":"AVERAGE(D18:D24)","v":{"$error":"#DIV/0!"}}]
[null,"Opomba:\n*Aktivna vključenost pomeni, da je uporabnik aktivno vključen v dejavnosti programa. Torej pri programih, ki uporabnikom nudijo bivanje, ne vpisujete 720 ur na mesec, ampak število ur aktivne vključenosti uporabnika v program na mesec."]
[]
[]
[4,"Prosimo, navedite število RAZLIČNIH uporabnikov glede na spol in starost. Prosimo zapišite oceno, če nimate točnih podatkov."]
[null,"Starostna skupina",null,"Število moških","Število žensk","Spol ni znan oz. ni definiran"]
[null,"MLADOLETNI","do vključno 15 let"]
[null,null,"nad 15 let do 18 let"]
[null,"POLNOLETNI","nad 18 let do 35 let"]
[null,null,"nad 35 let do 50 let"]
[null,null,"nad 50 let do 65 let"]
[null,null,"nad 65 let"]
[null,"ANONIMNI","starost in/ali spol nista znana oz. definirana"]
[null,"Skupaj različnih uporabnikov ",null,{"$f":"SUM(D31:D37)","v":0},{"$f":"SUM(E31:E37)","v":0},{"$f":"SUM(F31:F37)","v":0}]
[null,"Ujemanje s prvo preglednico: ","Ujemanje: ",{"$f":"IF((E6=(D38+E38+F38)),\"SEŠTEVEK SE UJEMA\",\"SEŠTEVEK SE NE UJEMA - PREVERITE\")","v":"SEŠTEVEK SE UJEMA"}]
[null,"Opomba:\nIzvajalci, ki v bazi EVAPRO beležite drugačne starostne skupine, lahko ustvarite tabelo za izpis z navedenimi starostnimi skupinami - podrobno v »Navodilih za uporabo baze Evapro© - februar 2025«, poglavje »9.1.4 Po star. skupinah«, str. 86."]
[]
[]
[5,"Prosimo, navedite število uporabnikov glede na čas/obdobje njihove vključitve v program. Upoštevajte RAZLIČNE uporabnike. Seštevek uporabnikov mora tako biti enak podatku različnih uporabnikov iz prve preglednice. Prosimo zapišite oceno, če nimate točnih podatkov."]
[null,"Število uporabnikov, ki so program obiskovali/bili vključeni…",null,null,"Število uporabnikov"]
[null,"vsak dan ali petkrat na teden"]
[null,"enkrat ali večkrat na teden, vendar ne vsak (delovni) dan"]
[null,"večkrat/nekajkrat na mesec"]
[null,"enkrat na mesec"]
[null,"nekajkrat na leto"]
[null,"enkrat na leto"]
[null,"uporabniki, za katere ni znano, kako pogosto so obiskovali/bili vključeni v program (anonimni)"]
[null,"Skupaj število različnih uporabnikov ",null,null,{"$f":"SUM(E45:E51)","v":0}]
[null,"Ujemanje s prvo preglednico: ","Ujemanje: ",{"$f":"IF((E6=(E52)),\"SEŠTEVEK SE UJEMA\",\"SEŠTEVEK SE NE UJEMA - PREVERITE\")","v":"SEŠTEVEK SE UJEMA"}]
[]
[]
[6,"Prosimo, opredelite ciljno skupino uporabnikov - značilnosti uporabnikov, ki jim je vsebina programa namenjena:"]
[null,"po spolu"]
[null,"po starostnih skupinah"]
[null,"družinske razmere in socialno omrežje"]
[null,"glede na težavo(e), ki jo/jih imajo"]
[null,"druge pomembne značilnosti"]

{"sheet":"UP_10b","index":67,"n_rows":61,"n_cols":9,"rows_kept":61,"cut":false,"hidden":true,"merged":[[60,1,60,2],[60,3,60,8],[57,1,57,2],[57,3,57,8],[58,1,58,2],[58,3,58,8],[59,1,59,2],[59,3,59,8],[44,1,44,3],[45,1,45,3],[46,1,46,3],[47,1,47,3],[56,1,56,2],[56,3,56,8],[50,1,50,3],[51,1,51,3],[52,1,52,2],[52,3,52,4],[55,1,55,8],[4,1,4,3],[5,1,5,3],[6,1,6,3],[9,1,9,8],[10,1,10,2],[11,1,11,2],[12,1,12,2],[15,1,15,8],[48,1,48,3],[49,1,49,3],[25,1,25,8],[28,1,28,8],[29,1,29,2],[30,1,31,1],[32,1,35,1],[37,1,37,2],[38,1,38,2],[38,3,38,5],[39,1,39,8],[42,1,42,8],[43,1,43,3]]}
["UPORABNIKI - za obdobje od 1. 1. 2026 do 30. 6. 2026",null,null,null,null,null,null,"Vsebina:",{"$f":"RIGHT(CELL(\"filename\",I1),LEN(CELL(\"filename\",I1))-SEARCH(\"]\",CELL(\"filename\",I1)))","v":"UP_10b"}]
[]
[null,"Vpišite podatke za posamično vsebino, za katero ste vnesli podatke na listu \"UP_VSEBINE\" - za vsako posebej se vam odpre svoj list."]
[]
[1,"Prosimo, navedite število uporabnikov:",null,null,"Vpisujte v modre celice:"]
[null,"Skupaj število RAZLIČNIH uporabnikov (en uporabnik se šteje samo enkrat na leto)"]
[null,"Število uporabnikov na dan 1. 12. 2025 (izpis pridobite iz EVAPRO, če tega nimate oz. nimate točnega podatka, vpišite oceno števila uporabnikov na ta dan)"]
[]
[]
[2,"Če program obsega tudi delo v skupinah prosimo navedite (vpisujte samo skupine, ki ste jih prijavili znotraj izračuna javnega razpisa in so ovrednotene v pogodbi):"]
[null,"Število skupin"]
[null,"Povprečno število uporabnikov na skupino"]
[null,"Število srečanj na leto"]
[]
[]
[3,"Prosimo, navedite število vključenih uporabnikov po mesecih ter povprečno število ur aktivne* vključenosti uporabnikov v posamezne dejavnosti programa na mesec."]
[null,"Mesec","Število uporabnikov","Povprečno število ur aktivne* vključenosti enega uporabnika na mesec"]
[null,"januar "]
[null,"februar "]
[null,"marec "]
[null,"april "]
[null,"maj "]
[null,"junij "]
[null,"julij"]
[null,"Povprečno število na mesec",{"$f":"AVERAGE(C18:C24)","v":{"$error":"#DIV/0!"}},{"$f":"AVERAGE(D18:D24)","v":{"$error":"#DIV/0!"}}]
[null,"Opomba:\n*Aktivna vključenost pomeni, da je uporabnik aktivno vključen v dejavnosti programa. Torej pri programih, ki uporabnikom nudijo bivanje, ne vpisujete 720 ur na mesec, ampak število ur aktivne vključenosti uporabnika v program na mesec."]
[]
[]
[4,"Prosimo, navedite število RAZLIČNIH uporabnikov glede na spol in starost. Prosimo zapišite oceno, če nimate točnih podatkov."]
[null,"Starostna skupina",null,"Število moških","Število žensk","Spol ni znan oz. ni definiran"]
[null,"MLADOLETNI","do vključno 15 let"]
[null,null,"nad 15 let do 18 let"]
[null,"POLNOLETNI","nad 18 let do 35 let"]
[null,null,"nad 35 let do 50 let"]
[null,null,"nad 50 let do 65 let"]
[null,null,"nad 65 let"]
[null,"ANONIMNI","starost in/ali spol nista znana oz. definirana"]
[null,"Skupaj različnih uporabnikov ",null,{"$f":"SUM(D31:D37)","v":0},{"$f":"SUM(E31:E37)","v":0},{"$f":"SUM(F31:F37)","v":0}]
[null,"Ujemanje s prvo preglednico: ","Ujemanje: ",{"$f":"IF((E6=(D38+E38+F38)),\"SEŠTEVEK SE UJEMA\",\"SEŠTEVEK SE NE UJEMA - PREVERITE\")","v":"SEŠTEVEK SE UJEMA"}]
[null,"Opomba:\nIzvajalci, ki v bazi EVAPRO beležite drugačne starostne skupine, lahko ustvarite tabelo za izpis z navedenimi starostnimi skupinami - podrobno v »Navodilih za uporabo baze Evapro© - februar 2025«, poglavje »9.1.4 Po star. skupinah«, str. 86."]
[]
[]
[5,"Prosimo, navedite število uporabnikov glede na čas/obdobje njihove vključitve v program. Upoštevajte RAZLIČNE uporabnike. Seštevek uporabnikov mora tako biti enak podatku različnih uporabnikov iz prve preglednice. Prosimo zapišite oceno, če nimate točnih podatkov."]
[null,"Število uporabnikov, ki so program obiskovali/bili vključeni…",null,null,"Število uporabnikov"]
[null,"vsak dan ali petkrat na teden"]
[null,"enkrat ali večkrat na teden, vendar ne vsak (delovni) dan"]
[null,"večkrat/nekajkrat na mesec"]
[null,"enkrat na mesec"]
[null,"nekajkrat na leto"]
[null,"enkrat na leto"]
[null,"uporabniki, za katere ni znano, kako pogosto so obiskovali/bili vključeni v program (anonimni)"]
[null,"Skupaj število različnih uporabnikov ",null,null,{"$f":"SUM(E45:E51)","v":0}]
[null,"Ujemanje s prvo preglednico: ","Ujemanje: ",{"$f":"IF((E6=(E52)),\"SEŠTEVEK SE UJEMA\",\"SEŠTEVEK SE NE UJEMA - PREVERITE\")","v":"SEŠTEVEK SE UJEMA"}]
[]
[]
[6,"Prosimo, opredelite ciljno skupino uporabnikov - značilnosti uporabnikov, ki jim je vsebina programa namenjena:"]
[null,"po spolu"]
[null,"po starostnih skupinah"]
[null,"družinske razmere in socialno omrežje"]
[null,"glede na težavo(e), ki jo/jih imajo"]
[null,"druge pomembne značilnosti"]

{"sheet":"UP_10c","index":68,"n_rows":61,"n_cols":9,"rows_kept":61,"cut":false,"hidden":true,"merged":[[60,1,60,2],[60,3,60,8],[57,1,57,2],[57,3,57,8],[58,1,58,2],[58,3,58,8],[59,1,59,2],[59,3,59,8],[44,1,44,3],[45,1,45,3],[46,1,46,3],[47,1,47,3],[56,1,56,2],[56,3,56,8],[50,1,50,3],[51,1,51,3],[52,1,52,2],[52,3,52,4],[55,1,55,8],[4,1,4,3],[5,1,5,3],[6,1,6,3],[9,1,9,8],[10,1,10,2],[11,1,11,2],[12,1,12,2],[15,1,15,8],[48,1,48,3],[49,1,49,3],[25,1,25,8],[28,1,28,8],[29,1,29,2],[30,1,31,1],[32,1,35,1],[37,1,37,2],[38,1,38,2],[38,3,38,5],[39,1,39,8],[42,1,42,8],[43,1,43,3]]}
["UPORABNIKI - za obdobje od 1. 1. 2026 do 30. 6. 2026",null,null,null,null,null,null,"Vsebina:",{"$f":"RIGHT(CELL(\"filename\",I1),LEN(CELL(\"filename\",I1))-SEARCH(\"]\",CELL(\"filename\",I1)))","v":"UP_10c"}]
[]
[null,"Vpišite podatke za posamično vsebino, za katero ste vnesli podatke na listu \"UP_VSEBINE\" - za vsako posebej se vam odpre svoj list."]
[]
[1,"Prosimo, navedite število uporabnikov:",null,null,"Vpisujte v modre celice:"]
[null,"Skupaj število RAZLIČNIH uporabnikov (en uporabnik se šteje samo enkrat na leto)"]
[null,"Število uporabnikov na dan 1. 12. 2025 (izpis pridobite iz EVAPRO, če tega nimate oz. nimate točnega podatka, vpišite oceno števila uporabnikov na ta dan)"]
[]
[]
[2,"Če program obsega tudi delo v skupinah prosimo navedite (vpisujte samo skupine, ki ste jih prijavili znotraj izračuna javnega razpisa in so ovrednotene v pogodbi):"]
[null,"Število skupin"]
[null,"Povprečno število uporabnikov na skupino"]
[null,"Število srečanj na leto"]
[]
[]
[3,"Prosimo, navedite število vključenih uporabnikov po mesecih ter povprečno število ur aktivne* vključenosti uporabnikov v posamezne dejavnosti programa na mesec."]
[null,"Mesec","Število uporabnikov","Povprečno število ur aktivne* vključenosti enega uporabnika na mesec"]
[null,"januar "]
[null,"februar "]
[null,"marec "]
[null,"april "]
[null,"maj "]
[null,"junij "]
[null,"julij"]
[null,"Povprečno število na mesec",{"$f":"AVERAGE(C18:C24)","v":{"$error":"#DIV/0!"}},{"$f":"AVERAGE(D18:D24)","v":{"$error":"#DIV/0!"}}]
[null,"Opomba:\n*Aktivna vključenost pomeni, da je uporabnik aktivno vključen v dejavnosti programa. Torej pri programih, ki uporabnikom nudijo bivanje, ne vpisujete 720 ur na mesec, ampak število ur aktivne vključenosti uporabnika v program na mesec."]
[]
[]
[4,"Prosimo, navedite število RAZLIČNIH uporabnikov glede na spol in starost. Prosimo zapišite oceno, če nimate točnih podatkov."]
[null,"Starostna skupina",null,"Število moških","Število žensk","Spol ni znan oz. ni definiran"]
[null,"MLADOLETNI","do vključno 15 let"]
[null,null,"nad 15 let do 18 let"]
[null,"POLNOLETNI","nad 18 let do 35 let"]
[null,null,"nad 35 let do 50 let"]
[null,null,"nad 50 let do 65 let"]
[null,null,"nad 65 let"]
[null,"ANONIMNI","starost in/ali spol nista znana oz. definirana"]
[null,"Skupaj različnih uporabnikov ",null,{"$f":"SUM(D31:D37)","v":0},{"$f":"SUM(E31:E37)","v":0},{"$f":"SUM(F31:F37)","v":0}]
[null,"Ujemanje s prvo preglednico: ","Ujemanje: ",{"$f":"IF((E6=(D38+E38+F38)),\"SEŠTEVEK SE UJEMA\",\"SEŠTEVEK SE NE UJEMA - PREVERITE\")","v":"SEŠTEVEK SE UJEMA"}]
[null,"Opomba:\nIzvajalci, ki v bazi EVAPRO beležite drugačne starostne skupine, lahko ustvarite tabelo za izpis z navedenimi starostnimi skupinami - podrobno v »Navodilih za uporabo baze Evapro© - februar 2025«, poglavje »9.1.4 Po star. skupinah«, str. 86."]
[]
[]
[5,"Prosimo, navedite število uporabnikov glede na čas/obdobje njihove vključitve v program. Upoštevajte RAZLIČNE uporabnike. Seštevek uporabnikov mora tako biti enak podatku različnih uporabnikov iz prve preglednice. Prosimo zapišite oceno, če nimate točnih podatkov."]
[null,"Število uporabnikov, ki so program obiskovali/bili vključeni…",null,null,"Število uporabnikov"]
[null,"vsak dan ali petkrat na teden"]
[null,"enkrat ali večkrat na teden, vendar ne vsak (delovni) dan"]
[null,"večkrat/nekajkrat na mesec"]
[null,"enkrat na mesec"]
[null,"nekajkrat na leto"]
[null,"enkrat na leto"]
[null,"uporabniki, za katere ni znano, kako pogosto so obiskovali/bili vključeni v program (anonimni)"]
[null,"Skupaj število različnih uporabnikov ",null,null,{"$f":"SUM(E45:E51)","v":0}]
[null,"Ujemanje s prvo preglednico: ","Ujemanje: ",{"$f":"IF((E6=(E52)),\"SEŠTEVEK SE UJEMA\",\"SEŠTEVEK SE NE UJEMA - PREVERITE\")","v":"SEŠTEVEK SE UJEMA"}]
[]
[]
[6,"Prosimo, opredelite ciljno skupino uporabnikov - značilnosti uporabnikov, ki jim je vsebina programa namenjena:"]
[null,"po spolu"]
[null,"po starostnih skupinah"]
[null,"družinske razmere in socialno omrežje"]
[null,"glede na težavo(e), ki jo/jih imajo"]
[null,"druge pomembne značilnosti"]

{"sheet":"UP_10d","index":69,"n_rows":61,"n_cols":9,"rows_kept":61,"cut":false,"hidden":true,"merged":[[60,1,60,2],[60,3,60,8],[57,1,57,2],[57,3,57,8],[58,1,58,2],[58,3,58,8],[59,1,59,2],[59,3,59,8],[44,1,44,3],[45,1,45,3],[46,1,46,3],[47,1,47,3],[56,1,56,2],[56,3,56,8],[50,1,50,3],[51,1,51,3],[52,1,52,2],[52,3,52,4],[55,1,55,8],[4,1,4,3],[5,1,5,3],[6,1,6,3],[9,1,9,8],[10,1,10,2],[11,1,11,2],[12,1,12,2],[15,1,15,8],[48,1,48,3],[49,1,49,3],[25,1,25,8],[28,1,28,8],[29,1,29,2],[30,1,31,1],[32,1,35,1],[37,1,37,2],[38,1,38,2],[38,3,38,5],[39,1,39,8],[42,1,42,8],[43,1,43,3]]}
["UPORABNIKI - za obdobje od 1. 1. 2026 do 30. 6. 2026",null,null,null,null,null,null,"Vsebina:",{"$f":"RIGHT(CELL(\"filename\",I1),LEN(CELL(\"filename\",I1))-SEARCH(\"]\",CELL(\"filename\",I1)))","v":"UP_10d"}]
[]
[null,"Vpišite podatke za posamično vsebino, za katero ste vnesli podatke na listu \"UP_VSEBINE\" - za vsako posebej se vam odpre svoj list."]
[]
[1,"Prosimo, navedite število uporabnikov:",null,null,"Vpisujte v modre celice:"]
[null,"Skupaj število RAZLIČNIH uporabnikov (en uporabnik se šteje samo enkrat na leto)"]
[null,"Število uporabnikov na dan 1. 12. 2025 (izpis pridobite iz EVAPRO, če tega nimate oz. nimate točnega podatka, vpišite oceno števila uporabnikov na ta dan)"]
[]
[]
[2,"Če program obsega tudi delo v skupinah prosimo navedite (vpisujte samo skupine, ki ste jih prijavili znotraj izračuna javnega razpisa in so ovrednotene v pogodbi):"]
[null,"Število skupin"]
[null,"Povprečno število uporabnikov na skupino"]
[null,"Število srečanj na leto"]
[]
[]
[3,"Prosimo, navedite število vključenih uporabnikov po mesecih ter povprečno število ur aktivne* vključenosti uporabnikov v posamezne dejavnosti programa na mesec."]
[null,"Mesec","Število uporabnikov","Povprečno število ur aktivne* vključenosti enega uporabnika na mesec"]
[null,"januar "]
[null,"februar "]
[null,"marec "]
[null,"april "]
[null,"maj "]
[null,"junij "]
[null,"julij"]
[null,"Povprečno število na mesec",{"$f":"AVERAGE(C18:C24)","v":{"$error":"#DIV/0!"}},{"$f":"AVERAGE(D18:D24)","v":{"$error":"#DIV/0!"}}]
[null,"Opomba:\n*Aktivna vključenost pomeni, da je uporabnik aktivno vključen v dejavnosti programa. Torej pri programih, ki uporabnikom nudijo bivanje, ne vpisujete 720 ur na mesec, ampak število ur aktivne vključenosti uporabnika v program na mesec."]
[]
[]
[4,"Prosimo, navedite število RAZLIČNIH uporabnikov glede na spol in starost. Prosimo zapišite oceno, če nimate točnih podatkov."]
[null,"Starostna skupina",null,"Število moških","Število žensk","Spol ni znan oz. ni definiran"]
[null,"MLADOLETNI","do vključno 15 let"]
[null,null,"nad 15 let do 18 let"]
[null,"POLNOLETNI","nad 18 let do 35 let"]
[null,null,"nad 35 let do 50 let"]
[null,null,"nad 50 let do 65 let"]
[null,null,"nad 65 let"]
[null,"ANONIMNI","starost in/ali spol nista znana oz. definirana"]
[null,"Skupaj različnih uporabnikov ",null,{"$f":"SUM(D31:D37)","v":0},{"$f":"SUM(E31:E37)","v":0},{"$f":"SUM(F31:F37)","v":0}]
[null,"Ujemanje s prvo preglednico: ","Ujemanje: ",{"$f":"IF((E6=(D38+E38+F38)),\"SEŠTEVEK SE UJEMA\",\"SEŠTEVEK SE NE UJEMA - PREVERITE\")","v":"SEŠTEVEK SE UJEMA"}]
[null,"Opomba:\nIzvajalci, ki v bazi EVAPRO beležite drugačne starostne skupine, lahko ustvarite tabelo za izpis z navedenimi starostnimi skupinami - podrobno v »Navodilih za uporabo baze Evapro© - februar 2025«, poglavje »9.1.4 Po star. skupinah«, str. 86."]
[]
[]
[5,"Prosimo, navedite število uporabnikov glede na čas/obdobje njihove vključitve v program. Upoštevajte RAZLIČNE uporabnike. Seštevek uporabnikov mora tako biti enak podatku različnih uporabnikov iz prve preglednice. Prosimo zapišite oceno, če nimate točnih podatkov."]
[null,"Število uporabnikov, ki so program obiskovali/bili vključeni…",null,null,"Število uporabnikov"]
[null,"vsak dan ali petkrat na teden"]
[null,"enkrat ali večkrat na teden, vendar ne vsak (delovni) dan"]
[null,"večkrat/nekajkrat na mesec"]
[null,"enkrat na mesec"]
[null,"nekajkrat na leto"]
[null,"enkrat na leto"]
[null,"uporabniki, za katere ni znano, kako pogosto so obiskovali/bili vključeni v program (anonimni)"]
[null,"Skupaj število različnih uporabnikov ",null,null,{"$f":"SUM(E45:E51)","v":0}]
[null,"Ujemanje s prvo preglednico: ","Ujemanje: ",{"$f":"IF((E6=(E52)),\"SEŠTEVEK SE UJEMA\",\"SEŠTEVEK SE NE UJEMA - PREVERITE\")","v":"SEŠTEVEK SE UJEMA"}]
[]
[]
[6,"Prosimo, opredelite ciljno skupino uporabnikov - značilnosti uporabnikov, ki jim je vsebina programa namenjena:"]
[null,"po spolu"]
[null,"po starostnih skupinah"]
[null,"družinske razmere in socialno omrežje"]
[null,"glede na težavo(e), ki jo/jih imajo"]
[null,"druge pomembne značilnosti"]

{"sheet":"UP_10e","index":70,"n_rows":61,"n_cols":9,"rows_kept":61,"cut":false,"hidden":true,"merged":[[60,1,60,2],[60,3,60,8],[57,1,57,2],[57,3,57,8],[58,1,58,2],[58,3,58,8],[59,1,59,2],[59,3,59,8],[44,1,44,3],[45,1,45,3],[46,1,46,3],[47,1,47,3],[56,1,56,2],[56,3,56,8],[50,1,50,3],[51,1,51,3],[52,1,52,2],[52,3,52,4],[55,1,55,8],[4,1,4,3],[5,1,5,3],[6,1,6,3],[9,1,9,8],[10,1,10,2],[11,1,11,2],[12,1,12,2],[15,1,15,8],[48,1,48,3],[49,1,49,3],[25,1,25,8],[28,1,28,8],[29,1,29,2],[30,1,31,1],[32,1,35,1],[37,1,37,2],[38,1,38,2],[38,3,38,5],[39,1,39,8],[42,1,42,8],[43,1,43,3]]}
["UPORABNIKI - za obdobje od 1. 1. 2026 do 30. 6. 2026",null,null,null,null,null,null,"Vsebina:",{"$f":"RIGHT(CELL(\"filename\",I1),LEN(CELL(\"filename\",I1))-SEARCH(\"]\",CELL(\"filename\",I1)))","v":"UP_10e"}]
[]
[null,"Vpišite podatke za posamično vsebino, za katero ste vnesli podatke na listu \"UP_VSEBINE\" - za vsako posebej se vam odpre svoj list."]
[]
[1,"Prosimo, navedite število uporabnikov:",null,null,"Vpisujte v modre celice:"]
[null,"Skupaj število RAZLIČNIH uporabnikov (en uporabnik se šteje samo enkrat na leto)"]
[null,"Število uporabnikov na dan 1. 12. 2025 (izpis pridobite iz EVAPRO, če tega nimate oz. nimate točnega podatka, vpišite oceno števila uporabnikov na ta dan)"]
[]
[]
[2,"Če program obsega tudi delo v skupinah prosimo navedite (vpisujte samo skupine, ki ste jih prijavili znotraj izračuna javnega razpisa in so ovrednotene v pogodbi):"]
[null,"Število skupin"]
[null,"Povprečno število uporabnikov na skupino"]
[null,"Število srečanj na leto"]
[]
[]
[3,"Prosimo, navedite število vključenih uporabnikov po mesecih ter povprečno število ur aktivne* vključenosti uporabnikov v posamezne dejavnosti programa na mesec."]
[null,"Mesec","Število uporabnikov","Povprečno število ur aktivne* vključenosti enega uporabnika na mesec"]
[null,"januar "]
[null,"februar "]
[null,"marec "]
[null,"april "]
[null,"maj "]
[null,"junij "]
[null,"julij"]
[null,"Povprečno število na mesec",{"$f":"AVERAGE(C18:C24)","v":{"$error":"#DIV/0!"}},{"$f":"AVERAGE(D18:D24)","v":{"$error":"#DIV/0!"}}]
[null,"Opomba:\n*Aktivna vključenost pomeni, da je uporabnik aktivno vključen v dejavnosti programa. Torej pri programih, ki uporabnikom nudijo bivanje, ne vpisujete 720 ur na mesec, ampak število ur aktivne vključenosti uporabnika v program na mesec."]
[]
[]
[4,"Prosimo, navedite število RAZLIČNIH uporabnikov glede na spol in starost. Prosimo zapišite oceno, če nimate točnih podatkov."]
[null,"Starostna skupina",null,"Število moških","Število žensk","Spol ni znan oz. ni definiran"]
[null,"MLADOLETNI","do vključno 15 let"]
[null,null,"nad 15 let do 18 let"]
[null,"POLNOLETNI","nad 18 let do 35 let"]
[null,null,"nad 35 let do 50 let"]
[null,null,"nad 50 let do 65 let"]
[null,null,"nad 65 let"]
[null,"ANONIMNI","starost in/ali spol nista znana oz. definirana"]
[null,"Skupaj različnih uporabnikov ",null,{"$f":"SUM(D31:D37)","v":0},{"$f":"SUM(E31:E37)","v":0},{"$f":"SUM(F31:F37)","v":0}]
[null,"Ujemanje s prvo preglednico: ","Ujemanje: ",{"$f":"IF((E6=(D38+E38+F38)),\"SEŠTEVEK SE UJEMA\",\"SEŠTEVEK SE NE UJEMA - PREVERITE\")","v":"SEŠTEVEK SE UJEMA"}]
[null,"Opomba:\nIzvajalci, ki v bazi EVAPRO beležite drugačne starostne skupine, lahko ustvarite tabelo za izpis z navedenimi starostnimi skupinami - podrobno v »Navodilih za uporabo baze Evapro© - februar 2025«, poglavje »9.1.4 Po star. skupinah«, str. 86."]
[]
[]
[5,"Prosimo, navedite število uporabnikov glede na čas/obdobje njihove vključitve v program. Upoštevajte RAZLIČNE uporabnike. Seštevek uporabnikov mora tako biti enak podatku različnih uporabnikov iz prve preglednice. Prosimo zapišite oceno, če nimate točnih podatkov."]
[null,"Število uporabnikov, ki so program obiskovali/bili vključeni…",null,null,"Število uporabnikov"]
[null,"vsak dan ali petkrat na teden"]
[null,"enkrat ali večkrat na teden, vendar ne vsak (delovni) dan"]
[null,"večkrat/nekajkrat na mesec"]
[null,"enkrat na mesec"]
[null,"nekajkrat na leto"]
[null,"enkrat na leto"]
[null,"uporabniki, za katere ni znano, kako pogosto so obiskovali/bili vključeni v program (anonimni)"]
[null,"Skupaj število različnih uporabnikov ",null,null,{"$f":"SUM(E45:E51)","v":0}]
[null,"Ujemanje s prvo preglednico: ","Ujemanje: ",{"$f":"IF((E6=(E52)),\"SEŠTEVEK SE UJEMA\",\"SEŠTEVEK SE NE UJEMA - PREVERITE\")","v":"SEŠTEVEK SE UJEMA"}]
[]
[]
[6,"Prosimo, opredelite ciljno skupino uporabnikov - značilnosti uporabnikov, ki jim je vsebina programa namenjena:"]
[null,"po spolu"]
[null,"po starostnih skupinah"]
[null,"družinske razmere in socialno omrežje"]
[null,"glede na težavo(e), ki jo/jih imajo"]
[null,"druge pomembne značilnosti"]

{"sheet":"UP_10f","index":71,"n_rows":61,"n_cols":9,"rows_kept":61,"cut":false,"hidden":true,"merged":[[60,1,60,2],[60,3,60,8],[57,1,57,2],[57,3,57,8],[58,1,58,2],[58,3,58,8],[59,1,59,2],[59,3,59,8],[44,1,44,3],[45,1,45,3],[46,1,46,3],[47,1,47,3],[56,1,56,2],[56,3,56,8],[50,1,50,3],[51,1,51,3],[52,1,52,2],[52,3,52,4],[55,1,55,8],[4,1,4,3],[5,1,5,3],[6,1,6,3],[9,1,9,8],[10,1,10,2],[11,1,11,2],[12,1,12,2],[15,1,15,8],[48,1,48,3],[49,1,49,3],[25,1,25,8],[28,1,28,8],[29,1,29,2],[30,1,31,1],[32,1,35,1],[37,1,37,2],[38,1,38,2],[38,3,38,5],[39,1,39,8],[42,1,42,8],[43,1,43,3]]}
["UPORABNIKI - za obdobje od 1. 1. 2026 do 30. 6. 2026",null,null,null,null,null,null,"Vsebina:",{"$f":"RIGHT(CELL(\"filename\",I1),LEN(CELL(\"filename\",I1))-SEARCH(\"]\",CELL(\"filename\",I1)))","v":"UP_10f"}]
[]
[null,"Vpišite podatke za posamično vsebino, za katero ste vnesli podatke na listu \"UP_VSEBINE\" - za vsako posebej se vam odpre svoj list."]
[]
[1,"Prosimo, navedite število uporabnikov:",null,null,"Vpisujte v modre celice:"]
[null,"Skupaj število RAZLIČNIH uporabnikov (en uporabnik se šteje samo enkrat na leto)"]
[null,"Število uporabnikov na dan 1. 12. 2025 (izpis pridobite iz EVAPRO, če tega nimate oz. nimate točnega podatka, vpišite oceno števila uporabnikov na ta dan)"]
[]
[]
[2,"Če program obsega tudi delo v skupinah prosimo navedite (vpisujte samo skupine, ki ste jih prijavili znotraj izračuna javnega razpisa in so ovrednotene v pogodbi):"]
[null,"Število skupin"]
[null,"Povprečno število uporabnikov na skupino"]
[null,"Število srečanj na leto"]
[]
[]
[3,"Prosimo, navedite število vključenih uporabnikov po mesecih ter povprečno število ur aktivne* vključenosti uporabnikov v posamezne dejavnosti programa na mesec."]
[null,"Mesec","Število uporabnikov","Povprečno število ur aktivne* vključenosti enega uporabnika na mesec"]
[null,"januar "]
[null,"februar "]
[null,"marec "]
[null,"april "]
[null,"maj "]
[null,"junij "]
[null,"julij"]
[null,"Povprečno število na mesec",{"$f":"AVERAGE(C18:C24)","v":{"$error":"#DIV/0!"}},{"$f":"AVERAGE(D18:D24)","v":{"$error":"#DIV/0!"}}]
[null,"Opomba:\n*Aktivna vključenost pomeni, da je uporabnik aktivno vključen v dejavnosti programa. Torej pri programih, ki uporabnikom nudijo bivanje, ne vpisujete 720 ur na mesec, ampak število ur aktivne vključenosti uporabnika v program na mesec."]
[]
[]
[4,"Prosimo, navedite število RAZLIČNIH uporabnikov glede na spol in starost. Prosimo zapišite oceno, če nimate točnih podatkov."]
[null,"Starostna skupina",null,"Število moških","Število žensk","Spol ni znan oz. ni definiran"]
[null,"MLADOLETNI","do vključno 15 let"]
[null,null,"nad 15 let do 18 let"]
[null,"POLNOLETNI","nad 18 let do 35 let"]
[null,null,"nad 35 let do 50 let"]
[null,null,"nad 50 let do 65 let"]
[null,null,"nad 65 let"]
[null,"ANONIMNI","starost in/ali spol nista znana oz. definirana"]
[null,"Skupaj različnih uporabnikov ",null,{"$f":"SUM(D31:D37)","v":0},{"$f":"SUM(E31:E37)","v":0},{"$f":"SUM(F31:F37)","v":0}]
[null,"Ujemanje s prvo preglednico: ","Ujemanje: ",{"$f":"IF((E6=(D38+E38+F38)),\"SEŠTEVEK SE UJEMA\",\"SEŠTEVEK SE NE UJEMA - PREVERITE\")","v":"SEŠTEVEK SE UJEMA"}]
[null,"Opomba:\nIzvajalci, ki v bazi EVAPRO beležite drugačne starostne skupine, lahko ustvarite tabelo za izpis z navedenimi starostnimi skupinami - podrobno v »Navodilih za uporabo baze Evapro© - februar 2025«, poglavje »9.1.4 Po star. skupinah«, str. 86."]
[]
[]
[5,"Prosimo, navedite število uporabnikov glede na čas/obdobje njihove vključitve v program. Upoštevajte RAZLIČNE uporabnike. Seštevek uporabnikov mora tako biti enak podatku različnih uporabnikov iz prve preglednice. Prosimo zapišite oceno, če nimate točnih podatkov."]
[null,"Število uporabnikov, ki so program obiskovali/bili vključeni…",null,null,"Število uporabnikov"]
[null,"vsak dan ali petkrat na teden"]
[null,"enkrat ali večkrat na teden, vendar ne vsak (delovni) dan"]
[null,"večkrat/nekajkrat na mesec"]
[null,"enkrat na mesec"]
[null,"nekajkrat na leto"]
[null,"enkrat na leto"]
[null,"uporabniki, za katere ni znano, kako pogosto so obiskovali/bili vključeni v program (anonimni)"]
[null,"Skupaj število različnih uporabnikov ",null,null,{"$f":"SUM(E45:E51)","v":0}]
[null,"Ujemanje s prvo preglednico: ","Ujemanje: ",{"$f":"IF((E6=(E52)),\"SEŠTEVEK SE UJEMA\",\"SEŠTEVEK SE NE UJEMA - PREVERITE\")","v":"SEŠTEVEK SE UJEMA"}]
[]
[]
[6,"Prosimo, opredelite ciljno skupino uporabnikov - značilnosti uporabnikov, ki jim je vsebina programa namenjena:"]
[null,"po spolu"]
[null,"po starostnih skupinah"]
[null,"družinske razmere in socialno omrežje"]
[null,"glede na težavo(e), ki jo/jih imajo"]
[null,"druge pomembne značilnosti"]

{"sheet":"UPORABNIKI_SUM","index":72,"n_rows":63,"n_cols":18,"rows_kept":63,"cut":false,"hidden":true,"merged":[[61,1,61,2],[61,3,61,8],[62,1,62,2],[62,3,62,8],[58,1,58,2],[58,3,58,8],[59,1,59,2],[59,3,59,8],[60,1,60,2],[60,3,60,8],[8,1,8,3],[0,0,0,9],[4,1,4,8],[5,1,5,3],[6,1,6,3],[7,1,7,3],[40,1,40,2],[40,3,40,5],[11,1,11,8],[12,1,12,2],[13,1,13,2],[14,1,14,2],[17,1,17,8],[27,1,27,8],[30,1,30,8],[31,1,31,2],[32,1,33,1],[34,1,37,1],[39,1,39,2],[57,1,57,8],[54,1,54,2],[54,3,54,4],[41,1,41,8],[44,1,44,8],[45,1,45,3],[46,1,46,3],[47,1,47,3],[48,1,48,3],[49,1,49,3],[50,1,50,3],[51,1,51,3],[52,1,52,3],[53,1,53,3]]}
["UPORABNIKI - VSOTA PODATKOV - za obdobje od 1. 1. 2026 do 30. 6. 2026",null,null,null,null,null,null,null,null,null,"ime lista","za povprečje"]
[null,null,null,null,null,null,null,null,null,null,null,"d18","d19","d20","d21","d22","d23","d24"]
[null,"Na tem listu so avtomatske vsote vseh vnesenih podatkov - ni treba ničesar izpolnjevati. Priporočamo, da podatke preverite.",null,null,null,null,null,null,null,null,"UP_1a",{"$f":"UP_1a!$D$18","v":0},{"$f":"UP_1a!$D$19","v":0},{"$f":"UP_1a!$D$20","v":0},{"$f":"UP_1a!$D$21","v":0},{"$f":"UP_1a!$D$22","v":0},{"$f":"UP_1a!$D$23","v":0},{"$f":"UP_1a!$D$24","v":0}]
[null,null,null,null,null,null,null,null,null,null,"UP_1b",{"$f":"UP_1b!$D$18","v":0},{"$f":"UP_1b!$D$19","v":0},{"$f":"UP_1b!$D$20","v":0},{"$f":"UP_1b!$D$21","v":0},{"$f":"UP_1b!$D$22","v":0},{"$f":"UP_1b!$D$23","v":0},{"$f":"UP_1b!$D$24","v":0}]
[1,"Prosimo, navedite število uporabnikov:",null,null,null,null,null,null,null,null,"UP_1c",{"$f":"UP_1c!$D$18","v":0},{"$f":"UP_1c!$D$19","v":0},{"$f":"UP_1c!$D$20","v":0},{"$f":"UP_1c!$D$21","v":0},{"$f":"UP_1c!$D$22","v":0},{"$f":"UP_1c!$D$23","v":0},{"$f":"UP_1c!$D$24","v":0}]
[null,"Skupaj število VSEH RAZLIČNIH uporabnikov (en uporabnik se šteje samo enkrat na leto)",null,null,{"$f":"SUM(UP_1a:UP_10f!E6)","v":0},null,null,null,null,null,"UP_1d",{"$f":"UP_1d!$D$18","v":0},{"$f":"UP_1d!$D$19","v":0},{"$f":"UP_1d!$D$20","v":0},{"$f":"UP_1d!$D$21","v":0},{"$f":"UP_1d!$D$22","v":0},{"$f":"UP_1d!$D$23","v":0},{"$f":"UP_1d!$D$24","v":0}]
[null,"Število uporabnikov na dan 1. 12. 2025",null,null,{"$f":"SUM(UP_1a:UP_10f!E7)","v":0},null,null,null,null,null,"UP_1e",{"$f":"UP_1e!$D$18","v":0},{"$f":"UP_1e!$D$19","v":0},{"$f":"UP_1e!$D$20","v":0},{"$f":"UP_1e!$D$21","v":0},{"$f":"UP_1e!$D$22","v":0},{"$f":"UP_1e!$D$23","v":0},{"$f":"UP_1e!$D$24","v":0}]
[null,"Število kontinuiranih uporabnkov (avtomatski prenos iz vsebin)",null,null,{"$f":"SUM('UP_VSEBINE 1'!E16+'UP_VSEBINE 2'!E26+'UP_VSEBINE 3'!E14+'UP_VSEBINE 4'!E9+'UP VSEBINE 5'!E7+'UP VSEBINE 6'!E8+'UP_VSEBINE 7'!E9+'UP_VSEBINE 8'!E7+'UP_VSEBINE 9'!E4+'UP_VSEBINE 10'!E11)","v":0},null,null,null,null,null,"UP_1f",{"$f":"UP_1f!$D$18","v":0},{"$f":"UP_1f!$D$19","v":0},{"$f":"UP_1f!$D$20","v":0},{"$f":"UP_1f!$D$21","v":0},{"$f":"UP_1f!$D$22","v":0},{"$f":"UP_1f!$D$23","v":0},{"$f":"UP_1f!$D$24","v":0}]
[null,"Število občasnih uporabnikov (avtomatski prenos iz vsebin)",null,null,{"$f":"SUM('UP_VSEBINE 1'!F16+'UP_VSEBINE 2'!F26+'UP_VSEBINE 3'!F14+'UP_VSEBINE 4'!F9+'UP VSEBINE 5'!F7+'UP VSEBINE 6'!F8+'UP_VSEBINE 7'!F9+'UP_VSEBINE 8'!F7+'UP_VSEBINE 9'!F4+'UP_VSEBINE 10'!F11)","v":0},null,null,null,null,null,"UP_1g",{"$f":"UP_1g!$D$18","v":0},{"$f":"UP_1g!$D$19","v":0},{"$f":"UP_1g!$D$20","v":0},{"$f":"UP_1g!$D$21","v":0},{"$f":"UP_1g!$D$22","v":0},{"$f":"UP_1g!$D$23","v":0},{"$f":"UP_1g!$D$24","v":0}]
[null,null,null,null,null,null,null,null,null,null,"UP_1h",{"$f":"UP_1h!$D$18","v":0},{"$f":"UP_1h!$D$19","v":0},{"$f":"UP_1h!$D$20","v":0},{"$f":"UP_1h!$D$21","v":0},{"$f":"UP_1h!$D$22","v":0},{"$f":"UP_1h!$D$23","v":0},{"$f":"UP_1h!$D$24","v":0}]
[null,null,null,null,null,null,null,null,null,null,"UP_1i",{"$f":"UP_1i!$D$18","v":0},{"$f":"UP_1i!$D$19","v":0},{"$f":"UP_1i!$D$20","v":0},{"$f":"UP_1i!$D$21","v":0},{"$f":"UP_1i!$D$22","v":0},{"$f":"UP_1i!$D$23","v":0},{"$f":"UP_1i!$D$24","v":0}]
[2,"Če program obsega tudi delo v skupinah prosimo navedite (vpisujte samo skupine, ki ste jih prijavili znotraj izračuna javnega razpisa in so ovrednotene v pogodbi):",null,null,null,null,null,null,null,null,"UP_1j",{"$f":"UP_1j!$D$18","v":0},{"$f":"UP_1j!$D$19","v":0},{"$f":"UP_1j!$D$20","v":0},{"$f":"UP_1j!$D$21","v":0},{"$f":"UP_1j!$D$22","v":0},{"$f":"UP_1j!$D$23","v":0},{"$f":"UP_1j!$D$24","v":0}]
[null,"Število skupin",null,{"$f":"SUM(UP_1a:UP_10f!D11)","v":0},null,null,null,null,null,null,"UP_1k",{"$f":"UP_1k!$D$18","v":0},{"$f":"UP_1k!$D$19","v":0},{"$f":"UP_1k!$D$20","v":0},{"$f":"UP_1k!$D$21","v":0},{"$f":"UP_1k!$D$22","v":0},{"$f":"UP_1k!$D$23","v":0},{"$f":"UP_1k!$D$24","v":0}]
[null,"Povprečno število uporabnikov na skupino",null,{"$f":"SUM(UP_1a:UP_10f!D12)","v":0},null,null,null,null,null,null,"UP_2.1a",{"$f":"'UP_2.1a'!$D$18","v":0},{"$f":"'UP_2.1a'!$D$19","v":0},{"$f":"'UP_2.1a'!$D$20","v":0},{"$f":"'UP_2.1a'!$D$21","v":0},{"$f":"'UP_2.1a'!$D$22","v":0},{"$f":"'UP_2.1a'!$D$23","v":0},{"$f":"'UP_2.1a'!$D$24","v":0}]
[null,"Število srečanj na leto",null,{"$f":"SUM(UP_1a:UP_10f!D13)","v":0},null,null,null,null,null,null,"UP_2.1b",{"$f":"'UP_2.1b'!$D$18","v":0},{"$f":"'UP_2.1b'!$D$19","v":0},{"$f":"'UP_2.1b'!$D$20","v":0},{"$f":"'UP_2.1b'!$D$21","v":0},{"$f":"'UP_2.1b'!$D$22","v":0},{"$f":"'UP_2.1b'!$D$23","v":0},{"$f":"'UP_2.1b'!$D$24","v":0}]
[null,null,null,null,null,null,null,null,null,null,"UP_2.1c",{"$f":"'UP_2.1c'!$D$18","v":0},{"$f":"'UP_2.1c'!$D$19","v":0},{"$f":"'UP_2.1c'!$D$20","v":0},{"$f":"'UP_2.1c'!$D$21","v":0},{"$f":"'UP_2.1c'!$D$22","v":0},{"$f":"'UP_2.1c'!$D$23","v":0},{"$f":"'UP_2.1c'!$D$24","v":0}]
[null,null,null,null,null,null,null,null,null,null,"UP_2.1d",{"$f":"'UP_2.1d'!$D$18","v":0},{"$f":"'UP_2.1d'!$D$19","v":0},{"$f":"'UP_2.1d'!$D$20","v":0},{"$f":"'UP_2.1d'!$D$21","v":0},{"$f":"'UP_2.1d'!$D$22","v":0},{"$f":"'UP_2.1d'!$D$23","v":0},{"$f":"'UP_2.1d'!$D$24","v":0}]
[3,"Prosimo, navedite število vključenih uporabnikov po mesecih ter povprečno število ur aktivne* vključenosti uporabnikov v posamezne dejavnosti programa na mesec.",null,null,null,null,null,null,null,null,"UP_2.1e",{"$f":"'UP_2.1e'!$D$18","v":0},{"$f":"'UP_2.1e'!$D$19","v":0},{"$f":"'UP_2.1e'!$D$20","v":0},{"$f":"'UP_2.1e'!$D$21","v":0},{"$f":"'UP_2.1e'!$D$22","v":0},{"$f":"'UP_2.1e'!$D$23","v":0},{"$f":"'UP_2.1e'!$D$24","v":0}]
[null,"Mesec","Število uporabnikov","Povprečno število ur aktivne* vključenosti enega uporabnika na mesec",null,null,null,null,null,null,"UP_2.1f",{"$f":"'UP_2.1f'!$D$18","v":0},{"$f":"'UP_2.1f'!$D$19","v":0},{"$f":"'UP_2.1f'!$D$20","v":0},{"$f":"'UP_2.1f'!$D$21","v":0},{"$f":"'UP_2.1f'!$D$22","v":0},{"$f":"'UP_2.1f'!$D$23","v":0},{"$f":"'UP_2.1f'!$D$24","v":0}]
[null,"januar ",{"$f":"SUM(UP_1a:UP_10f!C18)","v":0},{"$f":"AVERAGEIF(L:L,\">0\")","v":{"$error":"#DIV/0!"}},null,null,null,null,null,null,"UP_2.1g",{"$f":"'UP_2.1g'!$D$18","v":0},{"$f":"'UP_2.1g'!$D$19","v":0},{"$f":"'UP_2.1g'!$D$20","v":0},{"$f":"'UP_2.1g'!$D$21","v":0},{"$f":"'UP_2.1g'!$D$22","v":0},{"$f":"'UP_2.1g'!$D$23","v":0},{"$f":"'UP_2.1g'!$D$24","v":0}]
[null,"februar ",{"$f":"SUM(UP_1a:UP_10f!C19)","v":0},{"$f":"AVERAGEIF(M:M,\">0\")","v":{"$error":"#DIV/0!"}},null,null,null,null,null,null,"UP_2.1h",{"$f":"'UP_2.1h'!$D$18","v":0},{"$f":"'UP_2.1h'!$D$19","v":0},{"$f":"'UP_2.1h'!$D$20","v":0},{"$f":"'UP_2.1h'!$D$21","v":0},{"$f":"'UP_2.1h'!$D$22","v":0},{"$f":"'UP_2.1h'!$D$23","v":0},{"$f":"'UP_2.1h'!$D$24","v":0}]
[null,"marec ",{"$f":"SUM(UP_1a:UP_10f!C20)","v":0},{"$f":"AVERAGEIF(N:N,\">0\")","v":{"$error":"#DIV/0!"}},null,null,null,null,null,null,"UP_2.2a",{"$f":"'UP_2.2a'!$D$18","v":0},{"$f":"'UP_2.2a'!$D$19","v":0},{"$f":"'UP_2.2a'!$D$20","v":0},{"$f":"'UP_2.2a'!$D$21","v":0},{"$f":"'UP_2.2a'!$D$22","v":0},{"$f":"'UP_2.2a'!$D$23","v":0},{"$f":"'UP_2.2a'!$D$24","v":0}]
[null,"april ",{"$f":"SUM(UP_1a:UP_10f!C21)","v":0},{"$f":"AVERAGEIF(O:O,\">0\")","v":{"$error":"#DIV/0!"}},null,null,null,null,null,null,"UP_2.2b",{"$f":"'UP_2.2b'!$D$18","v":0},{"$f":"'UP_2.2b'!$D$19","v":0},{"$f":"'UP_2.2b'!$D$20","v":0},{"$f":"'UP_2.2b'!$D$21","v":0},{"$f":"'UP_2.2b'!$D$22","v":0},{"$f":"'UP_2.2b'!$D$23","v":0},{"$f":"'UP_2.2b'!$D$24","v":0}]
[null,"maj ",{"$f":"SUM(UP_1a:UP_10f!C22)","v":0},{"$f":"AVERAGEIF(P:P,\">0\")","v":{"$error":"#DIV/0!"}},null,null,null,null,null,null,"UP_2.2c",{"$f":"'UP_2.2c'!$D$18","v":0},{"$f":"'UP_2.2c'!$D$19","v":0},{"$f":"'UP_2.2c'!$D$20","v":0},{"$f":"'UP_2.2c'!$D$21","v":0},{"$f":"'UP_2.2c'!$D$22","v":0},{"$f":"'UP_2.2c'!$D$23","v":0},{"$f":"'UP_2.2c'!$D$24","v":0}]
[null,"junij ",{"$f":"SUM(UP_1a:UP_10f!C23)","v":0},{"$f":"AVERAGEIF(Q:Q,\">0\")","v":{"$error":"#DIV/0!"}},null,null,null,null,null,null,"UP_2.2d",{"$f":"'UP_2.2d'!$D$18","v":0},{"$f":"'UP_2.2d'!$D$19","v":0},{"$f":"'UP_2.2d'!$D$20","v":0},{"$f":"'UP_2.2d'!$D$21","v":0},{"$f":"'UP_2.2d'!$D$22","v":0},{"$f":"'UP_2.2d'!$D$23","v":0},{"$f":"'UP_2.2d'!$D$24","v":0}]
[null,"julij",{"$f":"SUM(UP_1a:UP_10f!C24)","v":0},{"$f":"AVERAGEIF(R:R,\">0\")","v":{"$error":"#DIV/0!"}},null,null,null,null,null,null,"UP_2.3a",{"$f":"'UP_2.3a'!$D$18","v":0},{"$f":"'UP_2.3a'!$D$19","v":0},{"$f":"'UP_2.3a'!$D$20","v":0},{"$f":"'UP_2.3a'!$D$21","v":0},{"$f":"'UP_2.3a'!$D$22","v":0},{"$f":"'UP_2.3a'!$D$23","v":0},{"$f":"'UP_2.3a'!$D$24","v":0}]
[null,"Povprečno število na mesec",{"$f":"AVERAGE(C20:C26)","v":0},{"$f":"AVERAGE(D20:D26)","v":{"$error":"#DIV/0!"}},null,null,null,null,null,null,"UP_3b",{"$f":"UP_3b!$D$18","v":0},{"$f":"UP_3b!$D$19","v":0},{"$f":"UP_3b!$D$20","v":0},{"$f":"UP_3b!$D$21","v":0},{"$f":"UP_3b!$D$22","v":0},{"$f":"UP_3b!$D$23","v":0},{"$f":"UP_3b!$D$24","v":0}]
[null,"Opomba:\n*Aktivna vključenost pomeni, da je uporabnik aktivno vključen v dejavnosti programa. Torej pri programih, ki uporabnikom nudijo bivanje, ne vpisujete 720 ur na mesec, ampak število ur aktivne vključenosti uporabnika v program na mesec.",null,null,null,null,null,null,null,null,"UP_3c",{"$f":"UP_3c!$D$18","v":0},{"$f":"UP_3c!$D$19","v":0},{"$f":"UP_3c!$D$20","v":0},{"$f":"UP_3c!$D$21","v":0},{"$f":"UP_3c!$D$22","v":0},{"$f":"UP_3c!$D$23","v":0},{"$f":"UP_3c!$D$24","v":0}]
[null,null,null,null,null,null,null,null,null,null,"UP_3d",{"$f":"UP_3d!$D$18","v":0},{"$f":"UP_3d!$D$19","v":0},{"$f":"UP_3d!$D$20","v":0},{"$f":"UP_3d!$D$21","v":0},{"$f":"UP_3d!$D$22","v":0},{"$f":"UP_3d!$D$23","v":0},{"$f":"UP_3d!$D$24","v":0}]
[null,null,null,null,null,null,null,null,null,null,"UP_3e",{"$f":"UP_3e!$D$18","v":0},{"$f":"UP_3e!$D$19","v":0},{"$f":"UP_3e!$D$20","v":0},{"$f":"UP_3e!$D$21","v":0},{"$f":"UP_3e!$D$22","v":0},{"$f":"UP_3e!$D$23","v":0},{"$f":"UP_3e!$D$24","v":0}]
[4,"Prosimo, navedite število VSEH RAZLIČNIH uporabnikov glede na spol in starost. Prosimo zapišite oceno, če nimate točnih podatkov.",null,null,null,null,null,null,null,null,"UP_3f",{"$f":"UP_3f!$D$18","v":0},{"$f":"UP_3f!$D$19","v":0},{"$f":"UP_3f!$D$20","v":0},{"$f":"UP_3f!$D$21","v":0},{"$f":"UP_3f!$D$22","v":0},{"$f":"UP_3f!$D$23","v":0},{"$f":"UP_3f!$D$24","v":0}]
[null,"Starostna skupina",null,"Število moških","Število žensk","Spol ni znan oz. ni definiran",null,null,null,null,"UP_3g",{"$f":"UP_3g!$D$18","v":0},{"$f":"UP_3g!$D$19","v":0},{"$f":"UP_3g!$D$20","v":0},{"$f":"UP_3g!$D$21","v":0},{"$f":"UP_3g!$D$22","v":0},{"$f":"UP_3g!$D$23","v":0},{"$f":"UP_3g!$D$24","v":0}]
[null,"MLADOLETNI","do vključno 15 let",{"$f":"SUM(UP_1a:UP_10f!D31)","v":0},{"$f":"SUM(UP_1a:UP_10f!E31)","v":0},{"$f":"SUM(UP_1a:UP_10f!F31)","v":0},null,null,null,null,"UP_3h",{"$f":"UP_3h!$D$18","v":0},{"$f":"UP_3h!$D$19","v":0},{"$f":"UP_3h!$D$20","v":0},{"$f":"UP_3h!$D$21","v":0},{"$f":"UP_3h!$D$22","v":0},{"$f":"UP_3h!$D$23","v":0},{"$f":"UP_3h!$D$24","v":0}]
[null,null,"nad 15 let do 18 let",{"$f":"SUM(UP_1a:UP_10f!D32)","v":0},{"$f":"SUM(UP_1a:UP_10f!E32)","v":0},{"$f":"SUM(UP_1a:UP_10f!F32)","v":0},null,null,null,null,"UP_3i",{"$f":"UP_3i!$D$18","v":0},{"$f":"UP_3i!$D$19","v":0},{"$f":"UP_3i!$D$20","v":0},{"$f":"UP_3i!$D$21","v":0},{"$f":"UP_3i!$D$22","v":0},{"$f":"UP_3i!$D$23","v":0},{"$f":"UP_3i!$D$24","v":0}]
[null,"POLNOLETNI","nad 18 let do 35 let",{"$f":"SUM(UP_1a:UP_10f!D33)","v":0},{"$f":"SUM(UP_1a:UP_10f!E33)","v":0},{"$f":"SUM(UP_1a:UP_10f!F33)","v":0},null,null,null,null,"UP_4a",{"$f":"UP_4a!$D$18","v":0},{"$f":"UP_4a!$D$19","v":0},{"$f":"UP_4a!$D$20","v":0},{"$f":"UP_4a!$D$21","v":0},{"$f":"UP_4a!$D$22","v":0},{"$f":"UP_4a!$D$23","v":0},{"$f":"UP_4a!$D$24","v":0}]
[null,null,"nad 35 let do 50 let",{"$f":"SUM(UP_1a:UP_10f!D34)","v":0},{"$f":"SUM(UP_1a:UP_10f!E34)","v":0},{"$f":"SUM(UP_1a:UP_10f!F34)","v":0},null,null,null,null,"UP_4b",{"$f":"UP_4b!$D$18","v":0},{"$f":"UP_4b!$D$19","v":0},{"$f":"UP_4b!$D$20","v":0},{"$f":"UP_4b!$D$21","v":0},{"$f":"UP_4b!$D$22","v":0},{"$f":"UP_4b!$D$23","v":0},{"$f":"UP_4b!$D$24","v":0}]
[null,null,"nad 50 let do 65 let",{"$f":"SUM(UP_1a:UP_10f!D35)","v":0},{"$f":"SUM(UP_1a:UP_10f!E35)","v":0},{"$f":"SUM(UP_1a:UP_10f!F35)","v":0},null,null,null,null,"UP_4c",{"$f":"UP_4c!$D$18","v":0},{"$f":"UP_4c!$D$19","v":0},{"$f":"UP_4c!$D$20","v":0},{"$f":"UP_4c!$D$21","v":0},{"$f":"UP_4c!$D$22","v":0},{"$f":"UP_4c!$D$23","v":0},{"$f":"UP_4c!$D$24","v":0}]
[null,null,"nad 65 let",{"$f":"SUM(UP_1a:UP_10f!D36)","v":0},{"$f":"SUM(UP_1a:UP_10f!E36)","v":0},{"$f":"SUM(UP_1a:UP_10f!F36)","v":0},null,null,null,null,"UP_4d",{"$f":"UP_4d!$D$18","v":0},{"$f":"UP_4d!$D$19","v":0},{"$f":"UP_4d!$D$20","v":0},{"$f":"UP_4d!$D$21","v":0},{"$f":"UP_4d!$D$22","v":0},{"$f":"UP_4d!$D$23","v":0},{"$f":"UP_4d!$D$24","v":0}]
[null,"ANONIMNI","starost in/ali spol nista znana oz. definirana",{"$f":"SUM(UP_1a:UP_10f!D37)","v":0},{"$f":"SUM(UP_1a:UP_10f!E37)","v":0},{"$f":"SUM(UP_1a:UP_10f!F37)","v":0},null,null,null,null,"UP_5a",{"$f":"UP_5a!$D$18","v":0},{"$f":"UP_5a!$D$19","v":0},{"$f":"UP_5a!$D$20","v":0},{"$f":"UP_5a!$D$21","v":0},{"$f":"UP_5a!$D$22","v":0},{"$f":"UP_5a!$D$23","v":0},{"$f":"UP_5a!$D$24","v":0}]
[null,"Skupaj različnih uporabnikov ",null,{"$f":"SUM(D33:D39)","v":0},{"$f":"SUM(E33:E39)","v":0},{"$f":"SUM(F33:F39)","v":0},null,null,null,null,"UP_5b",{"$f":"UP_5b!$D$18","v":0},{"$f":"UP_5b!$D$19","v":0},{"$f":"UP_5b!$D$20","v":0},{"$f":"UP_5b!$D$21","v":0},{"$f":"UP_5b!$D$22","v":0},{"$f":"UP_5b!$D$23","v":0},{"$f":"UP_5b!$D$24","v":0}]
[null,"Ujemanje s prvo preglednico: ","Ujemanje: ",{"$f":"IF((E6=(D40+E40+F40)),\"SEŠTEVEK SE UJEMA\",\"SEŠTEVEK SE NE UJEMA - PREVERITE\")","v":"SEŠTEVEK SE UJEMA"},null,null,null,null,null,null,"UP_6a",{"$f":"UP_6a!$D$18","v":0},{"$f":"UP_6a!$D$19","v":0},{"$f":"UP_6a!$D$20","v":0},{"$f":"UP_6a!$D$21","v":0},{"$f":"UP_6a!$D$22","v":0},{"$f":"UP_6a!$D$23","v":0},{"$f":"UP_6a!$D$24","v":0}]
[null,"Opomba:\nIzvajalci, ki v bazi EVAPRO beležite drugačne starostne skupine, lahko ustvarite tabelo za izpis z navedenimi starostnimi skupinami - podrobno v »Navodilih za uporabo baze Evapro© - februar 2025«, poglavje »9.1.4 Po star. skupinah«, str. 86.",null,null,null,null,null,null,null,null,"UP_6b",{"$f":"UP_6b!$D$18","v":0},{"$f":"UP_6b!$D$19","v":0},{"$f":"UP_6b!$D$20","v":0},{"$f":"UP_6b!$D$21","v":0},{"$f":"UP_6b!$D$22","v":0},{"$f":"UP_6b!$D$23","v":0},{"$f":"UP_6b!$D$24","v":0}]
[null,null,null,null,null,null,null,null,null,null,"UP_6c",{"$f":"UP_6c!$D$18","v":0},{"$f":"UP_6c!$D$19","v":0},{"$f":"UP_6c!$D$20","v":0},{"$f":"UP_6c!$D$21","v":0},{"$f":"UP_6c!$D$22","v":0},{"$f":"UP_6c!$D$23","v":0},{"$f":"UP_6c!$D$24","v":0}]
[null,null,null,null,null,null,null,null,null,null,"UP_7a",{"$f":"UP_7a!$D$18","v":0},{"$f":"UP_7a!$D$19","v":0},{"$f":"UP_7a!$D$20","v":0},{"$f":"UP_7a!$D$21","v":0},{"$f":"UP_7a!$D$22","v":0},{"$f":"UP_7a!$D$23","v":0},{"$f":"UP_7a!$D$24","v":0}]
[5,"Prosimo, navedite število uporabnikov glede na čas/obdobje njihove vključitve v program. Upoštevajte VSE RAZLIČNE uporabnike. Seštevek uporabnikov mora tako biti enak podatku različnih uporabnikov iz prve preglednice. Prosimo zapišite oceno, če nimate točnih podatkov.",null,null,null,null,null,null,null,null,"UP_7b",{"$f":"UP_7b!$D$18","v":0},{"$f":"UP_7b!$D$19","v":0},{"$f":"UP_7b!$D$20","v":0},{"$f":"UP_7b!$D$21","v":0},{"$f":"UP_7b!$D$22","v":0},{"$f":"UP_7b!$D$23","v":0},{"$f":"UP_7b!$D$24","v":0}]
[null,"Število uporabnikov, ki so program obiskovali/bili vključeni…",null,null,"Število uporabnikov",null,null,null,null,null,"UP_7c",{"$f":"UP_7c!$D$18","v":0},{"$f":"UP_7c!$D$19","v":0},{"$f":"UP_7c!$D$20","v":0},{"$f":"UP_7c!$D$21","v":0},{"$f":"UP_7c!$D$22","v":0},{"$f":"UP_7c!$D$23","v":0},{"$f":"UP_7c!$D$24","v":0}]
[null,"vsak dan ali petkrat na teden",null,null,{"$f":"SUM(UP_1a:UP_10f!E45)","v":0},null,null,null,null,null,"UP_7d",{"$f":"UP_7d!$D$18","v":0},{"$f":"UP_7d!$D$19","v":0},{"$f":"UP_7d!$D$20","v":0},{"$f":"UP_7d!$D$21","v":0},{"$f":"UP_7d!$D$22","v":0},{"$f":"UP_7d!$D$23","v":0},{"$f":"UP_7d!$D$24","v":0}]
[null,"enkrat ali večkrat na teden, vendar ne vsak (delovni) dan",null,null,{"$f":"SUM(UP_1a:UP_10f!E46)","v":0},null,null,null,null,null,"UP_8a",{"$f":"UP_8a!$D$18","v":0},{"$f":"UP_8a!$D$19","v":0},{"$f":"UP_8a!$D$20","v":0},{"$f":"UP_8a!$D$21","v":0},{"$f":"UP_8a!$D$22","v":0},{"$f":"UP_8a!$D$23","v":0},{"$f":"UP_8a!$D$24","v":0}]
[null,"večkrat/nekajkrat na mesec",null,null,{"$f":"SUM(UP_1a:UP_10f!E47)","v":0},null,null,null,null,null,"UP_8b",{"$f":"UP_8b!$D$18","v":0},{"$f":"UP_8b!$D$19","v":0},{"$f":"UP_8b!$D$20","v":0},{"$f":"UP_8b!$D$21","v":0},{"$f":"UP_8b!$D$22","v":0},{"$f":"UP_8b!$D$23","v":0},{"$f":"UP_8b!$D$24","v":0}]
[null,"enkrat na mesec",null,null,{"$f":"SUM(UP_1a:UP_10f!E48)","v":0},null,null,null,null,null,"UP_9a",{"$f":"UP_9a!$D$18","v":0},{"$f":"UP_9a!$D$19","v":0},{"$f":"UP_9a!$D$20","v":0},{"$f":"UP_9a!$D$21","v":0},{"$f":"UP_9a!$D$22","v":0},{"$f":"UP_9a!$D$23","v":0},{"$f":"UP_9a!$D$24","v":0}]
[null,"nekajkrat na leto",null,null,{"$f":"SUM(UP_1a:UP_10f!E49)","v":0},null,null,null,null,null,"UP_10a",{"$f":"UP_10a!$D$18","v":0},{"$f":"UP_10a!$D$19","v":0},{"$f":"UP_10a!$D$20","v":0},{"$f":"UP_10a!$D$21","v":0},{"$f":"UP_10a!$D$22","v":0},{"$f":"UP_10a!$D$23","v":0},{"$f":"UP_10a!$D$24","v":0}]
[null,"enkrat na leto",null,null,{"$f":"SUM(UP_1a:UP_10f!E50)","v":0},null,null,null,null,null,"UP_10b",{"$f":"UP_10b!$D$18","v":0},{"$f":"UP_10b!$D$19","v":0},{"$f":"UP_10b!$D$20","v":0},{"$f":"UP_10b!$D$21","v":0},{"$f":"UP_10b!$D$22","v":0},{"$f":"UP_10b!$D$23","v":0},{"$f":"UP_10b!$D$24","v":0}]
[null,"uporabniki, za katere ni znano, kako pogosto so obiskovali/bili vključeni v program (anonimni)",null,null,{"$f":"SUM(UP_1a:UP_10f!E51)","v":0},null,null,null,null,null,"UP_10c",{"$f":"UP_10c!$D$18","v":0},{"$f":"UP_10c!$D$19","v":0},{"$f":"UP_10c!$D$20","v":0},{"$f":"UP_10c!$D$21","v":0},{"$f":"UP_10c!$D$22","v":0},{"$f":"UP_10c!$D$23","v":0},{"$f":"UP_10c!$D$24","v":0}]
[null,"Skupaj število različnih uporabnikov ",null,null,{"$f":"SUM(E47:E53)","v":0},null,null,null,null,null,"UP_10d",{"$f":"UP_10d!$D$18","v":0},{"$f":"UP_10d!$D$19","v":0},{"$f":"UP_10d!$D$20","v":0},{"$f":"UP_10d!$D$21","v":0},{"$f":"UP_10d!$D$22","v":0},{"$f":"UP_10d!$D$23","v":0},{"$f":"UP_10d!$D$24","v":0}]
[null,"Ujemanje s prvo preglednico: ","Ujemanje: ",{"$f":"IF((E6=(E54)),\"SEŠTEVEK SE UJEMA\",\"SEŠTEVEK SE NE UJEMA - PREVERITE\")","v":"SEŠTEVEK SE UJEMA"},null,null,null,null,null,null,"UP_10e",{"$f":"UP_10e!$D$18","v":0},{"$f":"UP_10e!$D$19","v":0},{"$f":"UP_10e!$D$20","v":0},{"$f":"UP_10e!$D$21","v":0},{"$f":"UP_10e!$D$22","v":0},{"$f":"UP_10e!$D$23","v":0},{"$f":"UP_10e!$D$24","v":0}]
[null,null,null,null,null,null,null,null,null,null,"UP_10f",{"$f":"UP_10f!$D$18","v":0},{"$f":"UP_10f!$D$19","v":0},{"$f":"UP_10f!$D$20","v":0},{"$f":"UP_10f!$D$21","v":0},{"$f":"UP_10f!$D$22","v":0},{"$f":"UP_10f!$D$23","v":0},{"$f":"UP_10f!$D$24","v":0}]
[]
[6,"Prosimo, opredelite ciljno skupino uporabnikov - značilnosti uporabnikov, ki jim je program namenjen:"]
[null,"po spolu",null,{"$f":"UP_1a!D57&\"; \"&UP_1b!D57&UP_1c!D57&\"; \"&UP_1d!D57&\"; \"&UP_1e!D57&\"; \"&UP_1f!D57&\"; \"&UP_1g!D57&\"; \"&UP_1h!D57&\"; \"&UP_1i!D57&\"; \"&UP_1j!D57&\"; \"&UP_1k!D57&\"; \"&'UP_2.1a'!D57&\"; \"&'UP_2.1b'!D57&\"; \"&'UP_2.1c'!D57&\"; \"&'UP_2.1d'!D57&\"; \"&'UP_2.1e'!D57&\"; \"&'UP_2.1f'!D57&\"; \"&'UP_2.1g'!D57&\"; \"&'UP_2.1h'!D57&\"; \"&'UP_2.2a'!D57&\"; \"&'UP_2.2b'!D57&\"; \"&'UP_2.2c'!D57&\"; \"&'UP_2.2d'!D57&\"; \"&'UP_2.3a'!D57&\"; \"&'UP_2.3b'!D57&\"; \"&'UP_2.3c'!D57&\"; \"&'UP_2.4a'!D57&\"; \"&'UP_2.4b'!D57&\"; \"&UP_3a!D57&\"; \"&UP_3b!D57&\"; \"&UP_3c!D57&\"; \"&UP_3d!D57&\"; \"&UP_3e!D57&\"; \"&UP_3f!D57&\"; \"&UP_3g!D57&\"; \"&UP_3h!D57&\"; \"&UP_3i!D57&\"; \"&UP_4a!D57&\"; \"&UP_4b!D57&\"; \"&UP_4c!D57&\"; \"&UP_4d!D57&\"; \"&UP_5a!D57&\"; \"&UP_5b!D57&\"; \"&UP_6a!D57&\"; \"&UP_6b!D57&\"; \"&UP_6c!D57&\"; \"&UP_7a!D57&\"; \"&UP_7b!D57&\"; \"&UP_7c!D57&\"; \"&UP_7d!D57&\"; \"&UP_8a!D57&\"; \"&UP_8b!D57&\"; \"&UP_9a!D57&\"; \"&UP_10a!D57&\"; \"&UP_10b!D57&\"; \"&UP_10c!D57&\"; \"&UP_10d!D57&\"; \"&UP_10e!D57&\"; \"&UP_10f!D57&\"; \"","v":"; ; ; ; ; ; ; ; ; ; ; ; ; ; ; ; ; ; ; ; ; ; ; ; ; ; ; ; ; ; ; ; ; ; ; ; ; ; ; ; ; ; ; ; ; ; ; ; ; ; ; ; ; ; ; ; ; ; "}]
[null,"po starostnih skupinah",null,{"$f":"UP_1a!D58&\"; \"&UP_1b!D58&UP_1c!D58&\"; \"&UP_1d!D58&\"; \"&UP_1e!D58&\"; \"&UP_1f!D58&\"; \"&UP_1g!D58&\"; \"&UP_1h!D58&\"; \"&UP_1i!D58&\"; \"&UP_1j!D58&\"; \"&UP_1k!D58&\"; \"&'UP_2.1a'!D58&\"; \"&'UP_2.1b'!D58&\"; \"&'UP_2.1c'!D58&\"; \"&'UP_2.1d'!D58&\"; \"&'UP_2.1e'!D58&\"; \"&'UP_2.1f'!D58&\"; \"&'UP_2.1g'!D58&\"; \"&'UP_2.1h'!D58&\"; \"&'UP_2.2a'!D58&\"; \"&'UP_2.2b'!D58&\"; \"&'UP_2.2c'!D58&\"; \"&'UP_2.2d'!D58&\"; \"&'UP_2.3a'!D58&\"; \"&'UP_2.3b'!D58&\"; \"&'UP_2.3c'!D58&\"; \"&'UP_2.4a'!D58&\"; \"&'UP_2.4b'!D58&\"; \"&UP_3a!D58&\"; \"&UP_3b!D58&\"; \"&UP_3c!D58&\"; \"&UP_3d!D58&\"; \"&UP_3e!D58&\"; \"&UP_3f!D58&\"; \"&UP_3g!D58&\"; \"&UP_3h!D58&\"; \"&UP_3i!D58&\"; \"&UP_4a!D58&\"; \"&UP_4b!D58&\"; \"&UP_4c!D58&\"; \"&UP_4d!D58&\"; \"&UP_5a!D58&\"; \"&UP_5b!D58&\"; \"&UP_6a!D58&\"; \"&UP_6b!D58&\"; \"&UP_6c!D58&\"; \"&UP_7a!D58&\"; \"&UP_7b!D58&\"; \"&UP_7c!D58&\"; \"&UP_7d!D58&\"; \"&UP_8a!D58&\"; \"&UP_8b!D58&\"; \"&UP_9a!D58&\"; \"&UP_10a!D58&\"; \"&UP_10b!D58&\"; \"&UP_10c!D58&\"; \"&UP_10d!D58&\"; \"&UP_10e!D58&\"; \"&UP_10f!D58&\"; \"","v":"; ; ; ; ; ; ; ; ; ; ; ; ; ; ; ; ; ; ; ; ; ; ; ; ; ; ; ; ; ; ; ; ; ; ; ; ; ; ; ; ; ; ; ; ; ; ; ; ; ; ; ; ; ; ; ; ; ; "}]
[null,"družinske razmere in socialno omrežje",null,{"$f":"UP_1a!D59&\"; \"&UP_1b!D59&UP_1c!D59&\"; \"&UP_1d!D59&\"; \"&UP_1e!D59&\"; \"&UP_1f!D59&\"; \"&UP_1g!D59&\"; \"&UP_1h!D59&\"; \"&UP_1i!D59&\"; \"&UP_1j!D59&\"; \"&UP_1k!D59&\"; \"&'UP_2.1a'!D59&\"; \"&'UP_2.1b'!D59&\"; \"&'UP_2.1c'!D59&\"; \"&'UP_2.1d'!D59&\"; \"&'UP_2.1e'!D59&\"; \"&'UP_2.1f'!D59&\"; \"&'UP_2.1g'!D59&\"; \"&'UP_2.1h'!D59&\"; \"&'UP_2.2a'!D59&\"; \"&'UP_2.2b'!D59&\"; \"&'UP_2.2c'!D59&\"; \"&'UP_2.2d'!D59&\"; \"&'UP_2.3a'!D59&\"; \"&'UP_2.3b'!D59&\"; \"&'UP_2.3c'!D59&\"; \"&'UP_2.4a'!D59&\"; \"&'UP_2.4b'!D59&\"; \"&UP_3a!D59&\"; \"&UP_3b!D59&\"; \"&UP_3c!D59&\"; \"&UP_3d!D59&\"; \"&UP_3e!D59&\"; \"&UP_3f!D59&\"; \"&UP_3g!D59&\"; \"&UP_3h!D59&\"; \"&UP_3i!D59&\"; \"&UP_4a!D59&\"; \"&UP_4b!D59&\"; \"&UP_4c!D59&\"; \"&UP_4d!D59&\"; \"&UP_5a!D59&\"; \"&UP_5b!D59&\"; \"&UP_6a!D59&\"; \"&UP_6b!D59&\"; \"&UP_6c!D59&\"; \"&UP_7a!D59&\"; \"&UP_7b!D59&\"; \"&UP_7c!D59&\"; \"&UP_7d!D59&\"; \"&UP_8a!D59&\"; \"&UP_8b!D59&\"; \"&UP_9a!D59&\"; \"&UP_10a!D59&\"; \"&UP_10b!D59&\"; \"&UP_10c!D59&\"; \"&UP_10d!D59&\"; \"&UP_10e!D59&\"; \"&UP_10f!D59&\"; \"","v":"; ; ; ; ; ; ; ; ; ; ; ; ; ; ; ; ; ; ; ; ; ; ; ; ; ; ; ; ; ; ; ; ; ; ; ; ; ; ; ; ; ; ; ; ; ; ; ; ; ; ; ; ; ; ; ; ; ; "}]
[null,"glede na težavo(e), ki jo/jih imajo",null,{"$f":"UP_1a!D60&\"; \"&UP_1b!D60&UP_1c!D60&\"; \"&UP_1d!D60&\"; \"&UP_1e!D60&\"; \"&UP_1f!D60&\"; \"&UP_1g!D60&\"; \"&UP_1h!D60&\"; \"&UP_1i!D60&\"; \"&UP_1j!D60&\"; \"&UP_1k!D60&\"; \"&'UP_2.1a'!D60&\"; \"&'UP_2.1b'!D60&\"; \"&'UP_2.1c'!D60&\"; \"&'UP_2.1d'!D60&\"; \"&'UP_2.1e'!D60&\"; \"&'UP_2.1f'!D60&\"; \"&'UP_2.1g'!D60&\"; \"&'UP_2.1h'!D60&\"; \"&'UP_2.2a'!D60&\"; \"&'UP_2.2b'!D60&\"; \"&'UP_2.2c'!D60&\"; \"&'UP_2.2d'!D60&\"; \"&'UP_2.3a'!D60&\"; \"&'UP_2.3b'!D60&\"; \"&'UP_2.3c'!D60&\"; \"&'UP_2.4a'!D60&\"; \"&'UP_2.4b'!D60&\"; \"&UP_3a!D60&\"; \"&UP_3b!D60&\"; \"&UP_3c!D60&\"; \"&UP_3d!D60&\"; \"&UP_3e!D60&\"; \"&UP_3f!D60&\"; \"&UP_3g!D60&\"; \"&UP_3h!D60&\"; \"&UP_3i!D60&\"; \"&UP_4a!D60&\"; \"&UP_4b!D60&\"; \"&UP_4c!D60&\"; \"&UP_4d!D60&\"; \"&UP_5a!D60&\"; \"&UP_5b!D60&\"; \"&UP_6a!D60&\"; \"&UP_6b!D60&\"; \"&UP_6c!D60&\"; \"&UP_7a!D60&\"; \"&UP_7b!D60&\"; \"&UP_7c!D60&\"; \"&UP_7d!D60&\"; \"&UP_8a!D60&\"; \"&UP_8b!D60&\"; \"&UP_9a!D60&\"; \"&UP_10a!D60&\"; \"&UP_10b!D60&\"; \"&UP_10c!D60&\"; \"&UP_10d!D60&\"; \"&UP_10e!D60&\"; \"&UP_10f!D60&\"; \"","v":"; ; ; ; ; ; ; ; ; ; ; ; ; ; ; ; ; ; ; ; ; ; ; ; ; ; ; ; ; ; ; ; ; ; ; ; ; ; ; ; ; ; ; ; ; ; ; ; ; ; ; ; ; ; ; ; ; ; "}]
[null,"druge pomembne značilnosti",null,{"$f":"UP_1a!D61&\"; \"&UP_1b!D61&UP_1c!D61&\"; \"&UP_1d!D61&\"; \"&UP_1e!D61&\"; \"&UP_1f!D61&\"; \"&UP_1g!D61&\"; \"&UP_1h!D61&\"; \"&UP_1i!D61&\"; \"&UP_1j!D61&\"; \"&UP_1k!D61&\"; \"&'UP_2.1a'!D61&\"; \"&'UP_2.1b'!D61&\"; \"&'UP_2.1c'!D61&\"; \"&'UP_2.1d'!D61&\"; \"&'UP_2.1e'!D61&\"; \"&'UP_2.1f'!D61&\"; \"&'UP_2.1g'!D61&\"; \"&'UP_2.1h'!D61&\"; \"&'UP_2.2a'!D61&\"; \"&'UP_2.2b'!D61&\"; \"&'UP_2.2c'!D61&\"; \"&'UP_2.2d'!D61&\"; \"&'UP_2.3a'!D61&\"; \"&'UP_2.3b'!D61&\"; \"&'UP_2.3c'!D61&\"; \"&'UP_2.4a'!D61&\"; \"&'UP_2.4b'!D61&\"; \"&UP_3a!D61&\"; \"&UP_3b!D61&\"; \"&UP_3c!D61&\"; \"&UP_3d!D61&\"; \"&UP_3e!D61&\"; \"&UP_3f!D61&\"; \"&UP_3g!D61&\"; \"&UP_3h!D61&\"; \"&UP_3i!D61&\"; \"&UP_4a!D61&\"; \"&UP_4b!D61&\"; \"&UP_4c!D61&\"; \"&UP_4d!D61&\"; \"&UP_5a!D61&\"; \"&UP_5b!D61&\"; \"&UP_6a!D61&\"; \"&UP_6b!D61&\"; \"&UP_6c!D61&\"; \"&UP_7a!D61&\"; \"&UP_7b!D61&\"; \"&UP_7c!D61&\"; \"&UP_7d!D61&\"; \"&UP_8a!D61&\"; \"&UP_8b!D61&\"; \"&UP_9a!D61&\"; \"&UP_10a!D61&\"; \"&UP_10b!D61&\"; \"&UP_10c!D61&\"; \"&UP_10d!D61&\"; \"&UP_10e!D61&\"; \"&UP_10f!D61&\"; \"","v":"; ; ; ; ; ; ; ; ; ; ; ; ; ; ; ; ; ; ; ; ; ; ; ; ; ; ; ; ; ; ; ; ; ; ; ; ; ; ; ; ; ; ; ; ; ; ; ; ; ; ; ; ; ; ; ; ; ; "}]

{"sheet":"AKTIVNOSTI","index":73,"n_rows":21,"n_cols":5,"rows_kept":21,"cut":false,"hidden":true,"merged":[[0,0,0,9],[2,1,2,8]]}
["DODATNE AKTIVNOSTI PROGRAMA - za obdobje od 1. 1. 2026 do 30. 6. 2026"]
[]
[1,"Če v okviru programa izvajate dodatne aktivnosti, ki niso del programa (npr. predavanja, e-svetovanje, skupina za starše ipd.), prosimo navedite število uporabnikov za vsako aktivnost posebej. V aktivnostih, kjer beležite število uporabnikov, izpolnite stolpec C in E. V aktivnostih, kjer pa beležite le število izvajanj, izpolnite le stolpec D. Če beležite opravljene storitve in NE števila uporabnikov (npr. telefonski klici), posebej poudarite ali gre za storitev ali uporabnika."]
[null,"Dodatne aktivnosti","Število različnih uporabnikov v letu","Število izvajanj/storitev/dogodkov v letu","Povprečno število ur vključenosti enega uporabnika na mesec/\npri telefonskih klicih navedite povprečni čas enega pogovora"]
[]
[]
[]
[]
[]
[]
[]
[]
[]
[]
[]
[]
[]
[]
[]
[]
[null,"po potrebi vstavite vrstice - ne briši vrstic"]

{"sheet":"KADRI","index":74,"n_rows":55,"n_cols":11,"rows_kept":55,"cut":false,"hidden":true,"merged":[[2,1,2,8],[10,1,10,7],[0,0,0,9],[3,2,3,3],[4,2,4,3],[5,2,5,3],[6,2,6,3],[7,2,7,3],[52,7,52,8],[53,7,53,8],[54,1,54,8],[44,1,44,8],[46,1,46,2]]}
["KADRI - za obdobje od 1. 1. 2026 do 30. 6. 2026"]
[]
[1,"Prosimo, navedite obseg zaposlitev, ki jih imate sofinancirane po pogodbi z MDDSZ:"]
[null,"Vrsta kadra","Obseg zaposlitev, financiranih od MDDSZ \n(npr. 100 % zaposlitev vpišite kot 1; \n50 % zaposlitev vpišite kot 0,5 ipd.)",null,"Kontrola obsega zaposlitev\n(iz stolpca G)"]
[null,"strokovni vodja",null,null,{"$f":"(SUMIF($D$12:$D$41,\"strokovni vodja\",$G$12:$G$41)/2088)","v":0}]
[null,"strokovni delavec",null,null,{"$f":"(SUMIF($D$12:$D$41,\"strokovni delavec\",$G$12:$G$41)/2088)","v":0}]
[null,"višji laični delavec",null,null,{"$f":"(SUMIF($D$12:$D$41,\"višji laični delavec\",$G$12:$G$41)/2088)","v":0}]
[null,"nižji laični delavec",null,null,{"$f":"(SUMIF($D$12:$D$41,\"nižji laični delavec\",$G$12:$G$41)/2088)","v":0}]
[]
[]
[2,"Prosimo, navedite plačan kader - zaposlene in ostale plačane, ki izvajajo program. Navedite njihovo smer in stopnjo izobrazbe, delovno mesto, podlago za opravljanje dela, število opravljenih ur v programu in vire financiranja stroškov dela. Če je zaposlena oseba na dveh delovnih mestih, npr. pol na strokovnem delavcu, pol na višjem laičnem v istem programu - ga vpišite 2x z ustreznimi podatki. \nOpomba: V to tabelo NE vpisujte prostovoljcev, zanje je namenjena tabela 3. V to tabelo tudi NE vpisujete supervizorjev, saj le-ti nastopajo kot podpora izvajalcem in programa neposredno ne izvajajo. \nPojasnilo: \"Drugi - plačani iz drugih virov\" - so osebe, ki izvajajo program, pri katerih stroške dela v celoti financirajo drugi financerji, tj. niso financirani iz MDDSZ. "]
[null,"Ime in priimek","Izobrazba\n(smer/stopnja) -\nsamo za osebe, financirane iz razpisa MDDSZ","Delovno mesto\n(izberite ustrezen odgovor)","Podlaga za opravljanje dela\n(izberite ustrezen odgovor)","Skupaj število \nopravljenih ur v programu, \nne glede na financerja","Število opravljenih ur, financiranih iz razpisa  MDDSZ","Število opravljenih ur \npo drugih financerjih\n(npr. OBČINA: 1044; FIHO: 500; ZRSZ: 544)"]
[null,null,null,null,null,null,null,null,null,null,"drugi - plačani iz drugih virov"]
[]
[]
[]
[]
[]
[]
[]
[]
[]
[]
[]
[]
[]
[]
[]
[]
[]
[]
[]
[]
[]
[]
[]
[]
[]
[]
[]
[]
[null,"po potrebi vstavite vrstice - ne brišite vrstic"]
[]
[]
[3,"Prosimo, navedite število vseh ur, ki so jih opravili prostovoljci v programu. Navedite prostovoljce glede na spol in število opravljenih ur ter opredelite vrsto prostovoljnega dela."]
[]
[null,"Skupaj opravljeno število ur prostovoljnega dela"]
[]
[null,"Prostovoljci po spolu","Število prostovoljcev","Število opravljenih ur","Število prostovoljcev","Vrsta dela glede na določila Zakona o prostovoljstvu*","Število prostovoljcev"]
[null,"Ženske",null,"0 do 24 ur",null,"organizacijsko delo"]
[null,"Moški",null,"25 do 100 ur",null,"strokovno delo - na področju socialnega varstva"]
[null,"Spol ni definiran",null,"101 do 500 ur",null,"strokovno delo - drugo"]
[null,null,null,"501 ur in več",null,"drugo delo",null,"Kontrola (vsa tri polja se morajo ujemati)"]
[null,"Skupaj število prostovoljcev",{"$f":"C50+C51+C52","v":0},"Skupaj število prostovoljcev",{"$f":"SUM(E50:E53)","v":0},"Skupaj število prostovoljcev",{"$f":"SUM(G50:G53)","v":0},{"$f":"IF(AND(C54=E54,E54=G54),\"OK\",\"SEŠTEVEK NI OK-PREVERITE\")","v":"OK"}]
[null,"Opomba:\n* Zakon o prostovoljstvu (Uradni list RS, število 10/11, 16/11 – popr. in 82/15), 23.a člen, vrste prostovoljskega dela:\n(1) Vrste prostovoljskega dela iz druge alineje drugega odstavka 23. člena so: organizacijsko delo, ki je opravljanje prostovoljskega dela vodenja projektov in programov, njihova organizacija ali organizacija dela projekta ali programa in opravljanje mentorstva prostovoljcem; vsebinsko delo, ki je opravljanje prostovoljskega dela, za izvajanje katerega so potrebna posebna znanja in veščine ali pa gre za osnovno prostovoljsko delo posameznega programa ali projekta. Posebna znanja in veščine so znanja in veščine, ki jih prostovoljec pridobi v vzgojno izobraževalnem sistemu ali na usposabljanju prostovoljske organizacije; drugo delo, ki je opravljanje prostovoljskega dela kot pomožnega dela ali dela za podporo prostovoljskemu programu ali projektu ali dela za opravljanje katerega ni potrebno posebno usposabljanje."]

{"sheet":"FINANCE","index":75,"n_rows":44,"n_cols":9,"rows_kept":44,"cut":false,"hidden":true,"merged":[[9,1,9,2],[42,1,42,2],[23,1,23,2],[26,1,26,8],[28,1,28,2],[29,1,29,2],[32,1,32,2],[17,1,17,2],[19,1,19,2],[20,1,20,2],[22,1,22,8],[18,1,18,2],[10,1,10,2],[21,1,21,2],[14,1,14,2],[43,1,43,2],[33,1,33,2],[38,1,38,2],[39,1,39,2],[11,1,11,2],[12,1,12,2],[13,1,13,2],[40,1,40,2],[15,1,15,2],[16,1,16,2],[0,0,0,9],[2,0,2,9],[4,1,4,8],[7,1,7,8],[8,7,8,8],[8,1,8,2],[8,5,8,6],[8,3,8,4]]}
["FINANČNO POROČILO - za obdobje od 1. 1. 2026 do 30. 6. 2026"]
[]
["OPOZORILO! Listine (račune, izplačilne liste, itd.), iz katerih je razvidno, da so bila sredstva porabljena namensko za izvajanje programa, hranite za morebitni nadzor programa."]
[]
[1,"Prosimo, preverite skupni odstotek prihodkov, pridobljenih od drugih sofinancerjev programa (% od celotne vrednosti programa).\nPravilo: MDDSZ sofinancira do največ 80 %, program mora iz drugih sredstev pridobiti najmanj 20 %."]
[null,{"$f":"SUM(G12:G22)","v":{"$error":"#DIV/0!"}}]
[]
[null,"Prosimo, navedite vire financiranja oz. vse sofinancerje programa, odobrena sredstva za izvajanje programa ter višino sredstev. "]
[null,"PRIHODKI PROGRAMA",null,"Vsa zaprošena sredstva",null,"Vsa prejeta sredstva",null,"Priložena dokazila v višini najmanj 20 %"]
[null,"Sofinancer programa",null,"Znesek v EUR","V odstotkih","Znesek v EUR","V odstotkih","Znesek v EUR","V odstotkih"]
[null,"MDDSZ (kot izhaja iz pogodbe)",null,null,{"$f":"D11/$D$24","v":{"$error":"#DIV/0!"}},null,{"$f":"F11/$F$24","v":{"$error":"#DIV/0!"}}]
[null,"Občine (seštejte znesek vseh občin skupaj)",null,null,{"$error":"#DIV/0!"},null,{"$error":"#DIV/0!"},null,{"$f":"H12/$F$24","v":{"$error":"#DIV/0!"}}]
[null,"Donacije",null,null,{"$error":"#DIV/0!"},null,{"$error":"#DIV/0!"},null,{"$error":"#DIV/0!"}]
[null,"FIHO",null,null,{"$error":"#DIV/0!"},null,{"$error":"#DIV/0!"},null,{"$error":"#DIV/0!"}]
[null,"ZRSZ",null,null,{"$error":"#DIV/0!"},null,{"$error":"#DIV/0!"},null,{"$error":"#DIV/0!"}]
[null,"Drugi proračunski viri skupaj (navedite: _____)",null,null,{"$error":"#DIV/0!"},null,{"$error":"#DIV/0!"},null,{"$error":"#DIV/0!"}]
[null,"Uporabniki",null,null,{"$error":"#DIV/0!"},null,{"$error":"#DIV/0!"},null,{"$error":"#DIV/0!"}]
[null,"Članarine",null,null,{"$error":"#DIV/0!"},null,{"$error":"#DIV/0!"},null,{"$error":"#DIV/0!"}]
[null,"Lastna sredstva",null,null,{"$error":"#DIV/0!"},null,{"$error":"#DIV/0!"},null,{"$error":"#DIV/0!"}]
[null,"Ovrednoteno prostovoljsko delo",null,null,{"$error":"#DIV/0!"},null,{"$error":"#DIV/0!"},null,{"$error":"#DIV/0!"}]
[null,"Brezplačen najem prostorov",null,null,{"$error":"#DIV/0!"},null,{"$error":"#DIV/0!"},null,{"$error":"#DIV/0!"}]
[null,"Drugo (navedite: _____)",null,null,{"$error":"#DIV/0!"},null,{"$error":"#DIV/0!"},null,{"$error":"#DIV/0!"}]
[null,"po potrebi vstavite vrstice in prekopirajte formule za preračun - ne brišite vrstic"]
[null,"SKUPAJ",null,{"$f":"SUM(D11:D23)","v":0},{"$error":"#DIV/0!"},0,{"$error":"#DIV/0!"},0,{"$error":"#DIV/0!"}]
[]
[]
[2,"Prosimo, navedite stroške, krite iz sredstev MDDSZ, ki ste jih pridobili preko javnega razpisa za sofinanciranje programov socialnega varstva. Po potrebi dodajte vrstice, še posebej, če imate več različnih stroškov pri odhodkih iz sredstev MDDSZ."]
[null,"ODHODKI PROGRAMA",null,"Znesek v EUR","V odstotkih"]
[null,"1. Stroški dela redno zaposlenih \n(sem spadajo: plače zaposlenih, delodajalčeve dajatve za socialno varnost, regres za letni dopust, prevoz na delo, stroški prehrane, jubilejne nagrade)",null,null,null,{"$f":"D29/$D$44","v":{"$error":"#DIV/0!"}}]
[null,"2. Stroški zunanjih izvajalcev, vezanih neposredno na program ",null,{"$f":"SUM(D31:D32)","v":0},null,{"$f":"D30/$D$44","v":{"$error":"#DIV/0!"}}]
[null,"- delo na podlagi pogodb",null,null,{"$f":"D31/$D$44","v":{"$error":"#DIV/0!"}}]
[null,"- strošek študentskega dela",null,null,{"$f":"D32/$D$44","v":{"$error":"#DIV/0!"}}]
[null,"3. Povračilo stroškov v zvezi z delom na programu za prostovoljce na osnovi sklenjenih dogovorov",null,null,null,{"$f":"D33/$D$44","v":{"$error":"#DIV/0!"}}]
[null,"4. Stroški materiala ter storitev",null,{"$f":"SUM(D35:D41)","v":0},null,{"$f":"D34/$D$44","v":{"$error":"#DIV/0!"}}]
[null," - energija – elektrika",null,null,{"$f":"D35/$D$44","v":{"$error":"#DIV/0!"}}]
[null,"- ogrevanje prostorov",null,null,{"$error":"#DIV/0!"}]
[null,"- najemnina lokacija 1",null,null,{"$error":"#DIV/0!"}]
[null,"- najemnina lokacija 2",null,null,{"$error":"#DIV/0!"}]
[null,"-supervizija",null,null,{"$error":"#DIV/0!"}]
[null,"- telefonski stroški",null,null,{"$error":"#DIV/0!"}]
[null,"- stroški drugega materiala (natančno opredelite in navedite te stroške)",null,null,{"$error":"#DIV/0!"}]
[null,"po potrebi vstavite vrstice in prekopirajte formule za preračun - ne brišite vrstic"]
[null,"Preostanek sredstev - VRAČILO",null,{"$f":"F11-D44","v":0}]
[null,"SKUPAJ VSI ODHODKI",null,{"$f":"D29+D30+D33+D34","v":0},{"$f":"SUM(E29:E41)","v":{"$error":"#DIV/0!"}},{"$f":"SUM(F29:F41)","v":{"$error":"#DIV/0!"}}]

{"sheet":"DRUGO","index":76,"n_rows":14,"n_cols":2,"rows_kept":14,"cut":false,"hidden":true,"merged":[[14,1,14,8],[2,1,2,8],[3,1,3,2],[3,3,3,8],[4,1,4,2],[4,3,4,8],[5,1,5,2],[5,3,5,8],[6,1,6,2],[6,3,6,8],[10,1,10,2],[10,3,10,8],[7,1,7,2],[7,3,7,8],[8,1,8,2],[8,3,8,8],[9,1,9,2],[9,3,9,8],[0,0,0,9],[13,1,13,8]]}
["DRUGO - za obdobje od 1. 1. 2026 do 30. 6. 2026"]
[]
[1,"Prosimo, opozorite nas na posebnosti in izzive pri izvajanju vsebin programa, za katere menite, da jih je potrebno upoštevati pri ocenjevanju vašega poročila. Opišite morebitne druge značilnosti programa, ki jih druga vprašanja ne predvidevajo. "]
[null,"največji izzivi pri izvajanju programa na splošno"]
[null,"izzivi glede dodatnih aktivnosti programa"]
[null,"izzivi glede zavrnitev in izključitev uporabnikov ter vzroki za to"]
[null,"izzivi glede potreb po širitvi programa"]
[null,"izzivi glede potreb po nadgradnji programa"]
[null,"izzivi na področju kadra"]
[null,"izzivi na področju financ"]
[null,"izzivi v okolju, kjer se program izvaja"]
[]
[]
[2,"Prosimo, navedite morebitne opombe, komentarje, predloge."]

{"sheet":"podatki skrij","index":77,"n_rows":234,"n_cols":7,"rows_kept":234,"cut":false,"hidden":true,"merged":[]}
["področje","podpodročje1","podpodročje2","podpodročje3","podpodročje4","podpodročje5","podpodročje6"]
["NASILJE","MATERINSKI DOMOVI","VARNE HIŠE, ZATOČIŠČA IN KRIZNI CENTRI","SVETOVALNICE","PROGRAMI PREVENTIVE","PROGRAMI TELEFONSKEGA SVETOVANJA"]
["ZASVOJENI","PREPOVEDANE DROGE – VISOKI PRAG","PREPOVEDANE DROGE - NIZKI PRAG","PREPOVEDANE DROGE – PREVENTIVNI PROGRAMI","ALKOHOLIZEM","MOTNJE HRANJENJA","PREPREČEVANJE PREKOMERNE RABE IKT"]
["DUŠEVNO ZDRAVJE","STANOVANJSKE SKUPINE","DNEVNI CENTRI","INFORMACIJSKE PISARNE IN SVETOVALNICE","PROGRAMI TELEFONSKEGA SVETOVANJA","ZAGOVORNIŠTVO"]
["BREZDOMCI","NAMESTITVENI PROGRAMI","DNEVNI PROGRAMI","DELOŽACIJE"]
["OTROCI IN MLADOSTNIKI","DNEVNI CENTRI ZA OTROKE IN MLADOSTNIKE S PREVENTIVNIM DELOM IN SVETOVANJEM","PREVENTIVNI PROGRAMI","PROGRAMI TELEFONSKEGA SVETOVANJA"]
["STAREJŠI","MEDGENERACIJSKA SREDIŠČA","PROGRAMI ZA STAREJŠE","PROGRAMI ZA OSEBE Z DEMENCO IN NJIHOVE SVOJCE"]
["INVALIDI","PROGRAMI OSEBNE ASISTENCE IN MREŽE SPREMLJEVALCEV","PROGRAMI ZA SPODBUJANJE SOCIALNE VKLJUČENOSTI IN NEODVISNEGA ŽIVLJENJA INVALIDOV"]
["ROMI","PROGRAMI ZA ROME"]
["DRUGI PROGRAMI","DRUGI PROGRAMI"]
["PROGRAMI SPECIALISTIČNE PODPORE ŽRTVAM KAZNIVIH DEJANJ","PROGRAMI SPECIALISTIČNE PODPORE ŽRTVAM KAZNIVIH DEJANJ"]
[]
[]
["Dokumentacija o programu"]
["Dokumentacija za uporabnike"]
["Vprašalnik za uporabnike ob vstopu"]
["Vprašalnik za uporabnike ob evalvaciji /izstopu iz programa"]
["Vprašalnik za uporabnike po razgovoru oz. Vprašalnik o svetovalnem pogovoru"]
["Vprašalnik za oceno programa oz. Vprašalnik ocena programa za anonimne uporabnike"]
["Vprašalnik o oceni programa za svojce"]
[]
[]
["AJDOVŠČINA"]
["ANKARAN"]
["APAČE"]
["BELTINCI"]
["BENEDIKT"]
["BISTRICA OB SOTLI"]
["BLED"]
["BLOKE"]
["BOHINJ"]
["BOROVNICA"]
["BOVEC"]
["BRASLOVČE"]
["BRDA"]
["BREZOVICA"]
["BREŽICE"]
["CANKOVA"]
["CELJE"]
["CERKLJE NA GORENJSKEM"]
["CERKNICA"]
["CERKNO"]
["CERKVENJAK"]
["CIRKULANE"]
["ČRENŠOVCI"]
["ČRNA NA KOROŠKEM"]
["ČRNOMELJ"]
["DESTRNIK"]
["DIVAČA"]
["DOBJE"]
["DOBREPOLJE"]
["DOBRNA"]
["DOBROVA-POLHOV GRADEC"]
["DOBROVNIK"]
["DOL PRI LJUBLJANI"]
["DOLENJSKE TOPLICE"]
["DOMŽALE"]
["DORNAVA"]
["DRAVOGRAD"]
["DUPLEK"]
["GORENJA VAS-POLJANE"]
["GORIŠNICA"]
["GORJE"]
["GORNJA RADGONA"]
["GORNJI GRAD"]
["GORNJI PETROVCI"]
["GRAD"]
["GROSUPLJE"]
["HAJDINA"]
["HOČE SLIVNICA"]
["HODOŠ"]
["HORJUL"]
["HRASTNIK"]
["HRPELJE-KOZINA"]
["IDRIJA"]
["IG"]
["ILIRSKA BISTRICA"]
["IVANČNA GORICA"]
["IZOLA"]
["JESENICE"]
["JEZERSKO"]
["JURŠINCI"]
["KAMNIK"]
["KANAL OB SOČI"]
["KIDRIČEVO"]
["KOBARID"]
["KOBILJE"]
["KOČEVJE"]
["KOMEN"]
["KOMENDA"]
["KOPER"]
["KOSTANJEVICA NA KRKI"]
["KOSTEL"]
["KOZJE"]
["KRANJ"]
["KRANJSKA GORA"]
["KRIŽEVCI"]
["KRŠKO"]
["KUNGOTA"]
["KUZMA"]
["LAŠKO"]
["LENART"]
["LENDAVA"]
["LITIJA"]
["LJUBLJANA"]
["LJUBNO"]
["LJUTOMER"]
["LOGATEC"]
["LOG-DRAGOMER"]
["LOŠKA DOLINA"]
["LOŠKI POTOK"]
["LOVRENC NA POHORJU"]
["LUČE"]
["LUKOVICA"]
["MAJŠPERK"]
["MAKOLE"]
["MARIBOR"]
["MARKOVCI"]
["MEDVODE"]
["MENGEŠ"]
["METLIKA"]
["MEŽICA"]
["MIKLAVŽ NA DRAVSKEM POLJU"]
["MIREN-KOSTANJEVICA"]
["MIRNA"]
["MIRNA PEČ"]
["MISLINJA"]
["MOKRONOG - TREBELNO"]
["MORAVČE"]
["MORAVSKE TOPLICE"]
["MOZIRJE"]
["MURSKA SOBOTA"]
["MUTA"]
["NAKLO"]
["NAZARJE"]
["NOVA GORICA"]
["NOVO MESTO"]
["ODRANCI"]
["OPLOTNICA"]
["ORMOŽ"]
["OSILNICA"]
["PESNICA"]
["PIRAN"]
["PIVKA"]
["PODČETRTEK"]
["PODLEHNIK"]
["PODVELKA"]
["POLJČANE"]
["POLZELA"]
["POSTOJNA"]
["PREBOLD"]
["PREDDVOR"]
["PREVALJE"]
["PTUJ"]
["PUCONCI"]
["RAČE-FRAM"]
["RADEČE"]
["RADENCI"]
["RADLJE OB DRAVI"]
["RADOVLJICA"]
["RAVNE NA KOROŠKEM"]
["RAZKRIŽJE"]
["REČICA OB SAVINJI"]
["RENČE-VOGRSKO"]
["RIBNICA"]
["RIBNICA NA POHORJU"]
["ROGAŠKA SLATINA"]
["ROGAŠOVCI"]
["ROGATEC"]
["RUŠE"]
["SELNICA OB DRAVI"]
["SEMIČ"]
["SEVNICA"]
["SEŽANA"]
["SLOVENJ GRADEC"]
["SLOVENSKA BISTRICA"]
["SLOVENSKE KONJICE"]
["SODRAŽICA"]
["SOLČAVA"]
["SREDIŠČE OB DRAVI"]
["STARŠE"]
["STRAŽA"]
["SVETA ANA"]
["SVETA TROJICA V SLOVENSKIH GORICAH"]
["SVETI ANDRAŽ V SLOVENSKIH GORICAH"]
["SVETI JURIJ OB ŠČAVNICI"]
["SVETI JURIJ V SLOVENSKIH GORICAH"]
["SVETI TOMAŽ"]
["ŠALOVCI"]
["ŠEMPETER-VRTOJBA"]
["ŠENČUR"]
["ŠENTILJ"]
["ŠENTJERNEJ"]
["ŠENTJUR"]
["ŠENTRUPERT"]
["ŠKOCJAN"]
["ŠKOFJA LOKA"]
["ŠKOFLJICA"]
["ŠMARJE PRI JELŠAH"]
["ŠMARJEŠKE TOPLICE"]
["ŠMARTNO OB PAKI"]
["ŠMARTNO PRI LITIJI"]
["ŠOŠTANJ"]
["ŠTORE"]
["TABOR"]
["TIŠINA"]
["TOLMIN"]
["TRBOVLJE"]
["TREBNJE"]
["TRNOVSKA VAS"]
["TRZIN"]
["TRŽIČ"]
["TURNIŠČE"]
["VELENJE"]
["VELIKA POLANA"]
["VELIKE LAŠČE"]
["VERŽEJ"]
["VIDEM"]
["VIPAVA"]
["VITANJE"]
["VODICE"]
["VOJNIK"]
["VRANSKO"]
["VRHNIKA"]
["VUZENICA"]
["ZAGORJE OB SAVI"]
["ZAVRČ"]
["ZREČE"]
["ŽALEC"]
["ŽELEZNIKI"]
["ŽETALE"]
["ŽIRI"]
["ŽIROVNICA"]
["ŽUŽEMBERK"]

{"sheet":"matrika up_vseb","index":78,"n_rows":74,"n_cols":9,"rows_kept":74,"cut":false,"hidden":true,"merged":[]}
["št.","vsebina","ime lista",null,"novost v 2026"]
[1,"Programi za preprečevanje nasilja, programi za pomoč žrtvam nasilja in programi za delo s povzročitelji nasilja:",null,null,null,null,null,null,"Sub UnhideSheetsContainingSpecificWord()\n\n    Dim ws As Worksheet\n    Dim wordCriteria As String\n\n    ' Specify the word to look for in the sheet names\n    wordCriteria = \"Data\"\n\n    For Each ws In ThisWorkbook.Worksheets\n        If InStr(1, ws.Name, wordCriteria, vbTextCompare) > 0 Then\n            ws.Visible = xlSheetVisible\n        End If\n    Next ws\n\nEnd Sub\n"]
["a","Programi kriznih centrov","UP_1a"]
["b","Programi materinskih domov ali materinskih domov s prehodnimi bivalnimi enotami","UP_1b",null,null,null,null,null,"Sub UnhideAllSheets()\n\n    Dim ws As Worksheet\n\n    ' Loop through each worksheet in the workbook\n    For Each ws In ThisWorkbook.Worksheets\n        ' Unhide the sheet\n        ws.Visible = True\n    Next ws\n\nEnd Sub"]
["c","Programi varnih hiš in zatočišč ","UP_1c"]
["d","Programi, namenjeni obravnavi žrtev nasilja (informacijski in svetovalni programi)","UP_1d"]
["e","Programi, namenjeni celostni obravnavi žrtev nasilja (informacijski in svetovalni programi ter 24/7 telefonska linija) ","UP_1e"]
["f","Programi, namenjeni obravnavi žrtev spolnega nasilja","UP_1f"]
["g","Programi, namenjeni povzročiteljem nasilja","UP_1g"]
["h","Programi, namenjeni otrokom in mladostnikom, povzročiteljem nasilja, vključno z medvrstniškim nasiljem","UP_1h"]
["i","Programi, namenjeni povzročiteljem nasilja v romski skupnosti","UP_1i"]
["j","Preventivni programi na področju preprečevanja nasilja ","UP_1j"]
["k","Programi, namenjeni celostni obravnavi žrtev nasilja nad invalidi (ki vsebujejo informacijski in svetovalni del programa kot tudi terensko delo in namestitvene kapacitete)","UP_1k"]
[2,"Programi na področju preprečevanja zasvojenosti, ki so namenjeni uporabnikom prepovedanih drog, osebam, ki so se znašle v socialnih stiskah zaradi alkoholizma in osebam, ki imajo težave na področju motenj hranjenja ter drugih oblik zasvojenosti:"]
[null,"2.1 Visokopražni programi:"]
["a","Sprejemni centri visokopražnih programov in programov brez nastanitve za različne oblike zasvojenosti ","UP_2.1a"]
["b","Programi, namenjeni preprečevanju razvoja različnih oblik zasvojenosti pri že ogroženih otrocih in mladostnikih z različnimi težavami v odraščanju","UP_2.1b"]
["c","Visokopražni programi, namenjeni spreminjanju in utrjevanju življenja brez drog - terapevtske skupnosti","UP_2.1c"]
["d","Terapevtski (visokopražni) programi brez nastanitve, namenjene spreminjanju in utrjevanju življenja brez drog ter dnevni centri","UP_2.1d"]
["e","Programi za reintegracijo uporabnikov v družbo ","UP_2.1e"]
["f","(Visokopražni) terapevtski programi (komune), namenjeni spreminjanju in utrjevanju življenja brez drog, ki omogočajo nastanitev uporabnikov","UP_2.1f"]
["g","Stanovanjske skupine namenjene reintegraciji","UP_2.1g"]
["h","Programi zmanjševanja škode na področju drog med mladimi in mlajšimi odraslimi ","UP_2.1h"]
[null,"2.2 Programi zmanjševanja škode (nizkopražni programi za uživalce prepovedanih drog, kamor sodijo: dnevni centri, svetovalnice, terensko delo, sprejemališča in zavetišča za brezdomne uživalce drog ipd.):"]
["a","Nizkopražni programi, namenjeni uživalcem drog, mrežo centrov za svetovanje s terenskim delom za pomoč zasvojenim s prepovedanimi drogami, potrebnih vsakodnevne obravnave, ki lahko vključujejo psihosocialno pomoč (dnevni in drop-in centri ali terensko delo)","UP_2.2a"]
["b","Nizkopražni programi, namenjeni mladim uživalcem drog, mrežo centrov za svetovanje s terenskim delom za pomoč zasvojenim s prepovedanimi drogami, potrebnih vsakodnevne obravnave, ki lahko vključujejo psihosocialno pomoč (dnevni in drop-in centri ali terensko delo)","UP_2.2b"]
["c","Programi zavetišč s prenočitvenimi kapacitetami in z nočnim dežurstvom za brezdomne uživalce nedovoljenih drog","UP_2.2c"]
["d","Nizkopražni programi za uživalke drog s prenočitvenimi kapacitetami in svetovanje s terenskim delom za pomoč zasvojenim s prepovedanimi drogami potrebnih vsakodnevne obravnave ","UP_2.2d"]
[null,"2.3 Programi povezani z alkoholizmom:"]
["a","Programi, namenjeni osebam, ki so se znašle v socialnih stiskah zaradi alkoholizma (informacijski in svetovalni programi, terapevtski programi, dnevni centri)","UP_2.3a"]
["b","Program, v katerih poteka delo v obliki rednih tedenskih srečanj skupin, v katerih je od 8 do 12 uporabnikov in pri katerih gre za spreminjanje ter utrjevanje novih vedenjskih in odnosnih vzorcev","UP_2.3b"]
["c","Programi zmanjševanja škode zaradi uživanja alkohola za mlade in svetovanje s terenskim delom ter neposrednimi spletnimi stiki","UP_2.3c"]
[null,"2.4 Programi na področju motenj hranjenja ali drugih oblik zasvojenosti (zasvojenost z igrami na srečo, zasvojenost z digitalnimi napravami, spletom in spletnimi storitvami ipd…):"]
["a","Programi za osebe, ki imajo težave na področju motenj hranjenja (dnevni centri, pisarne za svetovanje in informiranje)","UP_2.4a"]
["b","Programi za osebe, ki imajo težave na področju drugih oblik zasvojenosti (dnevni centri, pisarne za svetovanje in informiranje ter terensko delo)","UP_2.4b"]
[3,"Programi na področju duševnega zdravja: "]
["a","Stanovanjske skupine s celovito celodnevno podporo (12 ur)","UP_3a"]
["b","Prehodne stanovanjske skupine ","UP_3b"]
["c","Prehodne stanovanjske skupine za mlade (med 18 in 30 let)","UP_3c"]
["d","Odprte stanovanjske skupine skupaj s podporo v domačem okolju, pri čemer uporabnik lahko živi v stanovanjski skupini ali v samostojni enoti","UP_3d"]
["e","Dnevni centri ","UP_3e"]
["f","Dnevni centri, ki vključujejo skupine za samopomoč ","UP_3f"]
["g","Programi psihosocialnega svetovanja, informiranja in terenskega dela (PIS)","UP_3g"]
["h","Programi zagovorništva ","UP_3h"]
["i","Programi telefonskega svetovanja ","UP_3i"]
[4,"Programi za brezdomce: "]
["a","Zavetišča s prenočitvenimi kapacitetami in z nočnim dežurstvom","UP_4a"]
["b","Zavetišča s prenočitvenimi kapacitetami odprtega tipa ","UP_4b"]
["c","Sprejemališča ali/in dnevni centri z dnevno obravnavo, terenskim delom in dodatnimi aktivnostmi","UP_4c"]
["d","Programi nastanitvene stanovanjske podpore ","UP_4d"]
[5,"Programi za otroke in mladostnike, prikrajšane za primerno družinsko življenje ter programi, namenjeni otrokom in mladostnikom s težavami v odraščanju:"]
["a","Dnevni centri za otroke in mladostnike s terenskim delom","UP_5a"]
["b","Dnevni centri za otroke in mladostnike s terenskim delom, ki vključujejo tudi svetovanje","UP_5b"]
[6,"Programi za starejše, ki jim grozi socialna izključenost ali potrebujejo podporo in pomoč v vsakodnevnem življenju:"]
["a","Programi svetovanja s terenskim delom, namenjene osebam z demenco in njihovim svojcem","UP_6a"]
["b","Programi pomoči, namenjene osebam z demenco in njihovim svojcem","UP_6b"]
["c","Programi dnevnih centrov za starejše","UP_6c"]
[7,"Programi za podporno bivanje invalidov in mreža drugih programov za organizacijo in spodbujanje samostojnega življenja invalidov: "]
["a","Prehodne bivalne skupnosti za invalide (letne pogodbe z možnostjo podaljšanja)","UP_7a"]
["b","Programi, namenjeni ohranjanju socialnih veščin","UP_7b"]
["c","Informacijski in svetovalni programi, programi koordinacije, podpore in izvajanja pomoči in samopomoči za invalide","UP_7c"]
["d","Svetovalna pisarna s terenskim delom  in namestitvijo ","UP_7d"]
[8,"Programi socialnega vključevanja Romov: "]
["a","Dnevni center za otroke in mladostnike","UP_8a"]
["b","Ostali programi (informacijski in svetovalni programi, krepitev socialnih kompetenc ter delo na terenu)","UP_8b"]
[9,"Programi specialistične podpore žrtvam kaznivih dejanj (če ni zagotovljena s preostalimi socialnovarstvenimi programi):"]
["a","Programi specialistične podpore žrtvam kaznivih dejanj (informacijski in svetovalni program ter zagovorništvo) v skladu z Direktivo 2012/29/EU, razen če je tovrstna specialistična podpora zagotovljena že v okviru drugih razpisanih področij tega javnega razpisa","UP_9a"]
[10,"Drugi programi, ki so namenjeni odpravljanju socialnih stisk ljudi:"]
["a","Svetovalno informacijski programi","UP_10a"]
["b","Programi, namenjeni osebam v dolgovih in deložacijah","UP_10b"]
["c","Programi svetovanja, nudenja psihosocialne pomoči, socialnega vključevanja, opolnomočenja in zagovorništva, namenjene prosilcem za mednarodno zaščito, beguncem, ekonomskim migrantom in njihovim družinskim članom ","UP_10c"]
["d","Dnevni centri za osebe, ki so prosilci, ali jim je bila dodeljena mednarodna zaščita Republike Slovenije v krajih, kjer so te osebe nastanjene ","UP_10d"]
["e","Programi, namenjeni žalujočim odraslim, otrokom in mladostnikom","UP_10e"]
["f","Programi spremljanja umirajočih bolnikov in njihovih svojcev na domu","UP_10f"]

{"sheet":"matrika_3","index":79,"n_rows":30,"n_cols":14,"rows_kept":30,"cut":false,"hidden":true,"merged":[[0,2,0,3],[0,5,0,9],[1,6,29,6],[1,7,29,7],[1,8,29,8],[1,9,29,9],[1,10,29,10],[23,0,25,0],[1,2,29,2],[1,3,29,3],[1,5,29,5],[1,0,5,0],[12,0,16,0],[6,0,11,0],[17,0,19,0],[20,0,22,0]]}
["področje","podpodročje","vsem se odprejo zavihki",null,"novo - UP_VSEBINE se odprejo IF korak 1","vsem se odprejo zavihki",null,null,null,null,"IF korak 3 = DA","IF korak \"3 = DA\" + IF korak \"2\" = izbrano podpodročje"]
["NASILJE","MATERINSKI DOMOVI","navodila","splošno","UP_VSEBINE 1","uporabniki","aktivnosti","kadri","finance","drugo","evalvacija","kapacitete 2",null,"list DRUGO je zdaj samo eden in se prikaže vsem, ne glede na filter"]
[null,"VARNE HIŠE, ZATOČIŠČA IN KRIZNI CENTRI",null,null,"UP_VSEBINE 1",null,null,null,null,null,null,"kapacitete 2",null,"novost: listi UP_VSEBINE 1-10 se odprejo glede na IF 1, določeno v stolpcu E"]
[null,"SVETOVALNICE",null,null,"UP_VSEBINE 1"]
[null,"PROGRAMI PREVENTIVE",null,null,"UP_VSEBINE 1"]
[null,"PROGRAMI TELEFONSKEGA SVETOVANJA",null,null,"UP_VSEBINE 1"]
["ZASVOJENI","PREPOVEDANE DROGE – VISOKI PRAG",null,null,"UP_VSEBINE 2",null,null,null,null,null,null,"kapacitete 1"]
[null,"PREPOVEDANE DROGE - NIZKI PRAG",null,null,"UP_VSEBINE 2"]
[null,"PREPOVEDANE DROGE – PREVENTIVNI PROGRAMI",null,null,"UP_VSEBINE 2"]
[null,"ALKOHOLIZEM",null,null,"UP_VSEBINE 2",null,null,null,null,null,null,"kapacitete 1"]
[null,"MOTNJE HRANJENJA",null,null,"UP_VSEBINE 2"]
[null,"PREPREČEVANJE PREKOMERNE RABE IKT",null,null,"UP_VSEBINE 2"]
["DUŠEVNO_ZDRAVJE","STANOVANJSKE SKUPINE",null,null,"UP_VSEBINE 3",null,null,null,null,null,null,"kapacitete 1"]
[null,"DNEVNI CENTRI",null,null,"UP_VSEBINE 3"]
[null,"INFORMACIJSKE PISARNE IN SVETOVALNICE",null,null,"UP_VSEBINE 3"]
[null,"PROGRAMI TELEFONSKEGA SVETOVANJA",null,null,"UP_VSEBINE 3"]
[null,"ZAGOVORNIŠTVO",null,null,"UP_VSEBINE 3"]
["BREZDOMCI","NAMESTITVENI PROGRAMI",null,null,"UP_VSEBINE 4",null,null,null,null,null,null,"kapacitete 1"]
[null,"DNEVNI PROGRAMI",null,null,"UP_VSEBINE 4"]
[null,"DELOŽACIJE",null,null,"UP_VSEBINE 4"]
["OTROCI_MLADOSTNIKI","DNEVNI CENTRI ZA OTROKE IN MLADOSTNIKE S PREVENTIVNIM DELOM IN SVETOVANJEM",null,null,"UP_VSEBINE 5"]
[null,"PREVENTIVNI PROGRAMI",null,null,"UP_VSEBINE 5"]
[null,"PROGRAMI TELEFONSKEGA SVETOVANJA",null,null,"UP_VSEBINE 5"]
["STAREJŠI","MEDGENERACIJSKA SREDIŠČA",null,null,"UP_VSEBINE 6"]
[null,"PROGRAMI ZA STAREJŠE",null,null,"UP_VSEBINE 6"]
[null,"PROGRAMI ZA OSEBE Z DEMENCO IN NJIHOVE SVOJCE",null,null,"UP_VSEBINE 6"]
["INVALIDI","PROGRAMI ZA SPODBUJANJE SOCIALNE VKLJUČENOSTI IN NEODVISNEGA ŽIVLJENJA INVALIDOV",null,null,"UP_VSEBINE 7",null,null,null,null,null,null,"kapacitete 1"]
["ROMI","PROGRAMI ZA ROME",null,null,"UP_VSEBINE 8"]
["DRUGI_PROGRAMI","DRUGI PROGRAMI",null,null,"UP_VSEBINE 10"]
["PROGRAMI SPECIALISTIČNE PODPORE ŽRTVAM KAZNIVIH DEJANJ","PROGRAMI SPECIALISTIČNE PODPORE ŽRTVAM KAZNIVIH DEJANJ",null,null,"UP_VSEBINE 9"]

{"sheet":"uporabniki","index":80,"n_rows":0,"n_cols":0,"rows_kept":0,"cut":false,"hidden":true,"merged":[]}